{"text_format":"1","workbook":"xlsx","n_sheets":8,"sheets":["Solicitud","Listas","Cotización","Catálogo de Precios","Catálogo Localización","Localización","Localizacion_desfragmentada","CSV"],"not_rendered":{"charts":0,"images":4,"macros":1,"external_links":4,"defined_names":50,"comments":0,"pivot_tables":0},"unopened":[],"bounds":{"document_bytes":16777216,"sheet_cells":100000,"rows_first":2000,"rows_last":500,"rows_between":2000,"halvings":0,"cell_chars":16384,"cell_head_chars":4096},"cells_cut":0,"cells_raw":0,"read":"whole","date_system":"1900"}

{"sheet":"Solicitud","index":0,"n_rows":55,"n_cols":19,"rows_kept":55,"cut":false,"hidden":false,"merged":[[1,3,1,11],[8,10,8,12],[0,1,0,12],[2,1,2,12],[4,1,4,2],[10,8,10,9],[4,3,4,7],[4,10,4,12],[6,1,6,2],[6,3,6,7],[6,10,6,12],[4,8,4,9],[6,8,6,9],[8,8,8,9],[10,10,10,12],[8,1,8,2],[8,3,8,7],[10,1,10,2],[26,2,26,11],[27,2,30,11],[21,2,24,11],[12,1,12,12],[20,2,20,11],[18,1,18,3],[14,1,14,3],[14,5,14,6],[18,5,18,6],[14,8,14,9],[14,10,14,11],[16,1,16,3],[16,5,16,6],[10,3,10,7],[16,8,16,9],[47,1,47,12],[50,2,50,5],[51,2,51,5],[52,4,52,5],[16,10,16,11],[43,2,43,4],[43,5,43,7],[44,5,44,7],[44,2,44,4],[32,1,32,12],[40,2,40,3],[35,8,35,9],[36,8,36,12],[42,1,42,7],[46,1,46,12]]}
[null,"SOLICITUD DE COTIZACIÓN"]
[null,"Versión 3","2023-07-03","IAD de Servicios Financieros Para la Dispersión de Recursos Tercera Generación"]
[null,"Información de la Entidad Compradora"]
[]
[null,"Nombre de la Entidad:",null,null,null,null,null,null,"NIT:"]
[]
[null,"Dirección de la Entidad:",null,null,null,null,null,null,"Correo de contacto:"]
[]
[null,"Municipio / Dirección:",null,null,null,null,null,null,"Teléfono de contacto:"]
[]
[null,"Fecha Creación del evento:",null,null,null,null,null,null,"Nombre funcionario Comprador:",null,null,null,null,null,null,null,null,null,"Cuenta de Ahorro Electrónica"]
[null,null,null,null,null,null,null,null,null,null,null,null,null,null,null,null,null,null,"Cuenta Tradicional"]
[null,"Solicitud de Cotización",null,null,null,null,null,null,null,null,null,null,null,null,null,null,null,null,"Deposito electrónico"]
[null,null,null,null,null,null,null,null,null,null,null,null,null,null,null,null,null,null,"Cuentas de Ahorro de Tramite Simplificado"]
[null,"Fecha estimada de inicio OC:",null,null,null,"Fecha de vencimiento OC:",null,null,"Plazo máximo de  enrolamiento (Fecha):"]
[]
[null,"Frecuencia estimada de pagos al año (meses):",null,null,null,"Valor estimado a pagar en cada frecuencia:",null,null,"Exención de IVA por programa social del Gobierno Nacional? (Ley 1943 del 28 de diciembre de 2019)"]
[]
[null,"Valor estimado máximo a pagar a cada beneficiario:",null,null,null,"Presupuesto máximo de la entidad compradora:"]
[]
[null,null,"Plazo máximo Enrolamiento:"]
[]
[]
[]
[]
[]
[null,null,"Observaciones generales:"]
[]
[]
[]
[]
[]
[null,"Paquete de Servicios"]
[]
[null,null,null,null,null,null,null,null,"Filas a agregar o eliminar:"]
[null,null,null,"Máximo de filas:",1000000,null,null,null,1]
[null,null,null,null,null,null,null,null,"Vinculación del Beneficiario"]
[null,"Item","Código DANE","Departamento","Municipio","Número Estimado de Beneficiarios","Cantidad de Transferencias por Programa","Total cantidad estimada de transferencia","Cuenta de Ahorro Electrónica","Cuenta Tradicional","Deposito electrónico","Cuentas de Ahorro de Tramite Simplificado","Giro"]
[null,1,null,null,null,null,null,{"$f":"F39*G39","v":0}]
[]
[null,null,"Cantidad de transferencias: ",null,1,null,"Total transferencias: ",{"$f":"SUM(H27:H39)","v":0}]
[]
[null,"Tarifas adicionales para los Beneficiarios"]
[null,"No","Nombre del servicio",null,null,"Descripción"]
[null,1]
[]
[null,"*Los gravámenes adicionales no aplican para entidades del orden nacional"]
[null,"Gravámenes adicionales"]
[]
[null,"Gravámenes adicionales (estampillas)"]
[null,"No","Descripción",null,null,null,"Porcentaje"]
[null,1]
[null,null,null,null,"Total porcentaje:",null,{"$f":"SUM(G52:G52)","v":0}]
[null,null,"Filas a agregar o eliminar Gravámenes:"]
[null,null,1]

{"sheet":"Listas","index":1,"n_rows":126,"n_cols":55,"rows_kept":126,"cut":false,"hidden":true,"merged":[]}
["DPTO","AMAZONAS","ANTIOQUIA","ARAUCA","ATLANTICO","BOGOTA","BOLIVAR","BOYACA","CALDAS","CAQUETA","CASANARE","CAUCA","CESAR","CHOCO","CORDOBA","CUNDINAMARCA","GUAINIA","GUAVIARE","HUILA","LAGUAJIRA","MAGDALENA","META","N.DESANTANDER","NARIÑO","PUTUMAYO","QUINDIO","RISARALDA","SANANDRES","SANTANDER","SUCRE","TOLIMA","VALLEDELCAUCA","VAUPES","VICHADA",null,null,null,null,null,null,null,null,null,null,null,null,null,null,null,null,null,null,"Proveedores",null,"Lista Servicio"]
["AMAZONAS","EL ENCANTO","ABEJORRAL","ARAUCA","BARANOA","BOGOTA, D.C.","ACHI","ALMEIDA","AGUADAS","ALBANIA","AGUAZUL","ALMAGUER","AGUACHICA","ACANDI","AYAPEL","AGUA DE DIOS","BARRANCO MINAS","CALAMAR","ACEVEDO","ALBANIA","ALGARROBO","ACACIAS","ABREGO","ALBAN","COLON","ARMENIA","APIA","PROVIDENCIA","AGUADA","BUENAVISTA","ALPUJARRA","ALCALA","CARURU","CUMARIBO",null,null,null,null,null,null,null,null,null,null,null,null,null,null,null,null,null,null,"Banco Davivienda",null,"X"]
["ANTIOQUIA","LA CHORRERA","ABRIAQUI","ARAUQUITA","BARRANQUILLA",null,"ALTOS DEL ROSARIO","AQUITANIA","ANSERMA","BELEN DE LOS ANDAQUIES","CHAMEZA","ARGELIA","AGUSTIN CODAZZI","ALTO BAUDO","BUENAVISTA","ALBAN","CACAHUAL","EL RETORNO","AGRADO","BARRANCAS","ARACATACA","BARRANCA DE UPIA","ARBOLEDAS","ALDANA","LEGUIZAMO","BUENAVISTA","BALBOA","SAN ANDRES","ALBANIA","CAIMITO","ALVARADO","ANDALUCIA","MITU","LA PRIMAVERA",null,null,null,null,null,null,null,null,null,null,null,null,null,null,null,null,null,null,"Banco Popular"]
["ARAUCA","LA PEDRERA","ALEJANDRIA","CRAVO NORTE","CAMPO DE LA CRUZ",null,"ARENAL","ARCABUCO","ARANZAZU","CARTAGENA DEL CHAIRA","HATO COROZAL","BALBOA","ASTREA","ATRATO","CANALETE","ANAPOIMA","INIRIDA","MIRAFLORES","AIPE","DIBULLA","ARIGUANI","CABUYARO","BOCHALEMA","ANCUYA","MOCOA","CALARCA","BELEN DE UMBRIA",null,"ARATOCA","CHALAN","AMBALEMA","ANSERMANUEVO","PACOA","PUERTO CARREÑO",null,null,null,null,null,null,null,null,null,null,null,null,null,null,null,null,null,null,"Banco Agrario de Colombia"]
["ATLANTICO","LA VICTORIA","AMAGA","FORTUL","CANDELARIA",null,"ARJONA","BELEN","BELALCAZAR","CURILLO","LA SALINA","BOLIVAR","BECERRIL","BAGADO","CERETE","ANOLAIMA","LA GUADALUPE","SAN JOSE DEL GUAVIARE","ALGECIRAS","DISTRACCION","CERRO SAN ANTONIO","CASTILLA LA NUEVA","BUCARASICA","ARBOLEDA","ORITO","CIRCASIA","DOSQUEBRADAS",null,"BARBOSA","COLOSO","ANZOATEGUI","ARGELIA","PAPUNAUA","SANTA ROSALIA",null,null,null,null,null,null,null,null,null,null,null,null,null,null,null,null,null,null,"Banco de Occidente"]
["BOGOTA","LETICIA","AMALFI","PUERTO RONDON","GALAPA",null,"ARROYOHONDO","BERBEO","CHINCHINA","EL DONCELLO","MANI","BUENOS AIRES","BOSCONIA","BAHIA SOLANO","CHIMA","APULO","MAPIRIPANA",null,"ALTAMIRA","EL MOLINO","CHIBOLO","CUBARRAL","CACHIRA","BARBACOAS","PUERTO ASIS","CORDOBA","GUATICA",null,"BARICHARA","COROZAL","ARMERO","BOLIVAR","TARAIRA",null,null,null,null,null,null,null,null,null,null,null,null,null,null,null,null,null,null,null,"Banco de Bogotá"]
["BOLIVAR","MIRITI - PARANA","ANDES","SARAVENA","JUAN DE ACOSTA",null,"BARRANCO DE LOBA","BETEITIVA","FILADELFIA","EL PAUJIL","MONTERREY","CAJIBIO","CHIMICHAGUA","BAJO BAUDO","CHINU","ARBELAEZ","MORICHAL",null,"BARAYA","FONSECA","CIENAGA","CUMARAL","CACOTA","BELEN","PUERTO CAICEDO","FILANDIA","LA CELIA",null,"BARRANCABERMEJA","COVEÑAS","ATACO","BUENAVENTURA","YAVARATE"]
["BOYACA","PUERTO ALEGRIA","ANGELOPOLIS","TAME","LURUACO",null,"CALAMAR","BOAVITA","LA DORADA","FLORENCIA","NUNCHIA","CALDONO","CHIRIGUANA","BOJAYA","CIENAGA DE ORO","BELTRAN","PANA PANA",null,"CAMPOALEGRE","HATONUEVO","CONCORDIA","EL CALVARIO","CHINACOTA","BUESACO","PUERTO GUZMAN","GENOVA","LA VIRGINIA",null,"BETULIA","EL ROBLE","CAJAMARCA","BUGALAGRANDE"]
["CALDAS","PUERTO ARICA","ANGOSTURA",null,"MALAMBO",null,"CANTAGALLO","BOYACA","LA MERCED","LA MONTAÑITA","OROCUE","CALOTO","CURUMANI","CARMEN DEL DARIEN","COTORRA","BITUIMA","PUERTO COLOMBIA",null,"COLOMBIA","LA JAGUA DEL PILAR","EL BANCO","EL CASTILLO","CHITAGA","CHACHAGsI","SAN FRANCISCO","LA TEBAIDA","MARSELLA",null,"BOLIVAR","GALERAS","CARMEN DE APICALA","CAICEDONIA"]
["CAQUETA","PUERTO NARIÑO","ANORI",null,"MANATI",null,"CARTAGENA","BRICEÑO","MANIZALES","MILAN","PAZ DE ARIPORO","CORINTO","EL COPEY","CERTEGUI","LA APARTADA","BOJACA","SAN FELIPE",null,"ELIAS","MAICAO","EL PIÑON","EL DORADO","CONVENCION","COLON","SAN MIGUEL","MONTENEGRO","MISTRATO",null,"BUCARAMANGA","GUARANDA","CASABIANCA","CALI"]
["CASANARE","PUERTO SANTANDER","ANZA",null,"PALMAR DE VARELA",null,"CICUCO","BUENAVISTA","MANZANARES","MORELIA","PORE","EL TAMBO","EL PASO","CONDOTO","LORICA","CABRERA",null,null,"GARZON","MANAURE","EL RETEN","FUENTE DE ORO","CUCUTA","CONSACA","SANTIAGO","PIJAO","PEREIRA",null,"CABRERA","LA UNION","CHAPARRAL","CALIMA"]
["CAUCA","TARAPACA","APARTADO",null,"PIOJO",null,"CLEMENCIA","BUSBANZA","MARMATO","PUERTO RICO","RECETOR","FLORENCIA","GAMARRA","EL CANTON DEL SAN PABLO","LOS CORDOBAS","CACHIPAY",null,null,"GIGANTE","RIOHACHA","FUNDACION","GRANADA","CUCUTILLA","CONTADERO","SIBUNDOY","QUIMBAYA","PUEBLO RICO",null,"CALIFORNIA","LOS PALMITOS","COELLO","CANDELARIA"]
["CESAR",null,"ARBOLETES",null,"POLONUEVO",null,"CORDOBA","CALDAS","MARQUETALIA","SAN JOSE DEL FRAGUA","SABANALARGA","GUACHENE","GONZALEZ","EL CARMEN DE ATRATO","MOMIL","CAJICA",null,null,"GUADALUPE","SAN JUAN DEL CESAR","GUAMAL","GUAMAL","DURANIA","CORDOBA","VALLE DEL GUAMUEZ","SALENTO","QUINCHIA",null,"CAPITANEJO","MAJAGUAL","COYAIMA","CARTAGO"]
["CHOCO",null,"ARGELIA",null,"PONEDERA",null,"EL CARMEN DE BOLIVAR","CAMPOHERMOSO","MARULANDA","SAN VICENTE DEL CAGUAN","SACAMA","GUAPI","LA GLORIA","EL LITORAL DEL SAN JUAN","MONTELIBANO","CAPARRAPI",null,null,"HOBO","URIBIA","NUEVA GRANADA","LA MACARENA","EL CARMEN","CUASPUD","VILLAGARZON",null,"SANTA ROSA DE CABAL",null,"CARCASI","MORROA","CUNDAY","DAGUA"]
["CORDOBA",null,"ARMENIA",null,"PUERTO COLOMBIA",null,"EL GUAMO","CERINZA","NEIRA","SOLANO","SAN LUIS DE PALENQUE","INZA","LA JAGUA DE IBIRICO","ISTMINA","MONTERIA","CAQUEZA",null,null,"IQUIRA","URUMITA","PEDRAZA","LEJANIAS","EL TARRA","CUMBAL",null,null,"SANTUARIO",null,"CEPITA","OVEJAS","DOLORES","EL AGUILA"]
["CUNDINAMARCA",null,"BARBOSA",null,"REPELON",null,"EL PEÑON","CHINAVITA","NORCASIA","SOLITA","TAMARA","JAMBALO","LA PAZ","JURADO","MOÑITOS","CARMEN DE CARUPA",null,null,"ISNOS","VILLANUEVA","PIJIÑO DEL CARMEN","MAPIRIPAN","EL ZULIA","CUMBITARA",null,null,null,null,"CERRITO","PALMITO","ESPINAL","EL CAIRO"]
["GUAINIA",null,"BELLO",null,"SABANAGRANDE",null,"HATILLO DE LOBA","CHIQUINQUIRA","PACORA","VALPARAISO","TAURAMENA","LA SIERRA","MANAURE","LLORO","PLANETA RICA","CHAGUANI",null,null,"LA ARGENTINA",null,"PIVIJAY","MESETAS","GRAMALOTE","EL CHARCO",null,null,null,null,"CHARALA","SAMPUES","FALAN","EL CERRITO"]
["GUAVIARE",null,"BELMIRA",null,"SABANALARGA",null,"MAGANGUE","CHIQUIZA","PALESTINA",null,"TRINIDAD","LA VEGA","PAILITAS","MEDIO ATRATO","PUEBLO NUEVO","CHIA",null,null,"LA PLATA",null,"PLATO","PUERTO CONCORDIA","HACARI","EL PEÑOL",null,null,null,null,"CHARTA","SAN BENITO ABAD","FLANDES","EL DOVIO"]
["HUILA",null,"BETANIA",null,"SANTA LUCIA",null,"MAHATES","CHISCAS","PENSILVANIA",null,"VILLANUEVA","LOPEZ","PELAYA","MEDIO BAUDO","PUERTO ESCONDIDO","CHIPAQUE",null,null,"NATAGA",null,"PUEBLOVIEJO","PUERTO GAITAN","HERRAN","EL ROSARIO",null,null,null,null,"CHIMA","SAN JUAN DE BETULIA","FRESNO","FLORIDA"]
["LA GUAJIRA",null,"BETULIA",null,"SANTO TOMAS",null,"MARGARITA","CHITA","RIOSUCIO",null,"YOPAL","MERCADERES","PUEBLO BELLO","MEDIO SAN JUAN","PUERTO LIBERTADOR","CHOACHI",null,null,"NEIVA",null,"REMOLINO","PUERTO LLERAS","LA ESPERANZA","EL TABLON DE GOMEZ",null,null,null,null,"CHIPATA","SAN LUIS DE SINCE","GUAMO","GINEBRA"]
["MAGDALENA",null,"BRICEÑO",null,"SOLEDAD",null,"MARIA LA BAJA","CHITARAQUE","RISARALDA",null,null,"MIRANDA","RIO DE ORO","NOVITA","PURISIMA","CHOCONTA",null,null,"OPORAPA",null,"SABANAS DE SAN ANGEL","PUERTO LOPEZ","LA PLAYA","EL TAMBO",null,null,null,null,"CIMITARRA","SAN MARCOS","HERVEO","GUACARI"]
["META",null,"BURITICA",null,"SUAN",null,"MOMPOS","CHIVATA","SALAMINA",null,null,"MORALES","SAN ALBERTO","NUQUI","SAHAGUN","COGUA",null,null,"PAICOL",null,"SALAMINA","PUERTO RICO","LABATECA","FRANCISCO PIZARRO",null,null,null,null,"CONCEPCION","SAN ONOFRE","HONDA","GUADALAJARA DE BUGA"]
["N. DE SANTANDER",null,"CACERES",null,"TUBARA",null,"MONTECRISTO","CHIVOR","SAMANA",null,null,"PADILLA","SAN DIEGO","QUIBDO","SAN ANDRES SOTAVENTO","COTA",null,null,"PALERMO",null,"SAN SEBASTIAN DE BUENAVISTA","RESTREPO","LOS PATIOS","FUNES",null,null,null,null,"CONFINES","SAN PEDRO","IBAGUE","JAMUNDI"]
["NARIÑO",null,"CAICEDO",null,"USIACURI",null,"MORALES","CIENEGA","SAN JOSE",null,null,"PAEZ","SAN MARTIN","RIO IRO","SAN ANTERO","CUCUNUBA",null,null,"PALESTINA",null,"SAN ZENON","SAN CARLOS DE GUAROA","LOURDES","GUACHUCAL",null,null,null,null,"CONTRATACION","SANTIAGO DE TOLU","ICONONZO","LA CUMBRE"]
["PUTUMAYO",null,"CALDAS",null,null,null,"NOROSI","COMBITA","SUPIA",null,null,"PATIA","TAMALAMEQUE","RIO QUITO","SAN BERNARDO DEL VIENTO","EL COLEGIO",null,null,"PITAL",null,"SANTA ANA","SAN JUAN DE ARAMA","MUTISCUA","GUAITARILLA",null,null,null,null,"COROMORO","SINCELEJO","LERIDA","LA UNION"]
["QUINDIO",null,"CAMPAMENTO",null,null,null,"PINILLOS","COPER","VICTORIA",null,null,"PIAMONTE","VALLEDUPAR","RIOSUCIO","SAN CARLOS","EL PEÑON",null,null,"PITALITO",null,"SANTA BARBARA DE PINTO","SAN JUANITO","OCAÑA","GUALMATAN",null,null,null,null,"CURITI","SUCRE","LIBANO","LA VICTORIA"]
["RISARALDA",null,"CAÑASGORDAS",null,null,null,"REGIDOR","CORRALES","VILLAMARIA",null,null,"PIENDAMO",null,"SAN JOSE DEL PALMAR","SAN PELAYO","EL ROSAL",null,null,"RIVERA",null,"SANTA MARTA","SAN MARTIN","PAMPLONA","ILES",null,null,null,null,"EL CARMEN DE CHUCURI","TOLU VIEJO","MARIQUITA","OBANDO"]
["SAN ANDRES",null,"CARACOLI",null,null,null,"RIO VIEJO","COVARACHIA","VITERBO",null,null,"POPAYAN",null,"SIPI","TIERRALTA","FACATATIVA",null,null,"SALADOBLANCO",null,"SITIONUEVO","URIBE","PAMPLONITA","IMUES",null,null,null,null,"EL GUACAMAYO",null,"MELGAR","PALMIRA"]
["SANTANDER",null,"CARAMANTA",null,null,null,"SAN CRISTOBAL","CUBARA",null,null,null,"PUERTO TEJADA",null,"TADO","VALENCIA","FOMEQUE",null,null,"SAN AGUSTIN",null,"TENERIFE","VILLAVICENCIO","PUERTO SANTANDER","IPIALES",null,null,null,null,"EL PEÑON",null,"MURILLO","PRADERA"]
["SUCRE",null,"CAREPA",null,null,null,"SAN ESTANISLAO","CUCAITA",null,null,null,"PURACE",null,"UNGUIA","SAN JOSE DE URE","FOSCA",null,null,"SANTA MARIA",null,"ZAPAYAN","VISTAHERMOSA","RAGONVALIA","LA CRUZ",null,null,null,null,"EL PLAYON",null,"NATAGAIMA","RESTREPO"]
["TOLIMA",null,"CAROLINA",null,null,null,"SAN FERNANDO","CUITIVA",null,null,null,"ROSAS",null,"UNION PANAMERICANA","TUCHIN","FUNZA",null,null,"SUAZA",null,"ZONA BANANERA",null,"SALAZAR","LA FLORIDA",null,null,null,null,"ENCINO",null,"ORTEGA","RIOFRIO"]
["VALLE DEL CAUCA",null,"CAUCASIA",null,null,null,"SAN JACINTO","DUITAMA",null,null,null,"SAN SEBASTIAN",null,null,null,"FUQUENE",null,null,"TARQUI",null,null,null,"SAN CALIXTO","LA LLANADA",null,null,null,null,"ENCISO",null,"PALOCABILDO","ROLDANILLO"]
["VAUPES",null,"CHIGORODO",null,null,null,"SAN JACINTO DEL CAUCA","EL COCUY",null,null,null,"SANTA ROSA",null,null,null,"FUSAGASUGA",null,null,"TELLO",null,null,null,"SAN CAYETANO","LA TOLA",null,null,null,null,"FLORIAN",null,"PIEDRAS","SAN PEDRO"]
["VICHADA",null,"CISNEROS",null,null,null,"SAN JUAN NEPOMUCENO","EL ESPINO",null,null,null,"SANTANDER DE QUILICHAO",null,null,null,"GACHALA",null,null,"TERUEL",null,null,null,"SANTIAGO","LA UNION",null,null,null,null,"FLORIDABLANCA",null,"PLANADAS","SEVILLA"]
[null,null,"CIUDAD BOLIVAR",null,null,null,"SAN MARTIN DE LOBA","FIRAVITOBA",null,null,null,"SILVIA",null,null,null,"GACHANCIPA",null,null,"TESALIA",null,null,null,"SARDINATA","LEIVA",null,null,null,null,"GALAN",null,"PRADO","TORO"]
[null,null,"COCORNA",null,null,null,"SAN PABLO","FLORESTA",null,null,null,"SOTARA",null,null,null,"GACHETA",null,null,"TIMANA",null,null,null,"SILOS","LINARES",null,null,null,null,"GAMBITA",null,"PURIFICACION","TRUJILLO"]
[null,null,"CONCEPCION",null,null,null,"SANTA CATALINA","GACHANTIVA",null,null,null,"SUAREZ",null,null,null,"GAMA",null,null,"VILLAVIEJA",null,null,null,"TEORAMA","LOS ANDES",null,null,null,null,"GIRON",null,"RIOBLANCO","TULUA"]
[null,null,"CONCORDIA",null,null,null,"SANTA ROSA","GAMEZA",null,null,null,"SUCRE",null,null,null,"GIRARDOT",null,null,"YAGUARA",null,null,null,"TIBU","MAGsI",null,null,null,null,"GsEPSA",null,"RONCESVALLES","ULLOA"]
[null,null,"COPACABANA",null,null,null,"SANTA ROSA DEL SUR","GARAGOA",null,null,null,"TIMBIO",null,null,null,"GRANADA",null,null,null,null,null,null,"TOLEDO","MALLAMA",null,null,null,null,"GUACA",null,"ROVIRA","VERSALLES"]
[null,null,"DABEIBA",null,null,null,"SIMITI","GsICAN",null,null,null,"TIMBIQUI",null,null,null,"GUACHETA",null,null,null,null,null,null,"VILLA CARO","MOSQUERA",null,null,null,null,"GUADALUPE",null,"SALDAÑA","VIJES"]
[null,null,"DON MATIAS",null,null,null,"SOPLAVIENTO","GUACAMAYAS",null,null,null,"TORIBIO",null,null,null,"GUADUAS",null,null,null,null,null,null,"VILLA DEL ROSARIO","NARIÑO",null,null,null,null,"GUAPOTA",null,"SAN ANTONIO","YOTOCO"]
[null,null,"EBEJICO",null,null,null,"TALAIGUA NUEVO","GUATEQUE",null,null,null,"TOTORO",null,null,null,"GUASCA",null,null,null,null,null,null,null,"OLAYA HERRERA",null,null,null,null,"GUAVATA",null,"SAN LUIS","YUMBO"]
[null,null,"EL BAGRE",null,null,null,"TIQUISIO","GUAYATA",null,null,null,"VILLA RICA",null,null,null,"GUATAQUI",null,null,null,null,null,null,null,"OSPINA",null,null,null,null,"HATO",null,"SANTA ISABEL","ZARZAL"]
[null,null,"EL CARMEN DE VIBORAL",null,null,null,"TURBACO","IZA",null,null,null,null,null,null,null,"GUATAVITA",null,null,null,null,null,null,null,"PASTO",null,null,null,null,"JESUS MARIA",null,"SUAREZ"]
[null,null,"EL SANTUARIO",null,null,null,"TURBANA","JENESANO",null,null,null,null,null,null,null,"GUAYABAL DE SIQUIMA",null,null,null,null,null,null,null,"POLICARPA",null,null,null,null,"JORDAN",null,"VALLE DE SAN JUAN"]
[null,null,"ENTRERRIOS",null,null,null,"VILLANUEVA","JERICO",null,null,null,null,null,null,null,"GUAYABETAL",null,null,null,null,null,null,null,"POTOSI",null,null,null,null,"LA BELLEZA",null,"VENADILLO"]
[null,null,"ENVIGADO",null,null,null,"ZAMBRANO","LA CAPILLA",null,null,null,null,null,null,null,"GUTIERREZ",null,null,null,null,null,null,null,"PROVIDENCIA",null,null,null,null,"LA PAZ",null,"VILLAHERMOSA"]
[null,null,"FREDONIA",null,null,null,null,"LA UVITA",null,null,null,null,null,null,null,"JERUSALEN",null,null,null,null,null,null,null,"PUERRES",null,null,null,null,"LANDAZURI",null,"VILLARRICA"]
[null,null,"FRONTINO",null,null,null,null,"LA VICTORIA",null,null,null,null,null,null,null,"JUNIN",null,null,null,null,null,null,null,"PUPIALES",null,null,null,null,"LEBRIJA"]
[null,null,"GIRALDO",null,null,null,null,"LABRANZAGRANDE",null,null,null,null,null,null,null,"LA CALERA",null,null,null,null,null,null,null,"RICAURTE",null,null,null,null,"LOS SANTOS"]
[null,null,"GIRARDOTA",null,null,null,null,"MACANAL",null,null,null,null,null,null,null,"LA MESA",null,null,null,null,null,null,null,"ROBERTO PAYAN",null,null,null,null,"MACARAVITA"]
[null,null,"GOMEZ PLATA",null,null,null,null,"MARIPI",null,null,null,null,null,null,null,"LA PALMA",null,null,null,null,null,null,null,"SAMANIEGO",null,null,null,null,"MALAGA"]
[null,null,"GRANADA",null,null,null,null,"MIRAFLORES",null,null,null,null,null,null,null,"LA PEÑA",null,null,null,null,null,null,null,"SAN ANDRES DE TUMACO",null,null,null,null,"MATANZA"]
[null,null,"GUADALUPE",null,null,null,null,"MONGUA",null,null,null,null,null,null,null,"LA VEGA",null,null,null,null,null,null,null,"SAN BERNARDO",null,null,null,null,"MOGOTES"]
[null,null,"GUARNE",null,null,null,null,"MONGUI",null,null,null,null,null,null,null,"LENGUAZAQUE",null,null,null,null,null,null,null,"SAN LORENZO",null,null,null,null,"MOLAGAVITA"]
[null,null,"GUATAPE",null,null,null,null,"MONIQUIRA",null,null,null,null,null,null,null,"MACHETA",null,null,null,null,null,null,null,"SAN PABLO",null,null,null,null,"OCAMONTE"]
[null,null,"HELICONIA",null,null,null,null,"MOTAVITA",null,null,null,null,null,null,null,"MADRID",null,null,null,null,null,null,null,"SAN PEDRO DE CARTAGO",null,null,null,null,"OIBA"]
[null,null,"HISPANIA",null,null,null,null,"MUZO",null,null,null,null,null,null,null,"MANTA",null,null,null,null,null,null,null,"SANDONA",null,null,null,null,"ONZAGA"]
[null,null,"ITAGUI",null,null,null,null,"NOBSA",null,null,null,null,null,null,null,"MEDINA",null,null,null,null,null,null,null,"SANTA BARBARA",null,null,null,null,"PALMAR"]
[null,null,"ITUANGO",null,null,null,null,"NUEVO COLON",null,null,null,null,null,null,null,"MOSQUERA",null,null,null,null,null,null,null,"SANTACRUZ",null,null,null,null,"PALMAS DEL SOCORRO"]
[null,null,"JARDIN",null,null,null,null,"OICATA",null,null,null,null,null,null,null,"NARIÑO",null,null,null,null,null,null,null,"SAPUYES",null,null,null,null,"PARAMO"]
[null,null,"JERICO",null,null,null,null,"OTANCHE",null,null,null,null,null,null,null,"NEMOCON",null,null,null,null,null,null,null,"TAMINANGO",null,null,null,null,"PIEDECUESTA"]
[null,null,"LA CEJA",null,null,null,null,"PACHAVITA",null,null,null,null,null,null,null,"NILO",null,null,null,null,null,null,null,"TANGUA",null,null,null,null,"PINCHOTE"]
[null,null,"LA ESTRELLA",null,null,null,null,"PAEZ",null,null,null,null,null,null,null,"NIMAIMA",null,null,null,null,null,null,null,"TUQUERRES",null,null,null,null,"PUENTE NACIONAL"]
[null,null,"LA PINTADA",null,null,null,null,"PAIPA",null,null,null,null,null,null,null,"NOCAIMA",null,null,null,null,null,null,null,"YACUANQUER",null,null,null,null,"PUERTO PARRA"]
[null,null,"LA UNION",null,null,null,null,"PAJARITO",null,null,null,null,null,null,null,"PACHO",null,null,null,null,null,null,null,null,null,null,null,null,"PUERTO WILCHES"]
[null,null,"LIBORINA",null,null,null,null,"PANQUEBA",null,null,null,null,null,null,null,"PAIME",null,null,null,null,null,null,null,null,null,null,null,null,"RIONEGRO"]
[null,null,"MACEO",null,null,null,null,"PAUNA",null,null,null,null,null,null,null,"PANDI",null,null,null,null,null,null,null,null,null,null,null,null,"SABANA DE TORRES"]
[null,null,"MARINILLA",null,null,null,null,"PAYA",null,null,null,null,null,null,null,"PARATEBUENO",null,null,null,null,null,null,null,null,null,null,null,null,"SAN ANDRES"]
[null,null,"MEDELLIN",null,null,null,null,"PAZ DE RIO",null,null,null,null,null,null,null,"PASCA",null,null,null,null,null,null,null,null,null,null,null,null,"SAN BENITO"]
[null,null,"MONTEBELLO",null,null,null,null,"PESCA",null,null,null,null,null,null,null,"PUERTO SALGAR",null,null,null,null,null,null,null,null,null,null,null,null,"SAN GIL"]
[null,null,"MURINDO",null,null,null,null,"PISBA",null,null,null,null,null,null,null,"PULI",null,null,null,null,null,null,null,null,null,null,null,null,"SAN JOAQUIN"]
[null,null,"MUTATA",null,null,null,null,"PUERTO BOYACA",null,null,null,null,null,null,null,"QUEBRADANEGRA",null,null,null,null,null,null,null,null,null,null,null,null,"SAN JOSE DE MIRANDA"]
[null,null,"NARIÑO",null,null,null,null,"QUIPAMA",null,null,null,null,null,null,null,"QUETAME",null,null,null,null,null,null,null,null,null,null,null,null,"SAN MIGUEL"]
[null,null,"NECHI",null,null,null,null,"RAMIRIQUI",null,null,null,null,null,null,null,"QUIPILE",null,null,null,null,null,null,null,null,null,null,null,null,"SAN VICENTE DE CHUCURI"]
[null,null,"NECOCLI",null,null,null,null,"RAQUIRA",null,null,null,null,null,null,null,"RICAURTE",null,null,null,null,null,null,null,null,null,null,null,null,"SANTA BARBARA"]
[null,null,"OLAYA",null,null,null,null,"RONDON",null,null,null,null,null,null,null,"SAN ANTONIO DEL TEQUENDAMA",null,null,null,null,null,null,null,null,null,null,null,null,"SANTA HELENA DEL OPON"]
[null,null,"PEÐOL",null,null,null,null,"SABOYA",null,null,null,null,null,null,null,"SAN BERNARDO",null,null,null,null,null,null,null,null,null,null,null,null,"SIMACOTA"]
[null,null,"PEQUE",null,null,null,null,"SACHICA",null,null,null,null,null,null,null,"SAN CAYETANO",null,null,null,null,null,null,null,null,null,null,null,null,"SOCORRO"]
[null,null,"PUEBLORRICO",null,null,null,null,"SAMACA",null,null,null,null,null,null,null,"SAN FRANCISCO",null,null,null,null,null,null,null,null,null,null,null,null,"SUAITA"]
[null,null,"PUERTO BERRIO",null,null,null,null,"SAN EDUARDO",null,null,null,null,null,null,null,"SAN JUAN DE RIO SECO",null,null,null,null,null,null,null,null,null,null,null,null,"SUCRE"]
[null,null,"PUERTO NARE",null,null,null,null,"SAN JOSE DE PARE",null,null,null,null,null,null,null,"SASAIMA",null,null,null,null,null,null,null,null,null,null,null,null,"SURATA"]
[null,null,"PUERTO TRIUNFO",null,null,null,null,"SAN LUIS DE GACENO",null,null,null,null,null,null,null,"SESQUILE",null,null,null,null,null,null,null,null,null,null,null,null,"TONA"]
[null,null,"REMEDIOS",null,null,null,null,"SAN MATEO",null,null,null,null,null,null,null,"SIBATE",null,null,null,null,null,null,null,null,null,null,null,null,"VALLE DE SAN JOSE"]
[null,null,"RETIRO",null,null,null,null,"SAN MIGUEL DE SEMA",null,null,null,null,null,null,null,"SILVANIA",null,null,null,null,null,null,null,null,null,null,null,null,"VELEZ"]
[null,null,"RIONEGRO",null,null,null,null,"SAN PABLO DE BORBUR",null,null,null,null,null,null,null,"SIMIJACA",null,null,null,null,null,null,null,null,null,null,null,null,"VETAS"]
[null,null,"SABANALARGA",null,null,null,null,"SANTA MARIA",null,null,null,null,null,null,null,"SOACHA",null,null,null,null,null,null,null,null,null,null,null,null,"VILLANUEVA"]
[null,null,"SABANETA",null,null,null,null,"SANTA ROSA DE VITERBO",null,null,null,null,null,null,null,"SOPO",null,null,null,null,null,null,null,null,null,null,null,null,"ZAPATOCA"]
[null,null,"SALGAR",null,null,null,null,"SANTA SOFIA",null,null,null,null,null,null,null,"SUBACHOQUE"]
[null,null,"SAN ANDRES DE CUERQUIA",null,null,null,null,"SANTANA",null,null,null,null,null,null,null,"SUESCA"]
[null,null,"SAN CARLOS",null,null,null,null,"SATIVANORTE",null,null,null,null,null,null,null,"SUPATA"]
[null,null,"SAN FRANCISCO",null,null,null,null,"SATIVASUR",null,null,null,null,null,null,null,"SUSA"]
[null,null,"SAN JERONIMO",null,null,null,null,"SIACHOQUE",null,null,null,null,null,null,null,"SUTATAUSA"]
[null,null,"SAN JOSE DE LA MONTAÑA",null,null,null,null,"SOATA",null,null,null,null,null,null,null,"TABIO"]
[null,null,"SAN JUAN DE URABA",null,null,null,null,"SOCHA",null,null,null,null,null,null,null,"TAUSA"]
[null,null,"SAN LUIS",null,null,null,null,"SOCOTA",null,null,null,null,null,null,null,"TENA"]
[null,null,"SAN PEDRO",null,null,null,null,"SOGAMOSO",null,null,null,null,null,null,null,"TENJO"]
[null,null,"SAN PEDRO DE URABA",null,null,null,null,"SOMONDOCO",null,null,null,null,null,null,null,"TIBACUY"]
[null,null,"SAN RAFAEL",null,null,null,null,"SORA",null,null,null,null,null,null,null,"TIBIRITA"]
[null,null,"SAN ROQUE",null,null,null,null,"SORACA",null,null,null,null,null,null,null,"TOCAIMA"]
[null,null,"SAN VICENTE",null,null,null,null,"SOTAQUIRA",null,null,null,null,null,null,null,"TOCANCIPA"]
[null,null,"SANTA BARBARA",null,null,null,null,"SUSACON",null,null,null,null,null,null,null,"TOPAIPI"]
[null,null,"SANTA ROSA DE OSOS",null,null,null,null,"SUTAMARCHAN",null,null,null,null,null,null,null,"UBALA"]
[null,null,"SANTAFE DE ANTIOQUIA",null,null,null,null,"SUTATENZA",null,null,null,null,null,null,null,"UBAQUE"]
[null,null,"SANTO DOMINGO",null,null,null,null,"TASCO",null,null,null,null,null,null,null,"UNE"]
[null,null,"SEGOVIA",null,null,null,null,"TENZA",null,null,null,null,null,null,null,"UTICA"]
[null,null,"SONSON",null,null,null,null,"TIBANA",null,null,null,null,null,null,null,"VENECIA"]
[null,null,"SOPETRAN",null,null,null,null,"TIBASOSA",null,null,null,null,null,null,null,"VERGARA"]
[null,null,"TAMESIS",null,null,null,null,"TINJACA",null,null,null,null,null,null,null,"VIANI"]
[null,null,"TARAZA",null,null,null,null,"TIPACOQUE",null,null,null,null,null,null,null,"VILLA DE SAN DIEGO DE UBATE"]
[null,null,"TARSO",null,null,null,null,"TOCA",null,null,null,null,null,null,null,"VILLAGOMEZ"]
[null,null,"TITIRIBI",null,null,null,null,"TOGsI",null,null,null,null,null,null,null,"VILLAPINZON"]
[null,null,"TOLEDO",null,null,null,null,"TOPAGA",null,null,null,null,null,null,null,"VILLETA"]
[null,null,"TURBO",null,null,null,null,"TOTA",null,null,null,null,null,null,null,"VIOTA"]
[null,null,"URAMITA",null,null,null,null,"TUNJA",null,null,null,null,null,null,null,"YACOPI"]
[null,null,"URRAO",null,null,null,null,"TUNUNGUA",null,null,null,null,null,null,null,"ZIPACON"]
[null,null,"VALDIVIA",null,null,null,null,"TURMEQUE",null,null,null,null,null,null,null,"ZIPAQUIRA"]
[null,null,"VALPARAISO",null,null,null,null,"TUTA"]
[null,null,"VEGACHI",null,null,null,null,"TUTAZA"]
[null,null,"VENECIA",null,null,null,null,"UMBITA"]
[null,null,"VIGIA DEL FUERTE",null,null,null,null,"VENTAQUEMADA"]
[null,null,"YALI",null,null,null,null,"VILLA DE LEYVA"]
[null,null,"YARUMAL",null,null,null,null,"VIRACACHA"]
[null,null,"YOLOMBO",null,null,null,null,"ZETAQUIRA"]
[null,null,"YONDO"]
[null,null,"ZARAGOZA"]

{"sheet":"Cotización","index":2,"n_rows":33,"n_cols":18,"rows_kept":33,"cut":false,"hidden":false,"merged":[[31,2,31,5],[32,4,32,5],[26,1,26,12],[27,1,27,12],[30,2,30,5],[0,1,0,17],[1,9,1,13],[1,1,1,2],[21,2,21,3],[24,1,24,8],[25,2,25,4],[25,5,25,7],[17,17,18,17],[17,6,18,6],[17,7,18,7],[17,9,18,9],[17,8,18,8],[9,5,9,6],[11,1,11,3],[11,5,11,6],[9,8,11,9],[9,10,11,10],[4,1,4,2],[4,3,4,7],[17,10,18,10],[13,1,13,3],[17,11,17,16],[17,1,18,1],[17,2,18,2],[17,3,18,3],[17,4,18,4],[17,5,18,5],[2,1,2,10],[13,5,13,6],[7,1,7,10],[15,1,15,17],[9,1,9,3]]}
[null,"COTIZACIÓN"]
[null,{"$f":"+Solicitud!B2","v":"Versión 3"},null,{"$f":"+Solicitud!C2","v":"2023-07-03"},null,null,null,null,null,{"$f":"+Solicitud!D2","v":"IAD de Servicios Financieros Para la Dispersión de Recursos Tercera Generación"}]
[null,"Proveedor"]
[]
[null,"Nombre del Banco"]
[]
[]
[null,"Información de Cotización"]
[]
[null,"Fecha de inicio OC",null,null,null,"Fecha de vencimiento OC",null,null,"Exención de IVA por programa social del Gobierno Nacional? (Ley 1943 del 28 de diciembre de 2019)"]
[]
[null,"Frecuencia de pagos al año",null,null,null,"Valor estimado a pagar en cada frecuencia"]
[]
[null,"Valor estimado a pagar a cada Beneficiario",null,null,null,"Fecha de compromiso primera entrega"]
[]
[null,"Paquete de Servicios"]
[]
[null,"Item","Código DANE","Departamento","Municipio","Número Estimado de Beneficiarios","Cantidad de Transferencias por Programa","Total cantidad estimada de transferencia","Vinculación del Beneficiario","Precio por transferencia*","Total","Actividad Servicio Financieros Para la Dispersión de Recursos",null,null,null,null,null,"Observaciones"]
[null,null,null,null,null,null,null,null,null,null,null,"Entrega de efectivo a través de dos (2) o más canales para los Servicios Financieros","Entrega de efectivo a través de cajero electrónico para los Servicios Financieros","Entrega de efectivo en sucursal del Banco para los Servicios Financieros","Entrega de efectivo a través de corresponsal bancario en las instalaciones del corresponsal bancario para los Servicios Financieros","Entrega directa de efectivo al Beneficiario en las cabeceras distritales y municipales fuera de las instalaciones del Banco o del corresponsal bancario para los Servicios Financieros","Entrega directa de efectivo al Beneficiario en zona rural fuera de las instalaciones del Banco o del corresponsal bancario para los Servicios Financieros"]
[null,1,null,null,null,null,null,null,null,null,{"$f":"J20*H20","v":0}]
[]
[null,null,"Total ",null,null,null,null,null,"Subtotal",{"$f":"SUM(J20:J20)","v":0},{"$f":"SUM(K20:K20)","v":0}]
[null,null,null,null,null,null,null,null,"IVA (19%) ",null,{"$f":"IF(K10=\"Si\",0,K22*0.19)","v":0}]
[null,null,null,null,null,null,null,null,"Total ",null,{"$f":"+K22+K23","v":0}]
[null,"Tarifas adicionales para los Beneficiarios"]
[null,"No","Nombre del servicio",null,null,"Descripción",null,null,"Valor"]
[null,"*En caso de tener gravámenes adicionales el banco deberá incluir este porcentaje en el precio por transferencia"]
[null,"Gravámenes adicionales"]
[]
[null,"Gravámenes adicionales (estampillas)"]
[null,"No","Descripción",null,null,null,"Porcentaje"]
[null,1]
[null,null,null,null,"Total porcentaje:",null,{"$f":"SUM(G32:G32)","v":0}]

{"sheet":"Catálogo de Precios","index":3,"n_rows":66,"n_cols":14,"rows_kept":66,"cut":false,"hidden":true,"merged":[[54,1,65,1],[58,2,61,2],[62,2,65,2],[5,1,10,1],[6,2,9,2],[11,1,16,1],[12,2,15,2],[17,1,27,1],[18,2,21,2],[22,2,27,2],[28,1,44,1],[28,2,32,2],[33,2,37,2],[38,2,41,2],[45,1,53,1],[0,1,0,11],[1,1,1,11],[3,1,4,1],[3,2,4,2],[3,3,4,3],[3,4,4,4]]}
[null,"Catálogo Instrumento de Agregación de Demanda de Servicios Financieros II"]
[null,"Precio por Actividad de Servicio Financiero y Localización"]
[]
[null,"Tipo de Servicio Financiero","Actividad","Localización","Nº  Actividad","Banco Bogota","Av villas","Banco Popular","Davivienda","Banco Agrario","BBVA","Occidente","Bancolombia","ScotiaBank Colpatria S.A."]
[null,null,null,null,null,"$ (Sin IVA)","$ (Sin IVA)","$ (Sin IVA)","$ (Sin IVA)","$ (Sin IVA)","$ (Sin IVA)","$ (Sin IVA)","$ (Sin IVA)","$ (Sin IVA)"]
[null,"Tipo 1","Transferencia a cuenta del Banco que presta el Servicio Financiero Tipo 1","NA","1.1",3250,500,1950,"N/A","N/A",2000,3650,3000,"N/A"]
[null,null,"Transferencia a cuenta de un banco distinto al que presta el Servicio Financiero Tipo 1 ","Localización 1","1.2.1",5500,1000,3250,"N/A","N/A",2000,4500,5600,"N/A"]
[null,null,null,"Localización 2","1.2.2","N/A",1000,3250,"N/A","N/A",2000,4500,5600,"N/A"]
[null,null,null,"Localización 3","1.2.3",20900,1000,3250,"N/A","N/A",2000,9800,18900,"N/A"]
[null,null,null,"Localización 4 (%)","1.2.4","2.5% Minimo $20.900",2.2499999999999999E-2,"1.5% Min $12.500 - Max $125.000","N/A","N/A","Mínimo $ 4.750 Máximo 1.5% + $ 4.750","1,75% Min $18.200 - Max $169.000 ",1.9E-2,"N/A"]
[null,null,"Cheque de gerencia para los Servicios Financieros","NA","1.3",22000,12000,null,"N/A","N/A","N/A",16550,12300,"N/A"]
[null,"Tipo 2","Transferencia a cuenta del Banco que presta el Servicio Financiero Servicio Financiero Tipo 2","NA","2.1",3250,500,null,3361,4000,2000,3650,3000,"N/A"]
[null,null,"Transferencia a cuenta de un banco distinto al que presta el Servicio Financiero Servicio Financiero Tipo 2  ","Localización 1","2.2.1",5500,1000,3250,"N/A",8000,2000,4500,5600,"N/A"]
[null,null,null,"Localización 2","2.2.2",5500,1000,3250,"N/A",8000,2000,4500,5600,"N/A"]
[null,null,null,"Localización 3","2.2.3",20900,1000,3250,"N/A",8000,2000,9800,18900,"N/A"]
[null,null,null,"Localización 4 (%)","2.2.4","2.5% Minimo $20.900",1.1299999999999999E-2,"1.5% Min $12.500 - Max $125.000","N/A",1.7000000000000001E-2,"Mínimo $ 4.750 Máximo 1.5% + $ 4.750","1,75% Min $18.200 - Max $169.000 ",1.9E-2,"N/A"]
[null,null,"Cheque de gerencia para los Servicios Financieros","NA","2.3",22000,12000,"N/A","N/A",30000,null,16550,12300,"N/A"]
[null,"Tipo 3","Transferencia a cuenta del Banco que presta el Servicio Financiero Tipo 3","NA","3.1",3250,500,2600,3361,4000,2000,3650,3000,"N/A"]
[null,null,"Transferencia a cuenta de un banco distinto al que presta el Servicio Financiero Tipo 3  ","Localización 1","3.2.1",5500,1000,3250,"N/A",8000,2000,4500,5600,"N/A"]
[null,null,null,"Localización 2","3.2.2",5500,1000,3250,"N/A",8000,2000,4500,5600,"N/A"]
[null,null,null,"Localización 3","3.2.3",20900,1000,3250,"N/A",8000,2000,9800,18900,"N/A"]
[null,null,null,"Localización 4 (%)","3.2.4","2.5% Minimo $20.900",1.1299999999999999E-2,"1.5% Min $12.500 - Max $125.000","N/A",1.7000000000000001E-2,"Mínimo $ 4.750 Máximo 1.5% + $ 4.750","1,75% Min $18.200 - Max $169.000 ",1.9E-2,"N/A"]
[null,null,"Comisión que remunera la operación de cambio y el giro internacional para los Servicios Financieros Tipo 3.","Estados Unidos","3.3",20,36,27,"N/A",21,25,22,"N/A","N/A"]
[null,null,null,"Estados Unidos – intragrupo","3.3",20,36,27,"N/A",21,15,22,"N/A","N/A"]
[null,null,null,"Europa ","3.3",20,36,27,"N/A",21,25,22,"N/A","N/A"]
[null,null,null,"Europa – intragrupo","3.3",20,36,27,"N/A",21,15,22,"N/A","N/A"]
[null,null,null,"Resto del mundo ","3.3",20,36,27,"N/A",21,25,22,"N/A","N/A"]
[null,null,null,"Resto del mundo – Intragrupo","3.3",20,36,27,"N/A",21,15,22,"N/A","N/A"]
[null,"Tipo 4","Entrega de efectivo a través de dos (2) o más canales para los Servicios Financieros Tipo 4","Localización 1","4.1.1",10300,"N/A","N/A",12500,"$14.000 para pagos menores o iguales a $600.000; 1,5% para pagos superiores a $600.000","N/A","N/A",18929,"$13,950 para pagos menores o iguales a $500.000; 1,2% para pagos superiores a $500.000"]
[null,null,null,"Localización 2","4.1.2",10300,"N/A","N/A",17529,"$16.000 para pagos menores o iguales a $600.000; 1,5% para pagos superiores a $600.000","N/A","N/A",18929,"$14,950 para pagos menores o iguales a $500.000; 1,2% para pagos superiores a $500.000"]
[null,null,null,"Localización 3","4.1.3",10300,"N/A","N/A",32715,"$21.000 para pagos menores o iguales a $600.000; 1,5% para pagos superiores a $600.000","N/A","N/A",19929,"$18,970 para pagos menores o iguales a $500.000; 1,2% para pagos superiores a $500.000"]
[null,null,null,"Localización 4","4.1.4",10300,"N/A","N/A",32715,"$21.000 para pagos menores o iguales a $600.000; 1,5% para pagos superiores a $600.000","N/A","N/A",19929,"$18,970 para pagos menores o iguales a $500.000; 1,2% para pagos superiores a $500.000"]
[null,null,null,"Otros municipios","4.1.5",10300,"N/A","N/A",32715,"$22.000 para pagos menores o iguales a $600.000; 1,5% para pagos superiores a $600.000","N/A","N/A","N/A","$19,970 para pagos menores o iguales a $500.000; 1,2% para pagos superiores a $500.000"]
[null,null,"Entrega de efectivo a través de cajero electrónico para los Servicios Financieros Tipo 4.","Localización 1","4.2.1",3500,"N/A","N/A",12500,"$12.000 para pagos menores o iguales a $600.000; 1,5% para pagos superiores a $600.000","N/A","N/A",18929,"$12.000 para pagos menores o iguales a $500.000; 1,2% para pagos superiores a $500.000"]
[null,null,null,"Localización 2","4.2.2",3500,"N/A","N/A",17529,"$14.000 para pagos menores o iguales a $600.000; 1,5% para pagos superiores a $600.000","N/A","N/A",18929,"$13,950 para pagos menores o iguales a $500.000; 1,2% para pagos superiores a $500.000"]
[null,null,null,"Localización 3","4.2.3",3500,"N/A","N/A",32715,"$19.000 para pagos menores o iguales a $600.000; 1,5% para pagos superiores a $600.000","N/A","N/A","N/A","$17,970 para pagos menores o iguales a $500.000; 1,2% para pagos superiores a $500.000"]
[null,null,null,"Localización 4","4.2.4",3500,"N/A","N/A",32715,"$19.000 para pagos menores o iguales a $600.000; 1,5% para pagos superiores a $600.000","N/A","N/A","N/A","$17,970 para pagos menores o iguales a $500.000; 1,2% para pagos superiores a $500.000"]
[null,null,null,"Otros municipios","4.2",3500,"N/A","N/A",32715,"$19.000 para pagos menores o iguales a $600.000; 1,5% para pagos superiores a $600.000","N/A","N/A","N/A","$17,970 para pagos menores o iguales a $500.000; 1,2% para pagos superiores a $500.000"]
[null,null,"Entrega de efectivo en sucursal del Banco para los Servicios Financieros Tipo 4.","Localización 1","4.3.1",10300,"N/A",40639,35000,"$23.000 para pagos menores o iguales a $600.000; 1,5% para pagos superiores a $600.000","N/A","N/A","N/A","$21,940 para pagos menores o iguales a $500.000; 1,2% para pagos superiores a $500.000"]
[null,null,null,"Localización 2","4.3.2",10300,"N/A",45539,35000,"$23.000 para pagos menores o iguales a $600.000; 1,5% para pagos superiores a $600.000","N/A","N/A","N/A","$21,940 para pagos menores o iguales a $500.000; 1,2% para pagos superiores a $500.000"]
[null,null,null,"Localización 3","4.3.3",10300,"N/A",53339,35000,"$23.000 para pagos menores o iguales a $600.000; 1,5% para pagos superiores a $600.000","N/A","N/A","N/A","$21,940 para pagos menores o iguales a $500.000; 1,2% para pagos superiores a $500.000"]
[null,null,null,"Localización 4","4.3.4",10300,"N/A",73532,35000,"$23.000 para pagos menores o iguales a $600.000; 1,5% para pagos superiores a $600.000","N/A","N/A","N/A","$21,940 para pagos menores o iguales a $500.000; 1,2% para pagos superiores a $500.000"]
[null,null,"Entrega de efectivo a través de corresponsal bancario en las instalaciones del corresponsal bancario para los Servicios Financieros Tipo 4.","NA","4.4","N/A","N/A","N/A",42859,"$43.000 para pagos menores o iguales a $600.000; 1,5% para pagos superiores a $600.000","N/A",140000,"N/A","$27,940 para pagos menores o iguales a $500.000; 1,2% para pagos superiores a $500.000"]
[null,null,"Entrega directa de efectivo al Beneficiario en las cabeceras distritales y municipales fuera de las instalaciones del Banco o del corresponsal bancario para los Servicios Financieros Tipo 4.","NA","4.5","N/A","N/A","N/A",62480,"$63.000 para pagos menores o iguales a $600.000; 1,5% para pagos superiores a $600.000","N/A",140000,"N/A","$31,940 para pagos menores o iguales a $500.000; 1,2% para pagos superiores a $500.000"]
[null,null,"Entrega directa de efectivo al Beneficiario en zona rural fuera de las instalaciones del Banco o del corresponsal bancario para los Servicios Financieros Tipo 4.","NA","4.6","N/A","N/A","N/A","N/A","$63.000 para pagos menores o iguales a $600.000; 1,5% para pagos superiores a $600.000","N/A","N/A","N/A","$31,940 para pagos menores o iguales a $500.000; 1,2% para pagos superiores a $500.000"]
[null,"Tipo 5","Recaudo manual a través de la red de oficinas a nivel nacional, para los Servicios Financieros Tipo 5.","NA","5.1","Si ofrece el Servicio financiero","Si ofrece el Servicio financiero","Si ofrece el Servicio financiero","N/A","Si ofrece el Servicio financiero","N/A","N/A","Si ofrece el Servicio financiero","N/A"]
[null,null,"Recaudo manual a través de la red de oficinas a nivel nacional (con Web Service), para los Servicios Financieros Tipo 5.","NA","5.2","Si ofrece el Servicio financiero","Si ofrece el Servicio financiero","Si ofrece el Servicio financiero","N/A","N/A","N/A","N/A","Si ofrece el Servicio financiero","N/A"]
[null,null,"Recaudo código de barras a través de la red de oficinas a nivel nacional, para los Servicios Financieros Tipo 5.","NA","5.3","Si ofrece el Servicio financiero","Si ofrece el Servicio financiero","Si ofrece el Servicio financiero","N/A","Si ofrece el Servicio financiero","N/A","N/A","Si ofrece el Servicio financiero","N/A"]
[null,null,"Recaudo código de barras a través de la red de oficinas a nivel nacional (con Web Service), para los Servicios Financieros Tipo 5.","NA","5.4","Si ofrece el Servicio financiero","Si ofrece el Servicio financiero","Si ofrece el Servicio financiero","N/A","N/A","N/A","N/A","Si ofrece el Servicio financiero","N/A"]
[null,null,"Recaudo código de barras a través de la red de corresponsales bancarios a nivel nacional, para los Servicios Financieros Tipo 5.","NA","5.5","Si ofrece el Servicio financiero","Si ofrece el Servicio financiero","Si ofrece el Servicio financiero","N/A","Si ofrece el Servicio financiero","N/A","N/A","Si ofrece el Servicio financiero","N/A"]
[null,null,"Recaudo débito automático desde cuenta de ahorros o cuenta corriente, para los Servicios Financieros Tipo 5.","NA","5.6","Si ofrece el Servicio financiero","Si ofrece el Servicio financiero","N/A","N/A","Si ofrece el Servicio financiero","N/A","N/A","Si ofrece el Servicio financiero","N/A"]
[null,null,"Recaudo electrónico por PSE correspondiente a montos de $0 hasta $15.000.000 para los Servicios Financieros Tipo 5.","NA","5.7","Si ofrece el Servicio financiero","Si ofrece el Servicio financiero","Si ofrece el Servicio financiero","N/A","Si ofrece el Servicio financiero","N/A","N/A","Si ofrece el Servicio financiero","N/A"]
[null,null,"Recaudo electrónico por PSE correspondiente a montos de $15.000.000 en adelante para los Servicios Financieros Tipo 5.","NA","5.8","Si ofrece el Servicio financiero","Si ofrece el Servicio financiero","Si ofrece el Servicio financiero","N/A","Si ofrece el Servicio financiero","N/A","N/A","Si ofrece el Servicio financiero","N/A"]
[null,null,"Recaudo de adquirencia con tarjetas débito y crédito para los Servicios Financieros Tipo 5.","NA","5.9","Si ofrece el Servicio financiero","Si ofrece el Servicio financiero","Si ofrece el Servicio financiero","N/A","Si ofrece el Servicio financiero","N/A","N/A","Si ofrece el Servicio financiero","N/A"]
[null,"Tipo 6","Servicio Swift MT 940 vía FILE ACT para los Servicios Financieros Tipo 6.","NA","6.1",106,"NA",100,"N/A","N/A","N/A","N/A",3.2,"N/A"]
[null,null,"Servicio Swift MT 940 vía FIN para los Servicios Financieros Tipo 6.","NA","6.2",106,5,100,"N/A","N/A","N/A","N/A",3.2,"N/A"]
[null,null,"Servicio Swift MT 942 vía FILE ACT para los Servicios Financieros Tipo 6.","NA","6.3",109,"NA",100,"N/A","N/A","N/A","N/A",null,"N/A"]
[null,null,"Servicio Swift MT 942 vía FIN para los Servicios Financieros Tipo 6.","NA","6.4",109,"NA",100,"N/A","N/A","N/A","N/A",null,"N/A"]
[null,null,"Servicio Swift MT 101 vía FILE ACT para los Servicios Financieros Tipo 6.  ","Localización 1","6.5.1",313392,"NA",4680,"N/A","N/A","N/A","N/A",5600,"N/A"]
[null,null,null,"Localización 2","6.5.2",313392,"NA",4680,"N/A","N/A","N/A","N/A",5600,"N/A"]
[null,null,null,"Localización 3","6.5.3",313392,"NA",4680,"N/A","N/A","N/A","N/A",18900,"N/A"]
[null,null,null,"Localización 4 (%)","6.5.4",313392,"NA","1.5% Min $12.500 - Max $125.000","N/A","N/A","N/A","N/A",1.9E-2,"N/A"]
[null,null,"Servicio Swift MT 101 vía FIN  para los Servicios Financieros Tipo 6.","Localización 1","6.6.1",313392,"NA",4680,"N/A","N/A","N/A","N/A",5600,"N/A"]
[null,null,null,"Localización 2","6.6.2",313392,"NA",4680,"N/A","N/A","N/A","N/A",5600,"N/A"]
[null,null,null,"Localización 3","6.6.3",313392,"NA",4680,"N/A","N/A","N/A","N/A",18900,"N/A"]
[null,null,null,"Localización 4 (%)","6.6.4",313392,"NA","1.5% Min $12.500 - Max $125.000","N/A","N/A","N/A","N/A",1.9E-2,"N/A"]

{"sheet":"Catálogo Localización","index":4,"n_rows":1128,"n_cols":232,"rows_kept":281,"cut":true,"hidden":true,"merged":[[4,208,4,231],[3,184,3,207],[3,208,3,231],[4,11,4,35],[4,36,4,60],[4,61,4,85],[4,86,4,110],[4,111,4,134],[4,135,4,159],[4,160,4,183],[4,184,4,207],[3,36,3,60],[3,61,3,85],[3,86,3,110],[3,111,3,134],[3,135,3,159],[3,160,3,183],[0,1,0,4],[0,11,0,27],[1,1,1,4],[3,1,5,1],[3,2,5,2],[3,3,5,3],[3,4,5,4],[3,11,3,35]],"bounds":{"rows_first":125,"rows_last":31,"rows_between":125,"halvings":4}}
[null,"Agregación de Demanda para la prestación de Servicios Financieros II",null,null,null,null,null,null,{"$f":"+MATCH(I5,5:5,0)","v":9}]
[null,"Oferta de Localizaciones por Banco"]
[]
[null,"Departamento","Municipio","Código DANE del Municipio","Localización (EN validaciones)",null,null,null,null,null,null,"BANCO AGRARIO",null,null,null,null,null,null,null,null,null,null,null,null,null,null,null,null,null,null,null,null,null,null,null,null,"DAVIVIENDA",null,null,null,null,null,null,null,null,null,null,null,null,null,null,null,null,null,null,null,null,null,null,null,null,"BANCOLOMBIA",null,null,null,null,null,null,null,null,null,null,null,null,null,null,null,null,null,null,null,null,null,null,null,null,"BANCO BOGOTA",null,null,null,null,null,null,null,null,null,null,null,null,null,null,null,null,null,null,null,null,null,null,null,null,"BANCO AV VILLAS",null,null,null,null,null,null,null,null,null,null,null,null,null,null,null,null,null,null,null,null,null,null,null,"BANCO POPULAR",null,null,null,null,null,null,null,null,null,null,null,null,null,null,null,null,null,null,null,null,null,null,null,null,"BANCO BBVA",null,null,null,null,null,null,null,null,null,null,null,null,null,null,null,null,null,null,null,null,null,null,null,"BANCO DE OCCIDENTE",null,null,null,null,null,null,null,null,null,null,null,null,null,null,null,null,null,null,null,null,null,null,null,"ScotiaBank Colpatria S.A."]
[null,null,null,null,null,"Localización nueva (En validaciones)","Banco Davivienda","Banco Popular","Banco Agrario de Colombia","Banco de Occidente","Banco de Bogotá","Actividad de Servicio Financiero",null,null,null,null,null,null,null,null,null,null,null,null,null,null,null,null,null,null,null,null,null,null,null,null,"Actividad de Servicio Financiero",null,null,null,null,null,null,null,null,null,null,null,null,null,null,null,null,null,null,null,null,null,null,null,null,"Actividad de Servicio Financiero",null,null,null,null,null,null,null,null,null,null,null,null,null,null,null,null,null,null,null,null,null,null,null,null,"Actividad de Servicio Financiero",null,null,null,null,null,null,null,null,null,null,null,null,null,null,null,null,null,null,null,null,null,null,null,null,"Actividad de Servicio Financiero",null,null,null,null,null,null,null,null,null,null,null,null,null,null,null,null,null,null,null,null,null,null,null,"Actividad de Servicio Financiero",null,null,null,null,null,null,null,null,null,null,null,null,null,null,null,null,null,null,null,null,null,null,null,null,"Actividad de Servicio Financiero",null,null,null,null,null,null,null,null,null,null,null,null,null,null,null,null,null,null,null,null,null,null,null,"Actividad de Servicio Financiero",null,null,null,null,null,null,null,null,null,null,null,null,null,null,null,null,null,null,null,null,null,null,null,"Actividad de Servicio Financiero"]
[null,null,null,null,null,"s","Municipio donde presta el servicio ","Municipio donde presta el servicio ","Municipio donde presta el servicio ","Municipio donde presta el servicio ","Municipio donde presta el servicio ","1.1","2.1","3.1","3.2","4.1","4.2","4.3","4.4","4.5","4.6","5.1","5.2","5.3","5.4","5.5"," 5.6","5.7"," 5.8","5.9","6.1","6.2","6.3","6.4","6.5","6.6","1.1","2.1","3.1","3.2","4.1","4.2","4.3","4.4","4.5","4.6","5.1","5.2","5.3","5.4","5.5"," 5.6","5.7"," 5.8",5.9,"6.1","6.2","6.3","6.4","6.5","6.6","1.1","2.1","3.1","3.2","4.1","4.2","4.3","4.4","4.5","4.6","5.1","5.2","5.3","5.4","5.5"," 5.6","5.7"," 5.8",5.9,"6.1","6.2","6.3","6.4","6.5","6.6","1.1","2.1","3.1","3.2","4.1","4.2","4.3","4.4","4.5","4.6","5.1","5.2","5.3","5.4","5.5"," 5.6","5.7"," 5.8","5.9","6.1","6.2","6.3","6.4","6.5","6.6","1.1","2.1","3.1","3.2","4.2","4.3","4.4","4.5","4.6","5.1","5.2","5.3","5.4","5.5"," 5.6","5.7"," 5.8","5.9","6.1","6.2","6.3","6.4","6.5","6.6","1.1","2.1","3.1","3.2","4.1","4.2","4.3","4.4","4.5","4.6","5.1","5.2","5.3","5.4","5.5"," 5.6","5.7"," 5.8","5.9","6.1","6.2","6.3","6.4","6.5","6.6","1.1","2.1","3.1","3.2","4.2","4.3","4.4","4.5","4.6","5.1","5.2","5.3","5.4","5.5"," 5.6","5.7"," 5.8","5.9","6.1","6.2","6.3","6.4","6.5","6.6","1.1","2.1","3.1","3.2","4.2","4.3","4.4","4.5","4.6","5.1","5.2","5.3","5.4","5.5"," 5.6","5.7"," 5.8","5.9","6.1","6.2","6.3","6.4","6.5","6.6","1.1","2.1","3.1","3.2","4.2","4.3","4.4","4.5","4.6","5.1","5.2","5.3","5.4","5.5"," 5.6","5.7"," 5.8","5.9","6.1","6.2","6.3","6.4","6.5","6.6"]
[null,"ANTIOQUIA","MEDELLIN",5001,"1",{"$f":"+IFERROR(IF(SEARCH(C7,Localización!$B$2)>=0,1),\n                         IFERROR(IF(SEARCH(C7,Localización!$B$3)>=0,2),\n                                              IFERROR(IF(SEARCH(C7,Localización!$B$4)>=0,3),\n                        4)))","v":1},"X","X","X","X","X","x","x","x","x","x","x","x","x","X","X","x",null,"x",null,"x","x","x","x","x",null,null,null,null,null,null,null,"X","X",null,"X","X","X","X","X",null,null,null,null,null,null,null,null,null,null,null,null,null,null,null,null,"X","X","X","X","X","X",null,null,null,null,"X","X","X","X","X","X","X","X","X",null,null,null,null,"X","X","X","X","X","X","X","X","X","X",null,null,"X","X","X","X","X","X","X","X","X",null,null,null,null,"X",null,"X","X","X","X",null,null,null,null,null,"X","X","X","X","X","X","X","X","X",null,null,null,null,null,null,"X","X","X","X",null,null,"X",null,null,null,"X","X","X","X","X",null,"X","X","X",null,null,null,null,"X","X","X","X","X","X",null,null,null,null,null,"X","X","X","X",null,null,null,null,null,null,null,null,null,null,null,"X","X","X","X",null,null,"X",null,null,null,null,null,null,null,null,null,null,null,null,null,null,null,null,null,null,null,null,null,"X",null,"X","X"]
[null,"ANTIOQUIA","ABEJORRAL",5002,"3",3,"X",null,"X","X","X","x","x","x","x","x",null,"x","x","X","X","x",null,"x",null,"x","x","x","x","x",null,null,null,null,null,null,null,"X","X",null,"X","X","X","X","X",null,null,null,null,null,null,null,null,null,null,null,null,null,null,null,null," "," "," "," ","",null,null,null,null,null," "," "," "," ","X"," "," "," "," ",null,null,null,null," "," ","X","X","X","X","X","X","X","X",null,null,"X","X","X","X",null,"X","X","X","X",null,null,null,null,"X",null,null,null,null,"X",null,null,null,null,null,null,null,null,null,null,null,"X","X",null,null,null,null,null,null,null,null,null,null,"X",null,null,null,null,null,null,null,null,null,null,"X",null,"X","X","X",null,null,null,null,"X","X",null,null,null,null,null,null,null,null,null,null,null,null,null,null,null,null,null,null,null,null,null,null,null,null,null,null,null,null,null,null,null,null,null,null,null,null,null,null,null,null,null,null,null,null,null,null,null,null,null,null,null,null,"X",null,"X","X"]
[null,"ANTIOQUIA","ABRIAQUI",5004,"Otros",4,"X",null,"X","X","X","x","x","x","x","x",null,null,"x","X","X",null,null,null,null,"x","x","x","x","x",null,null,null,null,null,null,null,null,null,null,"X",null,null,"X","X",null,null,null,null,null,null,null,null,null,null,null,null,null,null,null,null," "," "," "," ","",null,null,null,null,null," "," "," "," ","X"," "," "," "," ",null,null,null,null," "," ","X","X","X","X",null,"X","X",null,null,null,null,null,null,null,null,"X","X","X","X",null,null,null,null,"X",null,null,null,null,"X",null,null,null,null,null,null,null,null,null,null,null,"X","X",null,null,null,null,null,null,null,null,null,null,null,null,null,null,null,null,null,null,null,null,null,"X",null,"X","X","X",null,null,null,null,null,null,null,null,null,null,null,null,null,null,null,null,null,null,null,null,null,null,null,null,null,null,null,null,null,null,null,null,null,null,null,null,null,null,null,null,null,null,null,null,null,null,null,null,null,null,null,null,null,null,null,null,null,null,null,null,null,"X"]
[null,"ANTIOQUIA","ALEJANDRIA",5021,"4",4,"X",null,"X","X",null,"x","x","x","x","x","x","x","x","X","X","x",null,"x",null,"x","x","x","x","x",null,null,null,null,null,null,null,null,null,null,"X",null,null,"X","X",null,null,null,null,null,null,null,null,null,null,null,null,null,null,null,null," "," "," "," ","",null,null,null,null,null," "," "," "," ","X"," "," "," "," ",null,null,null,null," "," ","X","X","X","X",null,"X","X",null,null,null,null,null,null,null,null,"X","X","X","X",null,null,null,null,"X",null,null,null,null,"X",null,null,null,null,null,null,null,null,null,null,null,"X","X",null,null,null,null,null,null,null,null,null,null,"X",null,null,null,null,null,null,null,null,null,null,"X",null,"X","X","X",null,null,null,null,"X","X",null,null,null,null,null,null,null,null,null,null,null,null,null,null,null,null,null,null,null,null,null,null,null,null,null,null,null,null,null,null,null,null,null,null,null,null,null,null,null,null,null,null,null,null,null,null,null,null,null,null,null,null,"X",null,"X","X"]
[null,"ANTIOQUIA","AMAGA",5030,"3",3,"X",null,"X","X","X","x","x","x","x","x","x","x","x","X","X","x",null,"x",null,"x","x","x","x","x",null,null,null,null,null,null,null,"X","X",null,"X","X","X","X","X",null,null,null,null,null,null,null,null,null,null,null,null,null,null,null,null,"X","X","X","X","X",null,null,null,null,null,"X","X","X","X","X","X","X","X","X",null,null,null,null,"X","X","X","X","X","X",null,"X","X",null,null,null,null,null,null,null,null,"X","X","X","X",null,null,null,null,"X",null,null,null,null,"X",null,null,null,null,null,null,null,null,null,"X",null,"X","X",null,null,null,null,null,null,null,null,null,null,"X",null,null,null,null,null,null,null,null,null,null,"X",null,"X","X","X",null,null,null,null,"X","X",null,null,null,null,null,null,null,null,null,null,null,null,null,null,null,null,null,null,null,null,null,null,null,null,null,null,null,null,null,null,null,null,null,null,null,null,null,null,null,null,null,null,null,null,null,null,null,null,null,null,null,null,"X",null,"X","X"]
[null,"ANTIOQUIA","AMALFI",5031,"Otros",4,"X",null,"X","X","X","x","x","x","x","x",null,null,null,null,null,null,null,null,null,"x","x","x","x","x",null,null,null,null,null,null,null,"X","X",null,"X","X","X","X","X",null,null,null,null,null,null,null,null,null,null,null,null,null,null,null,null," "," "," "," ","",null,null,null,null,null," "," "," "," ","X"," "," "," "," ",null,null,null,null," "," ","X","X","X","X",null,"X","X",null,null,null,null,null,null,null,"X","X","X","X","X",null,null,null,null,"X",null,null,null,null,"X",null,null,null,null,null,null,null,null,null,null,null,"X","X",null,null,null,null,null,null,null,null,null,null,"X",null,null,null,null,null,null,null,null,null,null,"X",null,"X","X","X",null,null,null,null,"X","X",null,null,null,null,null,null,null,null,null,null,null,null,null,null,null,null,null,null,null,null,null,null,null,null,null,null,null,null,null,null,null,null,null,null,null,null,null,null,null,null,null,null,null,null,null,null,null,null,null,null,null,null,null,null,null,"X"]
[null,"ANTIOQUIA","ANDES",5034,"3",3,"X",null,"X","X","X","x","x","x","x","x","x","x","x","X","X","x",null,"x",null,"x","x","x","x","x",null,null,null,null,null,null,null,"X","X",null,"X","X","X","X","X",null,null,null,null,null,null,null,null,null,null,null,null,null,null,null,null,"X","X","X","X","X",null,null,null,null,null,"X","X","X","X","X","X","X","X","X",null,null,null,null,"X","X","X","X","X","X","X","X","X","X",null,null,"X","X","X","X","X","X","X","X","X",null,null,null,null,"X",null,null,null,null,"X",null,null,null,null,null,null,null,null,null,"X",null,"X","X",null,null,null,null,null,null,null,null,null,null,"X",null,null,null,null,null,null,null,null,null,null,"X",null,"X","X","X",null,null,null,null,"X","X",null,null,null,null,null,null,null,null,null,null,null,null,null,null,null,null,null,null,null,null,null,null,null,null,null,null,null,null,null,null,null,null,null,null,null,null,null,null,null,null,null,null,null,null,null,null,null,null,null,null,null,null,"X",null,"X","X"]
[null,"ANTIOQUIA","ANGELOPOLIS",5036,"4",4,"X",null,"X","X","X","x","x","x","x","x","x","x",null,"X","X","x",null,"x",null,null,"x","x","x","x",null,null,null,null,null,null,null,null,null,null,"X",null,null,"X","X",null,null,null,null,null,null,null,null,null,null,null,null,null,null,null,null," "," "," "," ","",null,null,null,null,null," "," "," "," ","X"," "," "," "," ",null,null,null,null," "," ","X","X","X","X",null,"X","X",null,null,null,null,null,null,null,null,"X","X","X","X",null,null,null,null,"X",null,null,null,null,"X",null,null,null,null,null,null,null,null,null,null,null,"X","X",null,null,null,null,null,null,null,null,null,null,"X",null,null,null,null,null,null,null,null,null,null,"X",null,"X","X","X",null,null,null,null,"X","X",null,null,null,null,null,null,null,null,null,null,null,null,null,null,null,null,null,null,null,null,null,null,null,null,null,null,null,null,null,null,null,null,null,null,null,null,null,null,null,null,null,null,null,null,null,null,null,null,null,null,null,null,"X",null,"X"]
[null,"ANTIOQUIA","ANGOSTURA",5038,"4",4,"X",null,"X","X","X","x","x","x","x","x","x","x","x","X","X","x",null,"x",null,"x","x","x","x","x",null,null,null,null,null,null,null,null,null,null,"X",null,null,"X","X",null,null,null,null,null,null,null,null,null,null,null,null,null,null,null,null," "," "," "," ","",null,null,null,null,null," "," "," "," ","X"," "," "," "," ",null,null,null,null," "," ","X","X","X","X",null,"X","X",null,null,null,null,null,null,null,null,"X","X","X","X",null,null,null,null,"X",null,null,null,null,"X",null,null,null,null,null,null,null,null,null,null,null,"X","X",null,null,null,null,null,null,null,null,null,null,"X",null,null,null,null,null,null,null,null,null,null,"X",null,"X","X","X",null,null,null,null,"X","X",null,null,null,null,null,null,null,null,null,null,null,null,null,null,null,null,null,null,null,null,null,null,null,null,null,null,null,null,null,null,null,null,null,null,null,null,null,null,null,null,null,null,null,null,null,null,null,null,null,null,null,null,"X",null,"X","X"]
[null,"ANTIOQUIA","ANORI",5040,"4",4,"X",null,"X","X","X","x","x","x","x","x","x","x","x","X","X","x",null,"x",null,"x","x","x","x","x",null,null,null,null,null,null,null,null,null,null,"X",null,null,"X","X",null,null,null,null,null,null,null,null,null,null,null,null,null,null,null,null," "," "," "," ",null,null,null,null,null,null," "," "," "," ","X"," "," "," "," ",null,null,null,null," "," ","X","X","X","X",null,"X","X",null,null,null,null,null,null,null,null,"X","X","X","X",null,null,null,null,"X",null,null,null,null,"X",null,null,null,null,null,null,null,null,null,null,null,"X","X",null,null,null,null,null,null,null,null,null,null,"X",null,null,null,null,null,null,null,null,null,null,"X",null,"X","X","X",null,null,null,null,"X","X",null,null,null,null,null,null,null,null,null,null,null,null,null,null,null,null,null,null,null,null,null,null,null,null,null,null,null,null,null,null,null,null,null,null,null,null,null,null,null,null,null,null,null,null,null,null,null,null,null,null,null,null,"X",null,"X","X"]
[null,"ANTIOQUIA","SANTAFE DE ANTIOQUIA",5042,"3",3,"X",null,"X","X","X","x","x","x","x","x","x","x","x","X","X","x",null,"x",null,"x","x","x","x","x",null,null,null,null,null,null,null,null,null,null,"X","X",null,"X","X",null,null,null,null,null,null,null,null,null,null,null,null,null,null,null,null,"X","X","X","X","X",null,null,null,null,null,"X","X","X","X","X","X","X","X","X",null,null,null,null,"X","X","X","X","X","X",null,"X","X",null,null,null,null,null,null,null,null,"X","X","X","X",null,null,null,null,"X",null,null,null,null,"X",null,null,null,null,null,null,null,null,null,"X",null,"X","X",null,null,null,null,null,null,null,null,null,null,"X",null,null,null,null,null,null,null,null,null,null,"X",null,"X","X"," ",null,null,null,null,"X","X","X","X","X","X",null,null,null,null,null,"X","X","X","X",null,null,null,null,null,null,null,null,null,null,null,null,null,null,null,null,null,null,null,null,null,null,null,null,null,null,null,null,null,null,null,null,null,null,null,null,null,null,null,"X",null,"X","X"]
[null,"ANTIOQUIA","ANZA",5044,"4",3,"X",null,"X","X","X","x","x","x","x","x","x","x","x","X","X","x",null,"x",null,"x","x","x","x","x",null,null,null,null,null,null,null,null,null,null,"X",null,null,"X","X",null,null,null,null,null,null,null,null,null,null,null,null,null,null,null,null," "," "," "," ",null,null,null,null,null,null," "," "," "," ","X"," "," "," "," ",null,null,null,null," "," ","X","X","X","X",null,"X","X",null,null,null,null,null,null,null,null,"X","X","X","X",null,null,null,null,"X",null,null,null,null,"X",null,null,null,null,null,null,null,null,null,null,null,"X","X",null,null,null,null,null,null,null,null,null,null,"X",null,null,null,null,null,null,null,null,null,null,"X",null,"X","X","X",null,null,null,null,"X","X",null,null,null,null,null,null,null,null,null,null,null,null,null,null,null,null,null,null,null,null,null,null,null,null,null,null,null,null,null,null,null,null,null,null,null,null,null,null,null,null,null,null,null,null,null,null,null,null,null,null,null,null,"X",null,"X","X"]
[null,"ANTIOQUIA","APARTADO",5045,"1",1,"X",null,"X","X","X","x","x","x","x","x","x","x","x","X","X","x",null,"x",null,"x","x","x","x","x",null,null,null,null,null,null,null,"X","X",null,"X","X","X","X","X",null,null,null,null,null,null,null,null,null,null,null,null,null,null,null,null,"X","X","X","X","X","X",null,null,null,null,"X","X","X","X","X","X","X","X","X",null,null,null,null,"X","X","X","X","X","X","X","X","X","X",null,null,"X","X","X","X","X","X","X","X","X",null,null,null,null,"X",null,"X","X","X","X",null,null,null,null,null,"X","X","X","X","X","X","X","X","X",null,null,null,null,null,null,null,null,null,"X",null,null,null,null,null,null,null,null,null,null,"X",null,"X","X","X",null,null,null,null,"X","X","X","X","X","X",null,null,null,null,null,"X","X","X","X",null,null,null,null,null,null,null,null,null,null,null,null,null,null,null,null,null,"X",null,null,null,null,null,null,null,null,null,null,null,null,null,null,null,null,null,null,null,null,null,"X",null,"X","X"]
[null,"ANTIOQUIA","ARBOLETES",5051,"3",3,"X",null,"X","X","X","x","x","x","x","x","x","x","x","X","X","x",null,"x",null,"x","x","x","x","x",null,null,null,null,null,null,null,null,null,null,"X",null,null,"X","X",null,null,null,null,null,null,null,null,null,null,null,null,null,null,null,null," "," "," "," ","X",null,null,null,null,null," "," "," "," ","X"," "," "," "," ",null,null,null,null," "," ","X","X","X","X",null,"X","X",null,null,null,null,null,null,null,null,"X","X","X","X",null,null,null,null,"X",null,null,null,null,"X",null,null,null,null,null,null,null,null,null,null,null,"X","X",null,null,null,null,null,null,null,null,null,null,"X",null,null,null,null,null,null,null,null,null,null,"X",null,"X","X","X",null,null,null,null,"X","X",null,null,null,null,null,null,null,null,null,null,null,null,null,null,null,null,null,null,null,null,null,null,null,null,null,null,null,null,null,null,null,null,null,null,null,null,null,null,null,null,null,null,null,null,null,null,null,null,null,null,null,null,"X",null,"X","X"]
[null,"ANTIOQUIA","ARGELIA",5055,"3",4,"X",null,"X","X",null,"x","x","x","x","x","x","x","x","X","X","x",null,"x",null,"x","x","x","x","x",null,null,null,null,null,null,null,null,null,null,"X",null,null,"X","X",null,null,null,null,null,null,null,null,null,null,null,null,null,null,null,null," "," "," "," ","",null,null,null,null,null," "," "," "," ","X"," "," "," "," ",null,null,null,null," "," ","X","X","X","X",null,"X","X",null,null,null,null,null,null,null,null,"X","X","X","X",null,null,null,null,"X",null,null,null,null,"X",null,null,null,null,null,null,null,null,null,null,null,"X","X",null,null,null,null,null,null,null,null,null,null,"X",null,null,null,null,null,null,null,null,null,null,"X",null,"X","X","X",null,null,null,null,"X","X",null,null,null,null,null,null,null,null,null,null,null,null,null,null,null,null,null,null,null,null,null,null,null,null,null,null,null,null,null,null,null,null,null,null,null,null,null,null,null,null,null,null,null,null,null,null,null,null,null,null,null,null,"X",null,"X","X"]
[null,"ANTIOQUIA","ARMENIA",5059,"4",1,"X",null,"X","X","X","x","x","x","x","x","x","x",null,"X","X","x",null,"x",null,null,"x","x","x","x",null,null,null,null,null,null,null,null,null,null,"X",null,null,"X","X",null,null,null,null,null,null,null,null,null,null,null,null,null,null,null,null," "," "," "," ",null,null,null,null,null,null," "," "," "," ","X"," "," "," "," ",null,null,null,null," "," ","X","X","X","X",null,"X","X",null,null,null,null,null,null,null,"X","X","X","X","X",null,null,null,null,"X",null,"X","X","X","X",null,null,null,null,null,"X","X","X","X","X","X","X","X","X",null,null,null,null,null,null,null,null,null,"X",null,null,null,null,null,null,null,null,null,null,"X",null,"X","X","X",null,null,null,null,"X","X",null,null,null,null,null,null,null,null,null,null,null,null,null,null,null,null,null,null,null,null,null,null,null,null,null,null,null,null,null,null,null,"X",null,null,null,null,null,null,null,null,null,null,null,null,null,null,null,null,null,null,null,null,null,null,null,"X"]
[null,"ANTIOQUIA","BARBOSA",5079,"Otros",2,"X",null,"X","X","X","x","x","x","x","x","x",null,"x","X","X",null,null,null,null,"x","x","x","x","x",null,null,null,null,null,null,null,null,null,null,"X",null,null,"X","X",null,null,null,null,null,null,null,null,null,null,null,null,null,null,null,null,"X","X","X","X","X","X",null,null,null,null,"X","X","X","X","X","X","X","X","X",null,null,null,null,"X","X","X","X","X","X","X","X","X","X",null,null,"X","X","X","X",null,"X","X","X","X",null,null,null,null,"X",null,null,null,null,"X",null,null,null,null,null,null,null,null,null,"X",null,"X","X",null,null,null,null,null,null,null,null,null,null,"X",null,null,null,null,null,null,null,null,null,null,"X",null,"X","X"," ",null,null,null,null,"X","X",null,null,null,null,null,null,null,null,null,null,null,null,null,null,null,null,null,null,null,null,null,null,null,null,null,null,null,null,null,null,null,null,null,null,null,null,null,null,null,null,null,null,null,null,null,null,null,null,null,null,null,null,"X",null,"X","X"]
[null,"ANTIOQUIA","BELMIRA",5086,"Otros",4,"X",null,"X","X","X","x","x","x","x","x",null,null,"x","X","X",null,null,null,null,"x","x","x","x","x",null,null,null,null,null,null,null,null,null,null,"X",null,null,"X","X",null,null,null,null,null,null,null,null,null,null,null,null,null,null,null,null," "," "," "," ","",null,null,null,null,null," "," "," "," ","X"," "," "," "," ",null,null,null,null," "," ","X","X","X","X",null,"X","X",null,null,null,null,null,null,null,null,"X","X","X","X",null,null,null,null,"X",null,null,null,null,"X",null,null,null,null,null,null,null,null,null,null,null,"X","X",null,null,null,null,null,null,null,null,null,null,null,null,null,null,null,null,null,null,null,null,null,"X",null,"X","X","X",null,null,null,null,null,null,null,null,null,null,null,null,null,null,null,null,null,null,null,null,null,null,null,null,null,null,null,null,null,null,null,null,null,null,null,null,null,null,null,null,null,null,null,null,null,null,null,null,null,null,null,null,null,null,null,null,null,null,null,null,null,"X"]
[null,"ANTIOQUIA","BELLO",5088,"1",1,"X","X","X","X","X","x","x","x","x","x","x","x","x","X","X","x",null,"x",null,"x","x","x","x","x",null,null,null,null,null,null,null,"X","X",null,"X","X","X","X","X",null,null,null,null,null,null,null,null,null,null,null,null,null,null,null,null,"X","X","X","X","X","X",null,null,null,null,"X","X","X","X","X","X","X","X","X",null,null,null,null,"X","X","X","X","X","X","X","X","X","X",null,null,"X","X","X","X","X","X","X","X","X",null,null,null,null,"X",null,"X","X","X","X",null,null,null,null,null,"X","X","X","X","X","X","X","X","X",null,null,null,null,null,null,"X","X","X","X",null,null,"X",null,null,null,"X","X","X","X","X",null,"X","X","X",null,null,null,null,"X","X","X","X","X","X",null,null,null,null,null,"X","X","X","X",null,null,null,null,null,null,null,null,null,null,null,"X","X","X","X",null,null,"X",null,null,null,null,null,null,null,null,null,null,null,null,null,null,null,null,null,null,null,null,null,"X",null,"X","X"]
[null,"ANTIOQUIA","BETANIA",5091,"3",3,"X",null,"X","X","X","x","x","x","x","x","x","x",null,"X","X","x",null,"x",null,null,"x","x","x","x",null,null,null,null,null,null,null,null,null,null,"X",null,null,"X","X",null,null,null,null,null,null,null,null,null,null,null,null,null,null,null,null,"X","X","X","X","X",null,null,null,null,null,"X","X","X","X","X","X","X","X","X",null,null,null,null,"X","X","X","X","X","X",null,"X","X",null,null,null,null,null,null,null,null,"X","X","X","X",null,null,null,null,"X",null,null,null,null,"X",null,null,null,null,null,null,null,null,null,null,null,"X","X",null,null,null,null,null,null,null,null,null,null,"X",null,null,null,null,null,null,null,null,null,null,"X",null,"X","X","X",null,null,null,null,"X","X",null,null,null,null,null,null,null,null,null,null,null,null,null,null,null,null,null,null,null,null,null,null,null,null,null,null,null,null,null,null,null,null,null,null,null,null,null,null,null,null,null,null,null,null,null,null,null,null,null,null,null,null,"X",null,"X","X"]
[null,"ANTIOQUIA","BETULIA",5093,"4",3,"X",null,"X","X","X","x","x","x","x","x",null,"x",null,null,null,"x",null,"x",null,"x","x","x","x","x",null,null,null,null,null,null,null,"X","X",null,"X","X","X","X","X",null,null,null,null,null,null,null,null,null,null,null,null,null,null,null,null," "," "," "," ",null,null,null,null,null,null," "," "," "," ","X"," "," "," "," ",null,null,null,null," "," ","X","X","X","X",null,"X","X",null,null,null,null,null,null,null,null,"X","X","X","X",null,null,null,null,"X",null,null,null,null,"X",null,null,null,null,null,null,null,null,null,null,null,"X","X",null,null,null,null,null,null,null,null,null,null,"X",null,null,null,null,null,null,null,null,null,null,"X",null,"X","X"," ",null,null,null,null,"X","X",null,null,null,null,null,null,null,null,null,null,null,null,null,null,null,null,null,null,null,null,null,null,null,null,null,null,null,null,null,null,null,null,null,null,null,null,null,null,null,null,null,null,null,null,null,null,null,null,null,null,null,null,null,null,null,"X"]
[null,"ANTIOQUIA","CIUDAD BOLIVAR",5101,"3",4,"X",null,"X","X","X","x","x","x","x","x","x","x","x","X","X","x",null,"x",null,"x","x","x","x","x",null,null,null,null,null,null,null,"X","X",null,"X","X","X","X","X",null,null,null,null,null,null,null,null,null,null,null,null,null,null,null,null,"X","X","X","X","X",null,null,null,null,null,"X","X","X","X","X","X","X","X","X",null,null,null,null,"X","X","X","X","X","X","X","X","X","X",null,null,"X","X","X","X",null,"X","X","X","X",null,null,null,null,"X",null,null,null,null,"X",null,null,null,null,null,null,null,null,null,null,null,"X","X",null,null,null,null,null,null,null,null,null,null,null,null,null,null,null,null,null,null,null,null,null,"X",null,"X","X","X",null,null,null,null,null,null,null,null,null,null,null,null,null,null,null,null,null,null,null,null,null,null,null,null,null,null,null,null,null,null,null,null,null,null,null,null,null,null,null,null,null,null,null,null,null,null,null,null,null,null,null,null,null,null,null,null,null,null,"X",null,"X","X"]
[null,"ANTIOQUIA","BRICEÑO",5107,"Otros",4,"X",null,"X","X","X","x","x","x","x","x",null,null,"x","X","X",null,null,null,null,"x","x","x","x","x",null,null,null,null,null,null,null,null,null,null,"X",null,null,"X","X",null,null,null,null,null,null,null,null,null,null,null,null,null,null,null,null," "," "," "," ","",null,null,null,null,null," "," "," "," ","X"," "," "," "," ",null,null,null,null," "," ","X","X","X","X",null,"X","X",null,null,null,null,null,null,null,null,"X","X","X","X",null,null,null,null,"X",null,null,null,null,"X",null,null,null,null,null,null,null,null,null,null,null,"X","X",null,null,null,null,null,null,null,null,null,null,null,null,null,null,null,null,null,null,null,null,null,"X",null,"X","X","X"]
[null,"ANTIOQUIA","BURITICA",5113,"Otros",4,"X",null,"X","X","X","x","x","x","x","x",null,null,"x","X","X",null,null,null,null,"x","x","x","x","x",null,null,null,null,null,null,null,null,null,null,"X",null,null,"X","X",null,null,null,null,null,null,null,null,null,null,null,null,null,null,null,null," "," "," "," ","",null,null,null,null,null," "," "," "," ","X"," "," "," "," ",null,null,null,null," "," ","X","X","X","X",null,"X","X",null,null,null,null,null,null,null,null,"X","X","X","X",null,null,null,null,"X",null,null,null,null,"X",null,null,null,null,null,null,null,null,null,null,null,"X","X",null,null,null,null,null,null,null,null,null,null,null,null,null,null,null,null,null,null,null,null,null,"X",null,"X","X","X",null,null,null,null,null,null,null,null,null,null,null,null,null,null,null,null,null,null,null,null,null,null,null,null,null,null,null,null,null,null,null,null,null,null,null,null,null,null,null,null,null,null,null,null,null,null,null,null,null,null,null,null,null,null,null,null,null,null,null,null,null,"X"]
[null,"ANTIOQUIA","CACERES",5120,"Otros",4,"X",null,"X","X","X","x","x","x","x","x",null,null,"x","X","X",null,null,null,null,"x","x","x","x","x",null,null,null,null,null,null,null,null,null,null,"X",null,null,"X","X",null,null,null,null,null,null,null,null,null,null,null,null,null,null,null,null," "," "," "," ","",null,null,null,null,null," "," "," "," ","X"," "," "," "," ",null,null,null,null," "," ","X","X","X","X",null,"X","X",null,null,null,null,null,null,null,null,"X","X","X","X",null,null,null,null,"X",null,null,null,null,"X",null,null,null,null,null,null,null,null,null,null,null,"X","X",null,null,null,null,null,null,null,null,null,null,null,null,null,null,null,null,null,null,null,null,null,"X",null,"X","X","X",null,null,null,null,null,null,null,null,null,null,null,null,null,null,null,null,null,null,null,null,null,null,null,null,null,null,null,null,null,null,null,null,null,null,null,null,null,null,null,null,null,null,null,null,null,null,null,null,null,null,null,null,null,null,null,null,null,null,null,null,null,"X"]
[null,"ANTIOQUIA","CAICEDO",5125,"4",3,"X",null,"X","X","X","x","x","x","x","x",null,"x",null,"X","X","x",null,"x",null,null,"x","x","x","x",null,null,null,null,null,null,null,null,null,null,"X",null,null,"X","X",null,null,null,null,null,null,null,null,null,null,null,null,null,null,null,null," "," "," "," ",null,null,null,null,null,null," "," "," "," ","X"," "," "," "," ",null,null,null,null," "," ","X","X","X","X",null,"X","X",null,null,null,null,null,null,null,null,"X","X","X","X",null,null,null,null,"X",null,null,null,null,"X",null,null,null,null,null,null,null,null,null,null,null,"X","X",null,null,null,null,null,null,null,null,null,null,"X",null,null,null,null,null,null,null,null,null,null,"X",null,"X","X","X",null,null,null,null,"X","X",null,null,null,null,null,null,null,null,null,null,null,null,null,null,null,null,null,null,null,null,null,null,null,null,null,null,null,null,null,null,null,null,null,null,null,null,null,null,null,null,null,null,null,null,null,null,null,null,null,null,null,null,null,null,null,"X"]
[null,"ANTIOQUIA","CALDAS",5129,"2",2,"X","X","X","X","X","x","x","x","x","x","x","x","x","X","X","x",null,"x",null,"x","x","x","x","x",null,null,null,null,null,null,null,"X","X",null,"X","X","X","X","X",null,null,null,null,null,null,null,null,null,null,null,null,null,null,null,null,"X","X","X","X","X","X",null,null,null,null,"X","X","X","X","X","X","X","X","X",null,null,null,null,"X","X","X","X","X","X","X","X","X","X",null,null,"X","X","X","X","X","X","X","X","X",null,null,null,null,"X",null,null,null,null,"X",null,null,null,null,null,null,null,null,null,"X",null,"X","X",null,null,null,null,null,null,null,"X","X","X","X",null,null,"X",null,null,null,"X","X","X","X","X",null,"X","X"," ",null,null,null,null,"X","X",null,null,null,null,null,null,null,null,null,null,null,null,null,null,null,null,null,null,null,null,null,null,null,null,null,null,null,null,null,null,null,null,null,null,null,null,null,null,null,null,null,null,null,null,null,null,null,null,null,null,null,null,"X",null,"X","X"]
[null,"ANTIOQUIA","CAMPAMENTO",5134,"4",4,"X",null,"X","X","X","x","x","x","x","x","x","x","x","X","X","x",null,"x",null,"x","x","x","x","x",null,null,null,null,null,null,null,null,null,null,"X",null,null,"X","X",null,null,null,null,null,null,null,null,null,null,null,null,null,null,null,null," "," "," "," ",null,null,null,null,null,null," "," "," "," ","X"," "," "," "," ",null,null,null,null," "," ","X","X","X","X",null,"X","X",null,null,null,null,null,null,null,null,"X","X","X","X",null,null,null,null,"X",null,null,null,null,"X",null,null,null,null,null,null,null,null,null,null,null,"X","X",null,null,null,null,null,null,null,null,null,null,"X",null,null,null,null,null,null,null,null,null,null,"X",null,"X","X","X",null,null,null,null,"X","X",null,null,null,null,null,null,null,null,null,null,null,null,null,null,null,null,null,null,null,null,null,null,null,null,null,null,null,null,null,null,null,null,null,null,null,null,null,null,null,null,null,null,null,null,null,null,null,null,null,null,null,null,"X",null,"X","X"]
[null,"ANTIOQUIA","CAÑASGORDAS",5138,"4",4,"X",null,"X","X","X","x","x","x","x","x","x","x","x","X","X","x",null,"x",null,"x","x","x","x","x",null,null,null,null,null,null,null,null,null,null,"X",null,null,"X","X",null,null,null,null,null,null,null,null,null,null,null,null,null,null,null,null," "," "," "," ",null,null,null,null,null,null," "," "," "," ","X"," "," "," "," ",null,null,null,null," "," ","X","X","X","X",null,"X","X",null,null,null,null,null,null,null,null,"X","X","X","X",null,null,null,null,"X",null,null,null,null,"X",null,null,null,null,null,null,null,null,null,null,null,"X","X",null,null,null,null,null,null,null,null,null,null,"X",null,null,null,null,null,null,null,null,null,null,"X",null,"X","X","X",null,null,null,null,"X","X",null,null,null,null,null,null,null,null,null,null,null,null,null,null,null,null,null,null,null,null,null,null,null,null,null,null,null,null,null,null,null,null,null,null,null,null,null,null,null,null,null,null,null,null,null,null,null,null,null,null,null,null,"X",null,"X","X"]
[null,"ANTIOQUIA","CARACOLI",5142,"4",4,"X",null,"X","X",null,"x","x","x","x","x","x","x",null,"X","X","x",null,"x",null,null,"x","x","x","x",null,null,null,null,null,null,null,null,null,null,"X",null,null,"X","X",null,null,null,null,null,null,null,null,null,null,null,null,null,null,null,null," "," "," "," ",null,null,null,null,null,null," "," "," "," ","X"," "," "," "," ",null,null,null,null," "," ","X","X","X","X",null,"X","X",null,null,null,null,null,null,null,null,"X","X","X","X",null,null,null,null,"X",null,null,null,null,"X",null,null,null,null,null,null,null,null,null,null,null,"X","X",null,null,null,null,null,null,null,null,null,null,"X",null,null,null,null,null,null,null,null,null,null,"X",null,"X","X","X",null,null,null,null,"X","X",null,null,null,null,null,null,null,null,null,null,null,null,null,null,null,null,null,null,null,null,null,null,null,null,null,null,null,null,null,null,null,null,null,null,null,null,null,null,null,null,null,null,null,null,null,null,null,null,null,null,null,null,"X",null,"X","X"]
[null,"ANTIOQUIA","CARAMANTA",5145,"4",4,"X",null,"X","X",null,"x","x","x","x","x","x","x",null,"X","X","x",null,"x",null,null,"x","x","x","x",null,null,null,null,null,null,null,null,null,null,"X",null,null,"X","X",null,null,null,null,null,null,null,null,null,null,null,null,null,null,null,null," "," "," "," ",null,null,null,null,null,null," "," "," "," ","X"," "," "," "," ",null,null,null,null," "," ","X","X","X","X",null,"X","X",null,null,null,null,null,null,null,null,"X","X","X","X",null,null,null,null,"X",null,null,null,null,"X",null,null,null,null,null,null,null,null,null,null,null,"X","X",null,null,null,null,null,null,null,null,null,null,"X",null,null,null,null,null,null,null,null,null,null,null,null,"X","X","X",null,null,null,null,"X","X",null,null,null,null,null,null,null,null,null,null,null,null,null,null,null,null,null,null,null,null,null,null,null,null,null,null,null,null,null,null,null,null,null,null,null,null,null,null,null,null,null,null,null,null,null,null,null,null,null,null,null,null,"X",null,"X","X"]
[null,"ANTIOQUIA","CAREPA",5147,"Otros",3,"X",null,"X","X","X","x","x","x","x","x","x",null,"x","X","X",null,null,null,null,"x","x","x","x","x",null,null,null,null,null,null,null,null,null,null,"X","X",null,"X","X",null,null,null,null,null,null,null,null,null,null,null,null,null,null,null,null,"X","X","X","X","X","X",null,null,null,null,"X","X","X","X","X","X","X","X","X",null,null,null,null,"X","X","X","X","X","X","X","X","X","X",null,null,"X","X","X","X",null,"X","X","X","X",null,null,null,null,"X",null,null,null,null,"X",null,null,null,null,null,null,null,null,null,"X",null,"X","X",null,null,null,null,null,null,null,"X","X","X","X",null,null,"X",null,null,null,"X","X","X","X","X",null,"X","X","X",null,null,null,null,"X","X",null,null,null,null,null,null,null,null,null,null,null,null,null,null,null,null,null,null,null,null,null,null,null,null,null,null,null,null,null,null,null,null,null,null,null,null,null,null,null,null,null,null,null,null,null,null,null,null,null,null,null,null,"X",null,"X","X"]
[null,"ANTIOQUIA","EL CARMEN DE VIBORAL",5148,"3",4,"X",null,"X","X","X","x","x","x","x","x","x","x","x","X","X","x",null,"x",null,"x","x","x","x","x",null,null,null,null,null,null,null,null,null,null,"X",null,null,"X","X",null,null,null,null,null,null,null,null,null,null,null,null,null,null,null,null,"X","X","X","X","X",null,null,null,null,null,"X","X","X","X","X","X","X","X","X",null,null,null,null,"X","X","X","X","X","X","X","X","X","X",null,null,"X","X","X","X","X","X","X","X","X",null,null,null,null,"X",null,null,null,null,"X",null,null,null,null,null,null,null,null,null,"X",null,"X","X",null,null,null,null,null,null,null,null,null,null,null,null,null,null,null,null,null,null,null,null,null,"X",null,"X","X","X",null,null,null,null,null,null,null,null,null,null,null,null,null,null,null,null,null,null,null,null,null,null,null,null,null,null,null,null,null,null,null,null,null,null,null,null,null,null,null,null,null,null,null,null,null,null,null,null,null,null,null,null,null,null,null,null,null,null,"X",null,"X","X"]
[null,"ANTIOQUIA","CAROLINA",5150,"4",4,"X",null,"X","X",null,"x","x","x","x","x","x","x","x","X","X","x",null,"x",null,"x","x","x","x","x",null,null,null,null,null,null,null,null,null,null,"X",null,null,"X","X",null,null,null,null,null,null,null,null,null,null,null,null,null,null,null,null," "," "," "," ",null,null,null,null,null,null," "," "," "," ","X"," "," "," "," ",null,null,null,null," "," ","X","X","X","X",null,"X","X",null,null,null,null,null,null,null,null,"X","X","X","X",null,null,null,null,"X",null,null,null,null,"X",null,null,null,null,null,null,null,null,null,null,null,"X","X",null,null,null,null,null,null,null,null,null,null,"X",null,null,null,null,null,null,null,null,null,null,"X",null,"X","X","X",null,null,null,null,"X","X",null,null,null,null,null,null,null,null,null,null,null,null,null,null,null,null,null,null,null,null,null,null,null,null,null,null,null,null,null,null,null,null,null,null,null,null,null,null,null,null,null,null,null,null,null,null,null,null,null,null,null,null,"X",null,"X"]
[null,"ANTIOQUIA","CAUCASIA",5154,"3",3,"X",null,"X","X","X","x","x","x","x","x","x","x","x","X","X","x",null,"x",null,"x","x","x","x","x",null,null,null,null,null,null,null,"X","X",null,"X","X","X","X","X",null,null,null,null,null,null,null,null,null,null,null,null,null,null,null,null,"X","X","X","X","X",null,null,null,null,null,"X","X","X","X","X","X","X","X","X",null,null,null,null,"X","X","X","X","X","X","X","X","X","X",null,null,"X","X","X","X",null,"X","X","X","X",null,null,null,null,"X",null,null,null,null,"X",null,null,null,null,null,null,null,null,null,"X",null,"X","X",null,null,null,null,null,null,null,null,null,null,"X",null,null,null,null,null,null,null,null,null,null,"X",null,"X","X","X",null,null,null,null,"X","X","X","X","X","X",null,null,null,null,null,"X","X","X","X",null,null,null,null,null,null,null,null,null,null,null,null,null,null,null,null,null,null,null,null,null,null,null,null,null,null,null,null,null,null,null,null,null,null,null,null,null,null,null,"X",null,"X","X"]
[null,"ANTIOQUIA","CHIGORODO",5172,"3",3,"X","X","X","X","X","x","x","x","x","x","x","x","x","X","X","x",null,"x",null,"x","x","x","x","x",null,null,null,null,null,null,null,null,null,null,"X","X",null,"X","X",null,null,null,null,null,null,null,null,null,null,null,null,null,null,null,null,"X","X","X","X","X",null,null,null,null,null,"X","X","X","X","X","X","X","X","X",null,null,null,null,"X","X","X","X","X","X","X","X","X","X",null,null,"X","X","X","X",null,"X","X","X","X",null,null,null,null,"X",null,null,null,null,"X",null,null,null,null,null,null,null,null,null,null,null,"X","X",null,null,null,null,null,null,null,"X","X","X","X",null,null,"X",null,null,null,"X","X","X","X","X",null,"X","X","X",null,null,null,null,"X","X",null,null,null,null,null,null,null,null,null,null,null,null,null,null,null,null,null,null,null,null,null,null,null,null,null,null,null,null,null,null,null,null,null,null,null,null,null,null,null,null,null,null,null,null,null,null,null,null,null,null,null,null,"X",null,"X","X"]
[null,"ANTIOQUIA","CISNEROS",5190,"4",4,"X",null,"X","X","X","x","x","x","x","x","x","x","x","X","X","x",null,"x",null,"x","x","x","x","x",null,null,null,null,null,null,null,null,null,null,"X",null,null,"X","X",null,null,null,null,null,null,null,null,null,null,null,null,null,null,null,null," "," "," "," ",null,null,null,null,null,null," "," "," "," ","X"," "," "," "," ",null,null,null,null," "," ","X","X","X","X",null,"X","X",null,null,null,null,null,null,null,null,"X","X","X","X",null,null,null,null,"X",null,null,null,null,"X",null,null,null,null,null,null,null,null,null,null,null,"X","X",null,null,null,null,null,null,null,null,null,null,"X",null,null,null,null,null,null,null,null,null,null,"X",null,"X","X","X",null,null,null,null,"X","X",null,null,null,null,null,null,null,null,null,null,null,null,null,null,null,null,null,null,null,null,null,null,null,null,null,null,null,null,null,null,null,null,null,null,null,null,null,null,null,null,null,null,null,null,null,null,null,null,null,null,null,null,"X",null,"X","X"]
[null,"ANTIOQUIA","COCORNA",5197,"4",4,"X",null,"X","X","X","x","x","x","x","x","x","x","x","X","X","x",null,"x",null,"x","x","x","x","x",null,null,null,null,null,null,null,null,null,null,"X",null,null,"X","X",null,null,null,null,null,null,null,null,null,null,null,null,null,null,null,null," "," "," "," ",null,null,null,null,null,null," "," "," "," ","X"," "," "," "," ",null,null,null,null," "," ","X","X","X","X",null,"X","X",null,null,null,null,null,null,null,null,"X","X","X","X",null,null,null,null,"X",null,null,null,null,"X",null,null,null,null,null,null,null,null,null,null,null,"X","X",null,null,null,null,null,null,null,null,null,null,"X",null,null,null,null,null,null,null,null,null,null,"X",null,"X","X","X",null,null,null,null,"X","X",null,null,null,null,null,null,null,null,null,null,null,null,null,null,null,null,null,null,null,null,null,null,null,null,null,null,null,null,null,null,null,null,null,null,null,null,null,null,null,null,null,null,null,null,null,null,null,null,null,null,null,null,"X",null,"X","X"]
[null,"ANTIOQUIA","CONCEPCION",5206,"4",4,"X",null,"X","X",null,"x","x","x","x","x",null,"x",null,"X","X","x",null,"x",null,null,"x","x","x","x",null,null,null,null,null,null,null,null,null,null,"X","X",null,"X","X",null,null,null,null,null,null,null,null,null,null,null,null,null,null,null,null," "," "," "," ",null,null,null,null,null,null," "," "," "," ","X"," "," "," "," ",null,null,null,null," "," ","X","X","X","X",null,"X","X",null,null,null,null,null,null,null,null,"X","X","X","X",null,null,null,null,"X",null,null,null,null,"X",null,null,null,null,null,null,null,null,null,null,null,"X","X",null,null,null,null,null,null,null,null,null,null,"X",null,null,null,null,null,null,null,null,null,null,"X",null,"X","X"," ",null,null,null,null,"X","X",null,null,null,null,null,null,null,null,null,null,null,null,null,null,null,null,null,null,null,null,null,null,null,null,null,null,null,null,null,null,null,null,null,null,null,null,null,null,null,null,null,null,null,null,null,null,null,null,null,null,null,null,"X",null,"X","X"]
[null,"ANTIOQUIA","CONCORDIA",5209,"Otros",4,"X",null,"X","X","X","x","x","x","x","x",null,null,"x","X","X",null,null,null,null,"x","x","x","x","x",null,null,null,null,null,null,null,"X","X",null,"X","X","X","X","X",null,null,null,null,null,null,null,null,null,null,null,null,null,null,null,null,"X","X","X","X","X","X",null,null,null,null,"X","X","X","X","X","X","X","X","X",null,null,null,null,"X","X","X","X","X","X",null,"X","X",null,null,null,null,null,null,null,null,"X","X","X","X",null,null,null,null,"X",null,null,null,null,"X",null,null,null,null,null,null,null,null,null,null,null,"X","X",null,null,null,null,null,null,null,null,null,null,"X",null,null,null,null,null,null,null,null,null,null,"X",null,"X","X"," ",null,null,null,null,"X","X",null,null,null,null,null,null,null,null,null,null,null,null,null,null,null,null,null,null,null,null,null,null,null,null,null,null,null,null,null,null,null,null,null,null,null,null,null,null,null,null,null,null,null,null,null,null,null,null,null,null,null,null,null,null,null,"X"]
[null,"ANTIOQUIA","COPACABANA",5212,"3",3,"X",null,"X","X","X","x","x","x","x","x","x","x",null,"X","X","x",null,"x",null,null,"x","x","x","x",null,null,null,null,null,null,null,"X","X",null,"X","X","X","X","X",null,null,null,null,null,null,null,null,null,null,null,null,null,null,null,null,"X","X","X","X","X",null,null,null,null,null,"X","X","X","X","X","X","X","X","X",null,null,null,null,"X","X","X","X","X","X","X","X","X","X",null,null,"X","X","X","X",null,"X","X","X","X",null,null,null,null,"X",null,null,null,null,"X",null,null,null,null,null,null,null,null,null,null,null,"X","X",null,null,null,null,null,null,null,null,null,null,"X",null,null,null,null,null,null,null,null,null,null,"X",null,"X","X","X",null,null,null,null,"X","X",null,null,null,null,null,null,null,null,null,null,null,null,null,null,null,null,null,null,null,null,null,null,null,null,null,null,null,null,null,null,null,null,null,null,null,null,null,null,null,null,null,null,null,null,null,null,null,null,null,null,null,null,"X",null,"X","X"]
[null,"ANTIOQUIA","DABEIBA",5234,"3",3,"X",null,"X","X","X","x","x","x","x","x","x","x","x","X","X","x",null,"x",null,"x","x","x","x","x",null,null,null,null,null,null,null,null,null,null,"X",null,null,"X","X",null,null,null,null,null,null,null,null,null,null,null,null,null,null,null,null," "," "," "," ","",null,null,null,null,null," "," "," "," ","X"," "," "," "," ",null,null,null,null," "," ","X","X","X","X",null,"X","X",null,null,null,null,null,null,null,null,"X","X","X","X",null,null,null,null,"X",null,null,null,null,"X",null,null,null,null,null,null,null,null,null,null,null,"X","X",null,null,null,null,null,null,null,null,null,null,"X",null,null,null,null,null,null,null,null,null,null,"X",null,"X","X","X",null,null,null,null,"X","X",null,null,null,null,null,null,null,null,null,null,null,null,null,null,null,null,null,null,null,null,null,null,null,null,null,null,null,null,null,null,null,null,null,null,null,null,null,null,null,null,null,null,null,null,null,null,null,null,null,null,null,null,"X",null,"X","X"]
[null,"ANTIOQUIA","DON MATIAS",5237,"3",3,"X",null,"X","X","X","x","x","x","x","x","x","x","x","X","X","x",null,"x",null,"x","x","x","x","x",null,null,null,null,null,null,null,null,null,null,"X",null,null,"X","X",null,null,null,null,null,null,null,null,null,null,null,null,null,null,null,null,"X","X","X","X","X",null,null,null,null,null,"X","X","X","X","X","X","X","X","X",null,null,null,null,"X","X","X","X","X","X",null,"X","X",null,null,null,null,null,null,null,null,"X","X","X","X",null,null,null,null,"X",null,null,null,null,"X",null,null,null,null,null,null,null,null,null,null,null,"X","X",null,null,null,null,null,null,null,null,null,null,"X",null,null,null,null,null,null,null,null,null,null,"X",null,"X","X","X",null,null,null,null,"X","X",null,null,null,null,null,null,null,null,null,null,null,null,null,null,null,null,null,null,null,null,null,null,null,null,null,null,null,null,null,null,null,null,null,null,null,null,null,null,null,null,null,null,null,null,null,null,null,null,null,null,null,null,"X",null,"X","X"]
[null,"ANTIOQUIA","EBEJICO",5240,"4",4,"X",null,"X","X","X","x","x","x","x","x","x","x","x","X","X","x",null,"x",null,"x","x","x","x","x",null,null,null,null,null,null,null,null,null,null,"X",null,null,"X","X",null,null,null,null,null,null,null,null,null,null,null,null,null,null,null,null," "," "," "," ",null,null,null,null,null,null," "," "," "," ","X"," "," "," "," ",null,null,null,null," "," ","X","X","X","X",null,"X","X",null,null,null,null,null,null,null,null,"X","X","X","X",null,null,null,null,"X",null,null,null,null,"X",null,null,null,null,null,null,null,null,null,null,null,"X","X",null,null,null,null,null,null,null,null,null,null,"X",null,null,null,null,null,null,null,null,null,null,"X",null,"X","X","X",null,null,null,null,"X","X",null,null,null,null,null,null,null,null,null,null,null,null,null,null,null,null,null,null,null,null,null,null,null,null,null,null,null,null,null,null,null,null,null,null,null,null,null,null,null,null,null,null,null,null,null,null,null,null,null,null,null,null,"X",null,"X","X"]
[null,"ANTIOQUIA","EL BAGRE",5250,"3",3,"X",null,"X","X","X","x","x","x","x","x","x","x","x","X","X","x",null,"x",null,"x","x","x","x","x",null,null,null,null,null,null,null,null,null,null,"X",null,null,"X","X",null,null,null,null,null,null,null,null,null,null,null,null,null,null,null,null,"X","X","X","X","X",null,null,null,null,null,"X","X","X","X","X","X","X","X","X",null,null,null,null,"X","X","X","X","X","X",null,"X","X",null,null,null,null,null,null,null,null,"X","X","X","X",null,null,null,null,"X",null,null,null,null,"X",null,null,null,null,null,null,null,null,null,null,null,"X","X",null,null,null,null,null,null,null,null,null,null,"X",null,null,null,null,null,null,null,null,null,null,"X",null,"X","X","X",null,null,null,null,"X","X",null,null,null,null,null,null,null,null,null,null,null,null,null,null,null,null,null,null,null,null,null,null,null,null,null,null,null,null,null,null,null,null,null,null,null,null,null,null,null,null,null,null,null,null,null,null,null,null,null,null,null,null,"X",null,"X","X"]
[null,"ANTIOQUIA","ENTRERRIOS",5264,"Otros",4,"X",null,"X","X","X","x","x","x","x","x","x",null,null,"X","X",null,null,null,null,null,"x","x","x","x",null,null,null,null,null,null,null,null,null,null,"X",null,null,"X","X",null,null,null,null,null,null,null,null,null,null,null,null,null,null,null,null,"X","X","X","X","X","X",null,null,null,null,"X","X","X","X","X","X","X","X","X",null,null,null,null,"X","X","X","X","X","X",null,"X","X",null,null,null,null,null,null,null,"X","X","X","X","X",null,null,null,null,"X",null,null,null,null,"X",null,null,null,null,null,null,null,null,null,null,null,"X","X",null,null,null,null,null,null,null,null,null,null,"X",null,null,null,null,null,null,null,null,null,null,"X",null,"X","X"," ",null,null,null,null,"X","X",null,null,null,null,null,null,null,null,null,null,null,null,null,null,null,null,null,null,null,null,null,null,null,null,null,null,null,null,null,null,null,null,null,null,null,null,null,null,null,null,null,null,null,null,null,null,null,null,null,null,null,null,"X",null,"X","X"]
[null,"ANTIOQUIA","ENVIGADO",5266,"1",1,"X","X","X","X","X","x","x","x","x","x","x","x","x","X","X","x",null,"x",null,"x","x","x","x","x",null,null,null,null,null,null,null,"X","X",null,"X","X","X","X","X",null,null,null,null,null,null,null,null,null,null,null,null,null,null,null,null,"X","X","X","X","X","X",null,null,null,null,"X","X","X","X","X","X","X","X","X",null,null,null,null,"X","X","X","X","X","X","X","X","X","X",null,null,"X","X","X","X","X","X","X","X","X",null,null,null,null,"X",null,"X","X","X","X",null,null,null,null,null,"X","X","X","X","X","X","X","X","X",null,null,null,null,null,null,"X","X","X","X",null,null,"X",null,null,null,"X","X","X","X","X",null,"X","X","X",null,null,null,null,"X","X","X","X","X","X",null,null,null,null,null,"X","X","X","X",null,null,null,null,null,null,null,null,null,null,null,"X","X","X","X",null,null,null,null,null,null,null,null,null,null,null,null,null,null,null,null,null,null,null,null,null,null,null,null,"X",null,"X","X"]
[null,"ANTIOQUIA","FREDONIA",5282,"Otros",3,"X",null,"X","X","X","x","x","x","x","x",null,null,"x","X","X",null,null,null,null,"x","x","x","x","x",null,null,null,null,null,null,null,"X","X",null,"X","X","X","X","X",null,null,null,null,null,null,null,null,null,null,null,null,null,null,null,null,"X","X","X","X","X","X",null,null,null,null,"X","X","X","X","X","X","X","X","X",null,null,null,null,"X","X","X","X","X","X",null,"X","X",null,null,null,null,null,null,null,null,"X","X","X","X",null,null,null,null,"X",null,null,null,null,"X",null,null,null,null,null,null,null,null,null,"X",null,"X","X",null,null,null,null,null,null,null,null,null,null,"X",null,null,null,null,null,null,null,null,null,null,"X",null,"X","X","X",null,null,null,null,"X","X",null,null,null,null,null,null,null,null,null,null,null,null,null,null,null,null,null,null,null,null,null,null,null,null,null,null,null,null,null,null,null,null,null,null,null,null,null,null,null,null,null,null,null,null,null,null,null,null,null,null,null,null,null,null,null,"X"]
[null,"ANTIOQUIA","FRONTINO",5284,"3",3,"X",null,"X","X","X","x","x","x","x","x","x","x","x","X","X","x",null,"x",null,"x","x","x","x","x",null,null,null,null,null,null,null,null,null,null,"X",null,null,"X","X",null,null,null,null,null,null,null,null,null,null,null,null,null,null,null,null," "," "," "," ","",null,null,null,null,null," "," "," "," ","X"," "," "," "," ",null,null,null,null," "," ","X","X","X","X","X","X","X","X",null,null,"X","X","X","X",null,"X","X","X","X",null,null,null,null,"X",null,null,null,null,"X",null,null,null,null,null,null,null,null,null,null,null,"X","X",null,null,null,null,null,null,null,null,null,null,"X",null,null,null,null,null,null,null,null,null,null,"X",null,"X","X","X",null,null,null,null,"X","X",null,null,null,null,null,null,null,null,null,null,null,null,null,null,null,null,null,null,null,null,null,null,null,null,null,null,null,null,null,null,null,null,null,null,null,null,null,null,null,null,null,null,null,null,null,null,null,null,null,null,null,null,"X",null,"X","X"]
[null,"ANTIOQUIA","GIRALDO",5306,"Otros",4,"X",null,"X","X","X","x","x","x","x",null,null,null,null,"X","X",null,null,null,null,null,"x","x","x","x",null,null,null,null,null,null,null,null,null,null,"X",null,null,"X","X",null,null,null,null,null,null,null,null,null,null,null,null,null,null,null,null," "," "," "," ","",null,null,null,null,null," "," "," "," ","X"," "," "," "," ",null,null,null,null," "," ","X","X","X","X",null,"X","X",null,null,null,null,null,null,null,null,"X","X","X","X",null,null,null,null,"X",null,null,null,null,"X",null,null,null,null,null,null,null,null,null,null,null,"X","X",null,null,null,null,null,null,null,null,null,null,null,null,null,null,null,null,null,null,null,null,null,"X",null,"X","X","X",null,null,null,null,null,null,null,null,null,null,null,null,null,null,null,null,null,null,null,null,null,null,null,null,null,null,null,null,null,null,null,null,null,null,null,null,null,null,null,null,null,null,null,null,null,null,null,null,null,null,null,null,null,null,null,null,null,null,null,null,null,"X"]
[null,"ANTIOQUIA","GIRARDOTA",5308,"3",3,"X",null,"X","X","X","x","x","x","x","x","x","x","x","X","X","x",null,"x",null,"x","x","x","x","x",null,null,null,null,null,null,null,null,null,null,"X",null,null,"X","X",null,null,null,null,null,null,null,null,null,null,null,null,null,null,null,null,"X","X","X","X","X",null,null,null,null,null,"X","X","X","X","X","X","X","X","X",null,null,null,null,"X","X","X","X","X","X","X","X","X","X",null,null,"X","X","X","X","X","X","X","X","X",null,null,null,null,"X",null,null,null,null,"X",null,null,null,null,null,null,null,null,null,"X",null,"X","X",null,null,null,null,null,null,null,null,null,null,"X",null,null,null,null,null,null,null,null,null,null,"X",null,"X","X","X",null,null,null,null,"X","X",null,null,null,null,null,null,null,null,null,null,null,null,null,null,null,null,null,null,null,null,null,null,null,null,null,null,null,null,null,null,null,null,null,null,null,null,null,null,null,null,null,null,null,null,null,null,null,null,null,null,null,null,"X",null,"X","X"]
[null,"ANTIOQUIA","GOMEZ PLATA",5310,"4",4,"X",null,"X","X",null,"x","x","x","x","x","x","x","x","X","X","x",null,"x",null,"x","x","x","x","x",null,null,null,null,null,null,null,null,null,null,"X",null,null,"X","X",null,null,null,null,null,null,null,null,null,null,null,null,null,null,null,null," "," "," "," ",null,null,null,null,null,null," "," "," "," ","X"," "," "," "," ",null,null,null,null," "," ","X","X","X","X",null,"X","X",null,null,null,null,null,null,null,null,"X","X","X","X",null,null,null,null,"X",null,null,null,null,"X",null,null,null,null,null,null,null,null,null,null,null,"X","X",null,null,null,null,null,null,null,null,null,null,"X",null,null,null,null,null,null,null,null,null,null,"X",null,"X","X","X",null,null,null,null,"X","X",null,null,null,null,null,null,null,null,null,null,null,null,null,null,null,null,null,null,null,null,null,null,null,null,null,null,null,null,null,null,null,null,null,null,null,null,null,null,null,null,null,null,null,null,null,null,null,null,null,null,null,null,"X",null,"X"]
[null,"ANTIOQUIA","GRANADA",5313,"4",2,"X",null,"X","X","X","x","x","x","x","x","x","x",null,"X","X","x",null,"x",null,null,"x","x","x","x",null,null,null,null,null,null,null,null,null,null,"X",null,null,"X","X",null,null,null,null,null,null,null,null,null,null,null,null,null,null,null,null," "," "," "," ",null,null,null,null,null,null," "," "," "," ","X"," "," "," "," ",null,null,null,null," "," ","X","X","X","X",null,"X","X",null,null,null,null,null,null,null,null,"X","X","X","X",null,null,null,null,"X",null,null,null,null,"X",null,null,null,null,null,null,null,null,null,null,null,"X","X",null,null,null,null,null,null,null,null,null,null,"X",null,null,null,null,null,null,null,null,null,null,"X",null,"X","X"," ",null,null,null,null,"X","X",null,null,null,null,null,null,null,null,null,null,null,null,null,null,null,null,null,null,null,null,null,null,null,null,null,null,null,null,null,null,null,null,null,null,null,null,null,null,null,null,null,null,null,null,null,null,null,null,null,null,null,null,"X",null,"X","X"]
[null,"ANTIOQUIA","GUADALUPE",5315,"4",4,"X",null,"X","X",null,"x","x","x","x","x","x","x","x","X","X","x",null,"x",null,"x","x","x","x","x",null,null,null,null,null,null,null,null,null,null,"X",null,null,"X","X",null,null,null,null,null,null,null,null,null,null,null,null,null,null,null,null," "," "," "," ",null,null,null,null,null,null," "," "," "," ","X"," "," "," "," ",null,null,null,null," "," ","X","X","X","X",null,"X","X",null,null,null,null,null,null,null,null,"X","X","X","X",null,null,null,null,"X",null,null,null,null,"X",null,null,null,null,null,null,null,null,null,null,null,"X","X",null,null,null,null,null,null,null,null,null,null,"X",null,null,null,null,null,null,null,null,null,null,"X",null,"X","X"," ",null,null,null,null,"X","X",null,null,null,null,null,null,null,null,null,null,null,null,null,null,null,null,null,null,null,null,null,null,null,null,null,null,null,null,null,null,null,null,null,null,null,null,null,null,null,null,null,null,null,null,null,null,null,null,null,null,null,null,"X",null,"X"]
[null,"ANTIOQUIA","GUARNE",5318,"3",3,"X",null,"X","X","X","x","x","x","x","x","x","x","x","X","X","x",null,"x",null,"x","x","x","x","x",null,null,null,null,null,null,null,null,null,null,"X",null,null,"X","X",null,null,null,null,null,null,null,null,null,null,null,null,null,null,null,null,"X","X","X","X","X",null,null,null,null,null,"X","X","X","X","X","X","X","X","X",null,null,null,null,"X","X","X","X","X","X","X","X","X","X",null,null,"X","X","X","X","X","X","X","X","X",null,null,null,null,"X",null,null,null,null,"X",null,null,null,null,null,null,null,null,null,null,null,"X","X",null,null,null,null,null,null,null,null,null,null,"X",null,null,null,null,null,null,null,null,null,null,"X",null,"X","X","X",null,null,null,null,"X","X",null,null,null,null,null,null,null,null,null,null,null,null,null,null,null,null,null,null,null,null,null,null,null,null,null,null,null,null,null,null,null,null,null,null,null,null,null,null,null,null,null,null,null,null,null,null,null,null,null,null,null,null,"X",null,"X","X"]
[null,"ANTIOQUIA","GUATAPE",5321,"Otros",4,"X",null,"X","X","X","x","x","x","x",null,null,null,null,"X","X",null,null,null,null,null,"x","x","x","x",null,null,null,null,null,null,null,null,null,null,"X",null,null,"X","X",null,null,null,null,null,null,null,null,null,null,null,null,null,null,null,null," "," "," "," ","X","X",null,null,null,null," "," "," "," ","X"," "," "," "," ",null,null,null,null," "," ","X","X","X","X",null,"X","X",null,null,null,null,null,null,null,"X","X","X","X","X",null,null,null,null,"X",null,null,null,null,"X",null,null,null,null,null,null,null,null,null,null,null,"X","X",null,null,null,null,null,null,null,null,null,null,"X",null,null,null,null,null,null,null,null,null,null,"X",null,"X","X","X",null,null,null,null,"X","X",null,null,null,null,null,null,null,null,null,null,null,null,null,null,null,null,null,null,null,null,null,null,null,null,"X","X","X","X",null,null,"X",null,null,null,null,null,null,null,null,null,null,null,null,null,null,null,null,null,null,null,null,null,null,null,null,"X"]
[null,"ANTIOQUIA","HELICONIA",5347,"4",4,"X",null,"X","X",null,"x","x","x","x","x","x","x",null,"X","X","x",null,"x",null,null,"x","x","x","x",null,null,null,null,null,null,null,null,null,null,"X",null,null,"X","X",null,null,null,null,null,null,null,null,null,null,null,null,null,null,null,null," "," "," "," ",null,null,null,null,null,null," "," "," "," ","X"," "," "," "," ",null,null,null,null," "," ","X","X","X","X",null,"X","X",null,null,null,null,null,null,null,null,"X","X","X","X",null,null,null,null,"X",null,null,null,null,"X",null,null,null,null,null,null,null,null,null,null,null,"X","X",null,null,null,null,null,null,null,null,null,null,"X",null,null,null,null,null,null,null,null,null,null,"X",null,"X","X","X",null,null,null,null,"X","X",null,null,null,null,null,null,null,null,null,null,null,null,null,null,null,null,null,null,null,null,null,null,null,null,null,null,null,null,null,null,null,null,null,null,null,null,null,null,null,null,null,null,null,null,null,null,null,null,null,null,null,null,"X",null,"X","X"]
[null,"ANTIOQUIA","HISPANIA",5353,"Otros",4,"X",null,"X","X",null,"x","x","x","x","x",null,null,"x","X","X",null,null,null,null,"x","x","x","x","x",null,null,null,null,null,null,null,null,null,null,"X",null,null,"X","X",null,null,null,null,null,null,null,null,null,null,null,null,null,null,null,null," "," "," "," ","",null,null,null,null,null," "," "," "," ","X"," "," "," "," ",null,null,null,null," "," ","X","X","X","X",null,"X","X",null,null,null,null,null,null,null,null,"X","X","X","X",null,null,null,null,"X",null,null,null,null,"X",null,null,null,null,null,null,null,null,null,null,null,"X","X",null,null,null,null,null,null,null,null,null,null,null,null,null,null,null,null,null,null,null,null,null,"X",null,"X","X","X",null,null,null,null,null,null,null,null,null,null,null,null,null,null,null,null,null,null,null,null,null,null,null,null,null,null,null,null,null,null,null,null,null,null,null,null,null,null,null,null,null,null,null,null,null,null,null,null,null,null,null,null,null,null,null,null,null,null,null,null,null,"X"]
[null,"ANTIOQUIA","ITAGUI",5360,"Otros",4,"X","X","X","X","X","x","x","x","x","x","x","x","x","X","X","x",null,"x",null,"x","x","x","x","x",null,null,null,null,null,null,null,"X","X",null,"X","X","X","X","X",null,null,null,null,null,null,null,null,null,null,null,null,null,null,null,null,"X","X","X","X","X","X",null,null,null,null,"X","X","X","X","X","X","X","X","X",null,null,null,null,"X","X","X","X","X","X","X","X","X","X",null,null,"X","X","X","X","X","X","X","X","X",null,null,null,null,"X",null,"X","X","X","X",null,null,null,null,null,"X","X","X","X","X","X","X","X","X",null,null,null,null,null,null,"X","X","X","X",null,null,"X",null,null,null,"X","X","X","X","X",null,"X","X","X",null,null,null,null,"X","X","X","X","X","X",null,null,null,null,null,"X","X","X","X",null,null,null,null,null,null,null,null,null,null,null,"X","X","X","X",null,null,null,null,null,null,null,null,null,null,null,null,null,null,null,null,null,null,null,null,null,null,null,null,"X",null,"X","X"]
[null,"ANTIOQUIA","ITUANGO",5361,"4",4,"X",null,"X","X","X","x","x","x","x","x","x","x","x","X","X","x",null,"x",null,"x","x","x","x","x",null,null,null,null,null,null,null,null,null,null,"X",null,null,"X","X",null,null,null,null,null,null,null,null,null,null,null,null,null,null,null,null," "," "," "," ",null,null,null,null,null,null," "," "," "," ","X"," "," "," "," ",null,null,null,null," "," ","X","X","X","X",null,"X","X",null,null,null,null,null,null,null,null,"X","X","X","X",null,null,null,null,"X",null,null,null,null,"X",null,null,null,null,null,null,null,null,null,null,null,"X","X",null,null,null,null,null,null,null,null,null,null,"X",null,null,null,null,null,null,null,null,null,null,"X",null,"X","X","X",null,null,null,null,"X","X",null,null,null,null,null,null,null,null,null,null,null,null,null,null,null,null,null,null,null,null,null,null,null,null,null,null,null,null,null,null,null,null,null,null,null,null,null,null,null,null,null,null,null,null,null,null,null,null,null,null,null,null,"X",null,"X","X"]
[null,"ANTIOQUIA","JARDIN",5364,"3",3,"X",null,"X","X","X","x","x","x","x","x","x","x","x","X","X","x",null,"x",null,"x","x","x","x","x",null,null,null,null,null,null,null,"X","X",null,"X","X","X","X","X",null,null,null,null,null,null,null,null,null,null,null,null,null,null,null,null,"X","X","X","X","X",null,null,null,null,null,"X","X","X","X","X","X","X","X","X",null,null,null,null,"X","X","X","X","X","X",null,"X","X",null,null,null,null,null,null,null,null,"X","X","X","X",null,null,null,null,"X",null,null,null,null,"X",null,null,null,null,null,null,null,null,null,null,null,"X","X",null,null,null,null,null,null,null,null,null,null,"X",null,null,null,null,null,null,null,null,null,null,"X",null,"X","X","X",null,null,null,null,"X","X",null,null,null,null,null,null,null,null,null,null,null,null,null,null,null,null,null,null,null,null,null,null,null,null,null,null,null,null,null,null,null,null,null,null,null,null,null,null,null,null,null,null,null,null,null,null,null,null,null,null,null,null,"X",null,"X","X"]
[null,"ANTIOQUIA","JERICO",5368,"4",4,"X",null,"X","X",null,"x","x","x","x","x","x","x",null,"X","X","x",null,"x",null,null,"x","x","x","x",null,null,null,null,null,null,null,"X","X",null,"X","X","X","X","X",null,null,null,null,null,null,null,null,null,null,null,null,null,null,null,null," "," "," "," ",null,null,null,null,null,null," "," "," "," ","X"," "," "," "," ",null,null,null,null," "," ","X","X","X","X",null,"X","X",null,null,null,null,null,null,null,null,"X","X","X","X",null,null,null,null,"X",null,null,null,null,"X",null,null,null,null,null,null,null,null,null,null,null,"X","X",null,null,null,null,null,null,null,null,null,null,"X",null,null,null,null,null,null,null,null,null,null,"X",null,"X","X"," ",null,null,null,null,"X","X",null,null,null,null,null,null,null,null,null,null,null,null,null,null,null,null,null,null,null,null,null,null,null,null,null,null,null,null,null,null,null,null,null,null,null,null,null,null,null,null,null,null,null,null,null,null,null,null,null,null,null,null,"X",null,"X"]
[null,"ANTIOQUIA","LA CEJA",5376,"2",2,"X",null,"X","X","X","x","x","x","x","x","x","x","x","X","X","x",null,"x",null,"x","x","x","x","x",null,null,null,null,null,null,null,"X","X",null,"X","X","X","X","X",null,null,null,null,null,null,null,null,null,null,null,null,null,null,null,null,"X","X","X","X","X","X",null,null,null,null,"X","X","X","X","X","X","X","X","X",null,null,null,null,"X","X","X","X","X","X","X","X","X","X",null,null,"X","X","X","X",null,"X","X","X","X",null,null,null,null,"X",null,"X","X","X","X",null,null,null,null,null,"X","X","X","X","X","X","X","X","X",null,null,null,null,null,null,null,null,null,"X",null,null,null,null,null,null,null,null,null,null,"X",null,"X","X","X",null,null,null,null,"X","X","X","X","X","X",null,null,null,null,null,"X","X","X","X",null,null,null,null,null,null,null,null,null,null,null,null,null,null,null,null,null,null,null,null,null,null,null,null,null,null,null,null,null,null,null,null,null,null,null,null,null,null,null,"X",null,"X","X"]
[null,"ANTIOQUIA","LA ESTRELLA",5380,"3",3,"X",null,"X","X","X","x","x","x","x","x","x","x","x","X","X","x",null,"x",null,"x","x","x","x","x",null,null,null,null,null,null,null,"X","X",null,"X","X","X","X","X",null,null,null,null,null,null,null,null,null,null,null,null,null,null,null,null,"X","X","X","X","X",null,null,null,null,null,"X","X","X","X","X","X","X","X","X",null,null,null,null,"X","X","X","X","X","X","X","X","X","X",null,null,"X","X","X","X","X","X","X","X","X",null,null,null,null,"X",null,null,null,null,"X",null,null,null,null,null,null,null,null,null,"X",null,"X","X",null,null,null,null,null,null,null,null,null,null,"X",null,null,null,null,null,null,null,null,null,null,"X",null,"X","X","X",null,null,null,null,"X","X",null,null,null,null,null,null,null,null,null,null,null,null,null,null,null,null,null,null,null,null,null,null,null,null,null,null,null,null,null,null,null,null,null,null,null,null,null,null,null,null,null,null,null,null,null,null,null,null,null,null,null,null,"X",null,"X","X"]
[null,"ANTIOQUIA","LA PINTADA",5390,"4",4,"X",null,"X","X","X","x","x","x","x","x","x","x",null,"X","X","x",null,"x",null,null,"x","x","x","x",null,null,null,null,null,null,null,null,null,null,"X",null,null,"X","X",null,null,null,null,null,null,null,null,null,null,null,null,null,null,null,null," "," "," "," ",null,null,null,null,null,null," "," "," "," ","X"," "," "," "," ",null,null,null,null," "," ","X","X","X","X",null,"X","X",null,null,null,null,null,null,null,null,"X","X","X","X",null,null,null,null,"X",null,null,null,null,"X",null,null,null,null,null,null,null,null,null,null,null,"X","X",null,null,null,null,null,null,null,null,null,null,"X",null,null,null,null,null,null,null,null,null,null,"X",null,"X","X","X",null,null,null,null,"X","X",null,null,null,null,null,null,null,null,null,null,null,null,null,null,null,null,null,null,null,null,null,null,null,null,null,null,null,null,null,null,null,null,null,null,null,null,null,null,null,null,null,null,null,null,null,null,null,null,null,null,null,null,"X",null,"X","X"]
[null,"ANTIOQUIA","LA UNION",5400,"3",3,"X",null,"X","X","X","x","x","x","x","x","x","x","x","X","X","x",null,"x",null,"x","x","x","x","x",null,null,null,null,null,null,null,null,null,null,"X",null,null,"X","X",null,null,null,null,null,null,null,null,null,null,null,null,null,null,null,null,"X","X","X","X","X",null,null,null,null,null,"X","X","X","X","X","X","X","X","X",null,null,null,null,"X","X","X","X","X","X",null,"X","X",null,null,null,null,null,null,null,null,"X","X","X","X",null,null,null,null,"X",null,null,null,null,"X",null,null,null,null,null,null,null,null,null,null,null,"X","X",null,null,null,null,null,null,null,null,null,null,"X",null,null,null,null,null,null,null,null,null,null,"X",null,"X","X"," ",null,null,null,null,"X","X",null,null,null,null,null,null,null,null,null,null,null,null,null,null,null,null,null,null,null,null,null,null,null,null,null,null,null,null,null,null,"X",null,null,null,null,null,null,null,null,null,null,null,null,null,null,null,null,null,null,null,null,null,"X",null,"X","X"]
[null,"ANTIOQUIA","LIBORINA",5411,"4",4,"X",null,"X","X","X","x","x","x","x","x","x","x",null,"X","X","x",null,"x",null,null,"x","x","x","x",null,null,null,null,null,null,null,null,null,null,"X",null,null,"X","X",null,null,null,null,null,null,null,null,null,null,null,null,null,null,null,null," "," "," "," ",null,null,null,null,null,null," "," "," "," ","X"," "," "," "," ",null,null,null,null," "," ","X","X","X","X","X","X","X","X",null,null,"X","X","X","X",null,"X","X","X","X",null,null,null,null,"X",null,null,null,null,"X",null,null,null,null,null,null,null,null,null,null,null,"X","X",null,null,null,null,null,null,null,null,null,null,"X",null,null,null,null,null,null,null,null,null,null,"X",null,"X","X","X",null,null,null,null,"X","X",null,null,null,null,null,null,null,null,null,null,null,null,null,null,null,null,null,null,null,null,null,null,null,null,null,null,null,null,null,null,null,null,null,null,null,null,null,null,null,null,null,null,null,null,null,null,null,null,null,null,null,null,"X",null,"X","X"]
[null,"ANTIOQUIA","MACEO",5425,"4",4,"X",null,"X","X","X","x","x","x","x","x","x","x",null,"X","X","x",null,"x",null,null,"x","x","x","x",null,null,null,null,null,null,null,null,null,null,"X",null,null,"X","X",null,null,null,null,null,null,null,null,null,null,null,null,null,null,null,null," "," "," "," ",null,null,null,null,null,null," "," "," "," ","X"," "," "," "," ",null,null,null,null," "," ","X","X","X","X",null,"X","X",null,null,null,null,null,null,null,null,"X","X","X","X",null,null,null,null,"X",null,null,null,null,"X",null,null,null,null,null,null,null,null,null,null,null,"X","X",null,null,null,null,null,null,null,null,null,null,"X",null,null,null,null,null,null,null,null,null,null,"X",null,"X","X","X",null,null,null,null,"X","X",null,null,null,null,null,null,null,null,null,null,null,null,null,null,null,null,null,null,null,null,null,null,null,null,null,null,null,null,null,null,null,null,null,null,null,null,null,null,null,null,null,null,null,null,null,null,null,null,null,null,null,null,"X",null,"X","X"]
[null,"ANTIOQUIA","MARINILLA",5440,"3",3,"X",null,"X","X","X","x","x","x","x","x","x","x","x","X","X","x",null,"x",null,"x","x","x","x","x",null,null,null,null,null,null,null,null,null,null,"X",null,null,"X","X",null,null,null,null,null,null,null,null,null,null,null,null,null,null,null,null,"X","X","X","X","X",null,null,null,null,null,"X","X","X","X","X","X","X","X","X",null,null,null,null,"X","X","X","X","X","X","X","X","X","X",null,null,"X","X","X","X","X","X","X","X","X",null,null,null,null,"X",null,null,null,null,"X",null,null,null,null,null,null,null,null,null,"X",null,"X","X",null,null,null,null,null,null,null,null,null,null,"X",null,null,null,null,null,null,null,null,null,null,"X",null,"X","X","X",null,null,null,null,"X","X",null,null,null,null,null,null,null,null,null,null,null,null,null,null,null,null,null,null,null,null,null,null,null,null,null,null,null,null,null,null,null,null,null,null,null,null,null,null,null,null,null,null,null,null,null,null,null,null,null,null,null,null,"X",null,"X","X"]
[null,"ANTIOQUIA","MONTEBELLO",5467,"4",4,"X",null,"X","X",null,"x","x","x","x","x","x","x",null,"X","X","x",null,"x",null,null,"x","x","x","x",null,null,null,null,null,null,null,null,null,null,"X",null,null,"X","X",null,null,null,null,null,null,null,null,null,null,null,null,null,null,null,null," "," "," "," ",null,null,null,null,null,null," "," "," "," ","X"," "," "," "," ",null,null,null,null," "," ","X","X","X","X",null,"X","X",null,null,null,null,null,null,null,null,"X","X","X","X",null,null,null,null,"X",null,null,null,null,"X",null,null,null,null,null,null,null,null,null,null,null,"X","X",null,null,null,null,null,null,null,null,null,null,"X",null,null,null,null,null,null,null,null,null,null,"X",null,"X","X","X",null,null,null,null,"X","X",null,null,null,null,null,null,null,null,null,null,null,null,null,null,null,null,null,null,null,null,null,null,null,null,null,null,null,null,null,null,null,null,null,null,null,null,null,null,null,null,null,null,null,null,null,null,null,null,null,null,null,null,"X",null,"X","X"]
[null,"ANTIOQUIA","MURINDO",5475,"Otros",4,"X",null,"X","X",null,"x","x","x","x",null,null,null,null,null,null,null,null,null,null,null,"x","x","x","x",null,null,null,null,null,null,null,null,null,null,"X",null,null,"X","X",null,null,null,null,null,null,null,null,null,null,null,null,null,null,null,null," "," "," "," ","",null,null,null,null,null," "," "," "," ","X"," "," "," "," ",null,null,null,null," "," ","X","X","X","X",null,"X","X",null,null,null,null,null,null,null,null,"X","X","X","X",null,null,null,null,"X",null,null,null,null,"X",null,null,null,null,null,null,null,null,null,null,null,"X","X",null,null,null,null,null,null,null,null,null,null,null,null,null,null,null,null,null,null,null,null,null,null,null,"X","X"," "]
[null,"ANTIOQUIA","MUTATA",5480,"4",4,"X",null,"X","X","X","x","x","x","x","x","x","x","x","X","X","x",null,"x",null,"x","x","x","x","x",null,null,null,null,null,null,null,null,null,null,"X",null,null,"X","X",null,null,null,null,null,null,null,null,null,null,null,null,null,null,null,null," "," "," "," ",null,null,null,null,null,null," "," "," "," ","X"," "," "," "," ",null,null,null,null," "," ","X","X","X","X",null,"X","X",null,null,null,null,null,null,null,null,"X","X","X","X",null,null,null,null,"X",null,null,null,null,"X",null,null,null,null,null,null,null,null,null,null,null,"X","X",null,null,null,null,null,null,null,null,null,null,"X",null,null,null,null,null,null,null,null,null,null,"X",null,"X","X","X",null,null,null,null,"X","X",null,null,null,null,null,null,null,null,null,null,null,null,null,null,null,null,null,null,null,null,null,null,null,null,null,null,null,null,null,null,null,null,null,null,null,null,null,null,null,null,null,null,null,null,null,null,null,null,null,null,null,null,"X",null,"X","X"]
[null,"ANTIOQUIA","NARIÑO",5483,"4",3,"X",null,"X","X","X","x","x","x","x","x","x","x","x","X","X","x",null,"x",null,"x","x","x","x","x",null,null,null,null,null,null,null,null,null,null,"X",null,null,"X","X",null,null,null,null,null,null,null,null,null,null,null,null,null,null,null,null," "," "," "," ",null,null,null,null,null,null," "," "," "," ","X"," "," "," "," ",null,null,null,null," "," ","X","X","X","X",null,"X","X",null,null,null,null,null,null,null,null,"X","X","X","X",null,null,null,null,"X",null,null,null,null,"X",null,null,null,null,null,null,null,null,null,null,null,"X","X",null,null,null,null,null,null,null,null,null,null,"X",null,null,null,null,null,null,null,null,null,null,null,null,"X","X","X",null,null,null,null,"X","X",null,null,null,null,null,null,null,null,null,null,null,null,null,null,null,null,null,null,null,null,null,null,null,null,null,null,null,null,null,null,null,null,null,null,null,null,null,null,null,null,null,null,null,null,null,null,null,null,null,null,null,null,"X",null,"X","X"]
[null,"ANTIOQUIA","NECOCLI",5490,"3",3,"X",null,"X","X","X","x","x","x","x","x","x","x","x","X","X","x",null,"x",null,"x","x","x","x","x",null,null,null,null,null,null,null,null,null,null,"X",null,null,"X","X",null,null,null,null,null,null,null,null,null,null,null,null,null,null,null,null,"X","X","X","X","X",null,null,null,null,null,"X","X","X","X","X","X","X","X","X",null,null,null,null,"X","X","X","X","X","X",null,"X","X",null,null,null,null,null,null,null,null,"X","X","X","X",null,null,null,null,"X",null,null,null,null,"X",null,null,null,null,null,null,null,null,null,null,null,"X","X",null,null,null,null,null,null,null,null,null,null,"X",null,null,null,null,null,null,null,null,null,null,"X",null,"X","X","X",null,null,null,null,"X","X",null,null,null,null,null,null,null,null,null,null,null,null,null,null,null,null,null,null,null,null,null,null,null,null,null,null,null,null,null,null,null,null,null,null,null,null,null,null,null,null,null,null,null,null,null,null,null,null,null,null,null,null,"X",null,"X","X"]
[null,"ANTIOQUIA","NECHI",5495,"3",3,"X",null,"X","X","X","x","x","x","x","x","x","x","x","X","X","x",null,"x",null,"x","x","x","x","x",null,null,null,null,null,null,null,null,null,null,"X",null,null,"X","X",null,null,null,null,null,null,null,null,null,null,null,null,null,null,null,null," "," "," "," ","",null,null,null,null,null," "," "," "," ","X"," "," "," "," ",null,null,null,null," "," ","X","X","X","X",null,"X","X",null,null,null,null,null,null,null,null,"X","X","X","X",null,null,null,null,"X",null,null,null,null,"X",null,null,null,null,null,null,null,null,null,null,null,"X","X",null,null,null,null,null,null,null,null,null,null,"X",null,null,null,null,null,null,null,null,null,null,"X",null,"X","X","X",null,null,null,null,"X","X",null,null,null,null,null,null,null,null,null,null,null,null,null,null,null,null,null,null,null,null,null,null,null,null,null,null,null,null,null,null,null,null,null,null,null,null,null,null,null,null,null,null,null,null,null,null,null,null,null,null,null,null,"X",null,"X","X"]
[null,"ANTIOQUIA","OLAYA",5501,"Otros",4,"X",null,"X",null,null,"x","x","x","x",null,null,null,null,"X","X",null,null,null,null,null,"x","x","x","x",null,null,null,null,null,null,null,null,null,null,"X",null,null,"X","X",null,null,null,null,null,null,null,null,null,null,null,null,null,null,null,null," "," "," "," ","",null,null,null,null,null," "," "," "," ","X"," "," "," "," ",null,null,null,null," "," ","X","X","X","X",null,"X","X",null,null,null,null,null,null,null,null,"X","X","X","X",null,null,null,null,"X",null,null,null,null,"X",null,null,null,null,null,null,null,null,null,null,null,"X","X",null,null,null,null,null,null,null,null,null,null,null,null,null,null,null,null,null,null,null,null,null,"X",null,"X","X"," ",null,null,null,null,null,null,null,null,null,null,null,null,null,null,null,null,null,null,null,null,null,null,null,null,null,null,null,null,null,null,null,null,null,null,null,null,null,null,null,null,null,null,null,null,null,null,null,null,null,null,null,null,null,null,null,null,null,null,null,null,null,"X"]
[null,"ANTIOQUIA","PEÐOL",5541,"4",4,"X",null,"X","X","X","x","x","x","x","x","x","x","x","X","X","x",null,"x",null,"x","x","x","x","x",null,null,null,null,null,null,null,null,null,null,"X",null,null,"X","X",null,null,null,null,null,null,null,null,null,null,null,null,null,null,null,null,"X","X","X","X",null,null,null,null,null,null,"X","X","X","X","X","X","X","X","X",null,null,null,null,"X","X","X","X","X","X",null,"X","X",null,null,null,null,null,null,null,null,"X","X","X","X",null,null,null,null,"X",null,null,null,null,"X",null,null,null,null,null,null,null,null,null,null,null,"X","X",null,null,null,null,null,null,null,null,null,null,null,null,null,null,null,null,null,null,null,null,null,"X",null,"X","X"," ",null,null,null,null,null,null,null,null,null,null,null,null,null,null,null,null,null,null,null,null,null,null,null,null,null,null,null,null,null,null,null,null,null,null,null,null,null,null,null,null,null,null,null,null,null,null,null,null,null,null,null,null,null,null,null,null,null,null,"X",null,"X","X"]
[null,"ANTIOQUIA","PEQUE",5543,"4",4,"X",null,"X","X","X","x","x","x","x","x","x","x","x","X","X","x",null,"x",null,"x","x","x","x","x",null,null,null,null,null,null,null,null,null,null,"X",null,null,"X","X",null,null,null,null,null,null,null,null,null,null,null,null,null,null,null,null," "," "," "," ",null,null,null,null,null,null," "," "," "," ","X"," "," "," "," ",null,null,null,null," "," ","X","X","X","X",null,"X","X",null,null,null,null,null,null,null,null,"X","X","X","X",null,null,null,null,"X",null,null,null,null,"X",null,null,null,null,null,null,null,null,null,null,null,"X","X",null,null,null,null,null,null,null,null,null,null,"X",null,null,null,null,null,null,null,null,null,null,"X",null,"X","X","X",null,null,null,null,"X","X",null,null,null,null,null,null,null,null,null,null,null,null,null,null,null,null,null,null,null,null,null,null,null,null,null,null,null,null,null,null,null,null,null,null,null,null,null,null,null,null,null,null,null,null,null,null,null,null,null,null,null,null,"X",null,"X","X"]
[null,"ANTIOQUIA","PUEBLORRICO",5576,"4",4,"X",null,"X","X","X","x","x","x","x","x","x","x","x","X","X","x",null,"x",null,"x","x","x","x","x",null,null,null,null,null,null,null,null,null,null,"X",null,null,"X","X",null,null,null,null,null,null,null,null,null,null,null,null,null,null,null,null," "," "," "," ",null,null,null,null,null,null," "," "," "," ","X"," "," "," "," ",null,null,null,null," "," ","X","X","X","X",null,"X","X",null,null,null,null,null,null,null,null,"X","X","X","X",null,null,null,null,"X",null,null,null,null,"X",null,null,null,null,null,null,null,null,null,null,null,"X","X",null,null,null,null,null,null,null,null,null,null,"X",null,null,null,null,null,null,null,null,null,null,"X",null,"X","X"," ",null,null,null,null,"X","X",null,null,null,null,null,null,null,null,null,null,null,null,null,null,null,null,null,null,null,null,null,null,null,null,null,null,null,null,null,null,null,null,null,null,null,null,null,null,null,null,null,null,null,null,null,null,null,null,null,null,null,null,"X",null,"X","X"]
[null,"ANTIOQUIA","PUERTO BERRIO",5579,"3",3,"X",null,"X","X","X","x","x","x","x","x","x","x","x","X","X","x",null,"x",null,"x","x","x","x","x",null,null,null,null,null,null,null,"X","X",null,"X","X","X","X","X",null,null,null,null,null,null,null,null,null,null,null,null,null,null,null,null,"X","X","X","X","X",null,null,null,null,null,"X","X","X","X","X","X","X","X","X",null,null,null,null,"X","X","X","X","X","X","X","X","X","X",null,null,"X","X","X","X",null,"X","X","X","X",null,null,null,null,"X",null,null,null,null,"X",null,null,null,null,null,null,null,null,null,null,null,"X","X",null,null,null,null,null,null,null,null,null,null,"X",null,null,null,null,null,null,null,null,null,null,"X",null,"X","X","X",null,null,null,null,"X","X","X","X","X","X",null,null,null,null,null,"X","X","X","X",null,null,null,null,null,null,null,null,null,null,null,null,null,null,null,null,null,null,null,null,null,null,null,null,null,null,null,null,null,null,null,null,null,null,null,null,null,null,null,"X",null,"X","X"]
[null,"ANTIOQUIA","PUERTO NARE",5585,"3",3,"X",null,"X","X","X","x","x","x","x","x","x","x","x","X","X","x",null,"x",null,"x","x","x","x","x",null,null,null,null,null,null,null,null,null,null,"X",null,null,"X","X",null,null,null,null,null,null,null,null,null,null,null,null,null,null,null,null," "," "," "," ","",null,null,null,null,null," "," "," "," ","X"," "," "," "," ",null,null,null,null," "," ","X","X","X","X",null,"X","X",null,null,null,null,null,null,null,null,"X","X","X","X",null,null,null,null,"X",null,null,null,null,"X",null,null,null,null,null,null,null,null,null,null,null,"X","X",null,null,null,null,null,null,null,null,null,null,null,null,null,null,null,null,null,null,null,null,null,"X",null,"X","X"," ",null,null,null,null,null,null,null,null,null,null,null,null,null,null,null,null,null,null,null,null,null,null,null,null,null,null,null,null,null,null,null,null,null,null,null,null,null,null,null,null,null,null,null,null,null,null,null,null,null,null,null,null,null,null,null,null,null,null,"X",null,"X","X"]
[null,"ANTIOQUIA","PUERTO TRIUNFO",5591,"4",4,"X",null,"X","X","X","x","x","x","x","x","x","x","x","X","X","x",null,"x",null,"x","x","x","x","x",null,null,null,null,null,null,null,null,null,null,"X",null,null,"X","X",null,null,null,null,null,null,null,null,null,null,null,null,null,null,null,null," "," "," "," ",null,null,null,null,null,null," "," "," "," ","X"," "," "," "," ",null,null,null,null," "," ","X","X","X","X",null,"X","X",null,null,null,null,null,null,null,null,"X","X","X","X",null,null,null,null,"X",null,null,null,null,"X",null,null,null,null,null,null,null,null,null,null,null,"X","X",null,null,null,null,null,null,null,null,null,null,"X",null,null,null,null,null,null,null,null,null,null,"X",null,"X","X","X",null,null,null,null,"X","X",null,null,null,null,null,null,null,null,null,null,null,null,null,null,null,null,null,null,null,null,null,null,null,null,null,null,null,null,null,null,null,null,null,null,null,null,null,null,null,null,null,null,null,null,null,null,null,null,null,null,null,null,"X",null,"X","X"]
[null,"ANTIOQUIA","REMEDIOS",5604,"4",4,"X",null,"X","X","X","x","x","x","x","x","x","x",null,"X","X","x",null,"x",null,null,"x","x","x","x",null,null,null,null,null,null,null,null,null,null,"X",null,null,"X","X",null,null,null,null,null,null,null,null,null,null,null,null,null,null,null,null," "," "," "," ",null,null,null,null,null,null," "," "," "," ","X"," "," "," "," ",null,null,null,null," "," ","X","X","X","X",null,"X","X",null,null,null,null,null,null,null,null,"X","X","X","X",null,null,null,null,"X",null,null,null,null,"X",null,null,null,null,null,null,null,null,null,null,null,"X","X",null,null,null,null,null,null,null,null,null,null,"X",null,null,null,null,null,null,null,null,null,null,"X",null,"X","X","X",null,null,null,null,"X","X",null,null,null,null,null,null,null,null,null,null,null,null,null,null,null,null,null,null,null,null,null,null,null,null,null,null,null,null,null,null,null,null,null,null,null,null,null,null,null,null,null,null,null,null,null,null,null,null,null,null,null,null,"X",null,"X","X"]
[null,"ANTIOQUIA","RETIRO",5607,"3",3,"X",null,"X","X","X","x","x","x","x","x","x","x",null,"X","X","x",null,"x",null,null,"x","x","x","x",null,null,null,null,null,null,null,null,null,null,"X","X",null,"X","X",null,null,null,null,null,null,null,null,null,null,null,null,null,null,null,null,"X","X","X","X","X",null,null,null,null,null,"X","X","X","X","X","X","X","X","X",null,null,null,null,"X","X","X","X","X","X",null,"X","X",null,null,null,null,null,null,null,"X","X","X","X","X",null,null,null,null,"X",null,null,null,null,"X",null,null,null,null,null,null,null,null,null,"X",null,"X","X",null,null,null,null,null,null,null,null,null,null,"X",null,null,null,null,null,null,null,null,null,null,"X",null,"X","X","X",null,null,null,null,"X","X",null,null,null,null,null,null,null,null,null,null,null,null,null,null,null,null,null,null,null,null,null,null,null,null,null,null,null,null,null,null,null,null,null,null,null,null,null,null,null,null,null,null,null,null,null,null,null,null,null,null,null,null,"X",null,"X","X"]
[null,"ANTIOQUIA","RIONEGRO",5615,"Otros",4,"X","X","X","X","X","x","x","x","x","x","x","x","x","X","X","x",null,"x",null,"x","x","x","x","x",null,null,null,null,null,null,null,"X","X",null,"X","X","X","X","X",null,null,null,null,null,null,null,null,null,null,null,null,null,null,null,null,"X","X","X","X","X","X",null,null,null,null,"X","X","X","X","X","X","X","X","X",null,null,null,null,"X","X","X","X","X","X","X","X","X","X",null,null,"X","X","X","X","X","X","X","X","X",null,null,null,null,"X",null,"X","X","X","X",null,null,null,null,null,"X","X","X","X","X","X","X","X","X",null,null,null,null,null,null,"X","X","X","X",null,null,"X",null,null,null,"X","X","X","X","X",null,"X","X"," ",null,null,null,null,"X","X","X","X","X","X",null,null,null,null,null,"X","X","X","X",null,null,null,null,null,null,null,null,null,null,null,"X","X","X","X",null,null,"X",null,null,null,null,null,null,null,null,null,null,null,null,null,null,null,null,null,null,null,null,null,"X",null,"X","X"]
[null,"ANTIOQUIA","SABANALARGA",5628,"4",3,"X",null,"X","X","X","x","x","x","x","x","x","x","x","X","X","x",null,"x",null,"x","x","x","x","x",null,null,null,null,null,null,null,null,null,null,"X",null,null,"X","X",null,null,null,null,null,null,null,null,null,null,null,null,null,null,null,null," "," "," "," ",null,null,null,null,null,null," "," "," "," ","X"," "," "," "," ",null,null,null,null," "," ","X","X","X","X",null,"X","X",null,null,null,null,null,null,null,null,"X","X","X","X",null,null,null,null,"X",null,null,null,null,"X",null,null,null,null,null,null,null,null,null,"X",null,"X","X",null,null,null,null,null,null,null,null,null,null,"X",null,null,null,null,null,null,null,null,null,null,"X",null,"X","X","X",null,null,null,null,"X","X",null,null,null,null,null,null,null,null,null,null,null,null,null,null,null,null,null,null,null,null,null,null,null,null,null,null,null,null,null,null,"X",null,null,null,null,null,null,null,null,null,null,null,null,null,null,null,null,null,null,null,null,null,"X",null,"X","X"]
[null,"ANTIOQUIA","SABANETA",5631,"Otros",3,"X","X","X","X","X","x","x","x","x","x","x",null,"x","X","X",null,null,null,null,"x","x","x","x","x",null,null,null,null,null,null,null,"X","X",null,"X","X","X","X","X",null,null,null,null,null,null,null,null,null,null,null,null,null,null,null,null,"X","X","X","X","X","X",null,null,null,null,"X","X","X","X","X","X","X","X","X",null,null,null,null,"X","X","X","X","X","X","X","X","X","X",null,null,"X","X","X","X","X","X","X","X","X",null,null,null,null,"X",null,"X","X","X","X",null,null,null,null,null,"X","X","X","X","X","X","X","X","X",null,null,null,null,null,null,"X","X","X","X",null,null,"X",null,null,null,"X","X","X","X","X",null,"X","X","X",null,null,null,null,"X","X","X","X","X","X",null,null,null,null,null,"X","X","X","X",null,null,null,null,null,null,null,null,null,null,null,"X","X","X","X",null,null,"X",null,null,null,null,null,null,null,null,null,null,null,null,null,null,null,null,null,null,null,null,null,"X",null,"X","X"]
[null,"ANTIOQUIA","SALGAR",5642,"Otros",3,"X",null,"X","X","X","x","x","x","x","x",null,null,"x","X","X",null,null,null,null,"x","x","x","x","x",null,null,null,null,null,null,null,"X","X",null,"X","X","X","X","X",null,null,null,null,null,null,null,null,null,null,null,null,null,null,null,null,"X","X","X","X","X","X",null,null,null,null,"X","X","X","X","X","X","X","X","X",null,null,null,null,"X","X","X","X","X","X",null,"X","X",null,null,null,null,null,null,null,null,"X","X","X","X",null,null,null,null,"X",null,null,null,null,"X",null,null,null,null,null,null,null,null,null,null,null,"X","X",null,null,null,null,null,null,null,null,null,null,"X",null,null,null,null,null,null,null,null,null,null,"X",null,"X","X","X",null,null,null,null,"X","X",null,null,null,null,null,null,null,null,null,null,null,null,null,null,null,null,null,null,null,null,null,null,null,null,null,null,null,null,null,null,null,null,null,null,null,null,null,null,null,null,null,null,null,null,null,null,null,null,null,null,null,null,null,null,null,"X"]
[null,"ANTIOQUIA","SAN ANDRES DE CUERQUIA",5647,"4",4,"X",null,"X","X",null,"x","x","x","x","x","x","x",null,"X","X","x",null,"x",null,null,"x","x","x","x",null,null,null,null,null,null,null,null,null,null,"X",null,null,"X","X",null,null,null,null,null,null,null,null,null,null,null,null,null,null,null,null," "," "," "," ",null,null,null,null,null,null," "," "," "," ","X"," "," "," "," ",null,null,null,null," "," ","X","X","X","X",null,"X","X",null,null,null,null,null,null,null,null,"X","X","X","X",null,null,null,null,"X",null,null,null,null,"X",null,null,null,null,null,null,null,null,null,null,null,"X","X",null,null,null,null,null,null,null,null,null,null,null,null,null,null,null,null,null,null,null,null,null,"X",null,"X","X"," ",null,null,null,null,null,null,null,null,null,null,null,null,null,null,null,null,null,null,null,null,null,null,null,null,null,null,null,null,null,null,null,null,null,null,null,null,null,null,null,null,null,null,null,null,null,null,null,null,null,null,null,null,null,null,null,null,null,null,"X",null,"X","X"]
[null,"ANTIOQUIA","SAN CARLOS",5649,"4",4,"X",null,"X","X","X","x","x","x","x","x","x","x","x","X","X","x",null,"x",null,"x","x","x","x","x",null,null,null,null,null,null,null,null,null,null,"X",null,null,"X","X",null,null,null,null,null,null,null,null,null,null,null,null,null,null,null,null," "," "," "," ",null,null,null,null,null,null," "," "," "," ","X"," "," "," "," ",null,null,null,null," "," ","X","X","X","X",null,"X","X",null,null,null,null,null,null,null,null,"X","X","X","X",null,null,null,null,"X",null,null,null,null,"X",null,null,null,null,null,null,null,null,null,null,null,"X","X",null,null,null,null,null,null,null,null,null,null,"X",null,null,null,null,null,null,null,null,null,null,"X",null,"X","X"," ",null,null,null,null,"X","X",null,null,null,null,null,null,null,null,null,null,null,null,null,null,null,null,null,null,null,null,null,null,null,null,null,null,null,null,null,null,null,null,null,null,null,null,null,null,null,null,null,null,null,null,null,null,null,null,null,null,null,null,"X",null,"X","X"]
[null,"ANTIOQUIA","SAN FRANCISCO",5652,"Otros",4,"X",null,"X","X","X","x","x","x","x","x",null,null,"x","X","X",null,null,null,null,"x","x","x","x","x",null,null,null,null,null,null,null,null,null,null,"X",null,null,"X","X",null,null,null,null,null,null,null,null,null,null,null,null,null,null,null,null," "," "," "," ","",null,null,null,null,null," "," "," "," ","X"," "," "," "," ",null,null,null,null," "," ","X","X","X","X",null,"X","X",null,null,null,null,null,null,null,null,"X","X","X","X",null,null,null,null,"X",null,null,null,null,"X",null,null,null,null,null,null,null,null,null,null,null,"X","X",null,null,null,null,null,null,null,null,null,null,"X",null,null,null,null,null,null,null,null,null,null,"X",null,"X","X"," ",null,null,null,null,"X","X",null,null,null,null,null,null,null,null,null,null,null,null,null,null,null,null,null,null,null,null,null,null,null,null,null,null,null,null,null,null,null,null,null,null,null,null,null,null,null,null,null,null,null,null,null,null,null,null,null,null,null,null,null,null,null,"X"]
[null,"ANTIOQUIA","SAN JERONIMO",5656,"4",4,"X",null,"X","X","X","x","x","x","x","x","x","x","x","X","X","x",null,"x",null,"x","x","x","x","x",null,null,null,null,null,null,null,null,null,null,"X",null,null,"X","X",null,null,null,null,null,null,null,null,null,null,null,null,null,null,null,null," "," "," "," ",null,null,null,null,null,null," "," "," "," ","X"," "," "," "," ",null,null,null,null," "," ","X","X","X","X",null,"X","X",null,null,null,null,null,null,null,null,"X","X","X","X",null,null,null,null,"X",null,null,null,null,"X",null,null,null,null,null,null,null,null,null,"X",null,"X","X",null,null,null,null,null,null,null,null,null,null,"X",null,null,null,null,null,null,null,null,null,null,"X",null,"X","X","X",null,null,null,null,"X","X",null,null,null,null,null,null,null,null,null,null,null,null,null,null,null,null,null,null,null,null,null,null,null,null,null,null,null,null,null,null,null,null,null,null,null,null,null,null,null,null,null,null,null,null,null,null,null,null,null,null,null,null,"X",null,"X","X"]
[null,"ANTIOQUIA","SAN JOSE DE LA MONTAÑA",5658,"4",4,"X",null,"X","X","X","x","x","x","x","x","x","x",null,"X","X","x",null,"x",null,null,"x","x","x","x",null,null,null,null,null,null,null,null,null,null,"X",null,null,"X","X",null,null,null,null,null,null,null,null,null,null,null,null,null,null,null,null," "," "," "," ",null,null,null,null,null,null," "," "," "," ","X"," "," "," "," ",null,null,null,null," "," ","X","X","X","X",null,"X","X",null,null,null,null,null,null,null,null,"X","X","X","X",null,null,null,null,"X",null,null,null,null,"X",null,null,null,null,null,null,null,null,null,null,null,"X","X",null,null,null,null,null,null,null,null,null,null,"X",null,null,null,null,null,null,null,null,null,null,"X",null,"X","X"," ",null,null,null,null,"X","X",null,null,null,null,null,null,null,null,null,null,null,null,null,null,null,null,null,null,null,null,null,null,null,null,null,null,null,null,null,null,null,null,null,null,null,null,null,null,null,null,null,null,null,null,null,null,null,null,null,null,null,null,"X",null,"X","X"]
[null,"ANTIOQUIA","SAN JUAN DE URABA",5659,"Otros",4,"X",null,"X","X","X","x","x","x","x","x",null,null,"x","X","X",null,null,null,null,"x","x","x","x","x",null,null,null,null,null,null,null,null,null,null,"X",null,null,"X","X",null,null,null,null,null,null,null,null,null,null,null,null,null,null,null,null," "," "," "," ","",null,null,null,null,null," "," "," "," ","X"," "," "," "," ",null,null,null,null," "," ","X","X","X","X",null,"X","X",null,null,null,null,null,null,null,null,"X","X","X","X",null,null,null,null,"X",null,null,null,null,"X",null,null,null,null,null,null,null,null,null,null,null,"X","X",null,null,null,null,null,null,null,null,null,null,null,null,null,null,null,null,null,null,null,null,null,"X",null,"X","X","X",null,null,null,null,null,null,null,null,null,null,null,null,null,null,null,null,null,null,null,null,null,null,null,null,null,null,null,null,null,null,null,null,null,null,null,null,null,null,null,null,null,null,null,null,null,null,null,null,null,null,null,null,null,null,null,null,null,null,null,null,null,"X"]
[null,"ANTIOQUIA","SAN LUIS",5660,"4",4,"X",null,"X","X","X","x","x","x","x","x","x","x","x","X","X","x",null,"x",null,"x","x","x","x","x",null,null,null,null,null,null,null,null,null,null,"X",null,null,"X","X",null,null,null,null,null,null,null,null,null,null,null,null,null,null,null,null," "," "," "," ",null,null,null,null,null,null," "," "," "," ","X"," "," "," "," ",null,null,null,null," "," ","X","X","X","X",null,"X","X",null,null,null,null,null,null,null,null,"X","X","X","X",null,null,null,null,"X",null,null,null,null,"X",null,null,null,null,null,null,null,null,null,null,null,"X","X",null,null,null,null,null,null,null,null,null,null,"X",null,null,null,null,null,null,null,null,null,null,"X",null,"X","X"," ",null,null,null,null,"X","X",null,null,null,null,null,null,null,null,null,null,null,null,null,null,null,null,null,null,null,null,null,null,null,null,null,null,null,null,null,null,null,null,null,null,null,null,null,null,null,null,null,null,null,null,null,null,null,null,null,null,null,null,"X",null,"X","X"]
[null,"ANTIOQUIA","SAN PEDRO",5664,"4",3,"X",null,"X","X","X","x","x","x","x","x","x","x","x","X","X","x",null,"x",null,"x","x","x","x","x",null,null,null,null,null,null,null,null,null,null,"X",null,null,"X","X",null,null,null,null,null,null,null,null,null,null,null,null,null,null,null,null,"X","X","X","X",null,null,null,null,null,null,"X","X","X","X","X","X","X","X","X",null,null,null,null,"X","X","X","X","X","X","X","X","X","X",null,null,"X","X","X","X",null,"X","X","X","X",null,null,null,null,"X",null,null,null,null,"X",null,null,null,null,null,null,null,null,null,"X",null,"X","X",null,null,null,null,null,null,null,null,null,null,"X",null,null,null,null,null,null,null,null,null,null,"X",null,"X","X"," ",null,null,null,null,"X","X",null,null,null,null,null,null,null,null,null,null,null,null,null,null,null,null,null,null,null,null,null,null,null,null,null,null,null,null,null,null,null,null,null,null,null,null,null,null,null,null,null,null,null,null,null,null,null,null,null,null,null,null,"X",null,"X","X"]
[null,"ANTIOQUIA","SAN PEDRO DE URABA",5665,"4",4,"X",null,"X","X","X","x","x","x","x","x","x","x","x","X","X","x",null,"x",null,"x","x","x","x","x",null,null,null,null,null,null,null,null,null,null,"X",null,null,"X","X",null,null,null,null,null,null,null,null,null,null,null,null,null,null,null,null," "," "," "," ",null,null,null,null,null,null," "," "," "," ","X"," "," "," "," ",null,null,null,null," "," ","X","X","X","X",null,"X","X",null,null,null,null,null,null,null,null,"X","X","X","X",null,null,null,null,"X",null,null,null,null,"X",null,null,null,null,null,null,null,null,null,null,null,"X","X",null,null,null,null,null,null,null,null,null,null,"X",null,null,null,null,null,null,null,null,null,null,"X",null,"X","X","X",null,null,null,null,"X","X",null,null,null,null,null,null,null,null,null,null,null,null,null,null,null,null,null,null,null,null,null,null,null,null,null,null,null,null,null,null,null,null,null,null,null,null,null,null,null,null,null,null,null,null,null,null,null,null,null,null,null,null,"X",null,"X","X"]
[null,"ANTIOQUIA","SAN RAFAEL",5667,"4",4,"X",null,"X","X","X","x","x","x","x","x","x","x",null,"X","X","x",null,"x",null,null,"x","x","x","x",null,null,null,null,null,null,null,null,null,null,"X",null,null,"X","X",null,null,null,null,null,null,null,null,null,null,null,null,null,null,null,null," "," "," "," ",null,null,null,null,null,null," "," "," "," ","X"," "," "," "," ",null,null,null,null," "," ","X","X","X","X",null,"X","X",null,null,null,null,null,null,null,null,"X","X","X","X",null,null,null,null,"X",null,null,null,null,"X",null,null,null,null,null,null,null,null,null,null,null,"X","X",null,null,null,null,null,null,null,null,null,null,"X",null,null,null,null,null,null,null,null,null,null,"X",null,"X","X","X",null,null,null,null,"X","X",null,null,null,null,null,null,null,null,null,null,null,null,null,null,null,null,null,null,null,null,null,null,null,null,null,null,null,null,null,null,null,null,null,null,null,null,null,null,null,null,null,null,null,null,null,null,null,null,null,null,null,null,"X",null,"X","X"]
[null,"ANTIOQUIA","SAN ROQUE",5670,"4",4,"X",null,"X","X","X","x","x","x","x","x","x","x",null,"X","X","x",null,"x",null,null,"x","x","x","x",null,null,null,null,null,null,null,null,null,null,"X",null,null,"X","X",null,null,null,null,null,null,null,null,null,null,null,null,null,null,null,null," "," "," "," ",null,null,null,null,null,null," "," "," "," ","X"," "," "," "," ",null,null,null,null," "," ","X","X","X","X",null,"X","X",null,null,null,null,null,null,null,null,"X","X","X","X",null,null,null,null,"X",null,null,null,null,"X",null,null,null,null,null,null,null,null,null,null,null,"X","X",null,null,null,null,null,null,null,null,null,null,"X",null,null,null,null,null,null,null,null,null,null,"X",null,"X","X","X",null,null,null,null,"X","X",null,null,null,null,null,null,null,null,null,null,null,null,null,null,null,null,null,null,null,null,null,null,null,null,null,null,null,null,null,null,null,null,null,null,null,null,null,null,null,null,null,null,null,null,null,null,null,null,null,null,null,null,"X",null,"X","X"]
[null,"ANTIOQUIA","SAN VICENTE",5674,"4",3,"X",null,"X","X","X","x","x","x","x","x","x","x","x","X","X","x",null,"x",null,"x","x","x","x","x",null,null,null,null,null,null,null,null,null,null,"X",null,null,"X","X",null,null,null,null,null,null,null,null,null,null,null,null,null,null,null,null," "," "," "," ",null,null,null,null,null,null," "," "," "," ","X"," "," "," "," ",null,null,null,null," "," ","X","X","X","X",null,"X","X",null,null,null,null,null,null,null,null,"X","X","X","X",null,null,null,null,"X",null,null,null,null,"X",null,null,null,null,null,null,null,null,null,null,null,"X","X",null,null,null,null,null,null,null,null,null,null,"X",null,null,null,null,null,null,null,null,null,null,"X",null,"X","X"," ",null,null,null,null,"X","X",null,null,null,null,null,null,null,null,null,null,null,null,null,null,null,null,null,null,null,null,null,null,null,null,null,null,null,null,null,null,null,null,null,null,null,null,null,null,null,null,null,null,null,null,null,null,null,null,null,null,null,null,"X",null,"X","X"]
[null,"ANTIOQUIA","SANTA BARBARA",5679,"Otros",4,"X",null,"X","X","X","x","x","x","x","x",null,null,"x","X","X",null,null,null,null,"x","x","x","x","x",null,null,null,null,null,null,null,"X","X",null,"X","X","X","X","X",null,null,null,null,null,null,null,null,null,null,null,null,null,null,null,null,"X","X","X","X","X","X",null,null,null,null,"X","X","X","X","X","X","X","X","X",null,null,null,null,"X","X","X","X","X","X",null,"X","X",null,null,null,null,null,null,null,null,"X","X","X","X",null,null,null,null,"X",null,null,null,null,"X",null,null,null,null,null,null,null,null,null,null,null,"X","X",null,null,null,null,null,null,null,null,null,null,"X",null,null,null,null,null,null,null,null,null,null,"X",null,"X","X"," ",null,null,null,null,"X","X",null,null,null,null,null,null,null,null,null,null,null,null,null,null,null,null,null,null,null,null,null,null,null,null,null,null,null,null,null,null,null,null,null,null,null,null,null,null,null,null,null,null,null,null,null,null,null,null,null,null,null,null,null,null,null,"X"]
[null,"ANTIOQUIA","SANTA ROSA DE OSOS",5686,"3",3,"X",null,"X","X","X","x","x","x","x","x","x","x","x","X","X","x",null,"x",null,"x","x","x","x","x",null,null,null,null,null,null,null,null,null,null,"X",null,null,"X","X",null,null,null,null,null,null,null,null,null,null,null,null,null,null,null,null,"X","X","X","X","X",null,null,null,null,null,"X","X","X","X","X","X","X","X","X",null,null,null,null,"X","X","X","X","X","X","X","X","X","X",null,null,"X","X","X","X",null,"X","X","X","X",null,null,null,null,"X",null,null,null,null,"X",null,null,null,null,null,null,null,null,null,null,null,"X","X",null,null,null,null,null,null,null,null,null,null,"X",null,null,null,null,null,null,null,null,null,null,"X",null,"X","X","X",null,null,null,null,"X","X",null,null,null,null,null,null,null,null,null,null,null,null,null,null,null,null,null,null,null,null,null,null,null,null,null,null,null,null,null,null,null,null,null,null,null,null,null,null,null,null,null,null,null,null,null,null,null,null,null,null,null,null,"X",null,"X","X"]
[null,"ANTIOQUIA","SANTO DOMINGO",5690,"4",4,"X",null,"X","X","X","x","x","x","x","x","x","x",null,"X","X","x",null,"x",null,null,"x","x","x","x",null,null,null,null,null,null,null,null,null,null,"X",null,null,"X","X",null,null,null,null,null,null,null,null,null,null,null,null,null,null,null,null," "," "," "," ",null,null,null,null,null,null," "," "," "," ","X"," "," "," "," ",null,null,null,null," "," ","X","X","X","X",null,"X","X",null,null,null,null,null,null,null,null,"X","X","X","X",null,null,null,null,"X",null,null,null,null,"X",null,null,null,null,null,null,null,null,null,null,null,"X","X",null,null,null,null,null,null,null,null,null,null,"X",null,null,null,null,null,null,null,null,null,null,"X",null,"X","X","X",null,null,null,null,"X","X",null,null,null,null,null,null,null,null,null,null,null,null,null,null,null,null,null,null,null,null,null,null,null,null,null,null,null,null,null,null,null,null,null,null,null,null,null,null,null,null,null,null,null,null,null,null,null,null,null,null,null,null,"X",null,"X","X"]
[null,"ANTIOQUIA","EL SANTUARIO",5697,"4",4,"X",null,"X","X","X","x","x","x","x","x","x","x",null,"X","X","x",null,"x",null,null,"x","x","x","x",null,null,null,null,null,null,null,"X","X",null,"X","X","X","X","X",null,null,null,null,null,null,null,null,null,null,null,null,null,null,null,null,"X","X","X","X",null,null,null,null,null,null,"X","X","X","X","X","X","X","X","X",null,null,null,null,"X","X","X","X","X","X","X","X","X","X",null,null,"X","X","X","X",null,"X","X","X","X",null,null,null,null,"X",null,null,null,null,"X",null,null,null,null,null,null,null,null,null,null,null,"X","X",null,null,null,null,null,null,null,null,null,null,"X",null,null,null,null,null,null,null,null,null,null,"X",null,"X","X"," ",null,null,null,null,"X","X",null,null,null,null,null,null,null,null,null,null,null,null,null,null,null,null,null,null,null,null,null,null,null,null,null,null,null,null,null,null,null,null,null,null,null,null,null,null,null,null,null,null,null,null,null,null,null,null,null,null,null,null,"X",null,"X","X"]
[null,"ANTIOQUIA","SEGOVIA",5736,"3",3,"X",null,"X","X","X","x","x","x","x","x","x","x","x","X","X","x",null,"x",null,"x","x","x","x","x",null,null,null,null,null,null,null,null,null,null,"X",null,null,"X","X",null,null,null,null,null,null,null,null,null,null,null,null,null,null,null,null," "," "," "," ","",null,null,null,null,null," "," "," "," ","X"," "," "," "," ",null,null,null,null," "," ","X","X","X","X",null,"X","X",null,null,null,null,null,null,null,null,"X","X","X","X",null,null,null,null,"X",null,null,null,null,"X",null,null,null,null,null,null,null,null,null,null,null,"X","X",null,null,null,null,null,null,null,null,null,null,"X",null,null,null,null,null,null,null,null,null,null,"X",null,"X","X","X",null,null,null,null,"X","X",null,null,null,null,null,null,null,null,null,null,null,null,null,null,null,null,null,null,null,null,null,null,null,null,null,null,null,null,null,null,null,null,null,null,null,null,null,null,null,null,null,null,null,null,null,null,null,null,null,null,null,null,"X",null,"X","X"]
[null,"ANTIOQUIA","SONSON",5756,"3",3,"X",null,"X","X","X","x","x","x","x","x","x","x","x","X","X","x",null,"x",null,"x","x","x","x","x",null,null,null,null,null,null,null,"X","X",null,"X","X","X","X","X",null,null,null,null,null,null,null,null,null,null,null,null,null,null,null,null,"X","X","X","X","X",null,null,null,null,null,"X","X","X","X","X","X","X","X","X",null,null,null,null,"X","X","X","X","X","X",null,"X","X",null,null,null,null,null,null,null,null,"X","X","X","X",null,null,null,null,"X",null,null,null,null,"X",null,null,null,null,null,null,null,null,null,null,null,"X","X",null,null,null,null,null,null,null,null,null,null,"X",null,null,null,null,null,null,null,null,null,null,"X",null,"X","X","X",null,null,null,null,"X","X",null,null,null,null,null,null,null,null,null,null,null,null,null,null,null,null,null,null,null,null,null,null,null,null,null,null,null,null,null,null,null,null,null,null,null,null,null,null,null,null,null,null,null,null,null,null,null,null,null,null,null,null,"X",null,"X","X"]
[null,"ANTIOQUIA","SOPETRAN",5761,"4",4,"X",null,"X","X","X","x","x","x","x","x","x","x","x","X","X","x",null,"x",null,"x","x","x","x","x",null,null,null,null,null,null,null,null,null,null,"X",null,null,"X","X",null,null,null,null,null,null,null,null,null,null,null,null,null,null,null,null," "," "," "," ",null,null,null,null,null,null," "," "," "," ","X"," "," "," "," ",null,null,null,null," "," ","X","X","X","X",null,"X","X",null,null,null,null,null,null,null,null,"X","X","X","X",null,null,null,null,"X",null,null,null,null,"X",null,null,null,null,null,null,null,null,null,null,null,"X","X",null,null,null,null,null,null,null,null,null,null,"X",null,null,null,null,null,null,null,null,null,null,"X",null,"X","X","X",null,null,null,null,"X","X",null,null,null,null,null,null,null,null,null,null,null,null,null,null,null,null,null,null,null,null,null,null,null,null,null,null,null,null,null,null,null,null,null,null,null,null,null,null,null,null,null,null,null,null,null,null,null,null,null,null,null,null,"X",null,"X","X"]
[null,"ANTIOQUIA","TAMESIS",5789,"Otros",4,"X",null,"X","X","X","x","x","x","x","x","x","x","x","X","X","x",null,"x",null,"x","x","x","x","x",null,null,null,null,null,null,null,"X","X",null,"X","X","X","X","X",null,null,null,null,null,null,null,null,null,null,null,null,null,null,null,null," "," "," "," ","",null,null,null,null,null," "," "," "," ","X"," "," "," "," ",null,null,null,null," "," ","X","X","X","X",null,"X","X",null,null,null,null,null,null,null,null,"X","X","X","X",null,null,null,null,"X",null,null,null,null,"X",null,null,null,null,null,null,null,null,null,null,null,"X","X",null,null,null,null,null,null,null,null,null,null,"X",null,null,null,null,null,null,null,null,null,null,"X",null,"X","X","X",null,null,null,null,"X","X",null,null,null,null,null,null,null,null,null,null,null,null,null,null,null,null,null,null,null,null,null,null,null,null,null,null,null,null,null,null,null,null,null,null,null,null,null,null,null,null,null,null,null,null,null,null,null,null,null,null,null,null,"X",null,"X","X"]
[null,"ANTIOQUIA","TARAZA",5790,"4",4,"X",null,"X","X","X","x","x","x","x","x","x","x","x","X","X","x",null,"x",null,"x","x","x","x","x",null,null,null,null,null,null,null,null,null,null,"X",null,null,"X","X",null,null,null,null,null,null,null,null,null,null,null,null,null,null,null,null," "," "," "," ",null,null,null,null,null,null," "," "," "," ","X"," "," "," "," ",null,null,null,null," "," ","X","X","X","X",null,"X","X",null,null,null,null,null,null,null,null,"X","X","X","X",null,null,null,null,"X",null,null,null,null,"X",null,null,null,null,null,null,null,null,null,null,null,"X","X",null,null,null,null,null,null,null,null,null,null,"X",null,null,null,null,null,null,null,null,null,null,"X",null,"X","X","X",null,null,null,null,"X","X",null,null,null,null,null,null,null,null,null,null,null,null,null,null,null,null,null,null,null,null,null,null,null,null,null,null,null,null,null,null,null,null,null,null,null,null,null,null,null,null,null,null,null,null,null,null,null,null,null,null,null,null,"X",null,"X","X"]
[null,"ANTIOQUIA","TARSO",5792,"4",4,"X",null,"X","X",null,"x","x","x","x","x","x","x","x","X","X","x",null,"x",null,"x","x","x","x","x",null,null,null,null,null,null,null,null,null,null,"X",null,null,"X","X",null,null,null,null,null,null,null,null,null,null,null,null,null,null,null,null," "," "," "," ",null,null,null,null,null,null," "," "," "," ","X"," "," "," "," ",null,null,null,null," "," ","X","X","X","X",null,"X","X",null,null,null,null,null,null,null,null,"X","X","X","X",null,null,null,null,"X",null,null,null,null,"X",null,null,null,null,null,null,null,null,null,null,null,"X","X",null,null,null,null,null,null,null,null,null,null,"X",null,null,null,null,null,null,null,null,null,null,"X",null,"X","X","X",null,null,null,null,"X","X",null,null,null,null,null,null,null,null,null,null,null,null,null,null,null,null,null,null,null,null,null,null,null,null,null,null,null,null,null,null,null,null,null,null,null,null,null,null,null,null,null,null,null,null,null,null,null,null,null,null,null,null,"X",null,"X","X"]
[null,"ANTIOQUIA","TITIRIBI",5809,"4",4,"X",null,"X","X",null,"x","x","x","x","x","x","x",null,"X","X","x",null,"x",null,null,"x","x","x","x",null,null,null,null,null,null,null,null,null,null,"X",null,null,"X","X",null,null,null,null,null,null,null,null,null,null,null,null,null,null,null,null," "," "," "," ",null,null,null,null,null,null," "," "," "," ","X"," "," "," "," ",null,null,null,null," "," ","X","X","X","X",null,"X","X",null,null,null,null,null,null,null,null,"X","X","X","X",null,null,null,null,"X",null,null,null,null,"X",null,null,null,null,null,null,null,null,null,null,null,"X","X",null,null,null,null,null,null,null,null,null,null,"X",null,null,null,null,null,null,null,null,null,null,"X",null,"X","X","X",null,null,null,null,"X","X",null,null,null,null,null,null,null,null,null,null,null,null,null,null,null,null,null,null,null,null,null,null,null,null,null,null,null,null,null,null,null,null,null,null,null,null,null,null,null,null,null,null,null,null,null,null,null,null,null,null,null,null,"X",null,"X","X"]
[null,"ANTIOQUIA","TOLEDO",5819,"4",4,"X",null,"X","X","X","x","x","x","x","x","x","x","x","X","X","x",null,"x",null,"x","x","x","x","x",null,null,null,null,null,null,null,null,null,null,"X",null,null,"X","X",null,null,null,null,null,null,null,null,null,null,null,null,null,null,null,null," "," "," "," ",null,null,null,null,null,null," "," "," "," ","X"," "," "," "," ",null,null,null,null," "," ","X","X","X","X",null,"X","X",null,null,null,null,null,null,null,null,"X","X","X","X",null,null,null,null,"X",null,null,null,null,"X",null,null,null,null,null,null,null,null,null,null,null,"X","X",null,null,null,null,null,null,null,null,null,null,"X",null,null,null,null,null,null,null,null,null,null,"X",null,"X","X"," ",null,null,null,null,"X","X",null,null,null,null,null,null,null,null,null,null,null,null,null,null,null,null,null,null,null,null,null,null,null,null,null,null,null,null,null,null,null,null,null,null,null,null,null,null,null,null,null,null,null,null,null,null,null,null,null,null,null,null,"X",null,"X","X"]
[null,"ANTIOQUIA","TURBO",5837,"3",3,"X",null,"X","X","X","x","x","x","x","x","x","x","x","X","X","x",null,"x",null,"x","x","x","x","x",null,null,null,null,null,null,null,null,null,null,"X","X",null,"X","X",null,null,null,null,null,null,null,null,null,null,null,null,null,null,null,null,"X","X","X","X","X",null,null,null,null,null,"X","X","X","X","X","X","X","X","X",null,null,null,null,"X","X","X","X","X","X","X","X","X","X",null,null,"X","X","X","X",null,"X","X","X","X",null,null,null,null,"X",null,null,null,null,"X",null,null,null,null,null,null,null,null,null,"X",null,"X","X",null,null,null,null,null,null,null,null,null,null,"X",null,null,null,null,null,null,null,null,null,null,"X",null,"X","X","X",null,null,null,null,"X","X","X","X","X","X",null,null,null,null,null,"X","X","X","X",null,null,null,null,null,null,null,null,null,null,null,null,null,null,null,null,null,null,null,null,null,null,null,null,null,null,null,null,null,null,null,null,null,null,null,null,null,null,null,"X",null,"X","X"]
[null,"ANTIOQUIA","URAMITA",5842,"Otros",4,"X",null,"X","X","X","x","x","x","x","x",null,null,"x","X","X",null,null,null,null,"x","x","x","x","x",null,null,null,null,null,null,null,null,null,null,"X",null,null,"X","X",null,null,null,null,null,null,null,null,null,null,null,null,null,null,null,null," "," "," "," ","",null,null,null,null,null," "," "," "," ","X"," "," "," "," ",null,null,null,null," "," ","X","X","X","X",null,"X","X",null,null,null,null,null,null,null,null,"X","X","X","X",null,null,null,null,"X",null,null,null,null,"X",null,null,null,null,null,null,null,null,null,null,null,"X","X",null,null,null,null,null,null,null,null,null,null,null,null,null,null,null,null,null,null,null,null,null,"X",null,"X","X","X",null,null,null,null,null,null,null,null,null,null,null,null,null,null,null,null,null,null,null,null,null,null,null,null,null,null,null,null,null,null,null,null,null,null,null,null,null,null,null,null,null,null,null,null,null,null,null,null,null,null,null,null,null,null,null,null,null,null,null,null,null,"X"]
[null,"ANTIOQUIA","URRAO",5847,"Otros",3,"X",null,"X","X","X","x","x","x","x","x","x","x","x","X","X","x",null,"x",null,"x","x","x","x","x",null,null,null,null,null,null,null,null,null,null,"X",null,null,"X","X",null,null,null,null,null,null,null,null,null,null,null,null,null,null,null,null,"X","X","X","X","X","X",null,null,null,null,"X","X","X","X","X","X","X","X","X",null,null,null,null,"X","X","X","X","X","X",null,"X","X",null,null,null,null,null,null,null,null,"X","X","X","X",null,null,null,null,"X",null,null,null,null,"X",null,null,null,null,null,null,null,null,null,null,null,"X","X",null,null,null,null,null,null,null,null,null,null,"X",null,null,null,null,null,null,null,null,null,null,"X",null,"X","X","X",null,null,null,null,"X","X","X","X","X","X",null,null,null,null,null,"X","X","X","X",null,null,null,null,null,null,null,null,null,null,null,null,null,null,null,null,null,null,null,null,null,null,null,null,null,null,null,null,null,null,null,null,null,null,null,null,null,null,null,"X",null,"X","X"]
[null,"ANTIOQUIA","VALDIVIA",5854,"4",4,"X",null,"X","X","X","x","x","x","x","x","x","x","x","X","X","x",null,"x",null,"x","x","x","x","x",null,null,null,null,null,null,null,null,null,null,"X",null,null,"X","X",null,null,null,null,null,null,null,null,null,null,null,null,null,null,null,null," "," "," "," ",null,null,null,null,null,null," "," "," "," ","X"," "," "," "," ",null,null,null,null," "," ","X","X","X","X",null,"X","X",null,null,null,null,null,null,null,null,"X","X","X","X",null,null,null,null,"X",null,null,null,null,"X",null,null,null,null,null,null,null,null,null,null,null,"X","X",null,null,null,null,null,null,null,null,null,null,"X",null,null,null,null,null,null,null,null,null,null,"X",null,"X","X","X",null,null,null,null,"X","X",null,null,null,null,null,null,null,null,null,null,null,null,null,null,null,null,null,null,null,null,null,null,null,null,null,null,null,null,null,null,null,null,null,null,null,null,null,null,null,null,null,null,null,null,null,null,null,null,null,null,null,null,"X",null,"X","X"]
[null,"ANTIOQUIA","VALPARAISO",5856,"4",4,"X",null,"X","X",null,"x","x","x","x","x","x","x","x","X","X","x",null,"x",null,"x","x","x","x","x",null,null,null,null,null,null,null,null,null,null,"X",null,null,"X","X",null,null,null,null,null,null,null,null,null,null,null,null,null,null,null,null," "," "," "," ",null,null,null,null,null,null," "," "," "," ","X"," "," "," "," ",null,null,null,null," "," ","X","X","X","X",null,"X","X",null,null,null,null,null,null,null,null,"X","X","X","X",null,null,null,null,"X",null,null,null,null,"X",null,null,null,null,null,null,null,null,null,null,null,"X","X",null,null,null,null,null,null,null,null,null,null,"X",null,null,null,null,null,null,null,null,null,null,"X",null,"X","X"," ",null,null,null,null,"X","X",null,null,null,null,null,null,null,null,null,null,null,null,null,null,null,null,null,null,null,null,null,null,null,null,null,null,null,null,null,null,null,null,null,null,null,null,null,null,null,null,null,null,null,null,null,null,null,null,null,null,null,null,"X",null,"X","X"]
[null,"ANTIOQUIA","VEGACHI",5858,"4",4,"X",null,"X","X",null,"x","x","x","x","x","x","x",null,"X","X","x",null,"x",null,null,"x","x","x","x",null,null,null,null,null,null,null,null,null,null,"X",null,null,"X","X",null,null,null,null,null,null,null,null,null,null,null,null,null,null,null,null," "," "," "," ",null,null,null,null,null,null," "," "," "," ","X"," "," "," "," ",null,null,null,null," "," ","X","X","X","X",null,"X","X",null,null,null,null,null,null,null,null,"X","X","X","X",null,null,null,null,"X",null,null,null,null,"X",null,null,null,null,null,null,null,null,null,null,null,"X","X",null,null,null,null,null,null,null,null,null,null,"X",null,null,null,null,null,null,null,null,null,null,"X",null,"X","X","X",null,null,null,null,"X","X",null,null,null,null,null,null,null,null,null,null,null,null,null,null,null,null,null,null,null,null,null,null,null,null,null,null,null,null,null,null,null,null,null,null,null,null,null,null,null,null,null,null,null,null,null,null,null,null,null,null,null,null,"X",null,"X","X"]
[null,"ANTIOQUIA","VENECIA",5861,"Otros",4,"X",null,"X","X","X","x","x","x","x","x",null,null,"x","X","X",null,null,null,null,"x","x","x","x","x",null,null,null,null,null,null,null,"X","X",null,"X","X","X","X","X",null,null,null,null,null,null,null,null,null,null,null,null,null,null,null,null," "," "," "," ","",null,null,null,null,null," "," "," "," ","X"," "," "," "," ",null,null,null,null," "," ","X","X","X","X",null,"X","X",null,null,null,null,null,null,null,null,"X","X","X","X",null,null,null,null,"X",null,null,null,null,"X",null,null,null,null,null,null,null,null,null,null,null,"X","X",null,null,null,null,null,null,null,null,null,null,"X",null,null,null,null,null,null,null,null,null,null,"X",null,"X","X"," ",null,null,null,null,"X","X",null,null,null,null,null,null,null,null,null,null,null,null,null,null,null,null,null,null,null,null,null,null,null,null,null,null,null,null,null,null,null,null,null,null,null,null,null,null,null,null,null,null,null,null,null,null,null,null,null,null,null,null,null,null,null,"X"]
[null,"ANTIOQUIA","YONDO",5893,"4",4,"X",null,"X","X","X","x","x","x","x","x","x","x",null,"X","X","x",null,"x",null,null,"x","x","x","x",null,null,null,null,null,null,null,null,null,null,"X",null,null,"X","X",null,null,null,null,null,null,null,null,null,null,null,null,null,null,null,null," "," "," "," ",null,null,null,null,null,null," "," "," "," ","X"," "," "," "," ",null,null,null,null," "," ","X","X","X","X","X","X","X","X",null,null,"X","X","X","X",null,"X","X","X","X",null,null,null,null,"X",null,null,null,null,"X",null,null,null,null,null,null,null,null,null,null,null,"X","X",null,null,null,null,null,null,null,null,null,null,"X",null,null,null,null,null,null,null,null,null,null,"X",null,"X","X","X",null,null,null,null,"X","X",null,null,null,null,null,null,null,null,null,null,null,null,null,null,null,null,null,null,null,null,null,null,null,null,null,null,null,null,null,null,null,null,null,null,null,null,null,null,null,null,null,null,null,null,null,null,null,null,null,null,null,null,"X",null,"X","X"]
[null,"ATLANTICO","CANDELARIA",8141,"4",2,"X",null,"X","X","X","x","x","x","x","x",null,"x","x","X","X","x",null,"x",null,"x","x","x","x","x",null,null,null,null,null,null,null,null,null,null,null,null,null,null,null,null,null,null,null,null,null,null,null,null,null,null,null,null,null,null,null," "," "," "," ",null,null,null,null,null,null," "," "," "," ","X"," "," "," "," ",null,null,null,null," "," ","X","X","X","X",null,"X","X",null,null,null,null,null,null,null,null,"X","X","X","X",null,null,null,null,"X",null,null,null,null,"X",null,null,null,null,null,null,null,null,null,null,null,"X","X",null,null,null,null,null,null,null,null,null,null,"X",null,null,null,null,null,null,null,null,null,null,"X",null,"X","X"," ",null,null,null,null,"X","X",null,null,null,null,null,null,null,null,null,null,null,null,null,null,null,null,null,null,null,null,null,null,null,null,null,null,null,null,null,null,null,null,null,null,null,null,null,null,null,null,null,null,null,null,null,null,null,null,null,null,null,null,"X",null,"X","X"]
[null,"ATLANTICO","PONEDERA",8560,"Otros",4,"X",null,"X","X","X","x","x","x","x","x",null,null,"x","X","X",null,null,null,null,"x","x","x","x","x",null,null,null,null,null,null,null,null,null,null,null,null,null,null,null,null,null,null,null,null,null,null,null,null,null,null,null,null,null,null,null," "," "," "," ","",null,null,null,null,null," "," "," "," ","X"," "," "," "," ",null,null,null,null," "," ","X","X","X","X",null,"X","X",null,null,null,null,null,null,null,null,"X","X","X","X",null,null,null,null,"X",null,null,null,null,"X",null,null,null,null,null,null,null,null,null,null,null,"X","X",null,null,null,null,null,null,null,null,null,null,null,null,null,null,null,null,null,null,null,null,null,"X",null,"X","X","X",null,null,null,null,null,null,null,null,null,null,null,null,null,null,null,null,null,null,null,null,null,null,null,null,null,null,null,null,null,null,null,null,null,null,null,null,null,null,null,null,null,null,null,null,null,null,null,null,null,null,null,null,null,null,null,null,null,null,null,null,null,"X"]
[null,"ATLANTICO","TUBARA",8832,"Otros",4,"X",null,"X","X",null,"x","x","x","x",null,null,null,null,null,null,null,null,null,null,null,"x","x","x","x",null,null,null,null,null,null,null,null,null,null,null,null,null,null,null,null,null,null,null,null,null,null,null,null,null,null,null,null,null,null,null," "," "," "," ","",null,null,null,null,null," "," "," "," "," "," "," "," "," ",null,null,null,null," "," ","X","X","X","X",null,"X","X",null,null,null,null,null,null,null,null,"X","X","X","X",null,null,null,null,"X",null,null,null,null,"X",null,null,null,null,null,null,null,null,null,null,null,"X","X",null,null,null,null,null,null,null,null,null,null,null,null,null,null,null,null,null,null,null,null,null,"X",null,"X","X","X",null,null,null,null,null,null,null,null,null,null,null,null,null,null,null,null,null,null,null,null,null,null,null,null,null,null,null,null,null,null,null,null,null,null,null,null,null,null,null,null,null,null,null,null,null,null,null,null,null,null,null,null,null,null,null,null,null,null,null,null,null,"X"]
[null,"BOLIVAR","ARENAL",13042,"Otros",4,"X",null,"X","X","X","x","x","x","x","x",null,null,"x","X","X",null,null,null,null,"x","x","x","x","x",null,null,null,null,null,null,null,null,null,null,null,null,null,null,null,null,null,null,null,null,null,null,null,null,null,null,null,null,null,null,null," "," "," "," ","",null,null,null,null,null," "," "," "," ","X"," "," "," "," ",null,null,null,null," "," ","X","X","X","X",null,"X","X",null,null,null,null,null,null,null,null,"X","X","X","X",null,null,null,null,"X",null,null,null,null,"X",null,null,null,null,null,null,null,null,null,null,null,"X","X",null,null,null,null,null,null,null,null,null,null,null,null,null,null,null,null,null,null,null,null,null,"X",null,"X","X","X",null,null,null,null,null,null,null,null,null,null,null,null,null,null,null,null,null,null,null,null,null,null,null,null,null,null,null,null,null,null,null,null,null,null,null,null,null,null,null,null,null,null,null,null,null,null,null,null,null,null,null,null,null,null,null,null,null,null,null,null,null,"X"]
[null,"BOLIVAR","EL PEÑON",13268,"Otros",4,"X",null,"X","X",null,"x","x","x","x","x",null,null,null,null,null,null,null,null,null,"x","x","x","x","x",null,null,null,null,null,null,null,null,null,null,null,null,null,null,null,null,null,null,null,null,null,null,null,null,null,null,null,null,null,null,null," "," "," "," ","",null,null,null,null,null," "," "," "," ","X"," "," "," "," ",null,null,null,null," "," ","X","X","X","X",null,"X","X",null,null,null,null,null,null,null,null,"X","X","X","X",null,null,null,null,"X",null,null,null,null,"X",null,null,null,null,null,null,null,null,null,null,null,"X","X",null,null,null,null,null,null,null,null,null,null,null,null,null,null,null,null,null,null,null,null,null,"X",null,"X","X"," ",null,null,null,null,null,null,null,null,null,null,null,null,null,null,null,null,null,null,null,null,null,null,null,null,null,null,null,null,null,null,null,null,null,null,null,null,null,null,null,null,null,null,null,null,null,null,null,null,null,null,null,null,null,null,null,null,null,null,null,null,null,"X"]
[null,"BOLIVAR","MORALES",13473,"4",4,"X",null,"X","X","X","x","x","x","x","x","x","x","x","X","X","x",null,"x",null,"x","x","x","x","x",null,null,null,null,null,null,null,null,null,null,null,null,null,null,null,null,null,null,null,null,null,null,null,null,null,null,null,null,null,null,null," "," "," "," ",null,null,null,null,null,null," "," "," "," ","X"," "," "," "," ",null,null,null,null," "," ","X","X","X","X",null,"X","X",null,null,null,null,null,null,null,null,"X","X","X","X",null,null,null,null,"X",null,null,null,null,"X",null,null,null,null,null,null,null,null,null,null,null,"X","X",null,null,null,null,null,null,null,null,null,null,"X",null,null,null,null,null,null,null,null,null,null,"X",null,"X","X","X",null,null,null,null,"X","X",null,null,null,null,null,null,null,null,null,null,null,null,null,null,null,null,null,null,null,null,null,null,null,null,null,null,null,null,null,null,null,null,null,null,null,null,null,null,null,null,null,null,null,null,null,null,null,null,null,null,null,null,"X",null,"X","X"]
[null,"BOLIVAR","PINILLOS",13549,"4",4,"X",null,"X","X","X","x","x","x","x","x","x","x","x","X","X","x",null,"x",null,"x","x","x","x","x",null,null,null,null,null,null,null,null,null,null,null,null,null,null,null,null,null,null,null,null,null,null,null,null,null,null,null,null,null,null,null," "," "," "," ",null,null,null,null,null,null," "," "," "," ","X"," "," "," "," ",null,null,null,null," "," ","X","X","X","X",null,"X","X",null,null,null,null,null,null,null,null,"X","X","X","X",null,null,null,null,"X",null,null,null,null,"X",null,null,null,null,null,null,null,null,null,null,null,"X","X",null,null,null,null,null,null,null,null,null,null,"X",null,null,null,null,null,null,null,null,null,null,"X",null,"X","X"," ",null,null,null,null,"X","X",null,null,null,null,null,null,null,null,null,null,null,null,null,null,null,null,null,null,null,null,null,null,null,null,null,null,null,null,null,null,null,null,null,null,null,null,null,null,null,null,null,null,null,null,null,null,null,null,null,null,null,null,"X",null,"X"]
[null,"BOLIVAR","SAN JUAN NEPOMUCENO",13657,"4",4,"X",null,"X","X","X","x","x","x","x","x","x","x",null,"X","X","x",null,"x",null,null,"x","x","x","x",null,null,null,null,null,null,null,null,null,null,"X","X",null,"X","X",null,null,null,null,null,null,null,null,null,null,null,null,null,null,null,null," "," "," "," ",null,null,null,null,null,null," "," "," "," ","X"," "," "," "," ",null,null,null,null," "," ","X","X","X","X",null,"X","X",null,null,null,null,null,null,null,null,"X","X","X","X",null,null,null,null,"X",null,null,null,null,"X",null,null,null,null,null,null,null,null,null,null,null,"X","X",null,null,null,null,null,null,null,null,null,null,"X",null,null,null,null,null,null,null,null,null,null,"X",null,"X","X","X",null,null,null,null,"X","X",null,null,null,null,null,null,null,null,null,null,null,null,null,"X",null,null,null,null,null,null,null,null,null,null,null,null,null,null,null,null,null,null,null,null,null,null,null,null,null,null,null,null,null,null,null,null,null,null,null,null,null,null,"X",null,"X","X"]
[null,"BOLIVAR","TIQUISIO",13810,"Otros",4,"X",null,"X","X",null,"x","x","x","x","x",null,null,null,null,null,null,null,null,null,"x","x","x","x","x",null,null,null,null,null,null,null,null,null,null,null,null,null,null,null,null,null,null,null,null,null,null,null,null,null,null,null,null,null,null,null," "," "," "," ","",null,null,null,null,null," "," "," "," ","X"," "," "," "," ",null,null,null,null," "," ","X","X","X","X",null,"X","X",null,null,null,null,null,null,null,null,"X","X","X","X",null,null,null,null,"X",null,null,null,null,"X",null,null,null,null,null,null,null,null,null,null,null,"X","X",null,null,null,null,null,null,null,null,null,null,null,null,null,null,null,null,null,null,null,null,null,"X",null,"X","X","X",null,null,null,null,null,null,null,null,null,null,null,null,null,null,null,null,null,null,null,null,null,null,null,null,null,null,null,null,null,null,null,null,null,null,null,null,null,null,null,null,null,null,null,null,null,null,null,null,null,null,null,null,null,null,null,null,null,null,null,null,null,"X"]
[null,"BOYACA","BELEN",15087,"4",3,"X",null,"X","X","X","x","x","x","x","x","x","x","x","X","X","x",null,"x",null,"x","x","x","x","x",null,null,null,null,null,null,null,null,null,null,null,null,null,null,null,null,null,null,null,null,null,null,null,null,null,null,null,null,null,null,null," "," "," "," ",null,null,null,null,null,null," "," "," "," ","X"," "," "," "," ",null,null,null,null," "," ","X","X","X","X",null,"X","X",null,null,null,null,null,null,null,"X","X","X","X","X",null,null,null,null,"X",null,null,null,null,"X",null,null,null,null,null,null,null,null,null,null,null,"X","X",null,null,null,null,null,null,null,null,null,null,"X",null,null,null,null,null,null,null,null,null,null,"X",null,"X","X"," ",null,null,null,null,"X","X",null,null,null,null,null,null,null,null,null,null,null,null,null,null,null,null,null,null,null,null,null,null,null,null,null,null,null,null,null,null,null,null,null,null,null,null,null,null,null,null,null,null,null,null,null,null,null,null,null,null,null,null,"X",null,"X","X"]
[null,"BOYACA","CAMPOHERMOSO",15135,"4",4,"X",null,"X","X","X","x","x","x","x","x",null,"x","x","X","X","x",null,"x",null,"x","x","x","x","x",null,null,null,null,null,null,null,null,null,null,null,null,null,null,null,null,null,null,null,null,null,null,null,null,null,null,null,null,null,null,null," "," "," "," ",null,null,null,null,null,null," "," "," "," ","X"," "," "," "," ",null,null,null,null," "," ","X","X","X","X",null,null,null,null,null,null,null,null,null,null,null,"X","X","X","X",null,null,null,null,"X",null,null,null,null,"X",null,null,null,null,null,null,null,null,null,null,null,"X","X",null,null,null,null,null,null,null,null,null,null,"X",null,null,null,null,null,null,null,null,null,null,"X",null,"X","X","X",null,null,null,null,"X","X",null,null,null,null,null,null,null,null,null,null,null,null,null,null,null,null,null,null,null,null,null,null,null,null,null,null,null,null,null,null,null,null,null,null,null,null,null,null,null,null,null,null,null,null,null,null,null,null,null,null,null,null,"X",null,"X"]
[null,"BOYACA","COMBITA",15204,"Otros",4,"X",null,"X","X","X","x","x","x","x","x",null,null,"x","X","X",null,null,null,null,"x","x","x","x","x",null,null,null,null,null,null,null,null,null,null,null,null,null,null,null,null,null,null,null,null,null,null,null,null,null,null,null,null,null,null,null," "," "," "," ","",null,null,null,null,null," "," "," "," ","X"," "," "," "," ",null,null,null,null," "," ","X","X","X","X",null,null,null,null,null,null,null,null,null,null,null,"X","X","X","X",null,null,null,null,"X",null,null,null,null,"X",null,null,null,null,null,null,null,null,null,null,null,"X","X",null,null,null,null,null,null,null,null,null,null,null,null,null,null,null,null,null,null,null,null,null,"X",null,"X","X","X"]
[null,"BOYACA","CUCAITA",15224,"Otros",4,"X",null,"X","X","X","x","x","x","x","x",null,null,"x","X","X",null,null,null,null,"x","x","x","x","x",null,null,null,null,null,null,null,null,null,null,null,null,null,null,null,null,null,null,null,null,null,null,null,null,null,null,null,null,null,null,null," "," "," "," ","",null,null,null,null,null," "," "," "," ","X"," "," "," "," ",null,null,null,null," "," ","X","X","X","X",null,null,null,null,null,null,null,null,null,null,null,"X","X","X","X",null,null,null,null,"X",null,null,null,null,"X",null,null,null,null,null,null,null,null,null,null,null,"X","X",null,null,null,null,null,null,null,null,null,null,null,null,null,null,null,null,null,null,null,null,null,"X",null,"X","X","X"]
[null,"BOYACA","GUACAMAYAS",15317,"Otros",4,"X",null,"X","X","X","x","x","x","x","x",null,null,"x","X","X",null,null,null,null,"x","x","x","x","x",null,null,null,null,null,null,null,null,null,null,null,null,null,null,null,null,null,null,null,null,null,null,null,null,null,null,null,null,null,null,null," "," "," "," ","",null,null,null,null,null," "," "," "," "," "," "," "," "," ",null,null,null,null," "," ","X","X","X","X",null,null,null,null,null,null,null,null,null,null,null,"X","X","X","X",null,null,null,null,"X",null,null,null,null,"X",null,null,null,null,null,null,null,null,null,null,null,"X","X",null,null,null,null,null,null,null,null,null,null,"X",null,null,null,null,null,null,null,null,null,null,"X",null,"X","X","X",null,null,null,null,"X","X"]
[null,"BOYACA","GUATEQUE",15322,"3",3,"X",null,"X","X","X","x","x","x","x","x","x","x","x","X","X","x",null,"x",null,"x","x","x","x","x",null,null,null,null,null,null,null,null,null,null,"X",null,null,"X","X",null,null,null,null,null,null,null,null,null,null,null,null,null,null,null,null," "," "," "," ","",null,null,null,null,null," "," "," "," ","X"," "," "," "," ",null,null,null,null," "," ","X","X","X","X","X",null,null,"X",null,null,"X","X","X","X",null,"X","X","X","X",null,null,null,null,"X",null,null,null,null,"X",null,null,null,null,null,null,null,null,null,null,null,"X","X",null,null,null,null,null,null,null,null,null,null,"X",null,null,null,null,null,null,null,null,null,null,"X",null,"X","X","X",null,null,null,null,"X","X",null,null,null,null,null,null,null,null,null,null,null,null,null,null,null,null,null,null,null,null,null,null,null,null,null,null,null,null,null,null,null,null,null,null,null,null,null,null,null,null,null,null,null,null,null,null,null,null,null,null,null,null,"X",null,"X","X"]
[null,"BOYACA","LA UVITA",15403,"4",4,"X",null,"X","X","X","x","x","x","x","x",null,"x",null,"X","X","x",null,"x",null,null,"x","x","x","x",null,null,null,null,null,null,null,null,null,null,null,null,null,null,null,null,null,null,null,null,null,null,null,null,null,null,null,null,null,null,null," "," "," "," ",null,null,null,null,null,null," "," "," "," ","X"," "," "," "," ",null,null,null,null," "," ","X","X","X","X",null,null,null,null,null,null,null,null,null,null,null,"X","X","X","X",null,null,null,null,"X",null,null,null,null,"X",null,null,null,null,null,null,null,null,null,null,null,"X","X",null,null,null,null,null,null,null,null,null,null,"X",null,null,null,null,null,null,null,null,null,null,"X",null,"X","X","X",null,null,null,null,"X","X",null,null,null,null,null,null,null,null,null,null,null,null,null,null,null,null,null,null,null,null,null,null,null,null,null,null,null,null,null,null,null,null,null,null,null,null,null,null,null,null,null,null,null,null,null,null,null,null,null,null,null,null,"X",null,"X"]
[null,"BOYACA","MONIQUIRA",15469,"3",3,"X",null,"X","X","X","x","x","x","x","x","x","x","x","X","X","x",null,"x",null,"x","x","x","x","x",null,null,null,null,null,null,null,"X","X",null,null,"X","X",null,null,null,null,null,null,null,null,null,null,null,null,null,null,null,null,null,null," "," "," "," ","",null,null,null,null,null," "," "," "," ","X"," "," "," "," ",null,null,null,null," "," ","X","X","X","X","X",null,null,"X",null,null,"X","X","X","X",null,"X","X","X","X",null,null,null,null,"X",null,null,null,null,"X",null,null,null,null,null,null,null,null,null,null,null,"X","X",null,null,null,null,null,null,null,null,null,null,"X",null,null,null,null,null,null,null,null,null,null,"X",null,"X","X","X",null,null,null,null,"X","X",null,null,null,null,null,null,null,null,null,null,null,null,null,null,null,null,null,null,null,null,null,null,null,null,null,null,null,null,null,null,null,null,null,null,null,null,null,null,null,null,null,null,null,null,null,null,null,null,null,null,null,null,"X",null,"X","X"]
[null,"BOYACA","PAJARITO",15518,"4",4,"X",null,"X","X","X","x","x","x","x","x","x","x",null,"X","X","x",null,"x",null,null,"x","x","x","x",null,null,null,null,null,null,null,null,null,null,null,null,null,null,null,null,null,null,null,null,null,null,null,null,null,null,null,null,null,null,null," "," "," "," ",null,null,null,null,null,null," "," "," "," ","X"," "," "," "," ",null,null,null,null," "," ","X","X","X","X",null,null,null,null,null,null,null,null,null,null,null,"X","X","X","X",null,null,null,null,"X",null,null,null,null,"X",null,null,null,null,null,null,null,null,null,null,null,"X","X",null,null,null,null,null,null,null,null,null,null,"X",null,null,null,null,null,null,null,null,null,null,"X",null,"X","X","X",null,null,null,null,"X","X",null,null,null,null,null,null,null,null,null,null,null,null,null,null,null,null,null,null,null,null,null,null,null,null,null,null,null,null,null,null,null,null,null,null,null,null,null,null,null,null,null,null,null,null,null,null,null,null,null,null,null,null,"X",null,"X","X"]
[null,"BOYACA","RAMIRIQUI",15599,"3",3,"X",null,"X","X","X","x","x","x","x","x","x","x","x","X","X","x",null,"x",null,"x","x","x","x","x",null,null,null,null,null,null,null,null,null,null,"X",null,null,"X","X",null,null,null,null,null,null,null,null,null,null,null,null,null,null,null,null,"X","X","X","X","X",null,null,null,null,null,"X","X","X","X","X","X","X","X","X",null,null,null,null,"X","X","X","X","X","X",null,null,null,null,null,null,null,null,null,null,null,"X","X","X","X",null,null,null,null,"X",null,null,null,null,"X",null,null,null,null,null,null,null,null,null,null,null,"X","X",null,null,null,null,null,null,null,null,null,null,"X",null,null,null,null,null,null,null,null,null,null,"X",null,"X","X","X",null,null,null,null,"X","X",null,null,null,null,null,null,null,null,null,null,null,null,null,null,null,null,null,null,null,null,null,null,null,null,null,null,null,null,null,null,null,null,null,null,null,null,null,null,null,null,null,null,null,null,null,null,null,null,null,null,null,null,"X",null,"X","X"]
[null,"BOYACA","SAN MATEO",15673,"4",4,"X",null,"X","X","X","x","x","x","x","x",null,"x",null,"X","X","x",null,"x",null,null,"x","x","x","x",null,null,null,null,null,null,null,null,null,null,null,null,null,null,null,null,null,null,null,null,null,null,null,null,null,null,null,null,null,null,null," "," "," "," ",null,null,null,null,null,null," "," "," "," ","X"," "," "," "," ",null,null,null,null," "," ","X","X","X","X",null,null,null,null,null,null,null,null,null,null,null,"X","X","X","X",null,null,null,null,"X",null,null,null,null,"X",null,null,null,null,null,null,null,null,null,null,null,"X","X",null,null,null,null,null,null,null,null,null,null,"X",null,null,null,null,null,null,null,null,null,null,"X",null,"X","X","X",null,null,null,null,"X","X",null,null,null,null,null,null,null,null,null,null,null,null,null,null,null,null,null,null,null,null,null,null,null,null,null,null,null,null,null,null,null,null,null,null,null,null,null,null,null,null,null,null,null,null,null,null,null,null,null,null,null,null,"X",null,"X","X"]
[null,"BOYACA","SIACHOQUE",15740,"Otros",4,"X",null,"X","X","X","x","x","x","x","x",null,null,"x","X","X",null,null,null,null,"x","x","x","x","x",null,null,null,null,null,null,null,null,null,null,null,null,null,null,null,null,null,null,null,null,null,null,null,null,null,null,null,null,null,null,null," "," "," "," ","",null,null,null,null,null," "," "," "," ","X"," "," "," "," ",null,null,null,null," "," ","X","X","X","X",null,null,null,null,null,null,null,null,null,null,null,"X","X","X","X",null,null,null,null,"X",null,null,null,null,"X",null,null,null,null,null,null,null,null,null,null,null,"X","X",null,null,null,null,null,null,null,null,null,null,null,null,null,null,null,null,null,null,null,null,null,"X",null,"X","X","X",null,null,null,null,null,null,null,null,null,null,null,null,null,null,null,null,null,null,null,null,null,null,null,null,null,null,null,null,null,null,null,null,null,null,null,null,null,null,null,null,null,null,null,null,null,null,null,null,null,null,null,null,null,null,null,null,null,null,null,null,null,"X"]
[null,"BOYACA","SORACA",15764,"Otros",4,"X",null,"X","X","X","x","x","x","x","x",null,null,"x","X","X",null,null,null,null,"x","x","x","x","x",null,null,null,null,null,null,null,null,null,null,null,null,null,null,null,null,null,null,null,null,null,null,null,null,null,null,null,null,null,null,null," "," "," "," ","",null,null,null,null,null," "," "," "," ","X"," "," "," "," ",null,null,null,null," "," ","X","X","X","X",null,null,null,null,null,null,null,null,null,null,null,"X","X","X","X",null,null,null,null,"X",null,null,null,null,"X",null,null,null,null,null,null,null,null,null,null,null,"X","X",null,null,null,null,null,null,null,null,null,null,null,null,null,null,null,null,null,null,null,null,null,"X",null,"X","X","X",null,null,null,null,null,null,null,null,null,null,null,null,null,null,null,null,null,null,null,null,null,null,null,null,null,null,null,null,null,null,null,null,null,null,null,null,null,null,null,null,null,null,null,null,null,null,null,null,null,null,null,null,null,null,null,null,null,null,null,null,null,"X"]
[null,"BOYACA","SUSACON",15774,"4",4,"X",null,"X","X","X","x","x","x","x","x",null,"x",null,"X","X","x",null,"x",null,null,"x","x","x","x",null,null,null,null,null,null,null,null,null,null,null,null,null,null,null,null,null,null,null,null,null,null,null,null,null,null,null,null,null,null,null," "," "," "," ",null,null,null,null,null,null," "," "," "," "," "," "," "," "," ",null,null,null,null," "," ","X","X","X","X",null,null,null,null,null,null,null,null,null,null,null,"X","X","X","X",null,null,null,null,"X",null,null,null,null,"X",null,null,null,null,null,null,null,null,null,null,null,"X","X",null,null,null,null,null,null,null,null,null,null,"X",null,null,null,null,null,null,null,null,null,null,"X",null,"X","X"," ",null,null,null,null,"X","X",null,null,null,null,null,null,null,null,null,null,null,null,null,null,null,null,null,null,null,null,null,null,null,null,null,null,null,null,null,null,null,null,null,null,null,null,null,null,null,null,null,null,null,null,null,null,null,null,null,null,null,null,"X",null,"X"]
[null,"BOYACA","TOCA",15814,"4",1,"X",null,"X","X","X","x","x","x","x","x","x","x","x","X","X","x",null,"x",null,"x","x","x","x","x",null,null,null,null,null,null,null,null,null,null,null,"X",null,null,null,null,null,null,null,null,null,null,null,null,null,null,null,null,null,null,null," "," "," "," ",null,null,null,null,null,null," "," "," "," ","X"," "," "," "," ",null,null,null,null," "," ","X","X","X","X",null,null,null,null,null,null,null,null,null,null,null,"X","X","X","X",null,null,null,null,"X",null,null,null,null,"X",null,null,null,null,null,null,null,null,null,null,null,"X","X",null,null,null,null,null,null,null,null,null,null,"X",null,null,null,null,null,null,null,null,null,null,"X",null,"X","X","X",null,null,null,null,"X","X",null,null,null,null,null,null,null,null,null,null,null,null,null,null,null,null,null,null,null,null,null,null,null,null,null,null,null,null,null,null,null,null,null,null,null,null,null,null,null,null,null,null,null,null,null,null,null,null,null,null,null,null,"X",null,"X","X"]
[null,"BOYACA","VENTAQUEMADA",15861,"4",4,"X",null,"X","X","X","x","x","x","x","x","x","x","x","X","X","x",null,"x",null,"x","x","x","x","x",null,null,null,null,null,null,null,null,null,null,null,null,null,null,null,null,null,null,null,null,null,null,null,null,null,null,null,null,null,null,null," "," "," "," ",null,null,null,null,null,null," "," "," "," ","X"," "," "," "," ",null,null,null,null," "," ","X","X","X","X",null,null,null,null,null,null,null,null,null,null,null,"X","X","X","X",null,null,null,null,"X",null,null,null,null,"X",null,null,null,null,null,null,null,null,null,null,null,"X","X",null,null,null,null,null,null,null,null,null,null,"X",null,null,null,null,null,null,null,null,null,null,"X",null,"X","X","X",null,null,null,null,"X","X",null,null,null,null,null,null,null,null,null,null,null,null,null,null,null,null,null,null,null,null,null,null,null,null,null,null,null,null,null,null,null,null,null,null,null,null,null,null,null,null,null,null,null,null,null,null,null,null,null,null,null,null,"X",null,"X","X"]
[null,"CALDAS","ARANZAZU",17050,"3",3,"X",null,"X","X","X","x","x","x","x","x","x","x",null,"X","X","x",null,"x",null,null,"x","x","x","x",null,null,null,null,null,null,null,"X","X",null,null,"X","X",null,null,null,null,null,null,null,null,null,null,null,null,null,null,null,null,null,null," "," "," "," ","",null,null,null,null,null," "," "," "," ","X"," "," "," "," ",null,null,null,null," "," ","X","X","X","X",null,null,null,null,null,null,null,null,null,null,null,"X","X","X","X",null,null,null,null,"X",null,null,null,null,"X",null,null,null,null,null,null,null,null,null,null,null,"X","X",null,null,null,null,null,null,null,null,null,null,"X",null,null,null,null,null,null,null,null,null,null,"X",null,"X","X","X",null,null,null,null,"X","X",null,null,null,null,null,null,null,null,null,null,null,null,null,null,null,null,null,null,null,null,null,null,null,null,null,null,null,null,null,null,null,null,null,null,null,null,null,null,null,null,null,null,null,null,null,null,null,null,null,null,null,null,"X",null,"X","X"]
[null,"CALDAS","NORCASIA",17495,"4",4,"X",null,"X","X","X","x","x","x","x","x","x","x","x","X","X","x",null,"x",null,"x","x","x","x","x",null,null,null,null,null,null,null,null,null,null,null,null,null,null,null,null,null,null,null,null,null,null,null,null,null,null,null,null,null,null,null," "," "," "," ",null,null,null,null,null,null," "," "," "," ","X"," "," "," "," ",null,null,null,null," "," ","X","X","X","X",null,null,null,null,null,null,null,null,null,null,null,"X","X","X","X",null,null,null,null,"X",null,null,null,null,"X",null,null,null,null,null,null,null,null,null,null,null,"X","X",null,null,null,null,null,null,null,null,null,null,"X",null,null,null,null,null,null,null,null,null,null,"X",null,"X","X","X",null,null,null,null,"X","X",null,null,null,null,null,null,null,null,null,null,null,null,null,null,null,null,null,null,null,null,null,null,null,null,null,null,null,null,null,null,null,null,null,null,null,null,null,null,null,null,null,null,null,null,null,null,null,null,null,null,null,null,"X",null,"X","X"]
[null,"CALDAS","SUPIA",17777,"Otros",3,"X",null,"X","X","X","x","x","x","x","x",null,null,"x","X","X",null,null,null,null,"x","x","x","x","x",null,null,null,null,null,null,null,"X","X",null,"X","X","X","X","X",null,null,null,null,null,null,null,null,null,null,null,null,null,null,null,null,"X","X","X","X","X","X",null,null,null,null,"X","X","X","X","X","X","X","X","X",null,null,null,null,"X","X","X","X","X","X",null,null,null,null,null,null,null,null,null,null,null,"X","X","X","X",null,null,null,null,"X",null,null,null,null,"X",null,null,null,null,null,null,null,null,null,null,null,"X","X",null,null,null,null,null,null,null,null,null,null,"X",null,null,null,null,null,null,null,null,null,null,"X",null,"X","X","X",null,null,null,null,"X","X",null,null,null,null,null,null,null,null,null,null,null,null,null,null,null,null,null,null,null,null,null,null,null,null,null,null,null,null,null,null,null,null,null,null,null,null,null,null,null,null,null,null,null,null,null,null,null,null,null,null,null,null,null,null,null,"X"]
[null,"CAQUETA","EL DONCELLO",18247,"3",3,"X",null,"X","X","X","x","x","x","x","x","x","x","x","X","X","x",null,"x",null,"x","x","x","x","x",null,null,null,null,null,null,null,null,null,null,"X",null,null,"X","X",null,null,null,null,null,null,null,null,null,null,null,null,null,null,null,null," "," "," "," ","",null,null,null,null,null," "," "," "," ","X"," "," "," "," ",null,null,null,null," "," ","X","X","X","X",null,null,null,null,null,null,null,null,null,null,null,"X","X","X","X",null,null,null,null,"X",null,null,null,null,"X",null,null,null,null,null,null,null,null,null,null,null,"X","X",null,null,null,null,null,null,null,null,null,null,"X",null,null,null,null,null,null,null,null,null,null,"X",null,"X","X","X",null,null,null,null,"X","X",null,null,null,null,null,null,null,null,null,null,null,null,null,null,null,null,null,null,null,null,null,null,null,null,null,null,null,null,null,null,null,null,null,null,null,null,null,null,null,null,null,null,null,null,null,null,null,null,null,null,null,null,"X",null,"X","X"]
[null,"CAQUETA","SOLITA",18785,"Otros",4,"X",null,"X","X","X","x","x","x","x",null,null,"x",null,"X","X","x",null,"x",null,null,"x","x","x","x",null,null,null,null,null,null,null,null,null,null,null,null,null,null,null,null,null,null,null,null,null,null,null,null,null,null,null,null,null,null,null," "," "," "," ","",null,null,null,null,null," "," "," "," ","X"," "," "," "," ",null,null,null,null," "," ","X","X","X","X",null,null,null,null,null,null,null,null,null,null,null,"X","X","X","X",null,null,null,null,"X",null,null,null,null,"X",null,null,null,null,null,null,null,null,null,null,null,"X","X",null,null,null,null,null,null,null,null,null,null,null,null,null,null,null,null,null,null,null,null,null,"X",null,"X","X","X",null,null,null,null,null,null,null,null,null,null,null,null,null,null,null,null,null,null,null,null,null,null,null,null,null,null,null,null,null,null,null,null,null,null,null,null,null,null,null,null,null,null,null,null,null,null,null,null,null,null,null,null,null,null,null,null,null,null,"X",null,"X","X"]
[null,"CAUCA","BUENOS AIRES",19110,"4",4,"X",null,"X","X",null,"x","x","x","x","x","x","x","x","X","X","x",null,"x",null,"x","x","x","x","x",null,null,null,null,null,null,null,null,null,null,null,null,null,null,null,null,null,null,null,null,null,null,null,null,null,null,null,null,null,null,null," "," "," "," ",null,null,null,null,null,null," "," "," "," ","X"," "," "," "," ",null,null,null,null," "," ","X","X","X","X",null,null,null,null,null,null,null,null,null,null,null,"X","X","X","X",null,null,null,null,"X",null,null,null,null,"X",null,null,null,null,null,null,null,null,null,null,null,"X","X",null,null,null,null,null,null,null,null,null,null,"X",null,null,null,null,null,null,null,null,null,null,"X",null,"X","X","X",null,null,null,null,"X","X",null,null,null,null,null,null,null,null,null,null,null,null,null,null,null,null,null,null,null,null,null,null,null,null,null,null,null,null,null,null,null,null,null,null,null,null,null,null,null,null,null,null,null,null,null,null,null,null,null,null,null,null,"X",null,"X","X"]
[null,"CAUCA","CALDONO",19137,"4",4,"X",null,"X","X","X","x","x","x","x","x","x","x",null,"X","X","x",null,"x",null,null,"x","x","x","x",null,null,null,null,null,null,null,null,null,null,null,null,null,null,null,null,null,null,null,null,null,null,null,null,null,null,null,null,null,null,null," "," "," "," ",null,null,null,null,null,null," "," "," "," ","X"," "," "," "," ",null,null,null,null," "," ","X","X","X","X",null,null,null,null,null,null,null,null,null,null,null,"X","X","X","X",null,null,null,null,"X",null,null,null,null,"X",null,null,null,null,null,null,null,null,null,null,null,"X","X",null,null,null,null,null,null,null,null,null,null,"X",null,null,null,null,null,null,null,null,null,null,"X",null,"X","X","X",null,null,null,null,"X","X",null,null,null,null,null,null,null,null,null,null,null,null,null,null,null,null,null,null,null,null,null,null,null,null,null,null,null,null,null,null,null,null,null,null,null,null,null,null,null,null,null,null,null,null,null,null,null,null,null,null,null,null,"X",null,"X","X"]
[null,"CAUCA","LA SIERRA",19392,"4",4,"X",null,"X","X","X","x","x","x","x","x","x","x","x","X","X","x",null,"x",null,"x","x","x","x","x",null,null,null,null,null,null,null,null,null,null,null,null,null,null,null,null,null,null,null,null,null,null,null,null,null,null,null,null,null,null,null," "," "," "," ",null,null,null,null,null,null," "," "," "," "," "," "," "," "," ",null,null,null,null," "," ","X","X","X","X",null,null,null,null,null,null,null,null,null,null,null,"X","X","X","X",null,null,null,null,"X",null,null,null,null,"X",null,null,null,null,null,null,null,null,null,null,null,"X","X",null,null,null,null,null,null,null,null,null,null,"X",null,null,null,null,null,null,null,null,null,null,"X",null,"X","X","X",null,null,null,null,"X","X",null,null,null,null,null,null,null,null,null,null,null,null,null,null,null,null,null,null,null,null,null,null,null,null,null,null,null,null,null,null,null,null,null,null,null,null,null,null,null,null,null,null,null,null,null,null,null,null,null,null,null,null,"X",null,"X","X"]
[null,"CAUCA","PIAMONTE",19533,"Otros",4,"X",null,"X","X","X","x","x","x","x","x",null,null,"x","X","X",null,null,null,null,"x","x","x","x","x",null,null,null,null,null,null,null,null,null,null,null,null,null,null,null,null,null,null,null,null,null,null,null,null,null,null,null,null,null,null,null," "," "," "," ","",null,null,null,null,null," "," "," "," ","X"," "," "," "," ",null,null,null,null," "," ","X","X","X","X",null,null,null,null,null,null,null,null,null,null,null,"X","X","X","X",null,null,null,null,"X",null,null,null,null,"X",null,null,null,null,null,null,null,null,null,null,null,"X","X",null,null,null,null,null,null,null,null,null,null,null,null,null,null,null,null,null,null,null,null,null,"X",null,"X","X"," ",null,null,null,null,null,null,null,null,null,null,null,null,null,null,null,null,null,null,null,null,null,null,null,null,null,null,null,null,null,null,null,null,null,null,null,null,null,null,null,null,null,null,null,null,null,null,null,null,null,null,null,null,null,null,null,null,null,null,null,null,null,"X"]
[null,"CAUCA","SOTARA",19760,"4",4,"X",null,"X","X",null,"x","x","x","x","x","x","x",null,"X","X","x",null,"x",null,null,"x","x","x","x",null,null,null,null,null,null,null,null,null,null,null,null,null,null,null,null,null,null,null,null,null,null,null,null,null,null,null,null,null,null,null," "," "," "," ",null,null,null,null,null,null," "," "," "," "," "," "," "," "," ",null,null,null,null," "," ","X","X","X","X",null,null,null,null,null,null,null,null,null,null,null,"X","X","X","X",null,null,null,null,"X",null,null,null,null,"X",null,null,null,null,null,null,null,null,null,null,null,"X","X",null,null,null,null,null,null,null,null,null,null,"X",null,null,null,null,null,null,null,null,null,null,"X",null,"X","X"," ",null,null,null,null,"X","X",null,null,null,null,null,null,null,null,null,null,null,null,null,null,null,null,null,null,null,null,null,null,null,null,null,null,null,null,null,null,null,null,null,null,null,null,null,null,null,null,null,null,null,null,null,null,null,null,null,null,null,null,"X",null,"X","X"]
[null,"CESAR","VALLEDUPAR",20001,"1",1,"X","X","X","X","X","x","x","x","x","x","x","x",null,null,null,"x",null,"x",null,"x","x","x","x","x",null,null,null,null,null,null,null,"X","X",null,"X","X","X","X","X",null,null,null,null,null,null,null,null,null,null,null,null,null,null,null,null,"X","X","X","X","X","X",null,null,null,null,"X","X","X","X","X","X","X","X","X",null,null,null,null,"X","X","X","X","X","X","X",null,null,"X",null,null,"X","X","X","X","X","X","X","X","X",null,null,null,null,"X",null,"X","X","X","X",null,null,null,null,null,"X","X","X","X","X","X","X","X","X",null,null,null,null,null,null,"X","X","X","X",null,null,"X",null,null,null,"X","X","X","X","X",null,"X","X","X",null,null,null,null,"X","X","X","X","X","X",null,null,null,null,null,"X","X","X","X",null,null,null,null,null,null,null,null,null,null,null,"X","X","X","X",null,null,"X",null,null,null,null,null,null,null,null,null,null,null,null,null,null,null,null,null,null,null,null,null,"X",null,"X","X"]
[null,"CESAR","EL COPEY",20238,"4",4,"X",null,"X","X","X","x","x","x","x","x","x","x","x","X","X","x",null,"x",null,"x","x","x","x","x",null,null,null,null,null,null,null,null,null,null,null,null,null,null,null,null,null,null,null,null,null,null,null,null,null,null,null,null,null,null,null," "," "," "," ",null,null,null,null,null,null," "," "," "," ","X"," "," "," "," ",null,null,null,null," "," ","X","X","X","X",null,null,null,null,null,null,null,null,null,null,null,"X","X","X","X",null,null,null,null,"X",null,null,null,null,"X",null,null,null,null,null,null,null,null,null,null,null,"X","X",null,null,null,null,null,null,null,null,null,null,"X",null,null,null,null,null,null,null,null,null,null,"X",null,"X","X","X",null,null,null,null,"X","X",null,null,null,null,null,null,null,null,null,null,null,null,null,null,null,null,null,null,null,null,null,null,null,null,null,null,null,null,null,null,null,null,null,null,null,null,null,null,null,null,null,null,null,null,null,null,null,null,null,null,null,null,"X",null,"X","X"]
[null,"CESAR","PUEBLO BELLO",20570,"Otros",4,"X",null,"X","X","X","x","x","x","x","x",null,null,"x","X","X",null,null,null,null,"x","x","x","x","x",null,null,null,null,null,null,null,null,null,null,null,null,null,null,null,null,null,null,null,null,null,null,null,null,null,null,null,null,null,null,null," "," "," "," ","",null,null,null,null,null," "," "," "," ","X"," "," "," "," ",null,null,null,null," "," ","X","X","X","X","X",null,null,"X",null,null,"X","X","X","X",null,"X","X","X","X",null,null,null,null,"X",null,null,null,null,"X",null,null,null,null,null,null,null,null,null,null,null,"X","X",null,null,null,null,null,null,null,null,null,null,"X",null,null,null,null,null,null,null,null,null,null,"X",null,"X","X","X",null,null,null,null,"X","X",null,null,null,null,null,null,null,null,null,null,null,null,null,null,null,null,null,null,null,null,null,null,null,null,null,null,null,null,null,null,null,null,null,null,null,null,null,null,null,null,null,null,null,null,null,null,null,null,null,null,null,null,null,null,null,"X"]
[null,"CESAR","RIO DE ORO",20614,"4",4,"X",null,"X","X","X","x","x","x","x","x","x","x","x","X","X","x",null,"x",null,"x","x","x","x","x",null,null,null,null,null,null,null,null,null,null,null,null,null,null,null,null,null,null,null,null,null,null,null,null,null,null,null,null,null,null,null," "," "," "," ",null,null,null,null,null,null," "," "," "," ","X"," "," "," "," ",null,null,null,null," "," ","X","X","X","X",null,null,null,null,null,null,null,null,null,null,null,"X","X","X","X",null,null,null,null,"X",null,null,null,null,"X",null,null,null,null,null,null,null,null,null,null,null,"X","X",null,null,null,null,null,null,null,null,null,null,"X",null,null,null,null,null,null,null,null,null,null,"X",null,"X","X","X",null,null,null,null,"X","X",null,null,null,null,null,null,null,null,null,null,null,null,null,null,null,null,null,null,null,null,null,null,null,null,null,null,null,null,null,null,null,null,null,null,null,null,null,null,null,null,null,null,null,null,null,null,null,null,null,null,null,null,"X",null,"X","X"]
[null,"CORDOBA","CHIMA",23168,"4",4,"X",null,"X","X",null,"x","x","x","x","x","x","x","x","X","X","x",null,"x",null,"x","x","x","x","x",null,null,null,null,null,null,null,null,null,null,null,null,null,null,null,null,null,null,null,null,null,null,null,null,null,null,null,null,null,null,null," "," "," "," ",null,null,null,null,null,null," "," "," "," ","X"," "," "," "," ",null,null,null,null," "," ","X","X","X","X",null,null,null,null,null,null,null,null,null,null,null,"X","X","X","X",null,null,null,null,"X",null,null,null,null,"X",null,null,null,null,null,null,null,null,null,null,null,"X","X",null,null,null,null,null,null,null,null,null,null,"X",null,null,null,null,null,null,null,null,null,null,"X",null,"X","X"," ",null,null,null,null,"X","X",null,null,null,null,null,null,null,null,null,null,null,null,null,null,null,null,null,null,null,null,null,null,null,null,null,null,null,null,null,null,null,null,null,null,null,null,null,null,null,null,null,null,null,null,null,null,null,null,null,null,null,null,"X",null,"X","X"]
[null,"CORDOBA","LOS CORDOBAS",23419,"4",4,"X",null,"X","X","X","x","x","x","x","x","x","x","x","X","X","x",null,"x",null,"x","x","x","x","x",null,null,null,null,null,null,null,null,null,null,null,null,null,null,null,null,null,null,null,null,null,null,null,null,null,null,null,null,null,null,null," "," "," "," ",null,null,null,null,null,null," "," "," "," ","X"," "," "," "," ",null,null,null,null," "," ","X","X","X","X",null,null,null,null,null,null,null,null,null,null,null,"X","X","X","X",null,null,null,null,"X",null,null,null,null,"X",null,null,null,null,null,null,null,null,null,null,null,"X","X",null,null,null,null,null,null,null,null,null,null,"X",null,null,null,null,null,null,null,null,null,null,"X",null,"X","X"," ",null,null,null,null,"X","X",null,null,null,null,null,null,null,null,null,null,null,null,null,null,null,null,null,null,null,null,null,null,null,null,null,null,null,null,null,null,null,null,null,null,null,null,null,null,null,null,null,null,null,null,null,null,null,null,null,null,null,null,"X",null,"X","X"]
[null,"CORDOBA","SAHAGUN",23660,"3",3,"X",null,"X","X","X","x","x","x","x","x","x","x","x","X","X","x",null,"x",null,"x","x","x","x","x",null,null,null,null,null,null,null,null,null,null,"X",null,null,"X","X",null,null,null,null,null,null,null,null,null,null,null,null,null,null,null,null,"X","X","X","X","X",null,null,null,null,null,"X","X","X","X","X","X","X","X","X",null,null,null,null,"X","X","X","X","X","X","X",null,null,"X",null,null,"X","X","X","X",null,"X","X","X","X",null,null,null,null,"X",null,null,null,null,"X",null,null,null,null,null,null,null,null,null,"X",null,"X","X",null,null,null,null,null,null,null,null,null,null,"X",null,null,null,null,null,null,null,null,null,null,"X",null,"X","X","X",null,null,null,null,"X","X","X","X","X","X",null,null,null,null,null,"X","X","X","X","X",null,null,null,null,null,null,null,null,null,null,null,null,null,null,null,null,null,null,null,null,null,null,null,null,null,null,null,null,null,null,null,null,null,null,null,null,null,null,"X",null,"X","X"]
[null,"CORDOBA","TUCHIN",23815,"Otros",4,"X",null,"X","X","X","x","x","x","x","x",null,null,"x","X","X",null,null,null,null,"x","x","x","x","x",null,null,null,null,null,null,null,null,null,null,null,null,null,null,null,null,null,null,null,null,null,null,null,null,null,null,null,null,null,null,null," "," "," "," ","",null,null,null,null,null," "," "," "," ","X"," "," "," "," ",null,null,null,null," "," ","X","X","X","X",null,null,null,null,null,null,null,null,null,null,null,"X","X","X","X",null,null,null,null,"X",null,null,null,null,"X",null,null,null,null,null,null,null,null,null,null,null,"X","X",null,null,null,null,null,null,null,null,null,null,null,null,null,null,null,null,null,null,null,null,null,"X",null,"X","X","X",null,null,null,null,null,null,null,null,null,null,null,null,null,null,null,null,null,null,null,null,null,null,null,null,null,null,null,null,null,null,null,null,null,null,null,null,null,null,null,null,null,null,null,null,null,null,null,null,null,null,null,null,null,null,null,null,null,null,null,null,null,"X"]
[null,"CUNDINAMARCA","BOJACA",25099,"Otros",4,"X",null,"X","X","X","x","x","x","x","x",null,null,"x","X","X",null,null,null,null,"x","x","x","x","x",null,null,null,null,null,null,null,null,null,null,"X",null,null,"X","X",null,null,null,null,null,null,null,null,null,null,null,null,null,null,null,null,"X","X","X","X","X","X",null,null,null,null,"X","X","X","X","X","X","X","X","X",null,null,null,null,"X","X","X","X","X","X",null,null,null,null,null,null,null,null,null,null,null,"X","X","X","X",null,null,null,null,"X",null,null,null,null,"X",null,null,null,null,null,null,null,null,null,null,null,"X","X",null,null,null,null,null,null,null,null,null,null,"X",null,null,null,null,null,null,null,null,null,null,"X",null,"X","X","X",null,null,null,null,"X","X",null,null,null,null,null,null,null,null,null,null,null,null,null,null,null,null,null,null,null,null,null,null,null,null,null,null,null,null,null,null,null,null,null,null,null,null,null,null,null,null,null,null,null,null,null,null,null,null,null,null,null,null,null,null,null,"X"]
[null,"CUNDINAMARCA","CHIPAQUE",25178,"Otros",4,"X","X","X","X","X","x","x","x","x","x",null,null,"x","X","X",null,null,null,null,"x","x","x","x","x",null,null,null,null,null,null,null,null,null,null,"X",null,null,"X","X",null,null,null,null,null,null,null,null,null,null,null,null,null,null,null,null," "," "," "," ","",null,null,null,null,null," "," "," "," ","X"," "," "," "," ",null,null,null,null," "," ","X","X","X","X",null,null,null,null,null,null,null,null,null,null,null,"X","X","X","X",null,null,null,null,"X",null,null,null,null,"X",null,null,null,null,null,null,null,null,null,null,null,"X","X",null,null,null,null,null,null,null,"X","X","X","X",null,null,"X",null,null,null,"X","X","X","X","X",null,"X","X","X",null,null,null,null,"X","X",null,null,null,null,null,null,null,null,null,null,null,null,null,null,null,null,null,null,null,null,null,null,null,null,null,null,null,null,null,null,null,null,null,null,null,null,null,null,null,null,null,null,null,null,null,null,null,null,null,null,null,null,null,null,null,"X"]
[null,"CUNDINAMARCA","FACATATIVA",25269,"1",1,"X","X","X","X","X","x","x","x","x","x","x","x","x","X","X","x",null,"x",null,"x","x","x","x","x",null,null,null,null,null,null,null,"X","X",null,"X","X","X","X","X",null,null,null,null,null,null,null,null,null,null,null,null,null,null,null,null,"X","X","X","X","X","X",null,null,null,null,"X","X","X","X","X","X","X","X","X",null,null,null,null,"X","X","X","X","X","X",null,null,null,null,null,null,null,null,null,null,"X","X","X","X","X",null,null,null,null,"X",null,"X","X","X","X",null,null,null,null,null,"X","X","X","X","X","X","X","X","X",null,null,null,null,null,null,"X","X","X","X",null,null,"X",null,null,null,"X","X","X","X","X",null,"X","X","X",null,null,null,null,"X","X","X","X","X","X",null,null,null,null,null,"X","X","X","X",null,null,null,null,null,null,null,null,null,null,null,"X","X","X","X",null,null,"X",null,null,null,null,null,null,null,null,null,null,null,null,null,null,null,null,null,null,null,null,null,"X",null,"X","X"]
[null,"CUNDINAMARCA","FOMEQUE",25279,"3",3,"X","X","X","X","X","x","x","x","x","x","x","x","x","X","X","x",null,"x",null,"x","x","x","x","x",null,null,null,null,null,null,null,null,null,null,"X",null,null,"X","X",null,null,null,null,null,null,null,null,null,null,null,null,null,null,null,null," "," "," "," ","",null,null,null,null,null," "," "," "," ","X"," "," "," "," ",null,null,null,null," "," ","X","X","X","X",null,null,null,null,null,null,null,null,null,null,null,"X","X","X","X",null,null,null,null,"X",null,null,null,null,"X",null,null,null,null,null,null,null,null,null,null,null,"X","X",null,null,null,null,null,null,null,"X","X","X","X",null,null,"X",null,null,null,"X","X","X","X","X",null,"X","X","X",null,null,null,null,"X","X",null,null,null,null,null,null,null,null,null,null,null,null,null,null,null,null,null,null,null,null,null,null,null,null,null,null,null,null,null,null,null,null,null,null,null,null,null,null,null,null,null,null,null,null,null,null,null,null,null,null,null,null,"X",null,"X","X"]
[null,"CUNDINAMARCA","GIRARDOT",25307,"Otros",1,"X","X","X","X","X","x","x","x","x","x","x",null,"x","X","X",null,null,null,null,"x","x","x","x","x",null,null,null,null,null,null,null,"X","X",null,"X","X","X","X","X",null,null,null,null,null,null,null,null,null,null,null,null,null,null,null,null,"X","X","X","X","X","X",null,null,null,null,"X","X","X","X","X","X","X","X","X",null,null,null,null,"X","X","X","X","X","X",null,null,null,null,null,null,null,null,null,null,null,"X","X","X","X",null,null,null,null,"X",null,"X","X","X","X",null,null,null,null,null,"X","X","X","X","X","X","X","X","X",null,null,null,null,null,null,"X","X","X","X",null,null,"X",null,null,null,"X","X","X","X","X",null,"X","X","X",null,null,null,null,"X","X","X","X","X","X",null,null,null,null,null,"X","X","X","X",null,null,null,null,null,null,null,null,null,null,null,"X","X","X","X",null,null,"X",null,null,null,null,null,null,null,null,null,null,null,null,null,null,null,null,null,null,null,null,null,"X",null,"X","X"]
[null,"CUNDINAMARCA","JERUSALEN",25368,"Otros",4,"X",null,"X","X","X","x","x","x","x","x",null,null,"x","X","X",null,null,null,null,"x","x","x","x","x",null,null,null,null,null,null,null,null,null,null,"X",null,null,"X","X",null,null,null,null,null,null,null,null,null,null,null,null,null,null,null,null," "," "," "," ","",null,null,null,null,null," "," "," "," ","X"," "," "," "," ",null,null,null,null," "," ","X","X","X","X",null,null,null,null,null,null,null,null,null,null,null,"X","X","X","X",null,null,null,null,"X",null,null,null,null,"X",null,null,null,null,null,null,null,null,null,null,null,"X","X",null,null,null,null,null,null,null,null,null,null,null,null,null,null,null,null,null,null,null,null,null,"X",null,"X","X","X"]
[null,"CUNDINAMARCA","LENGUAZAQUE",25407,"4",4,"X",null,"X","X","X","x","x","x","x","x","x","x","x","X","X","x",null,"x",null,"x","x","x","x","x",null,null,null,null,null,null,null,null,null,null,"X",null,null,"X","X",null,null,null,null,null,null,null,null,null,null,null,null,null,null,null,null," "," "," "," ",null,null,null,null,null,null," "," "," "," ","X"," "," "," "," ",null,null,null,null," "," ","X","X","X","X",null,null,null,null,null,null,null,null,null,null,null,"X","X","X","X",null,null,null,null,"X",null,null,null,null,"X",null,null,null,null,null,null,null,null,null,null,null,"X","X",null,null,null,null,null,null,null,null,null,null,"X",null,null,null,null,null,null,null,null,null,null,"X",null,"X","X","X",null,null,null,null,"X","X",null,null,null,null,null,null,null,null,null,null,null,null,null,null,null,null,null,null,null,null,null,null,null,null,null,null,null,null,null,null,null,null,null,null,null,null,null,null,null,null,null,null,null,null,null,null,null,null,null,null,null,null,"X",null,"X","X"]
[null,"CUNDINAMARCA","NIMAIMA",25489,"Otros",4,"X",null,"X","X","X","x","x","x","x","x",null,null,"x","X","X",null,null,null,null,"x","x","x","x","x",null,null,null,null,null,null,null,null,null,null,"X",null,null,"X","X",null,null,null,null,null,null,null,null,null,null,null,null,null,null,null,null," "," "," "," ","",null,null,null,null,null," "," "," "," ","X"," "," "," "," ",null,null,null,null," "," ","X","X","X","X",null,null,null,null,null,null,null,null,null,null,null,"X","X","X","X",null,null,null,null,"X",null,null,null,null,"X",null,null,null,null,null,null,null,null,null,null,null,"X","X",null,null,null,null,null,null,null,null,null,null,null,null,null,null,null,null,null,null,null,null,null,"X",null,"X","X","X",null,null,null,null,null,null,null,null,null,null,null,null,null,null,null,null,null,null,null,null,null,null,null,null,null,null,null,null,null,null,null,null,null,null,null,null,null,null,null,null,null,null,null,null,null,null,null,null,null,null,null,null,null,null,null,null,null,null,null,null,null,"X"]
[null,"CUNDINAMARCA","PULI",25580,"Otros",4,"X",null,"X","X","X","x","x","x","x",null,null,null,null,null,null,null,null,null,null,null,"x","x","x","x",null,null,null,null,null,null,null,null,null,null,"X",null,null,"X","X",null,null,null,null,null,null,null,null,null,null,null,null,null,null,null,null," "," "," "," ","",null,null,null,null,null," "," "," "," ","X"," "," "," "," ",null,null,null,null," "," ","X","X","X","X",null,null,null,null,null,null,null,null,null,null,null,"X","X","X","X",null,null,null,null,"X",null,null,null,null,"X",null,null,null,null,null,null,null,null,null,null,null,"X","X",null,null,null,null,null,null,null,null,null,null,null,null,null,null,null,null,null,null,null,null,null,null,null,"X","X"," ",null,null,null,null,null,null,null,null,null,null,null,null,null,null,null,null,null,null,null,null,null,null,null,null,null,null,null,null,null,null,null,null,null,null,null,null,null,null,null,null,null,null,null,null,null,null,null,null,null,null,null,null,null,null,null,null,null,null,null,null,null,"X"]
[null,"CUNDINAMARCA","APULO",25599,"4",4,"X",null,"X","X","X","x","x","x","x","x","x","x","x","X","X","x",null,"x",null,"x","x","x","x","x",null,null,null,null,null,null,null,null,null,null,"X",null,null,"X","X",null,null,null,null,null,null,null,null,null,null,null,null,null,null,null,null," "," "," "," ",null,null,null,null,null,null," "," "," "," ","X"," "," "," "," ",null,null,null,null," "," ","X","X","X","X",null,null,null,null,null,null,null,null,null,null,null,"X","X","X","X",null,null,null,null,"X",null,null,null,null,"X",null,null,null,null,null,null,null,null,null,null,null,"X","X",null,null,null,null,null,null,null,null,null,null,"X",null,null,null,null,null,null,null,null,null,null,"X",null,"X","X"," ",null,null,null,null,"X","X",null,null,null,null,null,null,null,null,null,null,null,null,null,null,null,null,null,null,null,null,null,null,null,null,null,null,null,null,null,null,null,null,null,null,null,null,null,null,null,null,null,null,null,null,null,null,null,null,null,null,null,null,"X",null,"X","X"]
[null,"CUNDINAMARCA","SOPO",25758,"2",2,"X",null,"X","X","X","x","x","x","x","x","x","x","x","X","X","x",null,"x",null,"x","x","x","x","x",null,null,null,null,null,null,null,"X","X",null,"X","X","X","X","X",null,null,null,null,null,null,null,null,null,null,null,null,null,null,null,null,"X","X","X","X","X","X",null,null,null,null,"X","X","X","X","X","X","X","X","X",null,null,null,null,"X","X","X","X","X","X",null,null,null,null,null,null,null,null,null,null,null,"X","X","X","X",null,null,null,null,"X",null,null,null,null,"X",null,null,null,null,null,null,null,null,null,"X",null,"X","X",null,null,null,null,null,null,null,null,null,null,"X",null,null,null,null,null,null,null,null,null,null,"X",null,"X","X","X",null,null,null,null,"X","X","X","X",null,null,null,null,null,null,null,null,null,null,null,null,null,null,null,null,null,null,null,null,null,null,null,null,null,null,null,null,null,null,null,null,null,null,null,null,null,null,null,null,null,null,null,null,null,null,null,null,null,null,"X",null,"X","X"]
[null,"CUNDINAMARCA","SUBACHOQUE",25769,"2",2,"X",null,"X","X","X","x","x","x","x","x","x","x","x","X","X","x",null,"x",null,"x","x","x","x","x",null,null,null,null,null,null,null,"X","X",null,"X","X","X","X","X",null,null,null,null,null,null,null,null,null,null,null,null,null,null,null,null,"X","X","X","X","X","X",null,null,null,null,"X","X","X","X","X","X","X","X","X",null,null,null,null,"X","X","X","X","X","X","X",null,null,"X",null,null,"X","X","X","X",null,"X","X","X","X",null,null,null,null,"X",null,null,null,null,"X",null,null,null,null,null,null,null,null,null,null,null,"X","X",null,null,null,null,null,null,null,null,null,null,"X",null,null,null,null,null,null,null,null,null,null,"X",null,"X","X","X",null,null,null,null,"X","X",null,null,null,null,null,null,null,null,null,null,null,null,null,null,null,null,null,null,null,null,null,null,null,null,null,null,null,null,null,null,null,null,null,null,null,null,null,null,null,null,null,null,null,null,null,null,null,null,null,null,null,null,"X",null,"X","X"]
[null,"CUNDINAMARCA","TIBACUY",25805,"Otros",4,"X",null,"X","X","X","x","x","x","x","x",null,null,"x","X","X",null,null,null,null,"x","x","x","x","x",null,null,null,null,null,null,null,null,null,null,"X",null,null,"X","X",null,null,null,null,null,null,null,null,null,null,null,null,null,null,null,null," "," "," "," ","",null,null,null,null,null," "," "," "," ","X"," "," "," "," ",null,null,null,null," "," ","X","X","X","X",null,null,null,null,null,null,null,null,null,null,null,"X","X","X","X",null,null,null,null,"X",null,null,null,null,"X",null,null,null,null,null,null,null,null,null,null,null,"X","X",null,null,null,null,null,null,null,null,null,null,null,null,null,null,null,null,null,null,null,null,null,"X",null,"X","X","X",null,null,null,null,null,null,null,null,null,null,null,null,null,null,null,null,null,null,null,null,null,null,null,null,null,null,null,null,null,null,null,null,null,null,null,null,null,null,null,null,null,null,null,null,null,null,null,null,null,null,null,null,null,null,null,null,null,null,null,null,null,"X"]
[null,"CUNDINAMARCA","UTICA",25851,"4",4,"X",null,"X","X",null,"x","x","x","x","x","x","x",null,"X","X","x",null,"x",null,null,"x","x","x","x",null,null,null,null,null,null,null,null,null,null,"X",null,null,"X","X",null,null,null,null,null,null,null,null,null,null,null,null,null,null,null,null," "," "," "," ",null,null,null,null,null,null," "," "," "," ","X"," "," "," "," ",null,null,null,null," "," ","X","X","X","X",null,null,null,null,null,null,null,null,null,null,null,"X","X","X","X",null,null,null,null,"X",null,null,null,null,"X",null,null,null,null,null,null,null,null,null,null,null,"X","X",null,null,null,null,null,null,null,null,null,null,"X",null,null,null,null,null,null,null,null,null,null,null,null,"X","X","X",null,null,null,null,"X","X",null,null,null,null,null,null,null,null,null,null,null,null,null,null,null,null,null,null,null,null,null,null,null,null,null,null,null,null,null,null,null,null,null,null,null,null,null,null,null,null,null,null,null,null,null,null,null,null,null,null,null,null,"X",null,"X","X"]
[null,"CUNDINAMARCA","VIOTA",25878,"4",4,"X",null,"X","X","X","x","x","x","x","x","x","x","x","X","X","x",null,"x",null,"x","x","x","x","x",null,null,null,null,null,null,null,null,null,null,"X",null,null,"X","X",null,null,null,null,null,null,null,null,null,null,null,null,null,null,null,null," "," "," "," ",null,null,null,null,null,null," "," "," "," ","X"," "," "," "," ",null,null,null,null," "," ","X","X","X","X",null,null,null,null,null,null,null,null,null,null,null,"X","X","X","X",null,null,null,null,"X",null,null,null,null,"X",null,null,null,null,null,null,null,null,null,null,null,"X","X",null,null,null,null,null,null,null,null,null,null,"X",null,null,null,null,null,null,null,null,null,null,"X",null,"X","X","X",null,null,null,null,"X","X",null,null,null,null,null,null,null,null,null,null,null,null,null,null,null,null,null,null,null,null,null,null,null,null,null,null,null,null,null,null,null,null,null,null,null,null,null,null,null,null,null,null,null,null,null,null,null,null,null,null,null,null,"X",null,"X","X"]
[null,"CHOCO","BOJAYA",27099,"Otros",4,"X",null,"X","X",null,"x","x","x","x","x",null,null,"x","X","X",null,null,null,null,"x","x","x","x","x",null,null,null,null,null,null,null,null,null,null,null,null,null,null,null,null,null,null,null,null,null,null,null,null,null,null,null,null,null,null,null," "," "," "," ","",null,null,null,null,null," "," "," "," "," "," "," "," "," ",null,null,null,null," "," ","X","X","X","X",null,null,null,null,null,null,null,null,null,null,null,"X","X","X","X",null,null,null,null,"X",null,null,null,null,"X",null,null,null,null,null,null,null,null,null,null,null,"X","X",null,null,null,null,null,null,null,null,null,null,null,null,null,null,null,null,null,null,null,null,null,"X",null,"X","X"," ",null,null,null,null,null,null,null,null,null,null,null,null,null,null,null,null,null,null,null,null,null,null,null,null,null,null,null,null,null,null,null,null,null,null,null,null,null,null,null,null,null,null,null,null,null,null,null,null,null,null,null,null,null,null,null,null,null,null,null,null,null,"X"]
[null,"CHOCO","LLORO",27413,"Otros",4,"X",null,"X","X",null,"x","x","x","x","x",null,null,"x","X","X",null,null,null,null,"x","x","x","x","x",null,null,null,null,null,null,null,null,null,null,null,null,null,null,null,null,null,null,null,null,null,null,null,null,null,null,null,null,null,null,null," "," "," "," ","",null,null,null,null,null," "," "," "," "," "," "," "," "," ",null,null,null,null," "," ","X","X","X","X",null,null,null,null,null,null,null,null,null,null,null,"X","X","X","X",null,null,null,null,"X",null,null,null,null,"X",null,null,null,null,null,null,null,null,null,null,null,"X","X",null,null,null,null,null,null,null,null,null,null,null,null,null,null,null,null,null,null,null,null,null,"X",null,"X","X"," ",null,null,null,null,null,null,null,null,null,null,null,null,null,null,null,null,null,null,null,null,null,null,null,null,null,null,null,null,null,null,null,null,null,null,null,null,null,null,null,null,null,null,null,null,null,null,null,null,null,null,null,null,null,null,null,null,null,null,null,null,null,"X"]
[null,"CHOCO","SAN JOSE DEL PALMAR",27660,"Otros",4,"X",null,"X","X",null,"x","x","x","x","x",null,null,"x","X","X",null,null,null,null,"x","x","x","x","x",null,null,null,null,null,null,null,null,null,null,null,null,null,null,null,null,null,null,null,null,null,null,null,null,null,null,null,null,null,null,null," "," "," "," ","",null,null,null,null,null," "," "," "," "," "," "," "," "," ",null,null,null,null," "," ","X","X","X","X",null,null,null,null,null,null,null,null,null,null,null,"X","X","X","X",null,null,null,null,"X",null,null,null,null,"X",null,null,null,null,null,null,null,null,null,null,null,"X","X",null,null,null,null,null,null,null,null,null,null,"X",null,null,null,null,null,null,null,null,null,null,"X",null,"X","X"," ",null,null,null,null,"X","X",null,null,null,null,null,null,null,null,null,null,null,null,null,null,null,null,null,null,null,null,null,null,null,null,null,null,null,null,null,null,null,null,null,null,null,null,null,null,null,null,null,null,null,null,null,null,null,null,null,null,null,null,null,null,null,"X"]
[null,"CHOCO","UNGUIA",27800,"4",4,"X",null,"X","X","X","x","x","x","x","x","x","x",null,"X","X","x",null,"x",null,null,"x","x","x","x",null,null,null,null,null,null,null,null,null,null,null,null,null,null,null,null,null,null,null,null,null,null,null,null,null,null,null,null,null,null,null," "," "," "," ",null,null,null,null,null,null," "," "," "," ","X"," "," "," "," ",null,null,null,null," "," ","X","X","X","X",null,null,null,null,null,null,null,null,null,null,null,"X","X","X","X",null,null,null,null,"X",null,null,null,null,"X",null,null,null,null,null,null,null,null,null,null,null,"X","X",null,null,null,null,null,null,null,null,null,null,"X",null,null,null,null,null,null,null,null,null,null,"X",null,"X","X","X",null,null,null,null,"X","X",null,null,null,null,null,null,null,null,null,null,null,null,null,null,null,null,null,null,null,null,null,null,null,null,null,null,null,null,null,null,null,null,null,null,null,null,null,null,null,null,null,null,null,null,null,null,null,null,null,null,null,null,"X",null,"X","X"]
[null,"HUILA","ALGECIRAS",41020,"4",4,"X",null,"X","X","X","x","x","x","x","x","x","x","x","X","X","x",null,"x",null,"x","x","x","x","x",null,null,null,null,null,null,null,null,null,null,"X",null,null,"X","X",null,null,null,null,null,null,null,null,null,null,null,null,null,null,null,null," "," "," "," ",null,null,null,null,null,null," "," "," "," ","X"," "," "," "," ",null,null,null,null," "," ","X","X","X","X",null,null,null,null,null,null,null,null,null,null,null,"X","X","X","X",null,null,null,null,"X",null,null,null,null,"X",null,null,null,null,null,null,null,null,null,null,null,"X","X",null,null,null,null,null,null,null,null,null,null,"X",null,null,null,null,null,null,null,null,null,null,"X",null,"X","X","X",null,null,null,null,"X","X",null,null,null,null,null,null,null,null,null,null,null,null,null,null,null,null,null,null,null,null,null,null,null,null,null,null,null,null,null,null,null,null,null,null,null,null,null,null,null,null,null,null,null,null,null,null,null,null,null,null,null,null,"X",null,"X","X"]
[null,"HUILA","HOBO",41349,"4",4,"X",null,"X","X","X","x","x","x","x","x","x","x","x","X","X","x",null,"x",null,"x","x","x","x","x",null,null,null,null,null,null,null,null,null,null,"X",null,null,"X","X",null,null,null,null,null,null,null,null,null,null,null,null,null,null,null,null," "," "," "," ",null,null,null,null,null,null," "," "," "," ","X"," "," "," "," ",null,null,null,null," "," ","X","X","X","X",null,null,null,null,null,null,null,null,null,null,null,"X","X","X","X",null,null,null,null,"X",null,null,null,null,"X",null,null,null,null,null,null,null,null,null,null,null,"X","X",null,null,null,null,null,null,null,null,null,null,"X",null,null,null,null,null,null,null,null,null,null,"X",null,"X","X","X",null,null,null,null,"X","X",null,null,null,null,null,null,null,null,null,null,null,null,null,null,null,null,null,null,null,null,null,null,null,null,null,null,null,null,null,null,null,null,null,null,null,null,null,null,null,null,null,null,null,null,null,null,null,null,null,null,null,null,"X",null,"X","X"]
[null,"HUILA","PALESTINA",41530,"4",3,"X",null,"X","X","X","x","x","x","x","x","x","x","x","X","X","x",null,"x",null,"x","x","x","x","x",null,null,null,null,null,null,null,null,null,null,"X",null,null,"X","X",null,null,null,null,null,null,null,null,null,null,null,null,null,null,null,null," "," "," "," ",null,null,null,null,null,null," "," "," "," ","X"," "," "," "," ",null,null,null,null," "," ","X","X","X","X",null,null,null,null,null,null,null,null,null,null,null,"X","X","X","X",null,null,null,null,"X",null,null,null,null,"X",null,null,null,null,null,null,null,null,null,null,null,"X","X",null,null,null,null,null,null,null,null,null,null,"X",null,null,null,null,null,null,null,null,null,null,"X",null,"X","X"," ",null,null,null,null,"X","X",null,null,null,null,null,null,null,null,null,null,null,null,null,null,null,null,null,null,null,null,null,null,null,null,null,null,null,null,null,null,null,null,null,null,null,null,null,null,null,null,null,null,null,null,null,null,null,null,null,null,null,null,"X",null,"X","X"]
[null,"HUILA","TIMANA",41807,"4",4,"X",null,"X","X","X","x","x","x","x","x","x","x","x","X","X","x",null,"x",null,"x","x","x","x","x",null,null,null,null,null,null,null,null,null,null,"X",null,null,"X","X",null,null,null,null,null,null,null,null,null,null,null,null,null,null,null,null," "," "," "," ",null,null,null,null,null,null," "," "," "," ","X"," "," "," "," ",null,null,null,null," "," ","X","X","X","X",null,null,null,null,null,null,null,null,null,null,null,"X","X","X","X",null,null,null,null,"X",null,null,null,null,"X",null,null,null,null,null,null,null,null,null,null,null,"X","X",null,null,null,null,null,null,null,null,null,null,"X",null,null,null,null,null,null,null,null,null,null,"X",null,"X","X","X",null,null,null,null,"X","X",null,null,null,null,null,null,null,null,null,null,null,null,null,null,null,null,null,null,null,null,null,null,null,null,null,null,null,null,null,null,null,null,null,null,null,null,null,null,null,null,null,null,null,null,null,null,null,null,null,null,null,null,"X",null,"X","X"]
[null,"LA GUAJIRA","BARRANCAS",44078,"Otros",3,"X",null,"X","X","X","x","x","x","x","x",null,null,"x","X","X",null,null,null,null,"x","x","x","x","x",null,null,null,null,null,null,null,null,null,null,"X",null,null,"X","X",null,null,null,null,null,null,null,null,null,null,null,null,null,null,null,null,"X","X","X","X","X","X",null,null,null,null,"X","X","X","X","X","X","X","X","X",null,null,null,null,"X","X","X","X","X","X",null,null,null,null,null,null,null,null,null,null,null,"X","X","X","X",null,null,null,null,"X",null,null,null,null,"X",null,null,null,null,null,null,null,null,null,null,null,"X","X",null,null,null,null,null,null,null,null,null,null,"X",null,null,null,null,null,null,null,null,null,null,"X",null,"X","X","X",null,null,null,null,"X","X","X","X","X","X",null,null,null,null,null,"X","X","X","X",null,null,null,null,null,null,null,null,null,null,null,null,null,null,null,null,null,null,null,null,null,null,null,null,null,null,null,null,null,null,null,null,null,null,null,null,null,null,null,null,null,null,"X"]
[null,"LA GUAJIRA","SAN JUAN DEL CESAR",44650,"3",3,"X",null,"X","X","X","x","x","x","x","x","x","x","x","X","X","x",null,"x",null,"x","x","x","x","x",null,null,null,null,null,null,null,"X","X",null,"X","X","X","X","X",null,null,null,null,null,null,null,null,null,null,null,null,null,null,null,null," "," "," "," ","X",null,null,null,null,null," "," "," "," ","X"," "," "," "," ",null,null,null,null," "," ","X","X","X","X",null,null,null,null,null,null,null,null,null,null,null,"X","X","X","X",null,null,null,null,"X",null,null,null,null,"X",null,null,null,null,null,null,null,null,null,null,null,"X","X",null,null,null,null,null,null,null,null,null,null,"X",null,null,null,null,null,null,null,null,null,null,"X",null,"X","X"," ",null,null,null,null,"X","X",null,null,null,null,null,null,null,null,null,null,null,null,null,null,null,null,null,null,null,null,null,null,null,null,null,null,null,null,null,null,null,null,null,null,null,null,null,null,null,null,null,null,null,null,null,null,null,null,null,null,null,null,"X",null,"X","X"]
[null,"MAGDALENA","CHIBOLO",47170,"4",4,"X",null,"X","X","X","x","x","x","x","x","x","x","x","X","X","x",null,"x",null,"x","x","x","x","x",null,null,null,null,null,null,null,null,null,null,null,null,null,null,null,null,null,null,null,null,null,null,null,null,null,null,null,null,null,null,null," "," "," "," ",null,null,null,null,null,null," "," "," "," ","X"," "," "," "," ",null,null,null,null," "," ","X","X","X","X",null,null,null,null,null,null,null,null,null,null,null,"X","X","X","X",null,null,null,null,"X",null,null,null,null,"X",null,null,null,null,null,null,null,null,null,null,null,"X","X",null,null,null,null,null,null,null,null,null,null,null,null,null,null,null,null,null,null,null,null,null,"X",null,"X","X"," ",null,null,null,null,null,null,null,null,null,null,null,null,null,null,null,null,null,null,null,null,null,null,null,null,null,null,null,null,null,null,null,null,null,null,null,null,null,null,null,null,null,null,null,null,null,null,null,null,null,null,null,null,null,null,null,null,null,null,"X",null,"X","X"]
[null,"MAGDALENA","PEDRAZA",47541,"Otros",4,"X",null,"X","X",null,"x","x","x","x","x",null,null,"x","X","X",null,null,null,null,"x","x","x","x","x",null,null,null,null,null,null,null,null,null,null,null,null,null,null,null,null,null,null,null,null,null,null,null,null,null,null,null,null,null,null,null," "," "," "," ","",null,null,null,null,null," "," "," "," "," "," "," "," "," ",null,null,null,null," "," ","X","X","X","X",null,null,null,null,null,null,null,null,null,null,null,"X","X","X","X",null,null,null,null,"X",null,null,null,null,"X",null,null,null,null,null,null,null,null,null,null,null,"X","X",null,null,null,null,null,null,null,null,null,null,null,null,null,null,null,null,null,null,null,null,null,"X",null,"X","X"," ",null,null,null,null,null,null,null,null,null,null,null,null,null,null,null,null,null,null,null,null,null,null,null,null,null,null,null,null,null,null,null,null,null,null,null,null,null,null,null,null,null,null,null,null,null,null,null,null,null,null,null,null,null,null,null,null,null,null,null,null,null,"X"]
[null,"MAGDALENA","SABANAS DE SAN ANGEL",47660,"4",4,"X",null,"X","X",null,"x","x","x","x","x",null,"x",null,"X","X","x",null,"x",null,null,"x","x","x","x",null,null,null,null,null,null,null,null,null,null,null,null,null,null,null,null,null,null,null,null,null,null,null,null,null,null,null,null,null,null,null," "," "," "," ",null,null,null,null,null,null," "," "," "," ","X"," "," "," "," ",null,null,null,null," "," ","X","X","X","X",null,null,null,null,null,null,null,null,null,null,null,"X","X","X","X",null,null,null,null,"X",null,null,null,null,"X",null,null,null,null,null,null,null,null,null,null,null,"X","X",null,null,null,null,null,null,null,null,null,null,"X",null,null,null,null,null,null,null,null,null,null,null,null,"X","X"," ",null,null,null,null,"X","X",null,null,null,null,null,null,null,null,null,null,null,null,null,null,null,null,null,null,null,null,null,null,null,null,null,null,null,null,null,null,null,null,null,null,null,null,null,null,null,null,null,null,null,null,null,null,null,null,null,null,null,null,"X",null,"X","X"]
[null,"MAGDALENA","SAN ZENON",47703,"Otros",4,"X",null,"X","X",null,"x","x","x","x",null,null,null,null,"X","X",null,null,null,null,null,"x","x","x","x",null,null,null,null,null,null,null,null,null,null,null,null,null,null,null,null,null,null,null,null,null,null,null,null,null,null,null,null,null,null,null," "," "," "," ","",null,null,null,null,null," "," "," "," "," "," "," "," "," ",null,null,null,null," "," ","X","X","X","X",null,null,null,null,null,null,null,null,null,null,null,"X","X","X","X",null,null,null,null,"X",null,null,null,null,"X",null,null,null,null,null,null,null,null,null,null,null,"X","X",null,null,null,null,null,null,null,null,null,null,null,null,null,null,null,null,null,null,null,null,null,null,null,"X","X"," ",null,null,null,null,null,null,null,null,null,null,null,null,null,null,null,null,null,null,null,null,null,null,null,null,null,null,null,null,null,null,null,null,null,null,null,null,null,null,null,null,null,null,null,null,null,null,null,null,null,null,null,null,null,null,null,null,null,null,null,null,null,"X"]
[null,"META","BARRANCA DE UPIA",50110,"Otros",4,"X",null,"X","X","X","x","x","x","x","x",null,null,"x","X","X",null,null,null,null,"x","x","x","x","x",null,null,null,null,null,null,null,null,null,null,"X",null,null,"X","X",null,null,null,null,null,null,null,null,null,null,null,null,null,null,null,null," "," "," "," ","",null,null,null,null,null," "," "," "," ","X"," "," "," "," ",null,null,null,null," "," ","X","X","X","X","X",null,null,"X",null,null,"X","X","X","X",null,"X","X","X","X",null,null,null,null,"X",null,null,null,null,"X",null,null,null,null,null,null,null,null,null,null,null,"X","X",null,null,null,null,null,null,null,null,null,null,"X",null,null,null,null,null,null,null,null,null,null,"X",null,"X","X","X",null,null,null,null,"X","X",null,null,null,null,null,null,null,null,null,null,null,null,null,null,null,null,null,null,null,null,null,null,null,null,null,null,null,null,null,null,null,null,null,null,null,null,null,null,null,null,null,null,null,null,null,null,null,null,null,null,null,null,null,null,null,"X"]
[null,"META","GRANADA",50313,"2",2,"X","X","X","X","X","x","x","x","x","x","x","x","x","X","X","x",null,"x",null,"x","x","x","x","x",null,null,null,null,null,null,null,"X","X",null,"X","X","X","X","X",null,null,null,null,null,null,null,null,null,null,null,null,null,null,null,null,"X","X","X","X","X","X",null,null,null,null,"X","X","X","X","X","X","X","X","X",null,null,null,null,"X","X","X","X","X","X",null,null,null,null,null,null,null,null,null,null,null,"X","X","X","X",null,null,null,null,"X",null,null,null,null,"X",null,null,null,null,null,null,null,null,null,null,null,"X","X",null,null,null,null,null,null,null,"X","X","X","X",null,null,"X",null,null,null,"X","X","X","X","X",null,"X","X"," ",null,null,null,null,"X","X","X","X","X","X",null,null,null,null,null,"X","X","X","X",null,null,null,null,null,null,null,null,null,null,null,null,null,null,null,null,null,null,null,null,null,null,null,null,null,null,null,null,null,null,null,null,null,null,null,null,null,null,null,"X",null,"X","X"]
[null,"META","PUERTO RICO",50590,"4",3,"X",null,"X","X","X","x","x","x","x","x","x","x","x","X","X","x",null,"x",null,"x","x","x","x","x",null,null,null,null,null,null,null,null,null,null,null,null,null,null,null,null,null,null,null,null,null,null,null,null,null,null,null,null,null,null,null," "," "," "," ",null,null,null,null,null,null," "," "," "," ","X"," "," "," "," ",null,null,null,null," "," ","X","X","X","X",null,null,null,null,null,null,null,null,null,null,null,"X","X","X","X",null,null,null,null,"X",null,null,null,null,"X",null,null,null,null,null,null,null,null,null,null,null,"X","X",null,null,null,null,null,null,null,null,null,null,"X",null,null,null,null,null,null,null,null,null,null,"X",null,"X","X"," ",null,null,null,null,"X","X",null,null,null,null,null,null,null,null,null,null,null,null,null,null,null,null,null,null,null,null,null,null,null,null,null,null,null,null,null,null,null,null,null,null,null,null,null,null,null,null,null,null,null,null,null,null,null,null,null,null,null,null,"X",null,"X","X"]
[null,"META","VISTAHERMOSA",50711,"4",4,"X",null,"X","X","X","x","x","x","x","x","x","x","x","X","X","x",null,"x",null,"x","x","x","x","x",null,null,null,null,null,null,null,null,null,null,null,null,null,null,null,null,null,null,null,null,null,null,null,null,null,null,null,null,null,null,null," "," "," "," ",null,null,null,null,null,null," "," "," "," ","X"," "," "," "," ",null,null,null,null," "," ","X","X","X","X",null,null,null,null,null,null,null,null,null,null,null,"X","X","X","X",null,null,null,null,"X",null,null,null,null,"X",null,null,null,null,null,null,null,null,null,null,null,"X","X",null,null,null,null,null,null,null,null,null,null,null,null,null,null,null,null,null,null,null,null,null,"X",null,"X","X","X",null,null,null,null,null,null,null,null,null,null,null,null,null,null,null,null,null,null,null,null,null,null,null,null,null,null,null,null,null,null,null,null,null,null,null,null,null,null,null,null,null,null,null,null,null,null,null,null,null,null,null,null,null,null,null,null,null,null,"X",null,"X","X"]
[null,"NARIÑO","COLON",52203,"Otros",4,"X",null,"X","X","X","x","x","x","x","x",null,null,"x","X","X",null,null,null,null,"x","x","x","x","x",null,null,null,null,null,null,null,null,null,null,null,null,null,null,null,null,null,null,null,null,null,null,null,null,null,null,null,null,null,null,null," "," "," "," ","",null,null,null,null,null," "," "," "," ","X"," "," "," "," ",null,null,null,null," "," ","X","X","X","X",null,null,null,null,null,null,null,null,null,null,null,"X","X","X","X",null,null,null,null,"X",null,null,null,null,"X",null,null,null,null,null,null,null,null,null,null,null,"X","X",null,null,null,null,null,null,null,null,null,null,null,null,null,null,null,null,null,null,null,null,null,"X",null,"X","X"," ",null,null,null,null,null,null,null,null,null,null,null,null,null,null,null,null,null,null,null,null,null,null,null,null,null,null,null,null,null,null,null,null,null,null,null,null,null,null,null,null,null,null,null,null,null,null,null,null,null,null,null,null,null,null,null,null,null,null,null,null,null,"X"]
[null,"NARIÑO","EL PEÑOL",52254,"Otros",3,"X",null,"X","X","X","x","x","x","x","x",null,null,null,null,null,null,null,null,null,"x","x","x","x","x",null,null,null,null,null,null,null,null,null,null,null,null,null,null,null,null,null,null,null,null,null,null,null,null,null,null,null,null,null,null,null," "," "," "," ","",null,null,null,null,null," "," "," "," ","X"," "," "," "," ",null,null,null,null," "," ","X","X","X","X",null,null,null,null,null,null,null,null,null,null,null,"X","X","X","X",null,null,null,null,"X",null,null,null,null,"X",null,null,null,null,null,null,null,null,null,null,null,"X","X",null,null,null,null,null,null,null,null,null,null,null,null,null,null,null,null,null,null,null,null,null,"X",null,"X","X","X",null,null,null,null,null,null,null,null,null,null,null,null,null,null,null,null,null,null,null,null,null,null,null,null,null,null,null,null,null,null,null,null,null,null,null,null,null,null,null,null,null,null,null,null,null,null,null,null,null,null,null,null,null,null,null,null,null,null,null,null,null,"X"]
[null,"NARIÑO","EL ROSARIO",52256,"4",4,"X",null,"X","X",null,"x","x","x","x","x","x","x","x","X","X","x",null,"x",null,"x","x","x","x","x",null,null,null,null,null,null,null,null,null,null,null,null,null,null,null,null,null,null,null,null,null,null,null,null,null,null,null,null,null,null,null," "," "," "," ",null,null,null,null,null,null," "," "," "," "," "," "," "," "," ",null,null,null,null," "," ","X","X","X","X",null,null,null,null,null,null,null,null,null,null,null,"X","X","X","X",null,null,null,null,"X",null,null,null,null,"X",null,null,null,null,null,null,null,null,null,null,null,"X","X",null,null,null,null,null,null,null,null,null,null,"X",null,null,null,null,null,null,null,null,null,null,"X",null,"X","X"," ",null,null,null,null,"X","X",null,null,null,null,null,null,null,null,null,null,null,null,null,null,null,null,null,null,null,null,null,null,null,null,null,null,null,null,null,null,null,null,null,null,null,null,null,null,null,null,null,null,null,null,null,null,null,null,null,null,null,null,"X",null,"X","X"]
[null,"NARIÑO","LA TOLA",52390,"Otros",4,"X",null,"X","X",null,"x","x","x","x","x",null,null,"x","X","X",null,null,null,null,"x","x","x","x","x",null,null,null,null,null,null,null,null,null,null,null,null,null,null,null,null,null,null,null,null,null,null,null,null,null,null,null,null,null,null,null," "," "," "," ","",null,null,null,null,null," "," "," "," "," "," "," "," "," ",null,null,null,null," "," ","X","X","X","X",null,null,null,null,null,null,null,null,null,null,null,"X","X","X","X",null,null,null,null,"X",null,null,null,null,"X",null,null,null,null,null,null,null,null,null,null,null,"X","X",null,null,null,null,null,null,null,null,null,null,null,null,null,null,null,null,null,null,null,null,null,null,null,"X","X","X"]
[null,"NARIÑO","LOS ANDES",52418,"4",4,"X",null,"X","X",null,"x","x","x","x","x","x","x","x","X","X","x",null,"x",null,"x","x","x","x","x",null,null,null,null,null,null,null,null,null,null,null,null,null,null,null,null,null,null,null,null,null,null,null,null,null,null,null,null,null,null,null," "," "," "," ",null,null,null,null,null,null," "," "," "," ","X"," "," "," "," ",null,null,null,null," "," ","X","X","X","X",null,null,null,null,null,null,null,null,null,null,null,"X","X","X","X",null,null,null,null,"X",null,null,null,null,"X",null,null,null,null,null,null,null,null,null,null,null,"X","X",null,null,null,null,null,null,null,null,null,null,"X",null,null,null,null,null,null,null,null,null,null,"X",null,"X","X","X",null,null,null,null,"X","X",null,null,null,null,null,null,null,null,null,null,null,null,null,null,null,null,null,null,null,null,null,null,null,null,null,null,null,null,null,null,null,null,null,null,null,null,null,null,null,null,null,null,null,null,null,null,null,null,null,null,null,null,"X",null,"X","X"]
[null,"NARIÑO","POTOSI",52560,"Otros",4,"X",null,"X","X","X","x","x","x","x","x",null,null,"x","X","X",null,null,null,null,"x","x","x","x","x",null,null,null,null,null,null,null,null,null,null,null,null,null,null,null,null,null,null,null,null,null,null,null,null,null,null,null,null,null,null,null," "," "," "," ","",null,null,null,null,null," "," "," "," ","X"," "," "," "," ",null,null,null,null," "," ","X","X","X","X",null,null,null,null,null,null,null,null,null,null,null,"X","X","X","X",null,null,null,null,"X",null,null,null,null,"X",null,null,null,null,null,null,null,null,null,null,null,"X","X",null,null,null,null,null,null,null,null,null,null,null,null,null,null,null,null,null,null,null,null,null,"X",null,"X","X"," ",null,null,null,null,null,null,null,null,null,null,null,null,null,null,null,null,null,null,null,null,null,null,null,null,null,null,null,null,null,null,null,null,null,null,null,null,null,null,null,null,null,null,null,null,null,null,null,null,null,null,null,null,null,null,null,null,null,null,null,null,null,"X"]
[null,"NARIÑO","SAN LORENZO",52687,"4",4,"X",null,"X","X","X","x","x","x","x","x","x","x",null,"X","X","x",null,"x",null,null,"x","x","x","x",null,null,null,null,null,null,null,null,null,null,null,null,null,null,null,null,null,null,null,null,null,null,null,null,null,null,null,null,null,null,null," "," "," "," ",null,null,null,null,null,null," "," "," "," ","X"," "," "," "," ",null,null,null,null," "," ","X","X","X","X",null,null,null,null,null,null,null,null,null,null,null,"X","X","X","X",null,null,null,null,"X",null,null,null,null,"X",null,null,null,null,null,null,null,null,null,null,null,"X","X",null,null,null,null,null,null,null,null,null,null,"X",null,null,null,null,null,null,null,null,null,null,"X",null,"X","X","X",null,null,null,null,"X","X",null,null,null,null,null,null,null,null,null,null,null,null,null,null,null,null,null,null,null,null,null,null,null,null,null,null,null,null,null,null,null,null,null,null,null,null,null,null,null,null,null,null,null,null,null,null,null,null,null,null,null,null,"X",null,"X","X"]
[null,"NARIÑO","TANGUA",52788,"Otros",4,"X",null,"X","X","X","x","x","x","x","x",null,null,"x","X","X",null,null,null,null,"x","x","x","x","x",null,null,null,null,null,null,null,null,null,null,null,null,null,null,null,null,null,null,null,null,null,null,null,null,null,null,null,null,null,null,null," "," "," "," ","",null,null,null,null,null," "," "," "," ","X"," "," "," "," ",null,null,null,null," "," ","X","X","X","X",null,null,null,null,null,null,null,null,null,null,null,"X","X","X","X",null,null,null,null,"X",null,null,null,null,"X",null,null,null,null,null,null,null,null,null,null,null,"X","X",null,null,null,null,null,null,null,null,null,null,null,null,null,null,null,null,null,null,null,null,null,"X",null,"X","X","X",null,null,null,null,null,null,null,null,null,null,null,null,null,null,null,null,null,null,null,null,null,null,null,null,null,null,null,null,null,null,null,null,null,null,null,null,null,null,null,null,null,null,null,null,null,null,null,null,null,null,null,null,null,null,null,null,null,null,null,null,null,"X"]
[null,"N. DE SANTANDER","CACHIRA",54128,"4",4,"X",null,"X","X","X","x","x","x","x","x","x","x","x","X","X","x",null,"x",null,"x","x","x","x","x",null,null,null,null,null,null,null,null,null,null,null,null,null,null,null,null,null,null,null,null,null,null,null,null,null,null,null,null,null,null,null," "," "," "," ",null,null,null,null,null,null," "," "," "," "," "," "," "," "," ",null,null,null,null," "," ","X","X","X","X",null,null,null,null,null,null,null,null,null,null,null,"X","X","X","X",null,null,null,null,"X",null,null,null,null,"X",null,null,null,null,null,null,null,null,null,null,null,"X","X",null,null,null,null,null,null,null,null,null,null,"X",null,null,null,null,null,null,null,null,null,null,"X",null,"X","X","X",null,null,null,null,"X","X",null,null,null,null,null,null,null,null,null,null,null,null,null,null,null,null,null,null,null,null,null,null,null,null,null,null,null,null,null,null,null,null,null,null,null,null,null,null,null,null,null,null,null,null,null,null,null,null,null,null,null,null,"X",null,"X","X"]
[null,"N. DE SANTANDER","GRAMALOTE",54313,"4",4,"X",null,"X","X",null,"x","x","x","x","x",null,"x",null,"X","X","x",null,"x",null,null,"x","x","x","x",null,null,null,null,null,null,null,null,null,null,null,null,null,null,null,null,null,null,null,null,null,null,null,null,null,null,null,null,null,null,null," "," "," "," ",null,null,null,null,null,null," "," "," "," "," "," "," "," "," ",null,null,null,null," "," ","X","X","X","X",null,null,null,null,null,null,null,null,null,null,null,"X","X","X","X",null,null,null,null,"X",null,null,null,null,"X",null,null,null,null,null,null,null,null,null,null,null,"X","X",null,null,null,null,null,null,null,null,null,null,"X",null,null,null,null,null,null,null,null,null,null,null,null,"X","X","X",null,null,null,null,"X","X",null,null,null,null,null,null,null,null,null,null,null,null,null,null,null,null,null,null,null,null,null,null,null,null,null,null,null,null,null,null,null,null,null,null,null,null,null,null,null,null,null,null,null,null,null,null,null,null,null,null,null,null,null,null,null,"X"]
[null,"N. DE SANTANDER","HACARI",54344,"4",4,"X",null,"X","X","X","x","x","x","x","x",null,"x","x","X","X","x",null,"x",null,"x","x","x","x","x",null,null,null,null,null,null,null,null,null,null,null,null,null,null,null,null,null,null,null,null,null,null,null,null,null,null,null,null,null,null,null," "," "," "," ",null,null,null,null,null,null," "," "," "," ","X"," "," "," "," ",null,null,null,null," "," ","X","X","X","X",null,null,null,null,null,null,null,null,null,null,null,"X","X","X","X",null,null,null,null,"X",null,null,null,null,"X",null,null,null,null,null,null,null,null,null,null,null,"X","X",null,null,null,null,null,null,null,null,null,null,"X",null,null,null,null,null,null,null,null,null,null,"X",null,"X","X"," ",null,null,null,null,"X","X",null,null,null,null,null,null,null,null,null,null,null,null,null,null,null,null,null,null,null,null,null,null,null,null,null,null,null,null,null,null,null,null,null,null,null,null,null,null,null,null,null,null,null,null,null,null,null,null,null,null,null,null,null,null,null,"X"]
[null,"N. DE SANTANDER","PAMPLONA",54518,"3",3,"X",null,"X","X","X","x","x","x","x","x","x","x","x","X","X","x",null,"x",null,"x","x","x","x","x",null,null,null,null,null,null,null,"X","X",null,"X","X","X","X","X",null,null,null,null,null,null,null,null,null,null,null,null,null,null,null,null,"X","X","X","X","X",null,null,null,null,null,"X","X","X","X","X","X","X","X","X",null,null,null,null,"X","X","X","X","X","X",null,null,null,null,null,null,null,null,null,null,null,"X","X","X","X",null,null,null,null,"X",null,null,null,null,"X",null,null,null,null,null,null,null,null,null,null,null,"X","X",null,null,null,null,null,null,null,"X","X","X","X",null,null,"X",null,null,null,"X","X","X","X","X",null,"X","X","X",null,null,null,null,"X","X","X","X","X","X",null,null,null,null,null,"X","X","X","X",null,null,null,null,null,null,null,null,null,null,null,null,null,null,null,null,null,null,null,null,null,null,null,null,null,null,null,null,null,null,null,null,null,null,null,null,null,null,null,"X",null,"X","X"]
[null,"N. DE SANTANDER","TOLEDO",54820,"4",4,"X",null,"X","X","X","x","x","x","x","x","x","x","x","X","X","x",null,"x",null,"x","x","x","x","x",null,null,null,null,null,null,null,null,null,null,null,null,null,null,null,null,null,null,null,null,null,null,null,null,null,null,null,null,null,null,null," "," "," "," ",null,null,null,null,null,null," "," "," "," ","X"," "," "," "," ",null,null,null,null," "," ","X","X","X","X",null,null,null,null,null,null,null,null,null,null,null,"X","X","X","X",null,null,null,null,"X",null,null,null,null,"X",null,null,null,null,null,null,null,null,null,null,null,"X","X",null,null,null,null,null,null,null,null,null,null,"X",null,null,null,null,null,null,null,null,null,null,"X",null,"X","X"," ",null,null,null,null,"X","X",null,null,null,null,null,null,null,null,null,null,null,null,null,null,null,null,null,null,null,null,null,null,null,null,null,null,null,null,null,null,null,null,null,null,null,null,null,null,null,null,null,null,null,null,null,null,null,null,null,null,null,null,"X",null,"X","X"]
[null,"QUINDIO","CALARCA",63130,"2",2,"X",null,"X","X","X","x","x","x","x","x","x","x","x","X","X","x",null,"x",null,"x","x","x","x","x",null,null,null,null,null,null,null,"X","X",null,"X","X","X","X","X",null,null,null,null,null,null,null,null,null,null,null,null,null,null,null,null,"X","X","X","X","X","X",null,null,null,null,"X","X","X","X","X","X","X","X","X",null,null,null,null,"X","X","X","X","X","X",null,null,null,null,null,null,null,null,null,null,null,"X","X","X","X",null,null,null,null,"X",null,null,null,null,"X",null,null,null,null,null,null,null,null,null,"X",null,"X","X",null,null,null,null,null,null,null,null,null,null,"X",null,null,null,null,null,null,null,null,null,null,"X",null,"X","X","X",null,null,null,null,"X","X","X","X","X","X",null,null,null,null,null,"X","X","X","X","X",null,null,null,null,null,null,null,null,null,null,null,null,null,null,null,null,null,null,null,null,null,null,null,null,null,null,null,null,null,null,null,null,null,null,null,null,null,null,"X",null,"X","X"]
[null,"QUINDIO","SALENTO",63690,"4",4,"X",null,"X","X","X","x","x","x","x","x","x","x","x","X","X","x",null,"x",null,"x","x","x","x","x",null,null,null,null,null,null,null,null,null,null,"X","X",null,"X","X",null,null,null,null,null,null,null,null,null,null,null,null,null,null,null,null," "," "," "," ",null,null,null,null,null,null," "," "," "," ","X"," "," "," "," ",null,null,null,null," "," ","X","X","X","X",null,null,null,null,null,null,null,null,null,null,null,"X","X","X","X",null,null,null,null,"X",null,null,null,null,"X",null,null,null,null,null,null,null,null,null,null,null,"X","X",null,null,null,null,null,null,null,null,null,null,"X",null,null,null,null,null,null,null,null,null,null,"X",null,"X","X","X",null,null,null,null,"X","X",null,null,null,null,null,null,null,null,null,null,null,null,null,"X",null,null,null,null,null,null,null,null,null,null,null,null,null,null,null,null,null,null,null,null,null,null,null,null,null,null,null,null,null,null,null,null,null,null,null,null,null,null,"X",null,"X","X"]
[null,"RISARALDA","MARSELLA",66440,"Otros",4,"X",null,"X","X","X","x","x","x","x","x",null,null,"x","X","X",null,null,null,null,"x","x","x","x","x",null,null,null,null,null,null,null,"X","X",null,"X","X","X","X","X",null,null,null,null,null,null,null,null,null,null,null,null,null,null,null,null," "," "," "," ","",null,null,null,null,null," "," "," "," ","X"," "," "," "," ",null,null,null,null," "," ","X","X","X","X",null,null,null,null,null,null,null,null,null,null,null,"X","X","X","X",null,null,null,null,"X",null,null,null,null,"X",null,null,null,null,null,null,null,null,null,null,null,"X","X",null,null,null,null,null,null,null,null,null,null,"X",null,null,null,null,null,null,null,null,null,null,"X",null,"X","X","X",null,null,null,null,"X","X",null,null,null,null,null,null,null,null,null,null,null,null,null,null,null,null,null,null,null,null,null,null,null,null,null,null,null,null,null,null,null,null,null,null,null,null,null,null,null,null,null,null,null,null,null,null,null,null,null,null,null,null,null,null,null,"X"]
[null,"SANTANDER","BUCARAMANGA",68001,"1",1,"X",null,"X","X","X","x","x","x","x","x","x","x","x","X","X","x",null,"x",null,"x","x","x","x","x",null,null,null,null,null,null,null,"X","X",null,"X","X","X","X","X",null,null,null,null,null,null,null,null,null,null,null,null,null,null,null,null,"X","X","X","X","X","X",null,null,null,null,"X","X","X","X","X","X","X","X","X",null,null,null,null,"X","X","X","X","X","X",null,null,null,null,null,null,null,null,null,null,"X","X","X","X","X",null,null,null,null,"X",null,"X","X","X","X",null,null,null,null,null,"X","X","X","X","X","X","X","X","X",null,null,null,null,null,null,"X","X","X","X",null,null,"X",null,null,null,"X","X","X","X","X",null,"X","X","X",null,null,null,null,"X","X","X","X","X","X",null,null,null,null,null,"X","X","X","X",null,null,null,null,null,null,null,null,null,null,null,"X","X","X","X",null,null,"X",null,null,null,null,null,null,null,null,null,null,null,null,null,null,null,null,null,null,null,null,null,"X",null,"X","X"]
[null,"SANTANDER","CAPITANEJO",68147,"4",4,"X",null,"X","X","X","x","x","x","x","x","x","x","x","X","X","x",null,"x",null,"x","x","x","x","x",null,null,null,null,null,null,null,null,null,null,null,null,null,null,null,null,null,null,null,null,null,null,null,null,null,null,null,null,null,null,null," "," "," "," ",null,null,null,null,null,null," "," "," "," ","X"," "," "," "," ",null,null,null,null," "," ","X","X","X","X",null,null,null,null,null,null,null,null,null,null,null,"X","X","X","X",null,null,null,null,"X",null,null,null,null,"X",null,null,null,null,null,null,null,null,null,null,null,"X","X",null,null,null,null,null,null,null,null,null,null,"X",null,null,null,null,null,null,null,null,null,null,"X",null,"X","X"," ",null,null,null,null,"X","X",null,null,null,null,null,null,null,null,null,null,null,null,null,null,null,null,null,null,null,null,null,null,null,null,null,null,null,null,null,null,null,null,null,null,null,null,null,null,null,null,null,null,null,null,null,null,null,null,null,null,null,null,"X",null,"X","X"]
[null,"SANTANDER","CARCASI",68152,"4",4,"X",null,"X","X",null,"x","x","x","x","x","x","x",null,"X","X","x",null,"x",null,null,"x","x","x","x",null,null,null,null,null,null,null,null,null,null,null,null,null,null,null,null,null,null,null,null,null,null,null,null,null,null,null,null,null,null,null," "," "," "," ",null,null,null,null,null,null," "," "," "," ","X"," "," "," "," ",null,null,null,null," "," ","X","X","X","X",null,null,null,null,null,null,null,null,null,null,null,"X","X","X","X",null,null,null,null,"X",null,null,null,null,"X",null,null,null,null,null,null,null,null,null,null,null,"X","X",null,null,null,null,null,null,null,null,null,null,"X",null,null,null,null,null,null,null,null,null,null,"X",null,"X","X"," ",null,null,null,null,"X","X",null,null,null,null,null,null,null,null,null,null,null,null,null,null,null,null,null,null,null,null,null,null,null,null,null,null,null,null,null,null,null,null,null,null,null,null,null,null,null,null,null,null,null,null,null,null,null,null,null,null,null,null,"X",null,"X","X"]
[null,"SANTANDER","CONFINES",68209,"Otros",4,"X",null,"X","X",null,"x","x","x","x","x",null,null,"x","X","X",null,null,null,null,"x","x","x","x","x",null,null,null,null,null,null,null,null,null,null,null,null,null,null,null,null,null,null,null,null,null,null,null,null,null,null,null,null,null,null,null," "," "," "," ","",null,null,null,null,null," "," "," "," "," "," "," "," "," ",null,null,null,null," "," ","X","X","X","X",null,null,null,null,null,null,null,null,null,null,null,"X","X","X","X",null,null,null,null,"X",null,null,null,null,"X",null,null,null,null,null,null,null,null,null,null,null,"X","X",null,null,null,null,null,null,null,null,null,null,null,null,null,null,null,null,null,null,null,null,null,"X",null,"X","X"," ",null,null,null,null,null,null,null,null,null,null,null,null,null,null,null,null,null,null,null,null,null,null,null,null,null,null,null,null,null,null,null,null,null,null,null,null,null,null,null,null,null,null,null,null,null,null,null,null,null,null,null,null,null,null,null,null,null,null,null,null,null,"X"]
[null,"SANTANDER","ENCISO",68266,"Otros",4,"X",null,"X","X",null,"x","x","x","x","x",null,null,"x","X","X",null,null,null,null,"x","x","x","x","x",null,null,null,null,null,null,null,null,null,null,null,null,null,null,null,null,null,null,null,null,null,null,null,null,null,null,null,null,null,null,null," "," "," "," ","",null,null,null,null,null," "," "," "," ","X"," "," "," "," ",null,null,null,null," "," ","X","X","X","X",null,null,null,null,null,null,null,null,null,null,null,"X","X","X","X",null,null,null,null,"X",null,null,null,null,"X",null,null,null,null,null,null,null,null,null,null,null,"X","X",null,null,null,null,null,null,null,null,null,null,null,null,null,null,null,null,null,null,null,null,null,"X",null,"X","X"," ",null,null,null,null,null,null,null,null,null,null,null,null,null,null,null,null,null,null,null,null,null,null,null,null,null,null,null,null,null,null,null,null,null,null,null,null,null,null,null,null,null,null,null,null,null,null,null,null,null,null,null,null,null,null,null,null,null,null,null,null,null,"X"]
[null,"SANTANDER","GUAPOTA",68322,"Otros",4,"X",null,"X","X","X","x","x","x","x","x",null,null,"x","X","X",null,null,null,null,"x","x","x","x","x",null,null,null,null,null,null,null,null,null,null,null,null,null,null,null,null,null,null,null,null,null,null,null,null,null,null,null,null,null,null,null," "," "," "," ","",null,null,null,null,null," "," "," "," ","X"," "," "," "," ",null,null,null,null," "," ","X","X","X","X",null,null,null,null,null,null,null,null,null,null,null,"X","X","X","X",null,null,null,null,"X",null,null,null,null,"X",null,null,null,null,null,null,null,null,null,null,null,"X","X",null,null,null,null,null,null,null,null,null,null,null,null,null,null,null,null,null,null,null,null,null,"X",null,"X","X","X"]
[null,"SANTANDER","LEBRIJA",68406,"3",3,"X",null,"X","X","X","x","x","x","x","x","x","x","x","X","X","x",null,"x",null,"x","x","x","x","x",null,null,null,null,null,null,null,null,null,null,"X",null,null,"X","X",null,null,null,null,null,null,null,null,null,null,null,null,null,null,null,null,"X","X","X","X","X",null,null,null,null,null,"X","X","X","X","X","X","X","X","X",null,null,null,null,"X","X","X","X","X","X",null,null,null,null,null,null,null,null,null,null,null,"X","X","X","X",null,null,null,null,"X",null,null,null,null,"X",null,null,null,null,null,null,null,null,null,null,null,"X","X",null,null,null,null,null,null,null,null,null,null,"X",null,null,null,null,null,null,null,null,null,null,"X",null,"X","X","X",null,null,null,null,"X","X",null,null,null,null,null,null,null,null,null,null,null,null,null,null,null,null,null,null,null,null,null,null,null,null,null,null,null,null,null,null,"X",null,null,null,null,null,null,null,null,null,null,null,null,null,null,null,null,null,null,null,null,null,"X",null,"X","X"]
[null,"SANTANDER","ONZAGA",68502,"4",4,"X",null,"X","X","X","x","x","x","x","x","x","x",null,"X","X","x",null,"x",null,null,"x","x","x","x",null,null,null,null,null,null,null,null,null,null,null,null,null,null,null,null,null,null,null,null,null,null,null,null,null,null,null,null,null,null,null," "," "," "," ",null,null,null,null,null,null," "," "," "," "," "," "," "," "," ",null,null,null,null," "," ","X","X","X","X",null,null,null,null,null,null,null,null,null,null,null,"X","X","X","X",null,null,null,null,"X",null,null,null,null,"X",null,null,null,null,null,null,null,null,null,null,null,"X","X",null,null,null,null,null,null,null,null,null,null,"X",null,null,null,null,null,null,null,null,null,null,"X",null,"X","X"," ",null,null,null,null,"X","X",null,null,null,null,null,null,null,null,null,null,null,null,null,null,null,null,null,null,null,null,null,null,null,null,null,null,null,null,null,null,null,null,null,null,null,null,null,null,null,null,null,null,null,null,null,null,null,null,null,null,null,null,"X",null,"X","X"]
[null,"SANTANDER","RIONEGRO",68615,"4",4,"X",null,"X","X","X","x","x","x","x","x","x","x","x","X","X","x",null,"x",null,"x","x","x","x","x",null,null,null,null,null,null,null,"X","X",null,"X","X","X","X","X",null,null,null,null,null,null,null,null,null,null,null,null,null,null,null,null," "," "," "," ",null,null,null,null,null,null," "," "," "," ","X"," "," "," "," ",null,null,null,null," "," ","X","X","X","X",null,null,null,null,null,null,null,null,null,null,null,"X","X","X","X",null,null,null,null,"X",null,"X","X","X","X",null,null,null,null,null,"X","X","X","X","X","X","X","X","X",null,null,null,null,null,null,null,null,null,"X",null,null,null,null,null,null,null,null,null,null,"X",null,"X","X"," ",null,null,null,null,"X","X",null,null,null,null,null,null,null,null,null,null,null,null,null,null,null,null,null,null,null,null,null,null,null,null,null,null,null,null,null,null,"X",null,null,null,null,null,null,null,null,null,null,null,null,null,null,null,null,null,null,null,null,null,"X",null,"X","X"]
[null,"SANTANDER","SAN JOAQUIN",68682,"Otros",4,"X",null,"X","X",null,"x","x","x","x","x",null,null,"x","X","X",null,null,null,null,"x","x","x","x","x",null,null,null,null,null,null,null,null,null,null,null,null,null,null,null,null,null,null,null,null,null,null,null,null,null,null,null,null,null,null,null," "," "," "," ","",null,null,null,null,null," "," "," "," "," "," "," "," "," ",null,null,null,null," "," ","X","X","X","X",null,null,null,null,null,null,null,null,null,null,null,"X","X","X","X",null,null,null,null,"X",null,null,null,null,"X",null,null,null,null,null,null,null,null,null,null,null,"X","X",null,null,null,null,null,null,null,null,null,null,null,null,null,null,null,null,null,null,null,null,null,"X",null,"X","X"," ",null,null,null,null,null,null,null,null,null,null,null,null,null,null,null,null,null,null,null,null,null,null,null,null,null,null,null,null,null,null,null,null,null,null,null,null,null,null,null,null,null,null,null,null,null,null,null,null,null,null,null,null,null,null,null,null,null,null,null,null,null,"X"]
[null,"SANTANDER","SANTA BARBARA",68705,"Otros",4,"X",null,"X","X",null,"x","x","x","x","x",null,null,"x","X","X",null,null,null,null,"x","x","x","x","x",null,null,null,null,null,null,null,null,null,null,null,null,null,null,null,null,null,null,null,null,null,null,null,null,null,null,null,null,null,null,null," "," "," "," ","",null,null,null,null,null," "," "," "," "," "," "," "," "," ",null,null,null,null," "," ","X","X","X","X",null,null,null,null,null,null,null,null,null,null,null,"X","X","X","X",null,null,null,null,"X",null,null,null,null,"X",null,null,null,null,null,null,null,null,null,null,null,"X","X",null,null,null,null,null,null,null,null,null,null,"X",null,null,null,null,null,null,null,null,null,null,"X",null,"X","X"," ",null,null,null,null,"X","X",null,null,null,null,null,null,null,null,null,null,null,null,null,null,null,null,null,null,null,null,null,null,null,null,null,null,null,null,null,null,null,null,null,null,null,null,null,null,null,null,null,null,null,null,null,null,null,null,null,null,null,null,null,null,null,"X"]
[null,"SANTANDER","VELEZ",68861,"3",3,"X",null,"X","X","X","x","x","x","x","x","x","x","x","X","X","x",null,"x",null,"x","x","x","x","x",null,null,null,null,null,null,null,null,null,null,"X",null,null,"X","X",null,null,null,null,null,null,null,null,null,null,null,null,null,null,null,null,"X","X","X","X","X",null,null,null,null,null,"X","X","X","X","X","X","X","X","X",null,null,null,null,"X","X","X","X","X","X",null,null,null,null,null,null,null,null,null,null,null,"X","X","X","X",null,null,null,null,"X",null,null,null,null,"X",null,null,null,null,null,null,null,null,null,null,null,"X","X",null,null,null,null,null,null,null,"X","X","X","X",null,null,"X",null,null,null,"X","X","X","X","X",null,"X","X","X",null,null,null,null,"X","X","X","X","X","X",null,null,null,null,null,"X","X","X","X",null,null,null,null,null,null,null,null,null,null,null,null,null,null,null,null,null,null,null,null,null,null,null,null,null,null,null,null,null,null,null,null,null,null,null,null,null,null,null,"X",null,"X","X"]
[null,"SUCRE","COVEÑAS",70221,"Otros",4,"X",null,"X","X","X","x","x","x","x","x",null,null,"x","X","X",null,null,null,null,"x","x","x","x","x",null,null,null,null,null,null,null,null,null,null,"X",null,null,"X","X",null,null,null,null,null,null,null,null,null,null,null,null,null,null,null,null,"X","X","X","X","X","X",null,null,null,null,"X","X","X","X","X","X","X","X","X",null,null,null,null,"X","X","X","X","X","X",null,null,null,null,null,null,null,null,null,null,null,"X","X","X","X",null,null,null,null,"X",null,null,null,null,"X",null,null,null,null,null,null,null,null,null,"X",null,"X","X",null,null,null,null,null,null,null,null,null,null,null,null,null,null,null,null,null,null,null,null,null,"X",null,"X","X","X",null,null,null,null,null,null,"X","X",null,null,null,null,null,null,null,null,null,null,null,null,null,null,null,null,null,null,null,null,null,null,null,null,null,null,null,null,null,null,null,null,null,null,null,null,null,null,null,null,null,null,null,null,null,null,null,null,null,null,null,null,null,"X"]
[null,"SUCRE","OVEJAS",70508,"4",4,"X",null,"X","X","X","x","x","x","x","x","x","x","x","X","X","x",null,"x",null,"x","x","x","x","x",null,null,null,null,null,null,null,null,null,null,null,null,null,null,null,null,null,null,null,null,null,null,null,null,null,null,null,null,null,null,null," "," "," "," ",null,null,null,null,null,null," "," "," "," ","X"," "," "," "," ",null,null,null,null," "," ","X","X","X","X",null,null,null,null,null,null,null,null,null,null,null,"X","X","X","X",null,null,null,null,"X",null,null,null,null,"X",null,null,null,null,null,null,null,null,null,null,null,"X","X",null,null,null,null,null,null,null,null,null,null,"X",null,null,null,null,null,null,null,null,null,null,"X",null,"X","X","X",null,null,null,null,"X","X",null,null,null,null,null,null,null,null,null,null,null,null,null,null,null,null,null,null,null,null,null,null,null,null,null,null,null,null,null,null,null,null,null,null,null,null,null,null,null,null,null,null,null,null,null,null,null,null,null,null,null,null,"X",null,"X","X"]
[null,"SUCRE","SAN PEDRO",70717,"4",3,"X",null,"X","X","X","x","x","x","x","x","x","x","x","X","X","x",null,"x",null,"x","x","x","x","x",null,null,null,null,null,null,null,null,null,null,"X",null,null,"X","X",null,null,null,null,null,null,null,null,null,null,null,null,null,null,null,null," "," "," "," ",null,null,null,null,null,null," "," "," "," ","X"," "," "," "," ",null,null,null,null," "," ","X","X","X","X",null,null,null,null,null,null,null,null,null,null,null,"X","X","X","X",null,null,null,null,"X",null,null,null,null,"X",null,null,null,null,null,null,null,null,null,"X",null,"X","X",null,null,null,null,null,null,null,null,null,null,"X",null,null,null,null,null,null,null,null,null,null,"X",null,"X","X"," ",null,null,null,null,"X","X",null,null,null,null,null,null,null,null,null,null,null,null,null,"X",null,null,null,null,null,null,null,null,null,null,null,null,null,null,null,null,null,null,null,null,null,null,null,null,null,null,null,null,null,null,null,null,null,null,null,null,null,null,"X",null,"X","X"]
[null,"TOLIMA","ARMERO",73055,"4",4,"X",null,"X","X","X","x","x","x","x","x","x","x","x","X","X","x",null,"x",null,"x","x","x","x","x",null,null,null,null,null,null,null,null,null,null,"X",null,null,"X","X",null,null,null,null,null,null,null,null,null,null,null,null,null,null,null,null," "," "," "," ",null,null,null,null,null,null," "," "," "," ","X"," "," "," "," ",null,null,null,null," "," ","X","X","X","X",null,null,null,null,null,null,null,null,null,null,null,"X","X","X","X",null,null,null,null,"X",null,null,null,null,"X",null,null,null,null,null,null,null,null,null,null,null,"X","X",null,null,null,null,null,null,null,null,null,null,"X",null,null,null,null,null,null,null,null,null,null,"X",null,"X","X"," ",null,null,null,null,"X","X",null,null,null,null,null,null,null,null,null,null,null,null,null,null,null,null,null,null,null,null,null,null,null,null,null,null,null,null,null,null,null,null,null,null,null,null,null,null,null,null,null,null,null,null,null,null,null,null,null,null,null,null,"X",null,"X","X"]
[null,"TOLIMA","DOLORES",73236,"4",4,"X",null,"X","X","X","x","x","x","x","x","x","x","x","X","X","x",null,"x",null,"x","x","x","x","x",null,null,null,null,null,null,null,null,null,null,"X",null,null,"X","X",null,null,null,null,null,null,null,null,null,null,null,null,null,null,null,null," "," "," "," ",null,null,null,null,null,null," "," "," "," ","X"," "," "," "," ",null,null,null,null," "," ","X","X","X","X",null,null,null,null,null,null,null,null,null,null,null,"X","X","X","X",null,null,null,null,"X",null,null,null,null,"X",null,null,null,null,null,null,null,null,null,null,null,"X","X",null,null,null,null,null,null,null,null,null,null,"X",null,null,null,null,null,null,null,null,null,null,"X",null,"X","X","X",null,null,null,null,"X","X",null,null,null,null,null,null,null,null,null,null,null,null,null,null,null,null,null,null,null,null,null,null,null,null,null,null,null,null,null,null,null,null,null,null,null,null,null,null,null,null,null,null,null,null,null,null,null,null,null,null,null,null,"X",null,"X","X"]
[null,"TOLIMA","LERIDA",73408,"Otros",4,"X",null,"X","X","X","x","x","x","x","x","x","x","x","X","X","x",null,"x",null,"x","x","x","x","x",null,null,null,null,null,null,null,null,null,null,"X",null,null,"X","X",null,null,null,null,null,null,null,null,null,null,null,null,null,null,null,null," "," "," "," ","",null,null,null,null,null," "," "," "," ","X"," "," "," "," ",null,null,null,null," "," ","X","X","X","X",null,null,null,null,null,null,null,null,null,null,"X","X","X","X","X",null,null,null,null,"X",null,null,null,null,"X",null,null,null,null,null,null,null,null,null,null,null,"X","X",null,null,null,null,null,null,null,null,null,null,"X",null,null,null,null,null,null,null,null,null,null,"X",null,"X","X","X",null,null,null,null,"X","X",null,null,null,null,null,null,null,null,null,null,null,null,null,null,null,null,null,null,null,null,null,null,null,null,null,null,null,null,null,null,null,null,null,null,null,null,null,null,null,null,null,null,null,null,null,null,null,null,null,null,null,null,"X",null,"X","X"]
[null,"TOLIMA","LIBANO",73411,"3",3,"X",null,"X","X","X","x","x","x","x","x","x","x","x","X","X","x",null,"x",null,"x","x","x","x","x",null,null,null,null,null,null,null,"X","X",null,"X","X","X","X","X",null,null,null,null,null,null,null,null,null,null,null,null,null,null,null,null,"X","X","X","X","X",null,null,null,null,null,"X","X","X","X","X","X","X","X","X",null,null,null,null,"X","X","X","X","X","X",null,null,null,null,null,null,null,null,null,null,null,"X","X","X","X",null,null,null,null,"X",null,null,null,null,"X",null,null,null,null,null,null,null,null,null,"X",null,"X","X",null,null,null,null,null,null,null,null,null,null,"X",null,null,null,null,null,null,null,null,null,null,"X",null,"X","X","X",null,null,null,null,"X","X",null,null,null,null,null,null,null,null,null,null,null,null,null,null,null,null,null,null,null,null,null,null,null,null,null,null,null,null,null,null,null,null,null,null,null,null,null,null,null,null,null,null,null,null,null,null,null,null,null,null,null,null,"X",null,"X","X"]
[null,"TOLIMA","PLANADAS",73555,"3",3,"X",null,"X","X","X","x","x","x","x","x","x","x","x","X","X","x",null,"x",null,"x","x","x","x","x",null,null,null,null,null,null,null,null,null,null,"X",null,null,"X","X",null,null,null,null,null,null,null,null,null,null,null,null,null,null,null,null," "," "," "," ","",null,null,null,null,null," "," "," "," ","X"," "," "," "," ",null,null,null,null," "," ","X","X","X","X",null,null,null,null,null,null,null,null,null,null,null,"X","X","X","X",null,null,null,null,"X",null,null,null,null,"X",null,null,null,null,null,null,null,null,null,null,null,"X","X",null,null,null,null,null,null,null,null,null,null,"X",null,null,null,null,null,null,null,null,null,null,"X",null,"X","X","X",null,null,null,null,"X","X",null,null,null,null,null,null,null,null,null,null,null,null,null,null,null,null,null,null,null,null,null,null,null,null,null,null,null,null,null,null,null,null,null,null,null,null,null,null,null,null,null,null,null,null,null,null,null,null,null,null,null,null,"X",null,"X","X"]
[null,"TOLIMA","SANTA ISABEL",73686,"4",4,"X",null,"X","X","X","x","x","x","x","x","x","x",null,"X","X","x",null,"x",null,null,"x","x","x","x",null,null,null,null,null,null,null,null,null,null,"X",null,null,"X","X",null,null,null,null,null,null,null,null,null,null,null,null,null,null,null,null," "," "," "," ",null,null,null,null,null,null," "," "," "," ","X"," "," "," "," ",null,null,null,null," "," ","X","X","X","X",null,null,null,null,null,null,null,null,null,null,null,"X","X","X","X",null,null,null,null,"X",null,null,null,null,"X",null,null,null,null,null,null,null,null,null,null,null,"X","X",null,null,null,null,null,null,null,null,null,null,"X",null,null,null,null,null,null,null,null,null,null,"X",null,"X","X","X",null,null,null,null,"X","X",null,null,null,null,null,null,null,null,null,null,null,null,null,null,null,null,null,null,null,null,null,null,null,null,null,null,null,null,null,null,null,null,null,null,null,null,null,null,null,null,null,null,null,null,null,null,null,null,null,null,null,null,"X",null,"X","X"]
[null,"VALLE DEL CAUCA","ANSERMANUEVO",76041,"4",4,"X",null,"X","X","X","x","x","x","x","x","x","x","x","X","X","x",null,"x",null,"x","x","x","x","x",null,null,null,null,null,null,null,null,null,null,null,null,null,null,null,null,null,null,null,null,null,null,null,null,null,null,null,null,null,null,null," "," "," "," ",null,null,null,null,null,null," "," "," "," ","X"," "," "," "," ",null,null,null,null," "," ","X","X","X","X",null,null,null,null,null,null,null,null,null,null,null,"X","X","X","X",null,null,null,null,"X",null,null,null,null,"X",null,null,null,null,null,null,null,null,null,null,null,"X","X",null,null,null,null,null,null,null,null,null,null,"X",null,null,null,null,null,null,null,null,null,null,"X",null,"X","X","X",null,null,null,null,"X","X",null,null,null,null,null,null,null,null,null,null,null,null,null,null,null,null,null,null,null,null,null,null,null,null,null,null,null,null,null,null,"X",null,null,null,null,null,null,null,null,null,null,null,null,null,null,null,null,null,null,null,null,null,"X",null,"X","X"]
[null,"VALLE DEL CAUCA","CARTAGO",76147,"1",1,"X","X","X","X","X","x","x","x","x","x","x","x","x","X","X","x",null,"x",null,"x","x","x","x","x",null,null,null,null,null,null,null,"X","X",null,"X","X","X","X","X",null,null,null,null,null,null,null,null,null,null,null,null,null,null,null,null,"X","X","X","X","X","X",null,null,null,null,"X","X","X","X","X","X","X","X","X",null,null,null,null,"X","X","X","X","X","X",null,null,null,null,null,null,null,null,null,null,"X","X","X","X","X",null,null,null,null,"X",null,"X","X","X","X",null,null,null,null,null,"X","X","X","X","X","X","X","X","X",null,null,null,null,null,null,"X","X","X","X",null,null,"X",null,null,null,"X","X","X","X","X",null,"X","X","X",null,null,null,null,"X","X","X","X",null,null,null,null,null,null,null,null,null,null,null,null,null,null,null,null,null,null,null,null,null,null,"X","X","X","X",null,null,"X",null,null,null,null,null,null,null,null,null,null,null,null,null,null,null,null,null,null,null,null,null,"X",null,"X","X"]
[null,"VALLE DEL CAUCA","LA CUMBRE",76377,"4",4,"X",null,"X","X","X","x","x","x","x","x","x","x",null,"X","X","x",null,"x",null,null,"x","x","x","x",null,null,null,null,null,null,null,null,null,null,null,null,null,null,null,null,null,null,null,null,null,null,null,null,null,null,null,null,null,null,null," "," "," "," ",null,null,null,null,null,null," "," "," "," ","X"," "," "," "," ",null,null,null,null," "," ","X","X","X","X",null,null,null,null,null,null,null,null,null,null,null,"X","X","X","X",null,null,null,null,"X",null,null,null,null,"X",null,null,null,null,null,null,null,null,null,null,null,"X","X",null,null,null,null,null,null,null,null,null,null,"X",null,null,null,null,null,null,null,null,null,null,"X",null,"X","X","X",null,null,null,null,"X","X",null,null,null,null,null,null,null,null,null,null,null,null,null,null,null,null,null,null,null,null,null,null,null,null,null,null,null,null,null,null,null,null,null,null,null,null,null,null,null,null,null,null,null,null,null,null,null,null,null,null,null,null,"X",null,"X","X"]
[null,"VALLE DEL CAUCA","RIOFRIO",76616,"4",4,"X",null,"X","X","X","x","x","x","x","x","x","x","x","X","X","x",null,"x",null,"x","x","x","x","x",null,null,null,null,null,null,null,null,null,null,null,null,null,null,null,null,null,null,null,null,null,null,null,null,null,null,null,null,null,null,null," "," "," "," ",null,null,null,null,null,null," "," "," "," ","X"," "," "," "," ",null,null,null,null," "," ","X","X","X","X",null,null,null,null,null,null,null,null,null,null,null,"X","X","X","X",null,null,null,null,"X",null,null,null,null,"X",null,null,null,null,null,null,null,null,null,null,null,"X","X",null,null,null,null,null,null,null,null,null,null,"X",null,null,null,null,null,null,null,null,null,null,"X",null,"X","X","X",null,null,null,null,"X","X",null,null,null,null,null,null,null,null,null,null,null,null,null,null,null,null,null,null,null,null,null,null,null,null,null,null,null,null,null,null,null,null,null,null,null,null,null,null,null,null,null,null,null,null,null,null,null,null,null,null,null,null,"X",null,"X","X"]
[null,"VALLE DEL CAUCA","VIJES",76869,"Otros",4,"X",null,"X","X","X","x","x","x","x","x","x","x","x","X","X","x",null,"x",null,"x","x","x","x","x",null,null,null,null,null,null,null,null,null,null,null,null,null,null,null,null,null,null,null,null,null,null,null,null,null,null,null,null,null,null,null," "," "," "," ","",null,null,null,null,null," "," "," "," ","X"," "," "," "," ",null,null,null,null," "," ","X","X","X","X",null,null,null,null,null,null,null,null,null,null,null,"X","X","X","X",null,null,null,null,"X",null,null,null,null,"X",null,null,null,null,null,null,null,null,null,null,null,"X","X",null,null,null,null,null,null,null,null,null,null,null,null,null,null,null,null,null,null,null,null,null,"X",null,"X","X","X",null,null,null,null,null,null,null,null,null,null,null,null,null,null,null,null,null,null,null,null,null,null,null,null,null,null,null,null,null,null,null,null,null,null,null,null,null,null,null,null,null,null,null,null,null,null,null,null,null,null,null,null,null,null,null,null,null,null,"X",null,"X","X"]
[null,"VALLE DEL CAUCA","YOTOCO",76890,"Otros",4,"X",null,"X","X","X","x","x","x","x","x","x",null,"x","X","X",null,null,null,null,"x","x","x","x","x",null,null,null,null,null,null,null,null,null,null,null,null,null,null,null,null,null,null,null,null,null,null,null,null,null,null,null,null,null,null,null," "," "," "," ","",null,null,null,null,null," "," "," "," ","X"," "," "," "," ",null,null,null,null," "," ","X","X","X","X",null,null,null,null,null,null,null,null,null,null,null,"X","X","X","X",null,null,null,null,"X",null,null,null,null,"X",null,null,null,null,null,null,null,null,null,null,null,"X","X",null,null,null,null,null,null,null,null,null,null,"X",null,null,null,null,null,null,null,null,null,null,"X",null,"X","X","X",null,null,null,null,"X","X",null,null,null,null,null,null,null,null,null,null,null,null,null,null,null,null,null,null,null,null,null,null,null,null,null,null,null,null,null,null,null,null,null,null,null,null,null,null,null,null,null,null,null,null,null,null,null,null,null,null,null,null,"X",null,"X","X"]
[null,"ARAUCA","SARAVENA",81736,"3",3,"X",null,"X","X","X","x","x","x","x","x","x","x","x","X","X","x",null,"x",null,"x","x","x","x","x",null,null,null,null,null,null,null,"X","X",null,"X","X","X","X","X",null,null,null,null,null,null,null,null,null,null,null,null,null,null,null,null," "," "," "," ","",null,null,null,null,null," "," "," "," ","X"," "," "," "," ",null,null,null,null," "," ","X","X","X","X",null,null,null,null,null,null,null,null,null,null,null,"X","X","X","X",null,null,null,null,"X",null,null,null,null,"X",null,null,null,null,null,null,null,null,null,null,null,"X","X",null,null,null,null,null,null,null,null,null,null,"X",null,null,null,null,null,null,null,null,null,null,"X",null,"X","X","X",null,null,null,null,"X","X","X","X","X","X",null,null,null,null,null,"X","X","X","X",null,null,null,null,null,null,null,null,null,null,null,null,null,null,null,null,null,null,null,null,null,null,null,null,null,null,null,null,null,null,null,null,null,null,null,null,null,null,null,"X",null,"X","X"]
[null,"CASANARE","NUNCHIA",85225,"4",4,"X",null,"X","X","X","x","x","x","x","x","x","x","x","X","X","x",null,"x",null,"x","x","x","x","x",null,null,null,null,null,null,null,null,null,null,"X",null,null,"X","X",null,null,null,null,null,null,null,null,null,null,null,null,null,null,null,null," "," "," "," ",null,null,null,null,null,null," "," "," "," ","X"," "," "," "," ",null,null,null,null," "," ","X","X","X","X",null,null,null,null,null,null,null,null,null,null,null,"X","X","X","X",null,null,null,null,"X",null,null,null,null,"X",null,null,null,null,null,null,null,null,null,null,null,"X","X",null,null,null,null,null,null,null,null,null,null,"X",null,null,null,null,null,null,null,null,null,null,"X",null,"X","X","X",null,null,null,null,"X","X",null,null,null,null,null,null,null,null,null,null,null,null,null,null,null,null,null,null,null,null,null,null,null,null,null,null,null,null,null,null,null,null,null,null,null,null,null,null,null,null,null,null,null,null,null,null,null,null,null,null,null,null,"X",null,"X","X"]
[null,"CASANARE","TAURAMENA",85410,"4",4,"X",null,"X","X","X","x","x","x","x","x","x","x","x","X","X","x",null,"x",null,"x","x","x","x","x",null,null,null,null,null,null,null,"X","X",null,"X","X","X","X","X",null,null,null,null,null,null,null,null,null,null,null,null,null,null,null,null,"X","X","X","X",null,null,null,null,null,null,"X","X","X","X","X","X","X","X","X",null,null,null,null,"X","X","X","X","X","X",null,null,null,null,null,null,null,null,null,null,null,"X","X","X","X",null,null,null,null,"X",null,null,null,null,"X",null,null,null,null,null,null,null,null,null,null,null,"X","X",null,null,null,null,null,null,null,null,null,null,"X",null,null,null,null,null,null,null,null,null,null,"X",null,"X","X","X",null,null,null,null,"X","X","X","X","X","X",null,null,null,null,null,"X","X","X","X",null,null,null,null,null,null,null,null,null,null,null,null,null,null,null,null,null,null,null,null,null,null,null,null,null,null,null,null,null,null,null,null,null,null,null,null,null,null,null,"X",null,"X","X"]
[null,"PUTUMAYO","LEGUIZAMO",86573,"3",3,"X","X","X","X","X","x","x","x","x","x","x","x","x","X","X","x",null,"x",null,"x","x","x","x","x",null,null,null,null,null,null,null,null,null,null,null,null,null,null,null,null,null,null,null,null,null,null,null,null,null,null,null,null,null,null,null," "," "," "," ","",null,null,null,null,null," "," "," "," "," "," "," "," "," ",null,null,null,null," "," ","X","X","X","X",null,null,null,null,null,null,null,null,null,null,null,"X","X","X","X",null,null,null,null,"X",null,null,null,null,"X",null,null,null,null,null,null,null,null,null,null,null,"X","X",null,null,null,null,null,null,null,"X","X","X",null,null,null,"X",null,null,null,"X","X","X","X","X",null,"X","X"," ",null,null,null,null,null,null,null,null,null,null,null,null,null,null,null,null,null,null,null,null,null,null,null,null,null,null,null,null,null,null,null,null,null,null,null,null,null,null,null,null,null,null,null,null,null,null,null,null,null,null,null,null,null,null,null,null,null,null,"X",null,"X","X"]
[null,"AMAZONAS","LETICIA",91001,"1",1,"X","X","X","X","X","x","x","x","x","x","x","x","x","X","X","x",null,"x",null,"x","x","x","x","x",null,null,null,null,null,null,null,null,null,null,"X","X",null,"X","X",null,null,null,null,null,null,null,null,null,null,null,null,null,null,null,null,"X","X","X","X",null,"X",null,null,null,null,"X","X","X","X","X","X","X","X","X",null,null,null,null,"X","X","X","X","X","X",null,null,null,null,null,null,null,null,null,null,null,"X","X","X","X",null,null,null,null,"X",null,null,null,null,"X",null,null,null,null,null,null,null,null,null,null,null,"X","X",null,null,null,null,null,null,null,"X","X","X","X",null,null,"X",null,null,null,"X","X","X","X","X",null,"X","X","X",null,null,null,null,"X","X","X","X","X","X",null,null,null,null,null,"X","X","X","X",null,null,null,null,null,null,null,null,null,null,null,"X","X","X","X",null,null,"X",null,null,null,null,null,null,null,null,null,null,null,null,null,null,null,null,null,null,null,null,null,"X",null,"X","X"]
[null,"AMAZONAS","LA PEDRERA",91407,"Otros",4,"X",null,"X",null,null,"x","x","x","x",null,null,null,null,null,null,null,null,null,null,null,"x","x","x","x",null,null,null,null,null,null,null,null,null,null,null,null,null,null,null,null,null,null,null,null,null,null,null,null,null,null,null,null,null,null,null," "," "," "," ","",null,null,null,null,null," "," "," "," "," "," "," "," "," ",null,null,null,null," "," ","X","X","X","X",null,null,null,null,null,null,null,null,null,null,null,"X","X","X","X",null,null,null,null,"X",null,null,null,null,"X",null,null,null,null,null,null,null,null,null,null,null,"X","X",null,null,null,null,null,null,null,null,null,null,null,null,null,null,null,null,null,null,null,null,null,null,null,"X","X"," "]
[null,"AMAZONAS","LA VICTORIA",91430,"Otros",3,"X",null,null,null,null,"x","x","x","x",null,null,null,null,null,null,null,null,null,null,null,"x","x","x","x",null,null,null,null,null,null,null,null,null,null,null,null,null,null,null,null,null,null,null,null,null,null,null,null,null,null,null,null,null,null,null," "," "," "," ","",null,null,null,null,null," "," "," "," "," "," "," "," "," ",null,null,null,null," "," ","X","X","X","X",null,null,null,null,null,null,null,null,null,null,null,"X","X","X","X",null,null,null,null,"X",null,null,null,null,"X",null,null,null,null,null,null,null,null,null,null,null,"X","X",null,null,null,null,null,null,null,null,null,null,"X",null,null,null,null,null,null,null,null,null,null,null,null,"X","X"," ",null,null,null,null,"X","X"]
[null,"AMAZONAS","MIRITI - PARANA",91460,"Otros",4,"X",null,null,null,null,"x","x","x","x",null,null,null,null,null,null,null,null,null,null,null,"x","x","x","x",null,null,null,null,null,null,null,null,null,null,null,null,null,null,null,null,null,null,null,null,null,null,null,null,null,null,null,null,null,null,null," "," "," "," ","",null,null,null,null,null," "," "," "," "," "," "," "," "," ",null,null,null,null," "," ","X","X","X","X",null,null,null,null,null,null,null,null,null,null,null,"X","X","X","X",null,null,null,null,"X",null,null,null,null,"X",null,null,null,null,null,null,null,null,null,null,null,"X","X",null,null,null,null,null,null,null,null,null,null,null,null,null,null,null,null,null,null,null,null,null,null,null,"X","X"," "]
[null,"AMAZONAS","PUERTO ALEGRIA",91530,"Otros",4,"X",null,null,null,null,"x","x","x","x",null,null,null,null,null,null,null,null,null,null,null,"x","x","x","x",null,null,null,null,null,null,null,null,null,null,null,null,null,null,null,null,null,null,null,null,null,null,null,null,null,null,null,null,null,null,null," "," "," "," ","",null,null,null,null,null," "," "," "," "," "," "," "," "," ",null,null,null,null," "," ","X","X","X","X",null,null,null,null,null,null,null,null,null,null,null,"X","X","X","X",null,null,null,null,"X",null,null,null,null,"X",null,null,null,null,null,null,null,null,null,null,null,"X","X",null,null,null,null,null,null,null,null,null,null,null,null,null,null,null,null,null,null,null,null,null,null,null,"X","X"," "]
[null,"AMAZONAS","PUERTO ARICA",91536,"Otros",4,"X",null,null,null,null,"x","x","x","x",null,null,null,null,null,null,null,null,null,null,null,"x","x","x","x",null,null,null,null,null,null,null,null,null,null,null,null,null,null,null,null,null,null,null,null,null,null,null,null,null,null,null,null,null,null,null," "," "," "," ","",null,null,null,null,null," "," "," "," "," "," "," "," "," ",null,null,null,null," "," ","X","X","X","X",null,null,null,null,null,null,null,null,null,null,null,"X","X","X","X",null,null,null,null,"X",null,null,null,null,"X",null,null,null,null,null,null,null,null,null,null,null,"X","X",null,null,null,null,null,null,null,null,null,null,null,null,null,null,null,null,null,null,null,null,null,null,null,"X","X"," "]
[null,"AMAZONAS","PUERTO NARIÑO",91540,"Otros",4,"X",null,"X","X","X","x","x","x","x",null,null,null,null,null,null,null,null,null,null,null,"x","x","x","x",null,null,null,null,null,null,null,null,null,null,"X",null,null,"X","X",null,null,null,null,null,null,null,null,null,null,null,null,null,null,null,null," "," "," "," ","",null,null,null,null,null," "," "," "," ","X"," "," "," "," ",null,null,null,null," "," ","X","X","X","X",null,null,null,null,null,null,null,null,null,null,null,"X","X","X","X",null,null,null,null,"X",null,null,null,null,"X",null,null,null,null,null,null,null,null,null,null,null,"X","X",null,null,null,null,null,null,null,null,null,null,null,null,null,null,null,null,null,null,null,null,null,"X",null,"X","X","X",null,null,null,null,null,null,null,null,null,null,null,null,null,null,null,null,null,null,null,null,null,null,null,null,null,null,null,null,null,null,null,null,null,null,null,null,null,null,null,null,null,null,null,null,null,null,null,null,null,null,null,null,null,null,null,null,null,null,null,null,null,"X"]
[null,"AMAZONAS","PUERTO SANTANDER",91669,"Otros",4,"X",null,"X",null,null,"x","x","x","x",null,null,null,null,null,null,null,null,null,null,null,"x","x","x","x",null,null,null,null,null,null,null,null,null,null,null,null,null,null,null,null,null,null,null,null,null,null,null,null,null,null,null,null,null,null,null," "," "," "," ","",null,null,null,null,null," "," "," "," "," "," "," "," "," ",null,null,null,null," "," ","X","X","X","X",null,null,null,null,null,null,null,null,null,null,null,"X","X","X","X",null,null,null,null,"X",null,null,null,null,"X",null,null,null,null,null,null,null,null,null,null,null,"X","X",null,null,null,null,null,null,null,null,null,null,null,null,null,null,null,null,null,null,null,null,null,null,null,"X","X"," "]
[null,"AMAZONAS","TARAPACA",91798,"Otros",4,"X",null,"X",null,null,"x","x","x","x",null,null,null,null,null,null,null,null,null,null,null,"x","x","x","x",null,null,null,null,null,null,null,null,null,null,null,null,null,null,null,null,null,null,null,null,null,null,null,null,null,null,null,null,null,null,null," "," "," "," ","",null,null,null,null,null," "," "," "," "," "," "," "," "," ",null,null,null,null," "," ","X","X","X","X",null,null,null,null,null,null,null,null,null,null,null,"X","X","X","X",null,null,null,null,"X",null,null,null,null,"X",null,null,null,null,null,null,null,null,null,null,null,"X","X",null,null,null,null,null,null,null,null,null,null,null,null,null,null,null,null,null,null,null,null,null,"X",null,"X","X"," "]
[null,"GUAINIA","INIRIDA",94001,"3",3,"X",null,"X","X","X","x","x","x","x","x","x","x",null,"X","X","x",null,"x",null,null,"x","x","x","x",null,null,null,null,null,null,null,null,null,null,"X",null,null,"X","X",null,null,null,null,null,null,null,null,null,null,null,null,null,null,null,null,"X","X","X","X","X",null,null,null,null,null,"X","X","X","X","X","X","X","X","X",null,null,null,null,"X","X","X","X","X","X",null,null,null,null,null,null,null,null,null,null,null,"X","X","X","X",null,null,null,null,"X",null,null,null,null,"X",null,null,null,null,null,null,null,null,null,null,null,"X","X",null,null,null,null,null,null,null,null,null,null,"X",null,null,null,null,null,null,null,null,null,null,"X",null,"X","X"," ",null,null,null,null,"X","X",null,null,null,null,null,null,null,null,null,null,null,null,null,null,null,null,null,null,null,null,null,null,null,null,null,null,null,null,null,null,null,null,null,null,null,null,null,null,null,null,null,null,null,null,null,null,null,null,null,null,null,null,"X",null,"X","X"]
[null,"GUAINIA","BARRANCO MINAS",94343,"Otros",4,"X",null,"X","X",null,"x","x","x","x",null,null,null,null,null,null,null,null,null,null,null,"x","x","x","x",null,null,null,null,null,null,null,null,null,null,null,null,null,null,null,null,null,null,null,null,null,null,null,null,null,null,null,null,null,null,null," "," "," "," ","",null,null,null,null,null," "," "," "," "," "," "," "," "," ",null,null,null,null," "," ","X","X","X","X",null,null,null,null,null,null,null,null,null,null,null,"X","X","X","X",null,null,null,null,"X",null,null,null,null,"X",null,null,null,null,null,null,null,null,null,null,null,"X","X",null,null,null,null,null,null,null,null,null,null,null,null,null,null,null,null,null,null,null,null,null,"X",null,"X","X"," "]
[null,"GUAINIA","MAPIRIPANA",94663,"Otros",4,"X",null,null,null,null,"x","x","x","x",null,null,null,null,null,null,null,null,null,null,null,"x","x","x","x",null,null,null,null,null,null,null,null,null,null,null,null,null,null,null,null,null,null,null,null,null,null,null,null,null,null,null,null,null,null,null," "," "," "," ","",null,null,null,null,null," "," "," "," "," "," "," "," "," ",null,null,null,null," "," ","X","X","X","X",null,null,null,null,null,null,null,null,null,null,null,"X","X","X","X",null,null,null,null,"X",null,null,null,null,"X",null,null,null,null,null,null,null,null,null,null,null,"X","X",null,null,null,null,null,null,null,null,null,null,null,null,null,null,null,null,null,null,null,null,null,null,null,"X","X"," "]
[null,"GUAINIA","SAN FELIPE",94883,"Otros",4,"X",null,"X",null,null,"x","x","x","x",null,null,null,null,null,null,null,null,null,null,null,"x","x","x","x",null,null,null,null,null,null,null,null,null,null,null,null,null,null,null,null,null,null,null,null,null,null,null,null,null,null,null,null,null,null,null," "," "," "," ","",null,null,null,null,null," "," "," "," "," "," "," "," "," ",null,null,null,null," "," ","X","X","X","X",null,null,null,null,null,null,null,null,null,null,null,"X","X","X","X",null,null,null,null,"X",null,null,null,null,"X",null,null,null,null,null,null,null,null,null,null,null,"X","X",null,null,null,null,null,null,null,null,null,null,null,null,null,null,null,null,null,null,null,null,null,null,null,"X","X"," "]
[null,"GUAINIA","PUERTO COLOMBIA",94884,"Otros",4,"X",null,null,null,null,"x","x","x","x",null,null,null,null,null,null,null,null,null,null,null,"x","x","x","x",null,null,null,null,null,null,null,null,null,null,null,null,null,null,null,null,null,null,null,null,null,null,null,null,null,null,null,null,null,null,null," "," "," "," ","",null,null,null,null,null," "," "," "," "," "," "," "," "," ",null,null,null,null," "," ","X","X","X","X",null,null,null,null,null,null,null,null,null,null,null,"X","X","X","X",null,null,null,null,"X",null,null,null,null,"X",null,null,null,null,null,null,null,null,null,null,null,"X","X",null,null,null,null,null,null,null,null,null,null,"X",null,null,null,null,null,null,null,null,null,null,null,null,"X","X","X",null,null,null,null,"X","X"]
[null,"GUAINIA","LA GUADALUPE",94885,"Otros",4,"X",null,null,null,null,"x","x","x","x",null,null,null,null,null,null,null,null,null,null,null,"x","x","x","x",null,null,null,null,null,null,null,null,null,null,null,null,null,null,null,null,null,null,null,null,null,null,null,null,null,null,null,null,null,null,null," "," "," "," ","",null,null,null,null,null," "," "," "," "," "," "," "," "," ",null,null,null,null," "," ","X","X","X","X",null,null,null,null,null,null,null,null,null,null,null,"X","X","X","X",null,null,null,null,"X",null,null,null,null,"X",null,null,null,null,null,null,null,null,null,null,null,"X","X",null,null,null,null,null,null,null,null,null,null,null,null,null,null,null,null,null,null,null,null,null,null,null,"X","X"," "]
[null,"GUAINIA","CACAHUAL",94886,"Otros",4,"X",null,null,null,null,"x","x","x","x",null,null,null,null,null,null,null,null,null,null,null,"x","x","x","x",null,null,null,null,null,null,null,null,null,null,null,null,null,null,null,null,null,null,null,null,null,null,null,null,null,null,null,null,null,null,null," "," "," "," ","",null,null,null,null,null," "," "," "," "," "," "," "," "," ",null,null,null,null," "," ","X","X","X","X",null,null,null,null,null,null,null,null,null,null,null,"X","X","X","X",null,null,null,null,"X",null,null,null,null,"X",null,null,null,null,null,null,null,null,null,null,null,"X","X",null,null,null,null,null,null,null,null,null,null,null,null,null,null,null,null,null,null,null,null,null,null,null,"X","X"," "]
[null,"GUAINIA","PANA PANA",94887,"Otros",4,"X",null,null,null,null,"x","x","x","x",null,null,null,null,null,null,null,null,null,null,null,"x","x","x","x",null,null,null,null,null,null,null,null,null,null,null,null,null,null,null,null,null,null,null,null,null,null,null,null,null,null,null,null,null,null,null," "," "," "," ","",null,null,null,null,null," "," "," "," "," "," "," "," "," ",null,null,null,null," "," ","X","X","X","X",null,null,null,null,null,null,null,null,null,null,null,"X","X","X","X",null,null,null,null,"X",null,null,null,null,"X",null,null,null,null,null,null,null,null,null,null,null,"X","X",null,null,null,null,null,null,null,null,null,null,null,null,null,null,null,null,null,null,null,null,null,null,null,"X","X"," "]
[null,"GUAINIA","MORICHAL",94888,"Otros",4,"X",null,null,null,null,"x","x","x","x",null,null,null,null,null,"X",null,null,null,null,null,"x","x","x","x",null,null,null,null,null,null,null,null,null,null,null,null,null,null,null,null,null,null,null,null,null,null,null,null,null,null,null,null,null,null,null," "," "," "," ","",null,null,null,null,null," "," "," "," "," "," "," "," "," ",null,null,null,null," "," ","X","X","X","X",null,null,null,null,null,null,null,null,null,null,null,"X","X","X","X",null,null,null,null,"X",null,null,null,null,"X",null,null,null,null,null,null,null,null,null,null,null,"X","X",null,null,null,null,null,null,null,null,null,null,null,null,null,null,null,null,null,null,null,null,null,null,null,"X","X"," "]
[null,"GUAVIARE","SAN JOSE DEL GUAVIARE",95001,"3",3,"X","X","X","X","X","x","x","x","x","x","x","x","x","X","X","x",null,"x",null,"x","x","x","x","x",null,null,null,null,null,null,null,null,null,null,"X",null,null,"X","X",null,null,null,null,null,null,null,null,null,null,null,null,null,null,null,null,"X","X","X","X","X",null,null,null,null,null,"X","X","X","X","X","X","X","X","X",null,null,null,null,"X","X","X","X","X","X",null,null,null,null,null,null,null,null,null,null,null,"X","X","X","X",null,null,null,null,"X",null,null,null,null,"X",null,null,null,null,null,null,null,null,null,null,null,"X","X",null,null,null,null,null,null,null,"X","X","X","X",null,null,"X",null,null,null,"X","X","X","X","X",null,"X","X","X",null,null,null,null,"X","X","X","X","X","X",null,null,null,null,null,"X","X","X","X",null,null,null,null,null,null,null,null,null,null,null,null,null,null,null,null,null,null,null,null,null,null,null,null,null,null,null,null,null,null,null,null,null,null,null,null,null,null,null,"X",null,"X","X"]
[null,"GUAVIARE","CALAMAR",95015,"Otros",4,"X",null,"X","X",null,"x","x","x","x","x",null,null,"x","X","X",null,null,null,null,"x","x","x","x","x",null,null,null,null,null,null,null,null,null,null,null,null,null,null,null,null,null,null,null,null,null,null,null,null,null,null,null,null,null,null,null," "," "," "," ","",null,null,null,null,null," "," "," "," ","X"," "," "," "," ",null,null,null,null," "," ","X","X","X","X",null,null,null,null,null,null,null,null,null,null,null,"X","X","X","X",null,null,null,null,"X",null,null,null,null,"X",null,null,null,null,null,null,null,null,null,null,null,"X","X",null,null,null,null,null,null,null,null,null,null,"X",null,null,null,null,null,null,null,null,null,null,"X",null,"X","X","X",null,null,null,null,"X","X",null,null,null,null,null,null,null,null,null,null,null,null,null,null,null,null,null,null,null,null,null,null,null,null,null,null,null,null,null,null,null,null,null,null,null,null,null,null,null,null,null,null,null,null,null,null,null,null,null,null,null,null,null,null,null,"X"]
[null,"GUAVIARE","EL RETORNO",95025,"Otros",4,"X",null,"X","X","X","x","x","x","x","x",null,null,"x","X","X",null,null,null,null,"x","x","x","x","x",null,null,null,null,null,null,null,null,null,null,null,null,null,null,null,null,null,null,null,null,null,null,null,null,null,null,null,null,null,null,null," "," "," "," ","",null,null,null,null,null," "," "," "," ","X"," "," "," "," ",null,null,null,null," "," ","X","X","X","X",null,null,null,null,null,null,null,null,null,null,null,"X","X","X","X",null,null,null,null,"X",null,null,null,null,"X",null,null,null,null,null,null,null,null,null,null,null,"X","X",null,null,null,null,null,null,null,null,null,null,null,null,null,null,null,null,null,null,null,null,null,"X",null,"X","X","X",null,null,null,null,null,null,null,null,null,null,null,null,null,null,null,null,null,null,null,null,null,null,null,null,null,null,null,null,null,null,null,null,null,null,null,null,null,null,null,null,null,null,null,null,null,null,null,null,null,null,null,null,null,null,null,null,null,null,null,null,null,"X"]
[null,"GUAVIARE","MIRAFLORES",95200,"4",4,"X",null,"X","X",null,"x","x","x","x","x",null,"x",null,"X","X","x",null,"x",null,null,"x","x","x","x",null,null,null,null,null,null,null,null,null,null,null,null,null,null,null,null,null,null,null,null,null,null,null,null,null,null,null,null,null,null,null," "," "," "," ",null,null,null,null,null,null," "," "," "," "," "," "," "," "," ",null,null,null,null," "," ","X","X","X","X",null,null,null,null,null,null,null,null,null,null,null,"X","X","X","X",null,null,null,null,"X",null,null,null,null,"X",null,null,null,null,null,null,null,null,null,null,null,"X","X",null,null,null,null,null,null,null,null,null,null,"X",null,null,null,null,null,null,null,null,null,null,"X",null,"X","X"," ",null,null,null,null,"X","X",null,null,null,null,null,null,null,null,null,null,null,null,null,null,null,null,null,null,null,null,null,null,null,null,null,null,null,null,null,null,null,null,null,null,null,null,null,null,null,null,null,null,null,null,null,null,null,null,null,null,null,null,null,null,null,"X"]
[null,"VAUPES","MITU",97001,"3",3,"X",null,"X","X","X","x","x","x","x","x","x","x",null,"X","X","x",null,"x",null,null,"x","x","x","x",null,null,null,null,null,null,null,null,null,null,"X",null,null,"X","X",null,null,null,null,null,null,null,null,null,null,null,null,null,null,null,null," "," "," "," ","",null,null,null,null,null," "," "," "," ","X"," "," "," "," ",null,null,null,null," "," ","X","X","X","X",null,null,null,null,null,null,null,null,null,null,null,"X","X","X","X",null,null,null,null,"X",null,null,null,null,"X",null,null,null,null,null,null,null,null,null,null,null,"X","X",null,null,null,null,null,null,null,null,null,null,"X",null,null,null,null,null,null,null,null,null,null,"X",null,"X","X","X",null,null,null,null,"X","X",null,null,null,null,null,null,null,null,null,null,null,null,null,null,null,null,null,null,null,null,null,null,null,null,null,null,null,null,null,null,null,null,null,null,null,null,null,null,null,null,null,null,null,null,null,null,null,null,null,null,null,null,"X",null,"X","X"]
[null,"VAUPES","CARURU",97161,"Otros",4,"X",null,"X","X",null,"x","x","x","x","x",null,null,"x","X","X",null,null,null,null,"x","x","x","x","x",null,null,null,null,null,null,null,null,null,null,null,null,null,null,null,null,null,null,null,null,null,null,null,null,null,null,null,null,null,null,null," "," "," "," ","",null,null,null,null,null," "," "," "," ","X"," "," "," "," ",null,null,null,null," "," ","X","X","X","X",null,null,null,null,null,null,null,null,null,null,null,"X","X","X","X",null,null,null,null,"X",null,null,null,null,"X",null,null,null,null,null,null,null,null,null,null,null,"X","X",null,null,null,null,null,null,null,null,null,null,null,null,null,null,null,null,null,null,null,null,null,"X",null,"X","X"," ",null,null,null,null,null,null,null,null,null,null,null,null,null,null,null,null,null,null,null,null,null,null,null,null,null,null,null,null,null,null,null,null,null,null,null,null,null,null,null,null,null,null,null,null,null,null,null,null,null,null,null,null,null,null,null,null,null,null,null,null,null,"X"]
[null,"VAUPES","PACOA",97511,"Otros",4,"X",null,null,null,null,"x","x","x","x",null,null,null,null,null,null,null,null,null,null,null,"x","x","x","x",null,null,null,null,null,null,null,null,null,null,null,null,null,"X","X",null,null,null,null,null,null,null,null,null,null,null,null,null,null,null,null," "," "," "," ","",null,null,null,null,null," "," "," "," "," "," "," "," "," ",null,null,null,null," "," ","X","X","X","X",null,null,null,null,null,null,null,null,null,null,null,"X","X","X","X",null,null,null,null,"X",null,null,null,null,"X",null,null,null,null,null,null,null,null,null,null,null,"X","X",null,null,null,null,null,null,null,null,null,null,null,null,null,null,null,null,null,null,null,null,null,null,null,"X","X"," "]
[null,"VAUPES","TARAIRA",97666,"Otros",4,"X",null,"X","X",null,"x","x","x","x","x",null,null,null,null,null,null,null,null,null,"x","x","x","x","x",null,null,null,null,null,null,null,null,null,null,null,null,null,null,null,null,null,null,null,null,null,null,null,null,null,null,null,null,null,null,null," "," "," "," ","",null,null,null,null,null," "," "," "," "," "," "," "," "," ",null,null,null,null," "," ","X","X","X","X",null,null,null,null,null,null,null,null,null,null,null,"X","X","X","X",null,null,null,null,"X",null,null,null,null,"X",null,null,null,null,null,null,null,null,null,null,null,"X","X",null,null,null,null,null,null,null,null,null,null,null,null,null,null,null,null,null,null,null,null,null,null,null,"X","X"," ",null,null,null,null,null,null,null,null,null,null,null,null,null,null,null,null,null,null,null,null,null,null,null,null,null,null,null,null,null,null,null,null,null,null,null,null,null,null,null,null,null,null,null,null,null,null,null,null,null,null,null,null,null,null,null,null,null,null,null,null,null,"X"]
[null,"VAUPES","PAPUNAUA",97777,"Otros",4,"X",null,null,null,null,"x","x","x","x",null,null,null,null,null,null,null,null,null,null,null,"x","x","x","x",null,null,null,null,null,null,null,null,null,null,null,null,null,null,null,null,null,null,null,null,null,null,null,null,null,null,null,null,null,null,null," "," "," "," ","",null,null,null,null,null," "," "," "," "," "," "," "," "," ",null,null,null,null," "," ","X","X","X","X",null,null,null,null,null,null,null,null,null,null,null,"X","X","X","X",null,null,null,null,"X",null,null,null,null,"X",null,null,null,null,null,null,null,null,null,null,null,"X","X",null,null,null,null,null,null,null,null,null,null,null,null,null,null,null,null,null,null,null,null,null,null,null,"X","X"," "]
[null,"VAUPES","YAVARATE",97889,"Otros",4,"X",null,null,null,null,"x","x","x","x",null,null,null,null,null,null,null,null,null,null,null,"x","x","x","x",null,null,null,null,null,null,null,null,null,null,null,null,null,null,null,null,null,null,null,null,null,null,null,null,null,null,null,null,null,null,null," "," "," "," ","",null,null,null,null,null," "," "," "," "," "," "," "," "," ",null,null,null,null," "," ","X","X","X","X",null,null,null,null,null,null,null,null,null,null,null,"X","X","X","X",null,null,null,null,"X",null,null,null,null,"X",null,null,null,null,null,null,null,null,null,null,null,"X","X",null,null,null,null,null,null,null,null,null,null,null,null,null,null,null,null,null,null,null,null,null,null,null,"X","X"," "]
[null,"VICHADA","PUERTO CARREÑO",99001,"3",3,"X",null,"X","X","X","x","x","x","x","x","x","x","x","X","X","x",null,"x",null,"x","x","x","x","x",null,null,null,null,null,null,null,null,null,null,"X",null,null,"X","X",null,null,null,null,null,null,null,null,null,null,null,null,null,null,null,null,"X","X","X","X",null,null,null,null,null,null,"X","X","X","X","X","X","X","X","X",null,null,null,null,"X","X","X","X","X","X",null,null,null,null,null,null,null,null,null,null,null,"X","X","X","X",null,null,null,null,"X",null,null,null,null,"X",null,null,null,null,null,null,null,null,null,null,null,"X","X",null,null,null,null,null,null,null,null,null,null,"X",null,null,null,null,null,null,null,null,null,null,"X",null,"X","X","X",null,null,null,null,"X","X","X","X","X","X",null,null,null,null,null,"X","X","X","X",null,null,null,null,null,null,null,null,null,null,null,null,null,null,null,null,null,null,null,null,null,null,null,null,null,null,null,null,null,null,null,null,null,null,null,null,null,null,null,"X",null,"X","X"]
[null,"VICHADA","LA PRIMAVERA",99524,"4",4,"X",null,"X","X","X","x","x","x","x","x","x","x","x","X","X","x",null,"x",null,"x","x","x","x","x",null,null,null,null,null,null,null,null,null,null,null,null,null,null,null,null,null,null,null,null,null,null,null,null,null,null,null,null,null,null,null," "," "," "," ",null,null,null,null,null,null," "," "," "," ","X"," "," "," "," ",null,null,null,null," "," ","X","X","X","X",null,null,null,null,null,null,null,null,null,null,null,"X","X","X","X",null,null,null,null,"X",null,null,null,null,"X",null,null,null,null,null,null,null,null,null,null,null,"X","X",null,null,null,null,null,null,null,null,null,null,"X",null,null,null,null,null,null,null,null,null,null,"X",null,"X","X","X",null,null,null,null,"X","X",null,null,null,null,null,null,null,null,null,null,null,null,null,null,null,null,null,null,null,null,null,null,null,null,null,null,null,null,null,null,null,null,null,null,null,null,null,null,null,null,null,null,null,null,null,null,null,null,null,null,null,null,"X",null,"X","X"]
[null,"VICHADA","SANTA ROSALIA",99624,"4",4,"X",null,"X","X","X","x","x","x","x","x",null,"x",null,"X","X","x",null,"x",null,null,"x","x","x","x",null,null,null,null,null,null,null,null,null,null,null,null,null,null,null,null,null,null,null,null,null,null,null,null,null,null,null,null,null,null,null," "," "," "," ",null,null,null,null,null,null," "," "," "," ","X"," "," "," "," ",null,null,null,null," "," ","X","X","X","X",null,null,null,null,null,null,null,null,null,null,null,"X","X","X","X",null,null,null,null,"X",null,null,null,null,"X",null,null,null,null,null,null,null,null,null,null,null,"X","X",null,null,null,null,null,null,null,null,null,null,null,null,null,null,null,null,null,null,null,null,null,"X",null,"X","X"," ",null,null,null,null,null,null,null,null,null,null,null,null,null,null,null,null,null,null,null,null,null,null,null,null,null,null,null,null,null,null,null,null,null,null,null,null,null,null,null,null,null,null,null,null,null,null,null,null,null,null,null,null,null,null,null,null,null,null,null,null,null,"X"]
[null,"VICHADA","CUMARIBO",99773,"4",4,"X",null,"X","X","X","x","x","x","x","x",null,"x",null,"X","X","x",null,"x",null,null,"x","x","x","x",null,null,null,null,null,null,null,null,null,null,null,null,null,null,null,null,null,null,null,null,null,null,null,null,null,null,null,null,null,null,null," "," "," "," ",null,null,null,null,null,null," "," "," "," ","X"," "," "," "," ",null,null,null,null," "," ","X","X","X","X",null,null,null,null,null,null,null,null,null,null,null,"X","X","X","X",null,null,null,null,"X",null,null,null,null,"X",null,null,null,null,null,null,null,null,null,null,null,"X","X",null,null,null,null,null,null,null,null,null,null,"X",null,null,null,null,null,null,null,null,null,null,"X",null,"X","X","X",null,null,null,null,"X","X",null,null,null,null,null,null,null,null,null,null,null,null,null,null,null,null,null,null,null,null,null,null,null,null,null,null,null,null,null,null,null,null,null,null,null,null,null,null,null,null,null,null,null,null,null,null,null,null,null,null,null,null,null,null,null,"X"]

{"sheet":"Localización","index":5,"n_rows":5,"n_cols":2,"rows_kept":5,"cut":false,"hidden":true,"merged":[]}
["Localización ","Distritos y Municipios "]
["Localización 1","Apartado, Armenia, Barrancabermeja, Barranquilla, Bello, Bogota, Bucaramanga, Buenaventura, Buga, Cajica, Cali, Cartagena, Cartago, Cerete, Cota, Chia, Cucuta, Dos Quebradas, Duitama, Envigado, Espinal, Facatativa, Florencia, Floridablanca, Funza, Fusagasuga. Girardot, Giron Honda, Ibague, Ipiales, Itagüi, La Dorada, Leticia, Lorica, Madrid, Manizales, Medellin, Melgar, Monteria, Mosquera, Neiva, Palmira, Pasto, Pereira, Piedecuesta, Pitalito, Popayan, Quibdo, Riohacha, Rio Negro, San Gil, Santa Marta, Sincelejo, Soacha, Sogamoso, Tocancipa, Tulua, Tunja, Ubate, Uniabastos, Valledupar, Villavicencio, Yopal, Yumbo, Zipaquira."]
["Localización 2","Anserma, Barbosa (Santander), Barbosa (Antioquia), Calarca, Caldas, Candelaria (Valle), Caqueza, Cienaga, Gacheta, Garagoa, Granada, El Cerrito, Guaduas, Jamundi, La Ceja, La Mesa, Mani, Nilo, Paipa, Planeta Rica, Quimbaya, Roldanillo, Soledad, Sopo, Subachoque, Villa de Leyva, Zarzal"]
["Localización 3","Abejorral, Abrego, Acacias, Agua de Dios, Aguachica, Aguadas, Aguazul, Agustin Codazzi, Aipe, Albania, Amaga, Anapoima, Andes, Anolaima, Apia, Aranzazu, Arauca, Arauquita, Arbelaez, Arboletes, Arjelia, Arjona, Ariguani, Ayapel, Baranoa, Barrancas, Belen de Umbria, Belencito, Betania, Betulia, Bolivar (Valle del Cauca), Bolivar (Antioquia), Bugalagrande, Bosconia, Buenavista, Cabuyaro, Caicedonia, Cajamarca, Carmen de Viboral, Carepa, Castilla La Nueva, Caucasia, Chaparral, Charala, Chigorodo, Chinchina, Chinu, Chiquinquira, Chiriguana, Choachi, Choconta, Cienaga de Oro, Cimitarra, Copacabana, Corozal, Cumaral, Don Matias, Dabeiba, El Banco, El Bagre, El Carmen (Santander), El Carmen de Bolivar, El Colegio, El Doncello, El Paso, El Peñol, El Rosal, Florencia (Cauca), Florida, Fomeque, Fonseca, Fredonia, Fresno, Frontino, Fundacion, , Gachancipa, Galapa. Garzon, Gigante, Girardota, Guacari, Guachene, Guamal, Guamo, Guarne, Guasca, Guateque, Inirida, Jardin, La Calera, La Estrella, La Jagua de Ibirico, La Tebaida, La Union (Nariño), La Union (Antioquia), La Union (Sucre), La Union (Valle del Cauca), La Vega, La Victoria, La Virginia, Lebrija, Libano, Magangue, Maicao, Malaga, Malambo, Manaure, Manzanares, Marinilla, Mariquita, Miranda, Mitu, Mocoa, Moniquira, Mompox, Montelibano, Montenegro, Monterey, Moñitos, Natagaima, Neira, Necocli, Nechi, Nobsa, Ocaña, Orito, Orocue, Ortega, Pacho, Pacora, Pamplona, Palestina, Patia (El Bordo), Paz de Ariporo, Pivijai, Planadas, Plato, Pradera, Puerto Asis, Puerto Berrio, Puerto Boyaca, Puerto Carreño, Puerto Gaitan, Puerto Escondido, Puerto Leguizamo, Puerto Libertador, Puerto Lopez, Puerto Nare, Puerto Rico, Puerto Salgar, Puerto Tejada, Puerto Wilches, Purificacion, Ramiriqui, Restrepo, Retiro, Riosucio, Sabana de Torres, Sabanalarga, Sabaneta, Sahagun, Saldaña, Salgar, Samaca, San Alberto, San Andres Sotavento, San Antero, San Bernardo, Sandona, San Jose del Guaviare, San Juan del Cesar, San Marcos, San Martin (Meta), San Martin (Cesar), San Pedro, San Vicente del Caguan, San Vicente de Chucuri, Sandona, San Pelayo, Santa Rosa de Cabal, Santa Rosa de Osos, Santa Rosa de Viterbo, Santafe de Antioquia, Santana, Santander de Quilichao, Santuario, San Andres, Saravena, Segovia, Sevilla, Sibate, Sibundoy, Simijaca, Since, Socorro, Socha, Sonson, Supia, Tabio, Tame, Tenjo, Tierralta, Tocaima. Tolu, Tumaco, Tuquerres, Turbo, Uribia, Urrao, Velez, Villanueva (Casanare), Villapinzon, Villeta, Villagarzon, Yaguara, Yarumal, Zapatoca."]
["Localización 4","Los demas municipios y corregimientos del territorio nacional donde los Operadores Postales tienen presencia unica."]

{"sheet":"Localizacion_desfragmentada","index":6,"n_rows":313,"n_cols":5,"rows_kept":313,"cut":false,"hidden":true,"merged":[]}
["Localización","Municipio","Observaciones/Departamento","Busqueda"]
["Localización 1","Apartado",null,{"$f":"+COUNTIF('Catálogo Localización'!C:C,Localizacion_desfragmentada!B2)","v":1}]
["Localización 1","Armenia",null,{"$f":"+COUNTIF('Catálogo Localización'!C:C,Localizacion_desfragmentada!B3)","v":2}]
["Localización 1","Barrancabermeja",null,{"$f":"+COUNTIF('Catálogo Localización'!C:C,Localizacion_desfragmentada!B4)","v":1}]
["Localización 1","Barranquilla",null,{"$f":"+COUNTIF('Catálogo Localización'!C:C,Localizacion_desfragmentada!B5)","v":1}]
["Localización 1","Bello",null,{"$f":"+COUNTIF('Catálogo Localización'!C:C,Localizacion_desfragmentada!B6)","v":1}]
["Localización 1","BOGOTA, D.C.",null,{"$f":"+COUNTIF('Catálogo Localización'!C:C,Localizacion_desfragmentada!B7)","v":1}]
["Localización 1","Bucaramanga",null,{"$f":"+COUNTIF('Catálogo Localización'!C:C,Localizacion_desfragmentada!B8)","v":1}]
["Localización 1","Buenaventura",null,{"$f":"+COUNTIF('Catálogo Localización'!C:C,Localizacion_desfragmentada!B9)","v":1}]
["Localización 1","GUADALAJARA DE BUGA","cambio descripcion nombre",{"$f":"+COUNTIF('Catálogo Localización'!C:C,Localizacion_desfragmentada!B10)","v":1}]
["Localización 1","Cajica",null,{"$f":"+COUNTIF('Catálogo Localización'!C:C,Localizacion_desfragmentada!B11)","v":1}]
["Localización 1","Cali",null,{"$f":"+COUNTIF('Catálogo Localización'!C:C,Localizacion_desfragmentada!B12)","v":1}]
["Localización 1","Cartagena",null,{"$f":"+COUNTIF('Catálogo Localización'!C:C,Localizacion_desfragmentada!B13)","v":1}]
["Localización 1","Cartago",null,{"$f":"+COUNTIF('Catálogo Localización'!C:C,Localizacion_desfragmentada!B14)","v":1}]
["Localización 1","Cerete",null,{"$f":"+COUNTIF('Catálogo Localización'!C:C,Localizacion_desfragmentada!B15)","v":1}]
["Localización 1","Cota",null,{"$f":"+COUNTIF('Catálogo Localización'!C:C,Localizacion_desfragmentada!B16)","v":1}]
["Localización 1","Chia",null,{"$f":"+COUNTIF('Catálogo Localización'!C:C,Localizacion_desfragmentada!B17)","v":1}]
["Localización 1","Cucuta",null,{"$f":"+COUNTIF('Catálogo Localización'!C:C,Localizacion_desfragmentada!B18)","v":1}]
["Localización 1","DOSQUEBRADAS",null,{"$f":"+COUNTIF('Catálogo Localización'!C:C,Localizacion_desfragmentada!B19)","v":1}]
["Localización 1","Duitama",null,{"$f":"+COUNTIF('Catálogo Localización'!C:C,Localizacion_desfragmentada!B20)","v":1}]
["Localización 1","Envigado",null,{"$f":"+COUNTIF('Catálogo Localización'!C:C,Localizacion_desfragmentada!B21)","v":1}]
["Localización 1","Espinal",null,{"$f":"+COUNTIF('Catálogo Localización'!C:C,Localizacion_desfragmentada!B22)","v":1}]
["Localización 1","Facatativa",null,{"$f":"+COUNTIF('Catálogo Localización'!C:C,Localizacion_desfragmentada!B23)","v":1}]
["Localización 1","Florencia",null,{"$f":"+COUNTIF('Catálogo Localización'!C:C,Localizacion_desfragmentada!B24)","v":2}]
["Localización 1","Floridablanca",null,{"$f":"+COUNTIF('Catálogo Localización'!C:C,Localizacion_desfragmentada!B25)","v":1}]
["Localización 1","Funza",null,{"$f":"+COUNTIF('Catálogo Localización'!C:C,Localizacion_desfragmentada!B26)","v":1}]
["Localización 1","Fusagasuga","x",{"$f":"+COUNTIF('Catálogo Localización'!C:C,Localizacion_desfragmentada!B27)","v":1}]
["Localización 1","Girardot",null,{"$f":"+COUNTIF('Catálogo Localización'!C:C,Localizacion_desfragmentada!B28)","v":1}]
["Localización 1","Giron",null,{"$f":"+COUNTIF('Catálogo Localización'!C:C,Localizacion_desfragmentada!B29)","v":1},"x"]
["Localización 1","Honda",null,{"$f":"+COUNTIF('Catálogo Localización'!C:C,Localizacion_desfragmentada!B30)","v":1}]
["Localización 1","Ibague",null,{"$f":"+COUNTIF('Catálogo Localización'!C:C,Localizacion_desfragmentada!B31)","v":1}]
["Localización 1","Ipiales",null,{"$f":"+COUNTIF('Catálogo Localización'!C:C,Localizacion_desfragmentada!B32)","v":1}]
["Localización 1","Itagui",null,{"$f":"+COUNTIF('Catálogo Localización'!C:C,Localizacion_desfragmentada!B33)","v":1}]
["Localización 1","La Dorada",null,{"$f":"+COUNTIF('Catálogo Localización'!C:C,Localizacion_desfragmentada!B34)","v":1}]
["Localización 1","Leticia",null,{"$f":"+COUNTIF('Catálogo Localización'!C:C,Localizacion_desfragmentada!B35)","v":1}]
["Localización 1","Lorica",null,{"$f":"+COUNTIF('Catálogo Localización'!C:C,Localizacion_desfragmentada!B36)","v":1}]
["Localización 1","Madrid",null,{"$f":"+COUNTIF('Catálogo Localización'!C:C,Localizacion_desfragmentada!B37)","v":1}]
["Localización 1","Manizales",null,{"$f":"+COUNTIF('Catálogo Localización'!C:C,Localizacion_desfragmentada!B38)","v":1}]
["Localización 1","Medellin",null,{"$f":"+COUNTIF('Catálogo Localización'!C:C,Localizacion_desfragmentada!B39)","v":1}]
["Localización 1","Melgar",null,{"$f":"+COUNTIF('Catálogo Localización'!C:C,Localizacion_desfragmentada!B40)","v":1}]
["Localización 1","Monteria",null,{"$f":"+COUNTIF('Catálogo Localización'!C:C,Localizacion_desfragmentada!B41)","v":1}]
["Localización 1","Mosquera",null,{"$f":"+COUNTIF('Catálogo Localización'!C:C,Localizacion_desfragmentada!B42)","v":2}]
["Localización 1","Neiva",null,{"$f":"+COUNTIF('Catálogo Localización'!C:C,Localizacion_desfragmentada!B43)","v":1}]
["Localización 1","Palmira",null,{"$f":"+COUNTIF('Catálogo Localización'!C:C,Localizacion_desfragmentada!B44)","v":1}]
["Localización 1","Pasto",null,{"$f":"+COUNTIF('Catálogo Localización'!C:C,Localizacion_desfragmentada!B45)","v":1}]
["Localización 1","Pereira",null,{"$f":"+COUNTIF('Catálogo Localización'!C:C,Localizacion_desfragmentada!B46)","v":1}]
["Localización 1","Piedecuesta",null,{"$f":"+COUNTIF('Catálogo Localización'!C:C,Localizacion_desfragmentada!B47)","v":1}]
["Localización 1","Pitalito",null,{"$f":"+COUNTIF('Catálogo Localización'!C:C,Localizacion_desfragmentada!B48)","v":1}]
["Localización 1","Popayan",null,{"$f":"+COUNTIF('Catálogo Localización'!C:C,Localizacion_desfragmentada!B49)","v":1}]
["Localización 1","Quibdo",null,{"$f":"+COUNTIF('Catálogo Localización'!C:C,Localizacion_desfragmentada!B50)","v":1}]
["Localización 1","Riohacha",null,{"$f":"+COUNTIF('Catálogo Localización'!C:C,Localizacion_desfragmentada!B51)","v":1}]
["Localización 1","RIONEGRO",null,{"$f":"+COUNTIF('Catálogo Localización'!C:C,Localizacion_desfragmentada!B52)","v":2}]
["Localización 1","San Gil",null,{"$f":"+COUNTIF('Catálogo Localización'!C:C,Localizacion_desfragmentada!B53)","v":1}]
["Localización 1","Santa Marta",null,{"$f":"+COUNTIF('Catálogo Localización'!C:C,Localizacion_desfragmentada!B54)","v":1}]
["Localización 1","Sincelejo",null,{"$f":"+COUNTIF('Catálogo Localización'!C:C,Localizacion_desfragmentada!B55)","v":1}]
["Localización 1","Soacha",null,{"$f":"+COUNTIF('Catálogo Localización'!C:C,Localizacion_desfragmentada!B56)","v":1}]
["Localización 1","Sogamoso",null,{"$f":"+COUNTIF('Catálogo Localización'!C:C,Localizacion_desfragmentada!B57)","v":1}]
["Localización 1","Tocancipa",null,{"$f":"+COUNTIF('Catálogo Localización'!C:C,Localizacion_desfragmentada!B58)","v":1}]
["Localización 1","Tulua",null,{"$f":"+COUNTIF('Catálogo Localización'!C:C,Localizacion_desfragmentada!B59)","v":1}]
["Localización 1","Tunja",null,{"$f":"+COUNTIF('Catálogo Localización'!C:C,Localizacion_desfragmentada!B60)","v":1}]
["Localización 1","VILLA DE SAN DIEGO DE UBATE",null,{"$f":"+COUNTIF('Catálogo Localización'!C:C,Localizacion_desfragmentada!B61)","v":1}]
["Localización 1","Uniabastos","No encuentro municipio",{"$f":"+COUNTIF('Catálogo Localización'!C:C,Localizacion_desfragmentada!B62)","v":0}]
["Localización 1","Valledupar",null,{"$f":"+COUNTIF('Catálogo Localización'!C:C,Localizacion_desfragmentada!B63)","v":1}]
["Localización 1","Villavicencio",null,{"$f":"+COUNTIF('Catálogo Localización'!C:C,Localizacion_desfragmentada!B64)","v":1}]
["Localización 1","Yopal",null,{"$f":"+COUNTIF('Catálogo Localización'!C:C,Localizacion_desfragmentada!B65)","v":1}]
["Localización 1","Yumbo",null,{"$f":"+COUNTIF('Catálogo Localización'!C:C,Localizacion_desfragmentada!B66)","v":1}]
["Localización 1","Zipaquira",null,{"$f":"+COUNTIF('Catálogo Localización'!C:C,Localizacion_desfragmentada!B67)","v":1}]
["Localización 2","Anserma",null,{"$f":"+COUNTIF('Catálogo Localización'!C:C,Localizacion_desfragmentada!B68)","v":1}]
["Localización 2","Barbosa","Santander",{"$f":"+COUNTIF('Catálogo Localización'!C:C,Localizacion_desfragmentada!B69)","v":2}]
["Localización 2","Barbosa","Antioquia",{"$f":"+COUNTIF('Catálogo Localización'!C:C,Localizacion_desfragmentada!B70)","v":2}]
["Localización 2","Calarca",null,{"$f":"+COUNTIF('Catálogo Localización'!C:C,Localizacion_desfragmentada!B71)","v":1}]
["Localización 2","Caldas",null,{"$f":"+COUNTIF('Catálogo Localización'!C:C,Localizacion_desfragmentada!B72)","v":2}]
["Localización 2","Candelaria","Valle",{"$f":"+COUNTIF('Catálogo Localización'!C:C,Localizacion_desfragmentada!B73)","v":2}]
["Localización 2","Caqueza",null,{"$f":"+COUNTIF('Catálogo Localización'!C:C,Localizacion_desfragmentada!B74)","v":1}]
["Localización 2","Cienaga",null,{"$f":"+COUNTIF('Catálogo Localización'!C:C,Localizacion_desfragmentada!B75)","v":1}]
["Localización 2","Gacheta",null,{"$f":"+COUNTIF('Catálogo Localización'!C:C,Localizacion_desfragmentada!B76)","v":1}]
["Localización 2","Garagoa",null,{"$f":"+COUNTIF('Catálogo Localización'!C:C,Localizacion_desfragmentada!B77)","v":1}]
["Localización 2","Granada",null,{"$f":"+COUNTIF('Catálogo Localización'!C:C,Localizacion_desfragmentada!B78)","v":3}]
["Localización 2","El Cerrito",null,{"$f":"+COUNTIF('Catálogo Localización'!C:C,Localizacion_desfragmentada!B79)","v":1}]
["Localización 2","Guaduas",null,{"$f":"+COUNTIF('Catálogo Localización'!C:C,Localizacion_desfragmentada!B80)","v":1}]
["Localización 2","Jamundi",null,{"$f":"+COUNTIF('Catálogo Localización'!C:C,Localizacion_desfragmentada!B81)","v":1}]
["Localización 2","La Ceja",null,{"$f":"+COUNTIF('Catálogo Localización'!C:C,Localizacion_desfragmentada!B82)","v":1}]
["Localización 2","La Mesa",null,{"$f":"+COUNTIF('Catálogo Localización'!C:C,Localizacion_desfragmentada!B83)","v":1}]
["Localización 2","Mani",null,{"$f":"+COUNTIF('Catálogo Localización'!C:C,Localizacion_desfragmentada!B84)","v":1}]
["Localización 2","Nilo",null,{"$f":"+COUNTIF('Catálogo Localización'!C:C,Localizacion_desfragmentada!B85)","v":1}]
["Localización 2","Paipa",null,{"$f":"+COUNTIF('Catálogo Localización'!C:C,Localizacion_desfragmentada!B86)","v":1}]
["Localización 2","Planeta Rica",null,{"$f":"+COUNTIF('Catálogo Localización'!C:C,Localizacion_desfragmentada!B87)","v":1}]
["Localización 2","Quimbaya",null,{"$f":"+COUNTIF('Catálogo Localización'!C:C,Localizacion_desfragmentada!B88)","v":1}]
["Localización 2","Roldanillo",null,{"$f":"+COUNTIF('Catálogo Localización'!C:C,Localizacion_desfragmentada!B89)","v":1}]
["Localización 2","Soledad",null,{"$f":"+COUNTIF('Catálogo Localización'!C:C,Localizacion_desfragmentada!B90)","v":1}]
["Localización 2","Sopo",null,{"$f":"+COUNTIF('Catálogo Localización'!C:C,Localizacion_desfragmentada!B91)","v":1}]
["Localización 2","Subachoque",null,{"$f":"+COUNTIF('Catálogo Localización'!C:C,Localizacion_desfragmentada!B92)","v":1}]
["Localización 2","Villa de Leyva",null,{"$f":"+COUNTIF('Catálogo Localización'!C:C,Localizacion_desfragmentada!B93)","v":1}]
["Localización 2","Zarzal",null,{"$f":"+COUNTIF('Catálogo Localización'!C:C,Localizacion_desfragmentada!B94)","v":1}]
["Localización 3","Abejorral",null,{"$f":"+COUNTIF('Catálogo Localización'!C:C,Localizacion_desfragmentada!B95)","v":1}]
["Localización 3","Abrego",null,{"$f":"+COUNTIF('Catálogo Localización'!C:C,Localizacion_desfragmentada!B96)","v":1}]
["Localización 3","Acacias",null,{"$f":"+COUNTIF('Catálogo Localización'!C:C,Localizacion_desfragmentada!B97)","v":1}]
["Localización 3","Agua de Dios",null,{"$f":"+COUNTIF('Catálogo Localización'!C:C,Localizacion_desfragmentada!B98)","v":1}]
["Localización 3","Aguachica",null,{"$f":"+COUNTIF('Catálogo Localización'!C:C,Localizacion_desfragmentada!B99)","v":1}]
["Localización 3","Aguadas",null,{"$f":"+COUNTIF('Catálogo Localización'!C:C,Localizacion_desfragmentada!B100)","v":1}]
["Localización 3","Aguazul",null,{"$f":"+COUNTIF('Catálogo Localización'!C:C,Localizacion_desfragmentada!B101)","v":1}]
["Localización 3","Agustin Codazzi",null,{"$f":"+COUNTIF('Catálogo Localización'!C:C,Localizacion_desfragmentada!B102)","v":1}]
["Localización 3","Aipe",null,{"$f":"+COUNTIF('Catálogo Localización'!C:C,Localizacion_desfragmentada!B103)","v":1}]
["Localización 3","Albania",null,{"$f":"+COUNTIF('Catálogo Localización'!C:C,Localizacion_desfragmentada!B104)","v":3}]
["Localización 3","Amaga",null,{"$f":"+COUNTIF('Catálogo Localización'!C:C,Localizacion_desfragmentada!B105)","v":1}]
["Localización 3","Anapoima",null,{"$f":"+COUNTIF('Catálogo Localización'!C:C,Localizacion_desfragmentada!B106)","v":1}]
["Localización 3","Andes",null,{"$f":"+COUNTIF('Catálogo Localización'!C:C,Localizacion_desfragmentada!B107)","v":1}]
["Localización 3","Anolaima",null,{"$f":"+COUNTIF('Catálogo Localización'!C:C,Localizacion_desfragmentada!B108)","v":1}]
["Localización 3","Apia",null,{"$f":"+COUNTIF('Catálogo Localización'!C:C,Localizacion_desfragmentada!B109)","v":1}]
["Localización 3","Aranzazu",null,{"$f":"+COUNTIF('Catálogo Localización'!C:C,Localizacion_desfragmentada!B110)","v":1}]
["Localización 3","Arauca",null,{"$f":"+COUNTIF('Catálogo Localización'!C:C,Localizacion_desfragmentada!B111)","v":1}]
["Localización 3","Arauquita",null,{"$f":"+COUNTIF('Catálogo Localización'!C:C,Localizacion_desfragmentada!B112)","v":1}]
["Localización 3","Arbelaez",null,{"$f":"+COUNTIF('Catálogo Localización'!C:C,Localizacion_desfragmentada!B113)","v":1}]
["Localización 3","Arboletes",null,{"$f":"+COUNTIF('Catálogo Localización'!C:C,Localizacion_desfragmentada!B114)","v":1}]
["Localización 3","ARGELIA","estaba con j",{"$f":"+COUNTIF('Catálogo Localización'!C:C,Localizacion_desfragmentada!B115)","v":3}]
["Localización 3","Arjona",null,{"$f":"+COUNTIF('Catálogo Localización'!C:C,Localizacion_desfragmentada!B116)","v":1}]
["Localización 3","Ariguani",null,{"$f":"+COUNTIF('Catálogo Localización'!C:C,Localizacion_desfragmentada!B117)","v":1}]
["Localización 3","Ayapel",null,{"$f":"+COUNTIF('Catálogo Localización'!C:C,Localizacion_desfragmentada!B118)","v":1}]
["Localización 3","Baranoa",null,{"$f":"+COUNTIF('Catálogo Localización'!C:C,Localizacion_desfragmentada!B119)","v":1}]
["Localización 3","Barrancas",null,{"$f":"+COUNTIF('Catálogo Localización'!C:C,Localizacion_desfragmentada!B120)","v":1}]
["Localización 3","Belen de Umbria",null,{"$f":"+COUNTIF('Catálogo Localización'!C:C,Localizacion_desfragmentada!B121)","v":1}]
["Localización 3","Belencito","No encuentro municipio",{"$f":"+COUNTIF('Catálogo Localización'!C:C,Localizacion_desfragmentada!B122)","v":0}]
["Localización 3","Betania",null,{"$f":"+COUNTIF('Catálogo Localización'!C:C,Localizacion_desfragmentada!B123)","v":1}]
["Localización 3","Betulia",null,{"$f":"+COUNTIF('Catálogo Localización'!C:C,Localizacion_desfragmentada!B124)","v":2}]
["Localización 3","Bolivar","Valle del Cauca",{"$f":"+COUNTIF('Catálogo Localización'!C:C,Localizacion_desfragmentada!B125)","v":3}]
["Localización 3","Bolivar","Antioquia",{"$f":"+COUNTIF('Catálogo Localización'!C:C,Localizacion_desfragmentada!B126)","v":3}]
["Localización 3","Bugalagrande",null,{"$f":"+COUNTIF('Catálogo Localización'!C:C,Localizacion_desfragmentada!B127)","v":1}]
["Localización 3","Bosconia",null,{"$f":"+COUNTIF('Catálogo Localización'!C:C,Localizacion_desfragmentada!B128)","v":1}]
["Localización 3","Buenavista",null,{"$f":"+COUNTIF('Catálogo Localización'!C:C,Localizacion_desfragmentada!B129)","v":4}]
["Localización 3","Cabuyaro",null,{"$f":"+COUNTIF('Catálogo Localización'!C:C,Localizacion_desfragmentada!B130)","v":1}]
["Localización 3","Caicedonia",null,{"$f":"+COUNTIF('Catálogo Localización'!C:C,Localizacion_desfragmentada!B131)","v":1}]
["Localización 3","Cajamarca",null,{"$f":"+COUNTIF('Catálogo Localización'!C:C,Localizacion_desfragmentada!B132)","v":1}]
["Localización 3","EL CARMEN DE VIBORAL",null,{"$f":"+COUNTIF('Catálogo Localización'!C:C,Localizacion_desfragmentada!B133)","v":1}]
["Localización 3","Carepa",null,{"$f":"+COUNTIF('Catálogo Localización'!C:C,Localizacion_desfragmentada!B134)","v":1}]
["Localización 3","Castilla La Nueva",null,{"$f":"+COUNTIF('Catálogo Localización'!C:C,Localizacion_desfragmentada!B135)","v":1}]
["Localización 3","Caucasia",null,{"$f":"+COUNTIF('Catálogo Localización'!C:C,Localizacion_desfragmentada!B136)","v":1}]
["Localización 3","Chaparral",null,{"$f":"+COUNTIF('Catálogo Localización'!C:C,Localizacion_desfragmentada!B137)","v":1}]
["Localización 3","Charala",null,{"$f":"+COUNTIF('Catálogo Localización'!C:C,Localizacion_desfragmentada!B138)","v":1}]
["Localización 3","Chigorodo",null,{"$f":"+COUNTIF('Catálogo Localización'!C:C,Localizacion_desfragmentada!B139)","v":1}]
["Localización 3","Chinchina",null,{"$f":"+COUNTIF('Catálogo Localización'!C:C,Localizacion_desfragmentada!B140)","v":1}]
["Localización 3","Chinu",null,{"$f":"+COUNTIF('Catálogo Localización'!C:C,Localizacion_desfragmentada!B141)","v":1}]
["Localización 3","Chiquinquira",null,{"$f":"+COUNTIF('Catálogo Localización'!C:C,Localizacion_desfragmentada!B142)","v":1}]
["Localización 3","Chiriguana",null,{"$f":"+COUNTIF('Catálogo Localización'!C:C,Localizacion_desfragmentada!B143)","v":1}]
["Localización 3","Choachi",null,{"$f":"+COUNTIF('Catálogo Localización'!C:C,Localizacion_desfragmentada!B144)","v":1}]
["Localización 3","Choconta",null,{"$f":"+COUNTIF('Catálogo Localización'!C:C,Localizacion_desfragmentada!B145)","v":1}]
["Localización 3","Cienaga de Oro",null,{"$f":"+COUNTIF('Catálogo Localización'!C:C,Localizacion_desfragmentada!B146)","v":1}]
["Localización 3","Cimitarra",null,{"$f":"+COUNTIF('Catálogo Localización'!C:C,Localizacion_desfragmentada!B147)","v":1}]
["Localización 3","Copacabana",null,{"$f":"+COUNTIF('Catálogo Localización'!C:C,Localizacion_desfragmentada!B148)","v":1}]
["Localización 3","Corozal",null,{"$f":"+COUNTIF('Catálogo Localización'!C:C,Localizacion_desfragmentada!B149)","v":1}]
["Localización 3","Cumaral",null,{"$f":"+COUNTIF('Catálogo Localización'!C:C,Localizacion_desfragmentada!B150)","v":1}]
["Localización 3","Don Matias",null,{"$f":"+COUNTIF('Catálogo Localización'!C:C,Localizacion_desfragmentada!B151)","v":1}]
["Localización 3","Dabeiba",null,{"$f":"+COUNTIF('Catálogo Localización'!C:C,Localizacion_desfragmentada!B152)","v":1}]
["Localización 3","El Banco",null,{"$f":"+COUNTIF('Catálogo Localización'!C:C,Localizacion_desfragmentada!B153)","v":1}]
["Localización 3","El Bagre",null,{"$f":"+COUNTIF('Catálogo Localización'!C:C,Localizacion_desfragmentada!B154)","v":1}]
["Localización 3","El Carmen","Santander",{"$f":"+COUNTIF('Catálogo Localización'!C:C,Localizacion_desfragmentada!B155)","v":1}]
["Localización 3","El Carmen de Bolivar",null,{"$f":"+COUNTIF('Catálogo Localización'!C:C,Localizacion_desfragmentada!B156)","v":1}]
["Localización 3","El Colegio",null,{"$f":"+COUNTIF('Catálogo Localización'!C:C,Localizacion_desfragmentada!B157)","v":1}]
["Localización 3","El Doncello",null,{"$f":"+COUNTIF('Catálogo Localización'!C:C,Localizacion_desfragmentada!B158)","v":1}]
["Localización 3","El Paso",null,{"$f":"+COUNTIF('Catálogo Localización'!C:C,Localizacion_desfragmentada!B159)","v":1}]
["Localización 3","El Peñol",null,{"$f":"+COUNTIF('Catálogo Localización'!C:C,Localizacion_desfragmentada!B160)","v":1}]
["Localización 3","El Rosal",null,{"$f":"+COUNTIF('Catálogo Localización'!C:C,Localizacion_desfragmentada!B161)","v":1}]
["Localización 3","Florencia","Cauca",{"$f":"+COUNTIF('Catálogo Localización'!C:C,Localizacion_desfragmentada!B162)","v":2}]
["Localización 3","Florida",null,{"$f":"+COUNTIF('Catálogo Localización'!C:C,Localizacion_desfragmentada!B163)","v":1}]
["Localización 3","Fomeque",null,{"$f":"+COUNTIF('Catálogo Localización'!C:C,Localizacion_desfragmentada!B164)","v":1}]
["Localización 3","Fonseca",null,{"$f":"+COUNTIF('Catálogo Localización'!C:C,Localizacion_desfragmentada!B165)","v":1}]
["Localización 3","Fredonia",null,{"$f":"+COUNTIF('Catálogo Localización'!C:C,Localizacion_desfragmentada!B166)","v":1}]
["Localización 3","Fresno",null,{"$f":"+COUNTIF('Catálogo Localización'!C:C,Localizacion_desfragmentada!B167)","v":1}]
["Localización 3","Frontino",null,{"$f":"+COUNTIF('Catálogo Localización'!C:C,Localizacion_desfragmentada!B168)","v":1}]
["Localización 3","Fundacion",null,{"$f":"+COUNTIF('Catálogo Localización'!C:C,Localizacion_desfragmentada!B169)","v":1}]
["Localización 3",null,null,{"$f":"+COUNTIF('Catálogo Localización'!C:C,Localizacion_desfragmentada!B170)","v":0}]
["Localización 3","Gachancipa",null,{"$f":"+COUNTIF('Catálogo Localización'!C:C,Localizacion_desfragmentada!B171)","v":1}]
["Localización 3","Galapa","x",{"$f":"+COUNTIF('Catálogo Localización'!C:C,Localizacion_desfragmentada!B172)","v":1}]
["Localización 3","Garzon",null,{"$f":"+COUNTIF('Catálogo Localización'!C:C,Localizacion_desfragmentada!B173)","v":1}]
["Localización 3","Gigante",null,{"$f":"+COUNTIF('Catálogo Localización'!C:C,Localizacion_desfragmentada!B174)","v":1}]
["Localización 3","Girardota",null,{"$f":"+COUNTIF('Catálogo Localización'!C:C,Localizacion_desfragmentada!B175)","v":1}]
["Localización 3","Guacari",null,{"$f":"+COUNTIF('Catálogo Localización'!C:C,Localizacion_desfragmentada!B176)","v":1}]
["Localización 3","Guachene",null,{"$f":"+COUNTIF('Catálogo Localización'!C:C,Localizacion_desfragmentada!B177)","v":1}]
["Localización 3","Guamal",null,{"$f":"+COUNTIF('Catálogo Localización'!C:C,Localizacion_desfragmentada!B178)","v":2}]
["Localización 3","Guamo",null,{"$f":"+COUNTIF('Catálogo Localización'!C:C,Localizacion_desfragmentada!B179)","v":1}]
["Localización 3","Guarne",null,{"$f":"+COUNTIF('Catálogo Localización'!C:C,Localizacion_desfragmentada!B180)","v":1}]
["Localización 3","Guasca",null,{"$f":"+COUNTIF('Catálogo Localización'!C:C,Localizacion_desfragmentada!B181)","v":1}]
["Localización 3","Guateque",null,{"$f":"+COUNTIF('Catálogo Localización'!C:C,Localizacion_desfragmentada!B182)","v":1}]
["Localización 3","Inirida",null,{"$f":"+COUNTIF('Catálogo Localización'!C:C,Localizacion_desfragmentada!B183)","v":1}]
["Localización 3","Jardin",null,{"$f":"+COUNTIF('Catálogo Localización'!C:C,Localizacion_desfragmentada!B184)","v":1}]
["Localización 3","La Calera",null,{"$f":"+COUNTIF('Catálogo Localización'!C:C,Localizacion_desfragmentada!B185)","v":1}]
["Localización 3","La Estrella",null,{"$f":"+COUNTIF('Catálogo Localización'!C:C,Localizacion_desfragmentada!B186)","v":1}]
["Localización 3","La Jagua de Ibirico",null,{"$f":"+COUNTIF('Catálogo Localización'!C:C,Localizacion_desfragmentada!B187)","v":1}]
["Localización 3","La Tebaida",null,{"$f":"+COUNTIF('Catálogo Localización'!C:C,Localizacion_desfragmentada!B188)","v":1}]
["Localización 3","La Union","Nariño",{"$f":"+COUNTIF('Catálogo Localización'!C:C,Localizacion_desfragmentada!B189)","v":4}]
["Localización 3","La Union","Antioquia",{"$f":"+COUNTIF('Catálogo Localización'!C:C,Localizacion_desfragmentada!B190)","v":4}]
["Localización 3","La Union","Sucre",{"$f":"+COUNTIF('Catálogo Localización'!C:C,Localizacion_desfragmentada!B191)","v":4}]
["Localización 3","La Union","Valle del Cauca",{"$f":"+COUNTIF('Catálogo Localización'!C:C,Localizacion_desfragmentada!B192)","v":4}]
["Localización 3","La Vega",null,{"$f":"+COUNTIF('Catálogo Localización'!C:C,Localizacion_desfragmentada!B193)","v":2}]
["Localización 3","La Victoria",null,{"$f":"+COUNTIF('Catálogo Localización'!C:C,Localizacion_desfragmentada!B194)","v":3}]
["Localización 3","La Virginia",null,{"$f":"+COUNTIF('Catálogo Localización'!C:C,Localizacion_desfragmentada!B195)","v":1}]
["Localización 3","Lebrija",null,{"$f":"+COUNTIF('Catálogo Localización'!C:C,Localizacion_desfragmentada!B196)","v":1}]
["Localización 3","Libano",null,{"$f":"+COUNTIF('Catálogo Localización'!C:C,Localizacion_desfragmentada!B197)","v":1}]
["Localización 3","Magangue",null,{"$f":"+COUNTIF('Catálogo Localización'!C:C,Localizacion_desfragmentada!B198)","v":1}]
["Localización 3","Maicao",null,{"$f":"+COUNTIF('Catálogo Localización'!C:C,Localizacion_desfragmentada!B199)","v":1}]
["Localización 3","Malaga",null,{"$f":"+COUNTIF('Catálogo Localización'!C:C,Localizacion_desfragmentada!B200)","v":1}]
["Localización 3","Malambo",null,{"$f":"+COUNTIF('Catálogo Localización'!C:C,Localizacion_desfragmentada!B201)","v":1}]
["Localización 3","Manaure",null,{"$f":"+COUNTIF('Catálogo Localización'!C:C,Localizacion_desfragmentada!B202)","v":2}]
["Localización 3","Manzanares",null,{"$f":"+COUNTIF('Catálogo Localización'!C:C,Localizacion_desfragmentada!B203)","v":1}]
["Localización 3","Marinilla",null,{"$f":"+COUNTIF('Catálogo Localización'!C:C,Localizacion_desfragmentada!B204)","v":1}]
["Localización 3","Mariquita",null,{"$f":"+COUNTIF('Catálogo Localización'!C:C,Localizacion_desfragmentada!B205)","v":1}]
["Localización 3","Miranda",null,{"$f":"+COUNTIF('Catálogo Localización'!C:C,Localizacion_desfragmentada!B206)","v":1}]
["Localización 3","Mitu",null,{"$f":"+COUNTIF('Catálogo Localización'!C:C,Localizacion_desfragmentada!B207)","v":1}]
["Localización 3","Mocoa",null,{"$f":"+COUNTIF('Catálogo Localización'!C:C,Localizacion_desfragmentada!B208)","v":1}]
["Localización 3","Moniquira",null,{"$f":"+COUNTIF('Catálogo Localización'!C:C,Localizacion_desfragmentada!B209)","v":1}]
["Localización 3","MOMPOS",null,{"$f":"+COUNTIF('Catálogo Localización'!C:C,Localizacion_desfragmentada!B210)","v":1}]
["Localización 3","Montelibano",null,{"$f":"+COUNTIF('Catálogo Localización'!C:C,Localizacion_desfragmentada!B211)","v":1}]
["Localización 3","Montenegro",null,{"$f":"+COUNTIF('Catálogo Localización'!C:C,Localizacion_desfragmentada!B212)","v":1}]
["Localización 3","MONTERREY","estaba con una sola r",{"$f":"+COUNTIF('Catálogo Localización'!C:C,Localizacion_desfragmentada!B213)","v":1}]
["Localización 3","Moñitos",null,{"$f":"+COUNTIF('Catálogo Localización'!C:C,Localizacion_desfragmentada!B214)","v":1}]
["Localización 3","Natagaima",null,{"$f":"+COUNTIF('Catálogo Localización'!C:C,Localizacion_desfragmentada!B215)","v":1}]
["Localización 3","Neira",null,{"$f":"+COUNTIF('Catálogo Localización'!C:C,Localizacion_desfragmentada!B216)","v":1}]
["Localización 3","Necocli",null,{"$f":"+COUNTIF('Catálogo Localización'!C:C,Localizacion_desfragmentada!B217)","v":1}]
["Localización 3","Nechi",null,{"$f":"+COUNTIF('Catálogo Localización'!C:C,Localizacion_desfragmentada!B218)","v":1}]
["Localización 3","Nobsa",null,{"$f":"+COUNTIF('Catálogo Localización'!C:C,Localizacion_desfragmentada!B219)","v":1}]
["Localización 3","Ocaña",null,{"$f":"+COUNTIF('Catálogo Localización'!C:C,Localizacion_desfragmentada!B220)","v":1}]
["Localización 3","Orito",null,{"$f":"+COUNTIF('Catálogo Localización'!C:C,Localizacion_desfragmentada!B221)","v":1}]
["Localización 3","Orocue",null,{"$f":"+COUNTIF('Catálogo Localización'!C:C,Localizacion_desfragmentada!B222)","v":1}]
["Localización 3","Ortega",null,{"$f":"+COUNTIF('Catálogo Localización'!C:C,Localizacion_desfragmentada!B223)","v":1}]
["Localización 3","Pacho",null,{"$f":"+COUNTIF('Catálogo Localización'!C:C,Localizacion_desfragmentada!B224)","v":1}]
["Localización 3","Pacora",null,{"$f":"+COUNTIF('Catálogo Localización'!C:C,Localizacion_desfragmentada!B225)","v":1}]
["Localización 3","Pamplona",null,{"$f":"+COUNTIF('Catálogo Localización'!C:C,Localizacion_desfragmentada!B226)","v":1}]
["Localización 3","Palestina",null,{"$f":"+COUNTIF('Catálogo Localización'!C:C,Localizacion_desfragmentada!B227)","v":2}]
["Localización 3","Patia","El Bordo",{"$f":"+COUNTIF('Catálogo Localización'!C:C,Localizacion_desfragmentada!B228)","v":1}]
["Localización 3","Paz de Ariporo",null,{"$f":"+COUNTIF('Catálogo Localización'!C:C,Localizacion_desfragmentada!B229)","v":1}]
["Localización 3","PIVIJAY",null,{"$f":"+COUNTIF('Catálogo Localización'!C:C,Localizacion_desfragmentada!B230)","v":1}]
["Localización 3","Planadas",null,{"$f":"+COUNTIF('Catálogo Localización'!C:C,Localizacion_desfragmentada!B231)","v":1}]
["Localización 3","Plato",null,{"$f":"+COUNTIF('Catálogo Localización'!C:C,Localizacion_desfragmentada!B232)","v":1}]
["Localización 3","Pradera",null,{"$f":"+COUNTIF('Catálogo Localización'!C:C,Localizacion_desfragmentada!B233)","v":1}]
["Localización 3","Puerto Asis",null,{"$f":"+COUNTIF('Catálogo Localización'!C:C,Localizacion_desfragmentada!B234)","v":1}]
["Localización 3","Puerto Berrio",null,{"$f":"+COUNTIF('Catálogo Localización'!C:C,Localizacion_desfragmentada!B235)","v":1}]
["Localización 3","Puerto Boyaca",null,{"$f":"+COUNTIF('Catálogo Localización'!C:C,Localizacion_desfragmentada!B236)","v":1}]
["Localización 3","Puerto Carreño",null,{"$f":"+COUNTIF('Catálogo Localización'!C:C,Localizacion_desfragmentada!B237)","v":1}]
["Localización 3","Puerto Gaitan",null,{"$f":"+COUNTIF('Catálogo Localización'!C:C,Localizacion_desfragmentada!B238)","v":1}]
["Localización 3","Puerto Escondido",null,{"$f":"+COUNTIF('Catálogo Localización'!C:C,Localizacion_desfragmentada!B239)","v":1}]
["Localización 3","LEGUIZAMO","Estaba Puerto Leguizamo",{"$f":"+COUNTIF('Catálogo Localización'!C:C,Localizacion_desfragmentada!B240)","v":1}]
["Localización 3","Puerto Libertador",null,{"$f":"+COUNTIF('Catálogo Localización'!C:C,Localizacion_desfragmentada!B241)","v":1}]
["Localización 3","Puerto Lopez",null,{"$f":"+COUNTIF('Catálogo Localización'!C:C,Localizacion_desfragmentada!B242)","v":1}]
["Localización 3","Puerto Nare",null,{"$f":"+COUNTIF('Catálogo Localización'!C:C,Localizacion_desfragmentada!B243)","v":1}]
["Localización 3","Puerto Rico",null,{"$f":"+COUNTIF('Catálogo Localización'!C:C,Localizacion_desfragmentada!B244)","v":2}]
["Localización 3","Puerto Salgar",null,{"$f":"+COUNTIF('Catálogo Localización'!C:C,Localizacion_desfragmentada!B245)","v":1}]
["Localización 3","Puerto Tejada",null,{"$f":"+COUNTIF('Catálogo Localización'!C:C,Localizacion_desfragmentada!B246)","v":1}]
["Localización 3","Puerto Wilches",null,{"$f":"+COUNTIF('Catálogo Localización'!C:C,Localizacion_desfragmentada!B247)","v":1}]
["Localización 3","Purificacion",null,{"$f":"+COUNTIF('Catálogo Localización'!C:C,Localizacion_desfragmentada!B248)","v":1}]
["Localización 3","Ramiriqui",null,{"$f":"+COUNTIF('Catálogo Localización'!C:C,Localizacion_desfragmentada!B249)","v":1}]
["Localización 3","Restrepo",null,{"$f":"+COUNTIF('Catálogo Localización'!C:C,Localizacion_desfragmentada!B250)","v":2}]
["Localización 3","Retiro",null,{"$f":"+COUNTIF('Catálogo Localización'!C:C,Localizacion_desfragmentada!B251)","v":1}]
["Localización 3","Riosucio",null,{"$f":"+COUNTIF('Catálogo Localización'!C:C,Localizacion_desfragmentada!B252)","v":2}]
["Localización 3","Sabana de Torres",null,{"$f":"+COUNTIF('Catálogo Localización'!C:C,Localizacion_desfragmentada!B253)","v":1}]
["Localización 3","Sabanalarga",null,{"$f":"+COUNTIF('Catálogo Localización'!C:C,Localizacion_desfragmentada!B254)","v":3}]
["Localización 3","Sabaneta",null,{"$f":"+COUNTIF('Catálogo Localización'!C:C,Localizacion_desfragmentada!B255)","v":1}]
["Localización 3","Sahagun",null,{"$f":"+COUNTIF('Catálogo Localización'!C:C,Localizacion_desfragmentada!B256)","v":1}]
["Localización 3","Saldaña",null,{"$f":"+COUNTIF('Catálogo Localización'!C:C,Localizacion_desfragmentada!B257)","v":1}]
["Localización 3","Salgar",null,{"$f":"+COUNTIF('Catálogo Localización'!C:C,Localizacion_desfragmentada!B258)","v":1}]
["Localización 3","Samaca",null,{"$f":"+COUNTIF('Catálogo Localización'!C:C,Localizacion_desfragmentada!B259)","v":1}]
["Localización 3","San Alberto",null,{"$f":"+COUNTIF('Catálogo Localización'!C:C,Localizacion_desfragmentada!B260)","v":1}]
["Localización 3","San Andres Sotavento",null,{"$f":"+COUNTIF('Catálogo Localización'!C:C,Localizacion_desfragmentada!B261)","v":1}]
["Localización 3","San Antero",null,{"$f":"+COUNTIF('Catálogo Localización'!C:C,Localizacion_desfragmentada!B262)","v":1}]
["Localización 3","San Bernardo",null,{"$f":"+COUNTIF('Catálogo Localización'!C:C,Localizacion_desfragmentada!B263)","v":2}]
["Localización 3","Sandona",null,{"$f":"+COUNTIF('Catálogo Localización'!C:C,Localizacion_desfragmentada!B264)","v":1}]
["Localización 3","San Jose del Guaviare",null,{"$f":"+COUNTIF('Catálogo Localización'!C:C,Localizacion_desfragmentada!B265)","v":1}]
["Localización 3","San Juan del Cesar",null,{"$f":"+COUNTIF('Catálogo Localización'!C:C,Localizacion_desfragmentada!B266)","v":1}]
["Localización 3","San Marcos",null,{"$f":"+COUNTIF('Catálogo Localización'!C:C,Localizacion_desfragmentada!B267)","v":1}]
["Localización 3","San Martin","Meta",{"$f":"+COUNTIF('Catálogo Localización'!C:C,Localizacion_desfragmentada!B268)","v":2}]
["Localización 3","San Martin","Cesar",{"$f":"+COUNTIF('Catálogo Localización'!C:C,Localizacion_desfragmentada!B269)","v":2}]
["Localización 3","San Pedro",null,{"$f":"+COUNTIF('Catálogo Localización'!C:C,Localizacion_desfragmentada!B270)","v":3}]
["Localización 3","San Vicente del Caguan",null,{"$f":"+COUNTIF('Catálogo Localización'!C:C,Localizacion_desfragmentada!B271)","v":1}]
["Localización 3","San Vicente de Chucuri",null,{"$f":"+COUNTIF('Catálogo Localización'!C:C,Localizacion_desfragmentada!B272)","v":1}]
["Localización 3","Sandona",null,{"$f":"+COUNTIF('Catálogo Localización'!C:C,Localizacion_desfragmentada!B273)","v":1}]
["Localización 3","San Pelayo",null,{"$f":"+COUNTIF('Catálogo Localización'!C:C,Localizacion_desfragmentada!B274)","v":1}]
["Localización 3","Santa Rosa de Cabal",null,{"$f":"+COUNTIF('Catálogo Localización'!C:C,Localizacion_desfragmentada!B275)","v":1}]
["Localización 3","Santa Rosa de Osos",null,{"$f":"+COUNTIF('Catálogo Localización'!C:C,Localizacion_desfragmentada!B276)","v":1}]
["Localización 3","Santa Rosa de Viterbo",null,{"$f":"+COUNTIF('Catálogo Localización'!C:C,Localizacion_desfragmentada!B277)","v":1}]
["Localización 3","Santafe de Antioquia",null,{"$f":"+COUNTIF('Catálogo Localización'!C:C,Localizacion_desfragmentada!B278)","v":1}]
["Localización 3","Santana",null,{"$f":"+COUNTIF('Catálogo Localización'!C:C,Localizacion_desfragmentada!B279)","v":1}]
["Localización 3","Santander de Quilichao",null,{"$f":"+COUNTIF('Catálogo Localización'!C:C,Localizacion_desfragmentada!B280)","v":1}]
["Localización 3","Santuario",null,{"$f":"+COUNTIF('Catálogo Localización'!C:C,Localizacion_desfragmentada!B281)","v":1}]
["Localización 3","San Andres",null,{"$f":"+COUNTIF('Catálogo Localización'!C:C,Localizacion_desfragmentada!B282)","v":2}]
["Localización 3","Saravena",null,{"$f":"+COUNTIF('Catálogo Localización'!C:C,Localizacion_desfragmentada!B283)","v":1}]
["Localización 3","Segovia",null,{"$f":"+COUNTIF('Catálogo Localización'!C:C,Localizacion_desfragmentada!B284)","v":1}]
["Localización 3","Sevilla",null,{"$f":"+COUNTIF('Catálogo Localización'!C:C,Localizacion_desfragmentada!B285)","v":1}]
["Localización 3","Sibate",null,{"$f":"+COUNTIF('Catálogo Localización'!C:C,Localizacion_desfragmentada!B286)","v":1}]
["Localización 3","Sibundoy",null,{"$f":"+COUNTIF('Catálogo Localización'!C:C,Localizacion_desfragmentada!B287)","v":1}]
["Localización 3","Simijaca",null,{"$f":"+COUNTIF('Catálogo Localización'!C:C,Localizacion_desfragmentada!B288)","v":1}]
["Localización 3","Since","No encuentro municipio, es Sincelejo?",{"$f":"+COUNTIF('Catálogo Localización'!C:C,Localizacion_desfragmentada!B289)","v":0}]
["Localización 3","Socorro",null,{"$f":"+COUNTIF('Catálogo Localización'!C:C,Localizacion_desfragmentada!B290)","v":1}]
["Localización 3","Socha",null,{"$f":"+COUNTIF('Catálogo Localización'!C:C,Localizacion_desfragmentada!B291)","v":1}]
["Localización 3","Sonson",null,{"$f":"+COUNTIF('Catálogo Localización'!C:C,Localizacion_desfragmentada!B292)","v":1}]
["Localización 3","Supia",null,{"$f":"+COUNTIF('Catálogo Localización'!C:C,Localizacion_desfragmentada!B293)","v":1}]
["Localización 3","Tabio",null,{"$f":"+COUNTIF('Catálogo Localización'!C:C,Localizacion_desfragmentada!B294)","v":1}]
["Localización 3","Tame",null,{"$f":"+COUNTIF('Catálogo Localización'!C:C,Localizacion_desfragmentada!B295)","v":1}]
["Localización 3","Tenjo",null,{"$f":"+COUNTIF('Catálogo Localización'!C:C,Localizacion_desfragmentada!B296)","v":1}]
["Localización 3","Tierralta",null,{"$f":"+COUNTIF('Catálogo Localización'!C:C,Localizacion_desfragmentada!B297)","v":1}]
["Localización 3","Tocaima","x",{"$f":"+COUNTIF('Catálogo Localización'!C:C,Localizacion_desfragmentada!B298)","v":1}]
["Localización 3","Tolu","Encuentro dos Tolu",{"$f":"+COUNTIF('Catálogo Localización'!C:C,Localizacion_desfragmentada!B299)","v":0}]
["Localización 3","SAN ANDRES DE TUMACO","estaba solo tumaco",{"$f":"+COUNTIF('Catálogo Localización'!C:C,Localizacion_desfragmentada!B300)","v":1}]
["Localización 3","Tuquerres",null,{"$f":"+COUNTIF('Catálogo Localización'!C:C,Localizacion_desfragmentada!B301)","v":1}]
["Localización 3","Turbo",null,{"$f":"+COUNTIF('Catálogo Localización'!C:C,Localizacion_desfragmentada!B302)","v":1}]
["Localización 3","Uribia",null,{"$f":"+COUNTIF('Catálogo Localización'!C:C,Localizacion_desfragmentada!B303)","v":1}]
["Localización 3","Urrao",null,{"$f":"+COUNTIF('Catálogo Localización'!C:C,Localizacion_desfragmentada!B304)","v":1}]
["Localización 3","Velez",null,{"$f":"+COUNTIF('Catálogo Localización'!C:C,Localizacion_desfragmentada!B305)","v":1}]
["Localización 3","Villanueva","Casanare",{"$f":"+COUNTIF('Catálogo Localización'!C:C,Localizacion_desfragmentada!B306)","v":4}]
["Localización 3","Villapinzon",null,{"$f":"+COUNTIF('Catálogo Localización'!C:C,Localizacion_desfragmentada!B307)","v":1}]
["Localización 3","Villeta",null,{"$f":"+COUNTIF('Catálogo Localización'!C:C,Localizacion_desfragmentada!B308)","v":1}]
["Localización 3","Villagarzon",null,{"$f":"+COUNTIF('Catálogo Localización'!C:C,Localizacion_desfragmentada!B309)","v":1}]
["Localización 3","Yaguara",null,{"$f":"+COUNTIF('Catálogo Localización'!C:C,Localizacion_desfragmentada!B310)","v":1}]
["Localización 3","Yarumal",null,{"$f":"+COUNTIF('Catálogo Localización'!C:C,Localizacion_desfragmentada!B311)","v":1}]
["Localización 3","Zapatoca",null,{"$f":"+COUNTIF('Catálogo Localización'!C:C,Localizacion_desfragmentada!B312)","v":1}]
["Localización 4","Los demas municipios y corregimientos del territorio nacional donde los Operadores Postales tienen presencia unica",null,{"$f":"+COUNTIF('Catálogo Localización'!C:C,Localizacion_desfragmentada!B313)","v":0}]

{"sheet":"CSV","index":7,"n_rows":4,"n_cols":8,"rows_kept":4,"cut":false,"hidden":true,"merged":[]}
["Tipo (servicio o artÃ­culo)","Cantidad","CÃ³digo de unidad de medida*","PosiciÃ³n","Precio base","Divisa","DescripciÃ³n","MercancÃ­a"]
["item",100000,"Und",null,"\"\"0\"\"","COP","SF Tipo 4 - 5002 - ABEJORRAL - Beneficiarios: 500"]
["item",1,"Und",null,"\"\"0\"\"","COP","Total Servicios Adicionales"]
["item",1,"Und",null,"\"\"0\"\"","COP","IVA"]